Workbook

Sheet Integrated Financial Statements
DD1: =""&IF($A$8=1,"Bear",IF($A$8=2,"Base",IF($A$8=3,"Bull","Check Case"))) -> Base
G3: Historical Financials | DD3: ="Proforma Financials" -> Proforma Financials
I6: FY 2015 | M6: FY 2015 | Q6: FY 2015 | U6: FY 2015 | Y6: FY 2015 | AC6: FY 2016 | AG6: FY 2016 | AK6: FY 2016 | AO6: FY 2016 | AS6: FY 2016 | AW6: FY 2017 | BA6: FY 2017 | BE6: FY 2017 | BI6: FY 2017 | BM6: FY 2017 | BQ6: FY 2018 | BU6: FY 2018 | BY6: FY 2018 | CC6: FY 2018 | CG6: FY 2018 | CK6: FY 2019 | CO6: FY 2019 | CS6: FY 2019 | CW6: FY 2019 | DA6: FY 2019 | DF6: =DV6 -> FY 2020 | DJ6: =DV6 -> FY 2020 | DN6: =DV6 -> FY 2020 | DR6: =DV6 -> FY 2020 | DV6: FY 2020 | DZ6: =EP6 -> FY 2021 | ED6: =EP6 -> FY 2021 | EH6: =EP6 -> FY 2021 | EL6: =EP6 -> FY 2021 | EP6: ="FY "&RIGHT(DV6,4)+1 -> FY 2021 | ET6: =FJ6 -> FY 2022 | EX6: =FJ6 -> FY 2022 | FB6: =FJ6 -> FY 2022 | FF6: =FJ6 -> FY 2022 | FJ6: ="FY "&RIGHT(EP6,4)+1 -> FY 2022 | FN6: =GD6 -> FY 2023 | FR6: =GD6 -> FY 2023 | FV6: =GD6 -> FY 2023 | FZ6: =GD6 -> FY 2023 | GD6: ="FY "&RIGHT(FJ6,4)+1 -> FY 2023 | GH6: =GX6 -> FY 2024 | GL6: =GX6 -> FY 2024 | GP6: =GX6 -> FY 2024 | GT6: =GX6 -> FY 2024 | GX6: ="FY "&RIGHT(GD6,4)+1 -> FY 2024 | HB6: =HR6 -> FY 2025 | HF6: =HR6 -> FY 2025 | HJ6: =HR6 -> FY 2025 | HN6: =HR6 -> FY 2025 | HR6: ="FY "&RIGHT(GX6,4)+1 -> FY 2025 | HV6: =IL6 -> FY 2026 | HZ6: =IL6 -> FY 2026 | ID6: =IL6 -> FY 2026 | IH6: =IL6 -> FY 2026 | IL6: ="FY "&RIGHT(HR6,4)+1 -> FY 2026 | IP6: =JF6 -> FY 2027 | IT6: =JF6 -> FY 2027 | IX6: =JF6 -> FY 2027 | JB6: =JF6 -> FY 2027 | JF6: ="FY "&RIGHT(IL6,4)+1 -> FY 2027 | JJ6: =JZ6 -> FY 2028 | JN6: =JZ6 -> FY 2028 | JR6: =JZ6 -> FY 2028 | JV6: =JZ6 -> FY 2028 | JZ6: ="FY "&RIGHT(JF6,4)+1 -> FY 2028 | KD6: =KT6 -> FY 2029 | KH6: =KT6 -> FY 2029 | KL6: =KT6 -> FY 2029 | KP6: =KT6 -> FY 2029 | KT6: ="FY "&RIGHT(JZ6,4)+1 -> FY 2029
I7: Quarter Ended | M7: Quarter Ended | Q7: Quarter Ended | U7: Quarter Ended | Y7: Year Ended | AC7: Quarter Ended | AG7: Quarter Ended | AK7: Quarter Ended | AO7: Quarter Ended | AS7: Year Ended | AW7: Quarter Ended | BA7: Quarter Ended | BE7: Quarter Ended | BI7: Quarter Ended | BM7: Year Ended | BQ7: Quarter Ended | BU7: Quarter Ended | BY7: Quarter Ended | CC7: Quarter Ended | CG7: Year Ended | CK7: Quarter Ended | CO7: Quarter Ended | CS7: Quarter Ended | CW7: Quarter Ended | DA7: Year Ended | DF7: Quarter Ended | DJ7: Quarter Ended | DN7: Quarter Ended | DR7: Quarter Ended | DV7: Year Ended | DZ7: Quarter Ended | ED7: Quarter Ended | EH7: Quarter Ended | EL7: Quarter Ended | EP7: Year Ended | ET7: Quarter Ended | EX7: Quarter Ended | FB7: Quarter Ended | FF7: Quarter Ended | FJ7: Year Ended | FN7: Quarter Ended | FR7: Quarter Ended | FV7: Quarter Ended | FZ7: Quarter Ended | GD7: Year Ended | GH7: Quarter Ended | GL7: Quarter Ended | GP7: Quarter Ended | GT7: Quarter Ended | GX7: Year Ended | HB7: Quarter Ended | HF7: Quarter Ended | HJ7: Quarter Ended | HN7: Quarter Ended | HR7: Year Ended | HV7: Quarter Ended | HZ7: Quarter Ended | ID7: Quarter Ended | IH7: Quarter Ended | IL7: Year Ended | IP7: Quarter Ended | IT7: Quarter Ended | IX7: Quarter Ended | JB7: Quarter Ended | JF7: Year Ended | JJ7: Quarter Ended | JN7: Quarter Ended | JR7: Quarter Ended | JV7: Quarter Ended | JZ7: Year Ended | KD7: Quarter Ended | KH7: Quarter Ended | KL7: Quarter Ended | KP7: Quarter Ended | KT7: Year Ended
A8: 2 | I8: October 25, 2014 | M8: January 24, 2015 | Q8: April 25, 2015 | U8: July 25, 2015 | Y8: =U8 -> July 25, 2015 | AC8: October 24, 2015 | AG8: January 23, 2016 | AK8: April 30, 2016 | AO8: July 30, 2016 | AS8: =AO8 -> July 30, 2016 | AW8: October 29, 2016 | BA8: January 28, 2017 | BE8: April 29, 2017 | BI8: July 29, 2017 | BM8: =BI8 -> July 29, 2017 | BQ8: October 28, 2017 | BU8: January 27, 2018 | BY8: April 28, 2018 | CC8: July 28, 2018 | CG8: =CC8 -> July 28, 2018 | CK8: October 27, 2018 | CO8: January 26, 2019 | CS8: April 27, 2019 | CW8: July 27, 2019 | DA8: =CW8 -> July 27, 2019 | DF8: ="October 27, "&RIGHT(DF6,4)-1 -> October 27, 2019 | DJ8: ="January 26, "&RIGHT(DF6,4) -> January 26, 2020 | DN8: ="April 27, "&RIGHT(DF6,4) -> April 27, 2020 | DR8: ="July 27, "&RIGHT(DF6,4) -> July 27, 2020 | DV8: ="July 27, "&RIGHT(DF6,4) -> July 27, 2020 | DZ8: ="October 27, "&RIGHT(DZ6,4)-1 -> October 27, 2020 | ED8: ="January 26, "&RIGHT(DZ6,4) -> January 26, 2021 | EH8: ="April 27, "&RIGHT(DZ6,4) -> April 27, 2021 | EL8: ="July 27, "&RIGHT(DZ6,4) -> July 27, 2021 | EP8: ="July 27, "&RIGHT(DZ6,4) -> July 27, 2021 | ET8: ="October 27, "&RIGHT(ET6,4)-1 -> October 27, 2021 | EX8: ="January 26, "&RIGHT(ET6,4) -> January 26, 2022 | FB8: ="April 27, "&RIGHT(ET6,4) -> April 27, 2022 | FF8: ="July 27, "&RIGHT(ET6,4) -> July 27, 2022 | FJ8: ="July 27, "&RIGHT(ET6,4) -> July 27, 2022 | FN8: ="October 27, "&RIGHT(FN6,4)-1 -> October 27, 2022 | FR8: ="January 26, "&RIGHT(FN6,4) -> January 26, 2023 | FV8: ="April 27, "&RIGHT(FN6,4) -> April 27, 2023 | FZ8: ="July 27, "&RIGHT(FN6,4) -> July 27, 2023 | GD8: ="July 27, "&RIGHT(FN6,4) -> July 27, 2023 | GH8: ="October 27, "&RIGHT(GH6,4)-1 -> October 27, 2023 | GL8: ="January 26, "&RIGHT(GH6,4) -> January 26, 2024 | GP8: ="April 27, "&RIGHT(GH6,4) -> April 27, 2024 | GT8: ="July 27, "&RIGHT(GH6,4) -> July 27, 2024 | GX8: ="July 27, "&RIGHT(GH6,4) -> July 27, 2024 | HB8: ="October 27, "&RIGHT(HB6,4)-1 -> October 27, 2024 | HF8: ="January 26, "&RIGHT(HB6,4) -> January 26, 2025 | HJ8: ="April 27, "&RIGHT(HB6,4) -> April 27, 2025 | HN8: ="July 27, "&RIGHT(HB6,4) -> July 27, 2025 | HR8: ="July 27, "&RIGHT(HB6,4) -> July 27, 2025 | HV8: ="October 27, "&RIGHT(HV6,4)-1 -> October 27, 2025 | HZ8: ="January 26, "&RIGHT(HV6,4) -> January 26, 2026 | ID8: ="April 27, "&RIGHT(HV6,4) -> April 27, 2026 | IH8: ="July 27, "&RIGHT(HV6,4) -> July 27, 2026 | IL8: ="July 27, "&RIGHT(HV6,4) -> July 27, 2026 | IP8: ="October 27, "&RIGHT(IP6,4)-1 -> October 27, 2026 | IT8: ="January 26, "&RIGHT(IP6,4) -> January 26, 2027 | IX8: ="April 27, "&RIGHT(IP6,4) -> April 27, 2027 | JB8: ="July 27, "&RIGHT(IP6,4) -> July 27, 2027 | JF8: ="July 27, "&RIGHT(IP6,4) -> July 27, 2027 | JJ8: ="October 27, "&RIGHT(JJ6,4)-1 -> October 27, 2027 | JN8: ="January 26, "&RIGHT(JJ6,4) -> January 26, 2028 | JR8: ="April 27, "&RIGHT(JJ6,4) -> April 27, 2028 | JV8: ="July 27, "&RIGHT(JJ6,4) -> July 27, 2028 | JZ8: ="July 27, "&RIGHT(JJ6,4) -> July 27, 2028 | KD8: ="October 27, "&RIGHT(KD6,4)-1 -> October 27, 2028 | KH8: ="January 26, "&RIGHT(KD6,4) -> January 26, 2029 | KL8: ="April 27, "&RIGHT(KD6,4) -> April 27, 2029 | KP8: ="July 27, "&RIGHT(KD6,4) -> July 27, 2029 | KT8: ="July 27, "&RIGHT(KD6,4) -> July 27, 2029
A9: Income Statement | G9: x
A11: REVENUE:
B12: Product | I12: 9435 | M12: 9078 | Q12: 9326 | U12: 9911 | Y12: =I12+M12+Q12+U12 -> 37750 | AC12: 9844 | AG12: 8983 | AK12: 8875 | AO12: 9552 | AS12: =AC12+AG12+AK12+AO12 -> 37254 | AW12: 9302 | BA12: 8491 | BE12: 8885 | BI12: 9027 | BM12: =AW12+BA12+BE12+BI12 -> 35705 | BQ12: 9054 | BU12: 8709 | BY12: 9304 | CC12: 9642 | CG12: =BQ12+BU12+BY12+CC12 -> 36709 | CK12: 9890 | CO12: 9273 | CS12: 9722 | CW12: 10120 | DA12: =CK12+CO12+CS12+CW12 -> 39005 | DF12: ='Revenue Model'!DF27+'Revenue Model'!DF29 -> 9744 | DJ12: ='Revenue Model'!DJ27+'Revenue Model'!DJ29 -> 9447.234306 | DN12: ='Revenue Model'!DN27+'Revenue Model'!DN29 -> 9864.07 | DR12: ='Revenue Model'!DR27+'Revenue Model'!DR29 -> 10344.2547 | DV12: =DF12+DJ12+DN12+DR12 -> 39399.559 | DZ12: ='Revenue Model'!DZ27+'Revenue Model'!DZ29 -> 10006.97 | ED12: ='Revenue Model'!ED27+'Revenue Model'!ED29 -> 9662.998749 | EH12: ='Revenue Model'!EH27+'Revenue Model'!EH29 -> 10069.6936 | EL12: ='Revenue Model'!EL27+'Revenue Model'!EL29 -> 10586.60455 | EP12: =DZ12+ED12+EH12+EL12 -> 40326.26689 | ET12: ='Revenue Model'!ET27+'Revenue Model'!ET29 -> 10223.75383 | EX12: ='Revenue Model'!EX27+'Revenue Model'!EX29 -> 9893.09219 | FB12: ='Revenue Model'!FB27+'Revenue Model'!FB29 -> 10387.54538 | FF12: ='Revenue Model'!FF27+'Revenue Model'!FF29 -> 11018.41393 | FJ12: =ET12+EX12+FB12+FF12 -> 41522.80534 | FN12: ='Revenue Model'!FN27+'Revenue Model'!FN29 -> 11332.72459 | FR12: ='Revenue Model'!FR27+'Revenue Model'!FR29 -> 10613.77243 | FV12: ='Revenue Model'!FV27+'Revenue Model'!FV29 -> 10923.06718 | FZ12: ='Revenue Model'!FZ27+'Revenue Model'!FZ29 -> 11625.11932 | GD12: =FN12+FR12+FV12+FZ12 -> 44494.68351 | GH12: ='Revenue Model'!GH27+'Revenue Model'!GH29 -> 11804.63368 | GL12: ='Revenue Model'!GL27+'Revenue Model'!GL29 -> 11069.22452 | GP12: ='Revenue Model'!GP27+'Revenue Model'!GP29 -> 11386.90962 | GT12: ='Revenue Model'!GT27+'Revenue Model'!GT29 -> 12107.50944 | GX12: =GH12+GL12+GP12+GT12 -> 46368.27726 | HB12: ='Revenue Model'!HB27+'Revenue Model'!HB29 -> 12250.54841 | HF12: ='Revenue Model'!HF27+'Revenue Model'!HF29 -> 11498.6385 | HJ12: ='Revenue Model'!HJ27+'Revenue Model'!HJ29 -> 11824.4083 | HN12: ='Revenue Model'!HN27+'Revenue Model'!HN29 -> 12559.86111 | HR12: =HB12+HF12+HJ12+HN12 -> 48133.45632 | HV12: ='Revenue Model'!HV27+'Revenue Model'!HV29 -> 12661.03299 | HZ12: ='Revenue Model'!HZ27+'Revenue Model'!HZ29 -> 11893.00007 | ID12: ='Revenue Model'!ID27+'Revenue Model'!ID29 -> 12226.44077 | IH12: ='Revenue Model'!IH27+'Revenue Model'!IH29 -> 12972.00631 | IL12: =HV12+HZ12+ID12+IH12 -> 49752.48014 | IP12: ='Revenue Model'!IP27+'Revenue Model'!IP29 -> 12695.57326 | IT12: ='Revenue Model'!IT27+'Revenue Model'!IT29 -> 11917.35064 | IX12: ='Revenue Model'!IX27+'Revenue Model'!IX29 -> 12256.05354 | JB12: ='Revenue Model'!JB27+'Revenue Model'!JB29 -> 13008.1419 | JF12: =IP12+IT12+IX12+JB12 -> 49877.11934 | JJ12: ='Revenue Model'!JJ27+'Revenue Model'!JJ29 -> 12806.09506 | JN12: ='Revenue Model'!JN27+'Revenue Model'!JN29 -> 12012.23197 | JR12: ='Revenue Model'!JR27+'Revenue Model'!JR29 -> 12357.51232 | JV12: ='Revenue Model'!JV27+'Revenue Model'!JV29 -> 13122.72706 | JZ12: =JJ12+JN12+JR12+JV12 -> 50298.56641 | KD12: ='Revenue Model'!KD27+'Revenue Model'!KD29 -> 12920.97267 | KH12: ='Revenue Model'!KH27+'Revenue Model'!KH29 -> 12111.14639 | KL12: ='Revenue Model'!KL27+'Revenue Model'!KL29 -> 12463.1355 | KP12: ='Revenue Model'!KP27+'Revenue Model'!KP29 -> 13241.73724 | KT12: =KD12+KH12+KL12+KP12 -> 50736.9918
B13: Service | I13: 2810 | M13: 2858 | Q13: 2811 | U13: 2932 | Y13: =I13+M13+Q13+U13 -> 11411 | AC13: 2838 | AG13: 2944 | AK13: 3125 | AO13: 3086 | AS13: =AC13+AG13+AK13+AO13 -> 11993 | AW13: 3050 | BA13: 3089 | BE13: 3055 | BI13: 3106 | BM13: =AW13+BA13+BE13+BI13 -> 12300 | BQ13: 3082 | BU13: 3178 | BY13: 3159 | CC13: 3202 | CG13: =BQ13+BU13+BY13+CC13 -> 12621 | CK13: 3182 | CO13: 3173 | CS13: 3236 | CW13: 3308 | DA13: =CK13+CO13+CS13+CW13 -> 12899 | DF13: ='Revenue Model'!DF28 -> 3161 | DJ13: ='Revenue Model'!DJ28 -> 3236.46 | DN13: ='Revenue Model'!DN28 -> 3268.36 | DR13: ='Revenue Model'!DR28 -> 3407.24 | DV13: =DF13+DJ13+DN13+DR13 -> 13073.06 | DZ13: ='Revenue Model'!DZ28 -> 3255.83 | ED13: ='Revenue Model'!ED28 -> 3333.5538 | EH13: ='Revenue Model'!EH28 -> 3366.4108 | EL13: ='Revenue Model'!EL28 -> 3509.4572 | EP13: =DZ13+ED13+EH13+EL13 -> 13465.2518 | ET13: ='Revenue Model'!ET28 -> 3353.5049 | EX13: ='Revenue Model'!EX28 -> 3433.560414 | FB13: ='Revenue Model'!FB28 -> 3467.403124 | FF13: ='Revenue Model'!FF28 -> 3614.740916 | FJ13: =ET13+EX13+FB13+FF13 -> 13869.20935 | FN13: ='Revenue Model'!FN28 -> 3480.17716 | FR13: ='Revenue Model'!FR28 -> 3557.392406 | FV13: ='Revenue Model'!FV28 -> 3596.482075 | FZ13: ='Revenue Model'!FZ28 -> 3651.233993 | GD13: =FN13+FR13+FV13+FZ13 -> 14285.28563 | GH13: ='Revenue Model'!GH28 -> 3619.384246 | GL13: ='Revenue Model'!GL28 -> 3699.688103 | GP13: ='Revenue Model'!GP28 -> 3740.341358 | GT13: ='Revenue Model'!GT28 -> 3797.283353 | GX13: =GH13+GL13+GP13+GT13 -> 14856.69706 | HB13: ='Revenue Model'!HB28 -> 3764.159616 | HF13: ='Revenue Model'!HF28 -> 3847.675627 | HJ13: ='Revenue Model'!HJ28 -> 3889.955012 | HN13: ='Revenue Model'!HN28 -> 3949.174687 | HR13: =HB13+HF13+HJ13+HN13 -> 15450.96494 | HV13: ='Revenue Model'!HV28 -> 3914.726001 | HZ13: ='Revenue Model'!HZ28 -> 4001.582652 | ID13: ='Revenue Model'!ID28 -> 4045.553213 | IH13: ='Revenue Model'!IH28 -> 4107.141675 | IL13: =HV13+HZ13+ID13+IH13 -> 16069.00354 | IP13: ='Revenue Model'!IP28 -> 4071.315041 | IT13: ='Revenue Model'!IT28 -> 4161.645958 | IX13: ='Revenue Model'!IX28 -> 4207.375341 | JB13: ='Revenue Model'!JB28 -> 4271.427342 | JF13: =IP13+IT13+IX13+JB13 -> 16711.76368 | JJ13: ='Revenue Model'!JJ28 -> 4193.454492 | JN13: ='Revenue Model'!JN28 -> 4286.495337 | JR13: ='Revenue Model'!JR28 -> 4333.596601 | JV13: ='Revenue Model'!JV28 -> 4399.570162 | JZ13: =JJ13+JN13+JR13+JV13 -> 17213.11659 | KD13: ='Revenue Model'!KD28 -> 4319.258127 | KH13: ='Revenue Model'!KH28 -> 4415.090197 | KL13: ='Revenue Model'!KL28 -> 4463.6045 | KP13: ='Revenue Model'!KP28 -> 4531.557267 | KT13: =KD13+KH13+KL13+KP13 -> 17729.51009
B14: Total revenue | I14: =SUM(I12:I13) -> 12245 | M14: =SUM(M12:M13) -> 11936 | Q14: =SUM(Q12:Q13) -> 12137 | U14: =SUM(U12:U13) -> 12843 | Y14: =SUM(Y12:Y13) -> 49161 | AC14: =SUM(AC12:AC13) -> 12682 | AG14: =SUM(AG12:AG13) -> 11927 | AK14: =SUM(AK12:AK13) -> 12000 | AO14: =SUM(AO12:AO13) -> 12638 | AS14: =SUM(AS12:AS13) -> 49247 | AW14: =SUM(AW12:AW13) -> 12352 | BA14: =SUM(BA12:BA13) -> 11580 | BE14: =SUM(BE12:BE13) -> 11940 | BI14: =SUM(BI12:BI13) -> 12133 | BM14: =SUM(BM12:BM13) -> 48005 | BQ14: =SUM(BQ12:BQ13) -> 12136 | BU14: =SUM(BU12:BU13) -> 11887 | BY14: =SUM(BY12:BY13) -> 12463 | CC14: =SUM(CC12:CC13) -> 12844 | CG14: =SUM(CG12:CG13) -> 49330 | CK14: =SUM(CK12:CK13) -> 13072 | CO14: =SUM(CO12:CO13) -> 12446 | CS14: =SUM(CS12:CS13) -> 12958 | CW14: =SUM(CW12:CW13) -> 13428 | DA14: =SUM(DA12:DA13) -> 51904 | DF14: =SUM(DF12:DF13) -> 12905 | DJ14: =SUM(DJ12:DJ13) -> 12683.69431 | DN14: =SUM(DN12:DN13) -> 13132.43 | DR14: =SUM(DR12:DR13) -> 13751.4947 | DV14: =SUM(DV12:DV13) -> 52472.619 | DZ14: =SUM(DZ12:DZ13) -> 13262.8 | ED14: =SUM(ED12:ED13) -> 12996.55255 | EH14: =SUM(EH12:EH13) -> 13436.1044 | EL14: =SUM(EL12:EL13) -> 14096.06175 | EP14: =SUM(EP12:EP13) -> 53791.51869 | ET14: =SUM(ET12:ET13) -> 13577.25873 | EX14: =SUM(EX12:EX13) -> 13326.6526 | FB14: =SUM(FB12:FB13) -> 13854.9485 | FF14: =SUM(FF12:FF13) -> 14633.15485 | FJ14: =SUM(FJ12:FJ13) -> 55392.01469 | FN14: =SUM(FN12:FN13) -> 14812.90175 | FR14: =SUM(FR12:FR13) -> 14171.16483 | FV14: =SUM(FV12:FV13) -> 14519.54925 | FZ14: =SUM(FZ12:FZ13) -> 15276.35331 | GD14: =SUM(GD12:GD13) -> 58779.96915 | GH14: =SUM(GH12:GH13) -> 15424.01793 | GL14: =SUM(GL12:GL13) -> 14768.91262 | GP14: =SUM(GP12:GP13) -> 15127.25098 | GT14: =SUM(GT12:GT13) -> 15904.79279 | GX14: =SUM(GX12:GX13) -> 61224.97432 | HB14: =SUM(HB12:HB13) -> 16014.70803 | HF14: =SUM(HF12:HF13) -> 15346.31413 | HJ14: =SUM(HJ12:HJ13) -> 15714.36331 | HN14: =SUM(HN12:HN13) -> 16509.03579 | HR14: =SUM(HR12:HR13) -> 63584.42126 | HV14: =SUM(HV12:HV13) -> 16575.75899 | HZ14: =SUM(HZ12:HZ13) -> 15894.58273 | ID14: =SUM(ID12:ID13) -> 16271.99398 | IH14: =SUM(IH12:IH13) -> 17079.14799 | IL14: =SUM(IL12:IL13) -> 65821.48368 | IP14: =SUM(IP12:IP13) -> 16766.8883 | IT14: =SUM(IT12:IT13) -> 16078.9966 | IX14: =SUM(IX12:IX13) -> 16463.42888 | JB14: =SUM(JB12:JB13) -> 17279.56924 | JF14: =SUM(JF12:JF13) -> 66588.88302 | JJ14: =SUM(JJ12:JJ13) -> 16999.54955 | JN14: =SUM(JN12:JN13) -> 16298.7273 | JR14: =SUM(JR12:JR13) -> 16691.10892 | JV14: =SUM(JV12:JV13) -> 17522.29723 | JZ14: =SUM(JZ12:JZ13) -> 67511.683 | KD14: =SUM(KD12:KD13) -> 17240.2308 | KH14: =SUM(KH12:KH13) -> 16526.23658 | KL14: =SUM(KL12:KL13) -> 16926.74 | KP14: =SUM(KP12:KP13) -> 17773.2945 | KT14: =SUM(KT12:KT13) -> 68466.50189
A16: COST OF SALES:
B17: Product (a) - (d) & (f) | I17: 3919 | M17: 3806 | Q17: 3584 | U17: 4068 | Y17: =I17+M17+Q17+U17 -> 15377 | AC17: 3853 | AG17: 3480 | AK17: 3214 | AO17: 3614 | AS17: =AC17+AG17+AK17+AO17 -> 14161 | AW17: 3403 | BA17: 3305 | BE17: 3405 | BI17: 3586 | BM17: =AW17+BA17+BE17+BI17 -> 13699 | BQ17: 3615 | BU17: 3354 | BY17: 3625 | CC17: 3833 | CG17: =BQ17+BU17+BY17+CC17 -> 14427 | CK17: 3799 | CO17: 3614 | CS17: 3693 | CW17: 3757 | DA17: =CK17+CO17+CS17+CW17 -> 14863 | DF17: =DF12*Ratios!DF21 -> 3811.864426 | DJ17: =DJ12*Ratios!DJ21 -> 3723.612099 | DN17: =DN12*Ratios!DN21 -> 3746.670576 | DR17: =DR12*Ratios!DR21 -> 4044.257042 | DV17: =DF17+DJ17+DN17+DR17 -> 15326.40414 | DZ17: =DZ12*Ratios!DZ21 -> 3914.738604 | ED17: =ED12*Ratios!ED21 -> 3808.655305 | EH17: =EH12*Ratios!EH21 -> 3824.772606 | EL17: =EL12*Ratios!EL21 -> 4139.007713 | EP17: =DZ17+ED17+EH17+EL17 -> 15687.17423 | ET17: =ET12*Ratios!ET21 -> 3999.544698 | EX17: =EX12*Ratios!EX21 -> 3899.346262 | FB17: =FB12*Ratios!FB21 -> 3945.502275 | FF17: =FF12*Ratios!FF21 -> 4307.830718 | FJ17: =ET17+EX17+FB17+FF17 -> 16152.22395 | FN17: =FN12*Ratios!FN21 -> 4433.375382 | FR17: =FR12*Ratios!FR21 -> 4183.401209 | FV17: =FV12*Ratios!FV21 -> 4148.909566 | FZ17: =FZ12*Ratios!FZ21 -> 4545.032199 | GD17: =FN17+FR17+FV17+FZ17 -> 17310.71836 | GH17: =GH12*Ratios!GH21 -> 4617.986781 | GL17: =GL12*Ratios!GL21 -> 4362.916914 | GP17: =GP12*Ratios!GP21 -> 4325.090883 | GT17: =GT12*Ratios!GT21 -> 4733.630573 | GX17: =GH17+GL17+GP17+GT17 -> 18039.62515 | HB17: =HB12*Ratios!HB21 -> 4792.429155 | HF17: =HF12*Ratios!HF21 -> 4532.16974 | HJ17: =HJ12*Ratios!HJ21 -> 4491.266045 | HN17: =HN12*Ratios!HN21 -> 4910.484922 | HR17: =HB17+HF17+HJ17+HN17 -> 18726.34986 | HV17: =HV12*Ratios!HV21 -> 4953.011211 | HZ17: =HZ12*Ratios!HZ21 -> 4687.606715 | ID17: =ID12*Ratios!ID21 -> 4643.970073 | IH17: =IH12*Ratios!IH21 -> 5071.619889 | IL17: =HV17+HZ17+ID17+IH17 -> 19356.20789 | IP17: =IP12*Ratios!IP21 -> 4966.523408 | IT17: =IT12*Ratios!IT21 -> 4697.204451 | IX17: =IX12*Ratios!IX21 -> 4655.217895 | JB17: =JB12*Ratios!JB21 -> 5085.747692 | JF17: =IP17+IT17+IX17+JB17 -> 19404.69345 | JJ17: =JJ12*Ratios!JJ21 -> 5009.759668 | JN17: =JN12*Ratios!JN21 -> 4734.601773 | JR17: =JR12*Ratios!JR21 -> 4693.754991 | JV17: =JV12*Ratios!JV21 -> 5130.546654 | JZ17: =JJ17+JN17+JR17+JV17 -> 19568.66309 | KD17: =KD12*Ratios!KD21 -> 5054.699927 | KH17: =KH12*Ratios!KH21 -> 4773.588731 | KL17: =KL12*Ratios!KL21 -> 4733.873855 | KP17: =KP12*Ratios!KP21 -> 5177.075645 | KT17: =KD17+KH17+KL17+KP17 -> 19739.23816
B18: Service (a) & (d) | I18: 993 | M18: 1040 | Q18: 1028 | U18: 1042 | Y18: =I18+M18+Q18+U18 -> 4103 | AC18: 997 | AG18: 1015 | AK18: 1065 | AO18: 1049 | AS18: =AC18+AG18+AK18+AO18 -> 4126 | AW18: 1065 | BA18: 999 | BE18: 1017 | BI18: 1001 | BM18: =AW18+BA18+BE18+BI18 -> 4082 | BQ18: 1094 | BU18: 1035 | BY18: 1079 | CC18: 1089 | CG18: =BQ18+BU18+BY18+CC18 -> 4297 | CK18: 1127 | CO18: 1059 | CS18: 1092 | CW18: 1097 | DA18: =CK18+CO18+CS18+CW18 -> 4375 | DF18: =DF13*Ratios!DF23 -> 1114.574237 | DJ18: =DJ13*Ratios!DJ23 -> 1094.891543 | DN18: =DN13*Ratios!DN23 -> 1123.28335 | DR18: =DR13*Ratios!DR23 -> 1151.177434 | DV18: =DF18+DJ18+DN18+DR18 -> 4483.926565 | DZ18: =DZ13*Ratios!DZ23 -> 1148.011464 | ED18: =ED13*Ratios!ED23 -> 1127.73829 | EH18: =EH13*Ratios!EH23 -> 1156.981851 | EL18: =EL13*Ratios!EL23 -> 1185.712757 | EP18: =DZ18+ED18+EH18+EL18 -> 4618.444362 | ET18: =ET13*Ratios!ET23 -> 1182.451808 | EX18: =EX13*Ratios!EX23 -> 1161.570438 | FB18: =FB13*Ratios!FB23 -> 1191.691306 | FF18: =FF13*Ratios!FF23 -> 1221.28414 | FJ18: =ET18+EX18+FB18+FF18 -> 4756.997692 | FN18: =FN13*Ratios!FN23 -> 1227.116672 | FR18: =FR13*Ratios!FR23 -> 1203.462691 | FV18: =FV13*Ratios!FV23 -> 1236.053689 | FZ18: =FZ13*Ratios!FZ23 -> 1233.61377 | GD18: =FN18+FR18+FV18+FZ18 -> 4900.246822 | GH18: =GH13*Ratios!GH23 -> 1276.201339 | GL18: =GL13*Ratios!GL23 -> 1251.601199 | GP18: =GP13*Ratios!GP23 -> 1285.495836 | GT18: =GT13*Ratios!GT23 -> 1282.958321 | GX18: =GH18+GL18+GP18+GT18 -> 5096.256695 | HB18: =HB13*Ratios!HB23 -> 1327.249393 | HF18: =HF13*Ratios!HF23 -> 1301.665247 | HJ18: =HJ13*Ratios!HJ23 -> 1336.91567 | HN18: =HN13*Ratios!HN23 -> 1334.276653 | HR18: =HB18+HF18+HJ18+HN18 -> 5300.106963 | HV18: =HV13*Ratios!HV23 -> 1380.339369 | HZ18: =HZ13*Ratios!HZ23 -> 1353.731857 | ID18: =ID13*Ratios!ID23 -> 1390.392296 | IH18: =IH13*Ratios!IH23 -> 1387.647719 | IL18: =HV18+HZ18+ID18+IH18 -> 5512.111241 | IP18: =IP13*Ratios!IP23 -> 1435.552943 | IT18: =IT13*Ratios!IT23 -> 1407.881131 | IX18: =IX13*Ratios!IX23 -> 1446.007988 | JB18: =JB13*Ratios!JB23 -> 1443.153628 | JF18: =IP18+IT18+IX18+JB18 -> 5732.595691 | JJ18: =JJ13*Ratios!JJ23 -> 1478.619532 | JN18: =JN13*Ratios!JN23 -> 1450.117565 | JR18: =JR13*Ratios!JR23 -> 1489.388228 | JV18: =JV13*Ratios!JV23 -> 1486.448237 | JZ18: =JJ18+JN18+JR18+JV18 -> 5904.573562 | KD18: =KD13*Ratios!KD23 -> 1522.978118 | KH18: =KH13*Ratios!KH23 -> 1493.621092 | KL18: =KL13*Ratios!KL23 -> 1534.069875 | KP18: =KP13*Ratios!KP23 -> 1531.041684 | KT18: =KD18+KH18+KL18+KP18 -> 6081.710769
B19: Total cost of sales (a) - (d) & (f) | I19: =SUM(I17:I18) -> 4912 | M19: =SUM(M17:M18) -> 4846 | Q19: =SUM(Q17:Q18) -> 4612 | U19: =SUM(U17:U18) -> 5110 | Y19: =SUM(Y17:Y18) -> 19480 | AC19: =SUM(AC17:AC18) -> 4850 | AG19: =SUM(AG17:AG18) -> 4495 | AK19: =SUM(AK17:AK18) -> 4279 | AO19: =SUM(AO17:AO18) -> 4663 | AS19: =SUM(AS17:AS18) -> 18287 | AW19: =SUM(AW17:AW18) -> 4468 | BA19: =SUM(BA17:BA18) -> 4304 | BE19: =SUM(BE17:BE18) -> 4422 | BI19: =SUM(BI17:BI18) -> 4587 | BM19: =SUM(BM17:BM18) -> 17781 | BQ19: =SUM(BQ17:BQ18) -> 4709 | BU19: =SUM(BU17:BU18) -> 4389 | BY19: =SUM(BY17:BY18) -> 4704 | CC19: =SUM(CC17:CC18) -> 4922 | CG19: =SUM(CG17:CG18) -> 18724 | CK19: =SUM(CK17:CK18) -> 4926 | CO19: =SUM(CO17:CO18) -> 4673 | CS19: =SUM(CS17:CS18) -> 4785 | CW19: =SUM(CW17:CW18) -> 4854 | DA19: =SUM(DA17:DA18) -> 19238 | DF19: =SUM(DF17:DF18) -> 4926.438663 | DJ19: =SUM(DJ17:DJ18) -> 4818.503642 | DN19: =SUM(DN17:DN18) -> 4869.953926 | DR19: =SUM(DR17:DR18) -> 5195.434476 | DV19: =SUM(DV17:DV18) -> 19810.33071 | DZ19: =SUM(DZ17:DZ18) -> 5062.750068 | ED19: =SUM(ED17:ED18) -> 4936.393594 | EH19: =SUM(EH17:EH18) -> 4981.754456 | EL19: =SUM(EL17:EL18) -> 5324.72047 | EP19: =SUM(EP17:EP18) -> 20305.61859 | ET19: =SUM(ET17:ET18) -> 5181.996506 | EX19: =SUM(EX17:EX18) -> 5060.9167 | FB19: =SUM(FB17:FB18) -> 5137.193581 | FF19: =SUM(FF17:FF18) -> 5529.114858 | FJ19: =SUM(FJ17:FJ18) -> 20909.22165 | FN19: =SUM(FN17:FN18) -> 5660.492054 | FR19: =SUM(FR17:FR18) -> 5386.863901 | FV19: =SUM(FV17:FV18) -> 5384.963255 | FZ19: =SUM(FZ17:FZ18) -> 5778.645969 | GD19: =SUM(GD17:GD18) -> 22210.96518 | GH19: =SUM(GH17:GH18) -> 5894.18812 | GL19: =SUM(GL17:GL18) -> 5614.518113 | GP19: =SUM(GP17:GP18) -> 5610.58672 | GT19: =SUM(GT17:GT18) -> 6016.588894 | GX19: =SUM(GX17:GX18) -> 23135.88185 | HB19: =SUM(HB17:HB18) -> 6119.678547 | HF19: =SUM(HF17:HF18) -> 5833.834987 | HJ19: =SUM(HJ17:HJ18) -> 5828.181715 | HN19: =SUM(HN17:HN18) -> 6244.761575 | HR19: =SUM(HR17:HR18) -> 24026.45682 | HV19: =SUM(HV17:HV18) -> 6333.35058 | HZ19: =SUM(HZ17:HZ18) -> 6041.338571 | ID19: =SUM(ID17:ID18) -> 6034.36237 | IH19: =SUM(IH17:IH18) -> 6459.267609 | IL19: =SUM(IL17:IL18) -> 24868.31913 | IP19: =SUM(IP17:IP18) -> 6402.076351 | IT19: =SUM(IT17:IT18) -> 6105.085582 | IX19: =SUM(IX17:IX18) -> 6101.225883 | JB19: =SUM(JB17:JB18) -> 6528.901321 | JF19: =SUM(JF17:JF18) -> 25137.28914 | JJ19: =SUM(JJ17:JJ18) -> 6488.379199 | JN19: =SUM(JN17:JN18) -> 6184.719338 | JR19: =SUM(JR17:JR18) -> 6183.143219 | JV19: =SUM(JV17:JV18) -> 6616.994891 | JZ19: =SUM(JZ17:JZ18) -> 25473.23665 | KD19: =SUM(KD17:KD18) -> 6577.678045 | KH19: =SUM(KH17:KH18) -> 6267.209823 | KL19: =SUM(KL17:KL18) -> 6267.94373 | KP19: =SUM(KP17:KP18) -> 6708.11733 | KT19: =SUM(KT17:KT18) -> 25820.94893
A21: GROSS MARGIN (a) - (d) & (f) | I21: =I14-I19 -> 7333 | M21: =M14-M19 -> 7090 | Q21: =Q14-Q19 -> 7525 | U21: =U14-U19 -> 7733 | Y21: =I21+M21+Q21+U21 -> 29681 | AC21: =AC14-AC19 -> 7832 | AG21: =AG14-AG19 -> 7432 | AK21: =AK14-AK19 -> 7721 | AO21: =AO14-AO19 -> 7975 | AS21: =AS14-AS19 -> 30960 | AW21: =AW14-AW19 -> 7884 | BA21: =BA14-BA19 -> 7276 | BE21: =BE14-BE19 -> 7518 | BI21: =BI14-BI19 -> 7546 | BM21: =BM14-BM19 -> 30224 | BQ21: =BQ14-BQ19 -> 7427 | BU21: 7498 | BY21: 7759 | CC21: 7922 | CG21: =BQ21+BU21+BY21+CC21 -> 30606 | CK21: =CK14-CK19 -> 8146 | CO21: =CO14-CO19 -> 7773 | CS21: =CS14-CS19 -> 8173 | CW21: =CW14-CW19 -> 8574 | DA21: =CK21+CO21+CS21+CW21 -> 32666 | DF21: =DF14-DF19 -> 7978.561337 | DJ21: =DJ14-DJ19 -> 7865.190664 | DN21: =DN14-DN19 -> 8262.476074 | DR21: =DR14-DR19 -> 8556.060222 | DV21: =DF21+DJ21+DN21+DR21 -> 32662.2883 | DZ21: =DZ14-DZ19 -> 8200.049932 | ED21: =ED14-ED19 -> 8060.158955 | EH21: =EH14-EH19 -> 8454.349944 | EL21: =EL14-EL19 -> 8771.341275 | EP21: =DZ21+ED21+EH21+EL21 -> 33485.90011 | ET21: =ET14-ET19 -> 8395.262227 | EX21: =EX14-EX19 -> 8265.735904 | FB21: =FB14-FB19 -> 8717.754921 | FF21: =FF14-FF19 -> 9104.039993 | FJ21: =ET21+EX21+FB21+FF21 -> 34482.79305 | FN21: =FN14-FN19 -> 9152.409697 | FR21: =FR14-FR19 -> 8784.300931 | FV21: =FV14-FV19 -> 9134.585996 | FZ21: =FZ14-FZ19 -> 9497.707346 | GD21: =FN21+FR21+FV21+FZ21 -> 36569.00397 | GH21: =GH14-GH19 -> 9529.829807 | GL21: =GL14-GL19 -> 9154.394509 | GP21: =GP14-GP19 -> 9516.664261 | GT21: =GT14-GT19 -> 9888.203896 | GX21: =GH21+GL21+GP21+GT21 -> 38089.09247 | HB21: =HB14-HB19 -> 9895.029478 | HF21: =HF14-HF19 -> 9512.479142 | HJ21: =HJ14-HJ19 -> 9886.181599 | HN21: =HN14-HN19 -> 10264.27422 | HR21: =HB21+HF21+HJ21+HN21 -> 39557.96444 | HV21: =HV14-HV19 -> 10242.40841 | HZ21: =HZ14-HZ19 -> 9853.244154 | ID21: =ID14-ID19 -> 10237.63161 | IH21: =IH14-IH19 -> 10619.88038 | IL21: =HV21+HZ21+ID21+IH21 -> 40953.16455 | IP21: =IP14-IP19 -> 10364.81195 | IT21: =IT14-IT19 -> 9973.911016 | IX21: =IX14-IX19 -> 10362.203 | JB21: =JB14-JB19 -> 10750.66792 | JF21: =IP21+IT21+IX21+JB21 -> 41451.59388 | JJ21: =JJ14-JJ19 -> 10511.17035 | JN21: =JN14-JN19 -> 10114.00797 | JR21: =JR14-JR19 -> 10507.9657 | JV21: =JV14-JV19 -> 10905.30233 | JZ21: =JJ21+JN21+JR21+JV21 -> 42038.44636 | KD21: =KD14-KD19 -> 10662.55276 | KH21: =KH14-KH19 -> 10259.02676 | KL21: =KL14-KL19 -> 10658.79627 | KP21: =KP14-KP19 -> 11065.17717 | KT21: =KD21+KH21+KL21+KP21 -> 42645.55297
B22: Product gross margin percentage | I22: =(I12-I17)/I12 -> 0.5846316905 | M22: =(M12-M17)/M12 -> 0.5807446574 | Q22: =(Q12-Q17)/Q12 -> 0.6156980485 | U22: =(U12-U17)/U12 -> 0.589546968 | Y22: =(Y12-Y17)/Y12 -> 0.5926622517 | AC22: =(AC12-AC17)/AC12 -> 0.6085940675 | AG22: =(AG12-AG17)/AG12 -> 0.6126015808 | AK22: =(AK12-AK17)/AK12 -> 0.6378591549 | AO22: =(AO12-AO17)/AO12 -> 0.6216499162 | AS22: =(AS12-AS17)/AS12 -> 0.6198797445 | AW22: =(AW12-AW17)/AW12 -> 0.6341646958 | BA22: =(BA12-BA17)/BA12 -> 0.6107643387 | BE22: =(BE12-BE17)/BE12 -> 0.6167698368 | BI22: =(BI12-BI17)/BI12 -> 0.6027473136 | BM22: =(BM12-BM17)/BM12 -> 0.6163282453 | BQ22: =(BQ12-BQ17)/BQ12 -> 0.6007289596 | BU22: =(BU12-BU17)/BU12 -> 0.6148811574 | BY22: =(BY12-BY17)/BY12 -> 0.6103826311 | CC22: =(CC12-CC17)/CC12 -> 0.6024683676 | CG22: =(CG12-CG17)/CG12 -> 0.6069901114 | CK22: =(CK12-CK17)/CK12 -> 0.6158746208 | CO22: =(CO12-CO17)/CO12 -> 0.6102663647 | CS22: =(CS12-CS17)/CS12 -> 0.6201398889 | CW22: =(CW12-CW17)/CW12 -> 0.6287549407 | DA22: =(DA12-DA17)/DA12 -> 0.6189462889 | DF22: =(DF12-DF17)/DF12 -> 0.6087988068 | DJ22: =(DJ12-DJ17)/DJ12 -> 0.6058516198 | DN22: =(DN12-DN17)/DN12 -> 0.620169912 | DR22: =(DR12-DR17)/DR12 -> 0.6090335012 | DV22: =(DV12-DV17)/DV12 -> 0.611000617 | DZ22: =(DZ12-DZ17)/DZ12 -> 0.6087988068 | ED22: =(ED12-ED17)/ED12 -> 0.6058516198 | EH22: =(EH12-EH17)/EH12 -> 0.620169912 | EL22: =(EL12-EL17)/EL12 -> 0.6090335012 | EP22: =(EP12-EP17)/EP12 -> 0.6109936417 | ET22: =(ET12-ET17)/ET12 -> 0.6087988068 | EX22: =(EX12-EX17)/EX12 -> 0.6058516198 | FB22: =(FB12-FB17)/FB12 -> 0.620169912 | FF22: =(FF12-FF17)/FF12 -> 0.6090335012 | FJ22: =(FJ12-FJ17)/FJ12 -> 0.611003548 | FN22: =(FN12-FN17)/FN12 -> 0.6087988068 | FR22: =(FR12-FR17)/FR12 -> 0.6058516198 | FV22: =(FV12-FV17)/FV12 -> 0.620169912 | FZ22: =(FZ12-FZ17)/FZ12 -> 0.6090335012 | GD22: =(GD12-GD17)/GD12 -> 0.6109486125 | GH22: =(GH12-GH17)/GH12 -> 0.6087988068 | GL22: =(GL12-GL17)/GL12 -> 0.6058516198 | GP22: =(GP12-GP17)/GP12 -> 0.620169912 | GT22: =(GT12-GT17)/GT12 -> 0.6090335012 | GX22: =(GX12-GX17)/GX12 -> 0.6109489889 | HB22: =(HB12-HB17)/HB12 -> 0.6087988068 | HF22: =(HF12-HF17)/HF12 -> 0.6058516198 | HJ22: =(HJ12-HJ17)/HJ12 -> 0.620169912 | HN22: =(HN12-HN17)/HN12 -> 0.6090335012 | HR22: =(HR12-HR17)/HR12 -> 0.6109494041 | HV22: =(HV12-HV17)/HV12 -> 0.6087988068 | HZ22: =(HZ12-HZ17)/HZ12 -> 0.6058516198 | ID22: =(ID12-ID17)/ID12 -> 0.620169912 | IH22: =(IH12-IH17)/IH12 -> 0.6090335012 | IL22: =(IL12-IL17)/IL12 -> 0.6109498897 | IP22: =(IP12-IP17)/IP12 -> 0.6087988068 | IT22: =(IT12-IT17)/IT12 -> 0.6058516198 | IX22: =(IX12-IX17)/IX12 -> 0.620169912 | JB22: =(JB12-JB17)/JB12 -> 0.6090335012 | JF22: =(JF12-JF17)/JF12 -> 0.6109499966 | JJ22: =(JJ12-JJ17)/JJ12 -> 0.6087988068 | JN22: =(JN12-JN17)/JN12 -> 0.6058516198 | JR22: =(JR12-JR17)/JR12 -> 0.620169912 | JV22: =(JV12-JV17)/JV12 -> 0.6090335012 | JZ22: =(JZ12-JZ17)/JZ12 -> 0.6109498842 | KD22: =(KD12-KD17)/KD12 -> 0.6087988068 | KH22: =(KH12-KH17)/KH12 -> 0.6058516198 | KL22: =(KL12-KL17)/KL12 -> 0.620169912 | KP22: =(KP12-KP17)/KP12 -> 0.6090335012 | KT22: =(KT12-KT17)/KT12 -> 0.6109497734
B23: Service gross margin percentage | I23: =(I13-I18)/I13 -> 0.6466192171 | M23: =(M13-M18)/M13 -> 0.6361091672 | Q23: =(Q13-Q18)/Q13 -> 0.6342938456 | U23: =(U13-U18)/U13 -> 0.6446111869 | Y23: =(Y13-Y18)/Y13 -> 0.6404346683 | AC23: =(AC13-AC18)/AC13 -> 0.648696265 | AG23: =(AG13-AG18)/AG13 -> 0.6552309783 | AK23: =(AK13-AK18)/AK13 -> 0.6592 | AO23: =(AO13-AO18)/AO13 -> 0.6600777706 | AS23: =(AS13-AS18)/AS13 -> 0.6559659802 | AW23: =(AW13-AW18)/AW13 -> 0.6508196721 | BA23: =(BA13-BA18)/BA13 -> 0.6765943671 | BE23: =(BE13-BE18)/BE13 -> 0.6671031097 | BI23: =(BI13-BI18)/BI13 -> 0.6777205409 | BM23: =(BM13-BM18)/BM13 -> 0.6681300813 | BQ23: =(BQ13-BQ18)/BQ13 -> 0.6450356911 | BU23: =(BU13-BU18)/BU13 -> 0.6743234739 | BY23: =(BY13-BY18)/BY13 -> 0.658436214 | CC23: =(CC13-CC18)/CC13 -> 0.6599000625 | CG23: =(CG13-CG18)/CG13 -> 0.6595356945 | CK23: =(CK13-CK18)/CK13 -> 0.6458202388 | CO23: =(CO13-CO18)/CO13 -> 0.6662464545 | CS23: =(CS13-CS18)/CS13 -> 0.6625463535 | CW23: =(CW13-CW18)/CW13 -> 0.6683796856 | DA23: =(DA13-DA18)/DA13 -> 0.6608264207 | DF23: =(DF13-DF18)/DF13 -> 0.6473982168 | DJ23: =(DJ13-DJ18)/DJ13 -> 0.6617008882 | DN23: =(DN13-DN18)/DN13 -> 0.6563159046 | DR23: =(DR13-DR18)/DR13 -> 0.6621378493 | DV23: =(DV13-DV18)/DV13 -> 0.6570101748 | DZ23: =(DZ13-DZ18)/DZ13 -> 0.6473982168 | ED23: =(ED13-ED18)/ED13 -> 0.6617008882 | EH23: =(EH13-EH18)/EH13 -> 0.6563159046 | EL23: =(EL13-EL18)/EL13 -> 0.6621378493 | EP23: =(EP13-EP18)/EP13 -> 0.6570101748 | ET23: =(ET13-ET18)/ET13 -> 0.6473982168 | EX23: =(EX13-EX18)/EX13 -> 0.6617008882 | FB23: =(FB13-FB18)/FB13 -> 0.6563159046 | FF23: =(FF13-FF18)/FF13 -> 0.6621378493 | FJ23: =(FJ13-FJ18)/FJ13 -> 0.6570101748 | FN23: =(FN13-FN18)/FN13 -> 0.6473982168 | FR23: =(FR13-FR18)/FR13 -> 0.6617008882 | FV23: =(FV13-FV18)/FV13 -> 0.6563159046 | FZ23: =(FZ13-FZ18)/FZ13 -> 0.6621378493 | GD23: =(GD13-GD18)/GD13 -> 0.6569724297 | GH23: =(GH13-GH18)/GH13 -> 0.6473982168 | GL23: =(GL13-GL18)/GL13 -> 0.6617008882 | GP23: =(GP13-GP18)/GP13 -> 0.6563159046 | GT23: =(GT13-GT18)/GT13 -> 0.6621378493 | GX23: =(GX13-GX18)/GX13 -> 0.6569724297 | HB23: =(HB13-HB18)/HB13 -> 0.6473982168 | HF23: =(HF13-HF18)/HF13 -> 0.6617008882 | HJ23: =(HJ13-HJ18)/HJ13 -> 0.6563159046 | HN23: =(HN13-HN18)/HN13 -> 0.6621378493 | HR23: =(HR13-HR18)/HR13 -> 0.6569724297 | HV23: =(HV13-HV18)/HV13 -> 0.6473982168 | HZ23: =(HZ13-HZ18)/HZ13 -> 0.6617008882 | ID23: =(ID13-ID18)/ID13 -> 0.6563159046 | IH23: =(IH13-IH18)/IH13 -> 0.6621378493 | IL23: =(IL13-IL18)/IL13 -> 0.6569724297 | IP23: =(IP13-IP18)/IP13 -> 0.6473982168 | IT23: =(IT13-IT18)/IT13 -> 0.6617008882 | IX23: =(IX13-IX18)/IX13 -> 0.6563159046 | JB23: =(JB13-JB18)/JB13 -> 0.6621378493 | JF23: =(JF13-JF18)/JF13 -> 0.6569724297 | JJ23: =(JJ13-JJ18)/JJ13 -> 0.6473982168 | JN23: =(JN13-JN18)/JN13 -> 0.6617008882 | JR23: =(JR13-JR18)/JR13 -> 0.6563159046 | JV23: =(JV13-JV18)/JV13 -> 0.6621378493 | JZ23: =(JZ13-JZ18)/JZ13 -> 0.6569724297 | KD23: =(KD13-KD18)/KD13 -> 0.6473982168 | KH23: =(KH13-KH18)/KH13 -> 0.6617008882 | KL23: =(KL13-KL18)/KL13 -> 0.6563159046 | KP23: =(KP13-KP18)/KP13 -> 0.6621378493 | KT23: =(KT13-KT18)/KT13 -> 0.6569724297
B24: Total gross margin percentage | I24: =(I14-I19)/I14 -> 0.5988566762 | M24: =(M14-M19)/M14 -> 0.5940013405 | Q24: =(Q14-Q19)/Q14 -> 0.6200049436 | U24: =(U14-U19)/U14 -> 0.6021178852 | Y24: =(Y14-Y19)/Y14 -> 0.6037509408 | AC24: =(AC14-AC19)/AC14 -> 0.6175682069 | AG24: =(AG14-AG19)/AG14 -> 0.6231240044 | AK24: =(AK14-AK19)/AK14 -> 0.6434166667 | AO24: =(AO14-AO19)/AO14 -> 0.6310333914 | AS24: =(AS14-AS19)/AS14 -> 0.6286677361 | AW24: =(AW14-AW19)/AW14 -> 0.6382772021 | BA24: =(BA14-BA19)/BA14 -> 0.6283246978 | BE24: =(BE14-BE19)/BE14 -> 0.6296482412 | BI24: =(BI14-BI19)/BI14 -> 0.6219401632 | BM24: =(BM14-BM19)/BM14 -> 0.6296010832 | BQ24: =(BQ14-BQ19)/BQ14 -> 0.6119808833 | BU24: =(BU14-BU19)/BU14 -> 0.6307731135 | BY24: =(BY14-BY19)/BY14 -> 0.6225627858 | CC24: =(CC14-CC19)/CC14 -> 0.616786048 | CG24: =(CG14-CG19)/CG14 -> 0.6204338131 | CK24: =(CK14-CK19)/CK14 -> 0.6231640147 | CO24: =(CO14-CO19)/CO14 -> 0.6245380042 | CS24: =(CS14-CS19)/CS14 -> 0.6307300509 | CW24: =(CW14-CW19)/CW14 -> 0.6385165326 | DA24: =(DA14-DA19)/DA14 -> 0.6293541924 | DF24: =(DF14-DF19)/DF14 -> 0.6182534938 | DJ24: =(DJ14-DJ19)/DJ14 -> 0.6201025091 | DN24: =(DN14-DN19)/DN14 -> 0.6291658188 | DR24: =(DR14-DR19)/DR14 -> 0.6221912897 | DV24: =(DV14-DV19)/DV14 -> 0.622463466 | DZ24: =(DZ14-DZ19)/DZ14 -> 0.6182744166 | ED24: =(ED14-ED19)/ED14 -> 0.620176691 | EH24: =(EH14-EH19)/EH14 -> 0.6292262766 | EL24: =(EL14-EL19)/EL14 -> 0.6222547427 | EP24: =(EP14-EP19)/EP14 -> 0.6225126362 | ET24: =(ET14-ET19)/ET14 -> 0.6183326393 | EX24: =(EX14-EX19)/EX14 -> 0.6202409674 | FB24: =(FB14-FB19)/FB14 -> 0.6292159743 | FF24: =(FF14-FF19)/FF14 -> 0.6221515514 | FJ24: =(FJ14-FJ19)/FJ14 -> 0.6225228174 | FN24: =(FN14-FN19)/FN14 -> 0.6178674409 | FR24: =(FR14-FR19)/FR14 -> 0.619871481 | FV24: =(FV14-FV19)/FV14 -> 0.6291232488 | FZ24: =(FZ14-FZ19)/FZ14 -> 0.6217260854 | GD24: =(GD14-GD19)/GD14 -> 0.6221337728 | GH24: =(GH14-GH19)/GH14 -> 0.6178565048 | GL24: =(GL14-GL19)/GL14 -> 0.619842147 | GP24: =(GP14-GP19)/GP14 -> 0.6291073159 | GT24: =(GT14-GT19)/GT14 -> 0.6217122113 | GX24: =(GX14-GX19)/GX14 -> 0.6221169204 | HB24: =(HB14-HB19)/HB14 -> 0.6178713631 | HF24: =(HF14-HF19)/HF14 -> 0.6198543221 | HJ24: =(HJ14-HJ19)/HJ14 -> 0.6291175405 | HN24: =(HN14-HN19)/HN14 -> 0.6217367475 | HR24: =(HR14-HR19)/HR14 -> 0.6221329636 | HV24: =(HV14-HV19)/HV14 -> 0.617914897 | HZ24: =(HZ14-HZ19)/HZ14 -> 0.6199120999 | ID24: =(ID14-ID19)/ID14 -> 0.6291565511 | IH24: =(IH14-IH19)/IH14 -> 0.6218038737 | IL24: =(IL14-IL19)/IL14 -> 0.6221853757 | IP24: =(IP14-IP19)/IP14 -> 0.6181714677 | IT24: =(IT14-IT19)/IT14 -> 0.6203068055 | IX24: =(IX14-IX19)/IX14 -> 0.6294073412 | JB24: =(JB14-JB19)/JB14 -> 0.6221606435 | JF24: =(JF14-JF19)/JF14 -> 0.6225002133 | JJ24: =(JJ14-JJ19)/JJ14 -> 0.618320522 | JN24: =(JN14-JN19)/JN14 -> 0.6205397377 | JR24: =(JR14-JR19)/JR14 -> 0.629554678 | JV24: =(JV14-JV19)/JV14 -> 0.6223671585 | JZ24: =(JZ14-JZ19)/JZ14 -> 0.6226840228 | KD24: =(KD14-KD19)/KD14 -> 0.6184692583 | KH24: =(KH14-KH19)/KH14 -> 0.6207721104 | KL24: =(KL14-KL19)/KL14 -> 0.6297016597 | KP24: =(KP14-KP19)/KP14 -> 0.6225732192 | KT24: =(KT14-KT19)/KT14 -> 0.6228674138
A26: OPERATING EXPENSES:
B27: Research and development (a) & (d) | I27: 1583 | M27: 1529 | Q27: 1547 | U27: 1548 | Y27: =I27+M27+Q27+U27 -> 6207 | AC27: 1560 | AG27: 1509 | AK27: 1626 | AO27: 1601 | AS27: =AC27+AG27+AK27+AO27 -> 6296 | AW27: 1545 | BA27: 1508 | BE27: 1507 | BI27: 1499 | BM27: =AW27+BA27+BE27+BI27 -> 6059 | BQ27: 1567 | BU27: 1549 | BY27: 1590 | CC27: 1626 | CG27: =BQ27+BU27+BY27+CC27 -> 6332 | CK27: 1608 | CO27: 1557 | CS27: 1659 | CW27: 1753 | DA27: =CK27+CO27+CS27+CW27 -> 6577 | DF27: =DF$14*Ratios!DF39 -> 1635.253256 | DJ27: =DJ$14*Ratios!DJ39 -> 1607.21057 | DN27: =DN$14*Ratios!DN39 -> 1664.071981 | DR27: =DR$14*Ratios!DR39 -> 1742.516581 | DV27: =DF27+DJ27+DN27+DR27 -> 6649.052389 | DZ27: =DZ$14*Ratios!DZ39 -> 1680.591777 | ED27: =ED$14*Ratios!ED39 -> 1646.85431 | EH27: =EH$14*Ratios!EH39 -> 1702.551993 | EL27: =EL$14*Ratios!EL39 -> 1786.178293 | EP27: =DZ27+ED27+EH27+EL27 -> 6816.176373 | ET27: =ET$14*Ratios!ET39 -> 1720.438322 | EX27: =EX$14*Ratios!EX39 -> 1688.682841 | FB27: =FB$14*Ratios!FB39 -> 1755.625699 | FF27: =FF$14*Ratios!FF39 -> 1854.235887 | FJ27: =ET27+EX27+FB27+FF27 -> 7018.982749 | FN27: =FN$14*Ratios!FN39 -> 1877.012462 | FR27: =FR$14*Ratios!FR39 -> 1795.694958 | FV27: =FV$14*Ratios!FV39 -> 1839.840387 | FZ27: =FZ$14*Ratios!FZ39 -> 1935.73859 | GD27: =FN27+FR27+FV27+FZ27 -> 7448.286396 | GH27: =GH$14*Ratios!GH39 -> 1954.449867 | GL27: =GL$14*Ratios!GL39 -> 1871.438392 | GP27: =GP$14*Ratios!GP39 -> 1916.845131 | GT27: =GT$14*Ratios!GT39 -> 2015.371112 | GX27: =GH27+GL27+GP27+GT27 -> 7758.104502 | HB27: =HB$14*Ratios!HB39 -> 2029.298988 | HF27: =HF$14*Ratios!HF39 -> 1944.603653 | HJ27: =HJ$14*Ratios!HJ39 -> 1991.240897 | HN27: =HN$14*Ratios!HN39 -> 2091.937585 | HR27: =HB27+HF27+HJ27+HN27 -> 8057.081124 | HV27: =HV$14*Ratios!HV39 -> 2100.392395 | HZ27: =HZ$14*Ratios!HZ39 -> 2014.077346 | ID27: =ID$14*Ratios!ID39 -> 2061.900902 | IH27: =IH$14*Ratios!IH39 -> 2164.179183 | IL27: =HV27+HZ27+ID27+IH27 -> 8340.549826 | IP27: =IP$14*Ratios!IP39 -> 2124.611289 | IT27: =IT$14*Ratios!IT39 -> 2037.445296 | IX27: =IX$14*Ratios!IX39 -> 2086.158519 | JB27: =JB$14*Ratios!JB39 -> 2189.575502 | JF27: =IP27+IT27+IX27+JB27 -> 8437.790606 | JJ27: =JJ$14*Ratios!JJ39 -> 2154.092891 | JN27: =JN$14*Ratios!JN39 -> 2065.288407 | JR27: =JR$14*Ratios!JR39 -> 2115.008928 | JV27: =JV$14*Ratios!JV39 -> 2220.332708 | JZ27: =JJ27+JN27+JR27+JV27 -> 8554.722933 | KD27: =KD$14*Ratios!KD39 -> 2184.590744 | KH27: =KH$14*Ratios!KH39 -> 2094.117178 | KL27: =KL$14*Ratios!KL39 -> 2144.866851 | KP27: =KP$14*Ratios!KP39 -> 2252.137753 | KT27: =KD27+KH27+KL27+KP27 -> 8675.712526
B28: Sales and marketing (a) & (d) | I28: 2515 | M28: 2308 | Q28: 2449 | U28: 2549 | Y28: =I28+M28+Q28+U28 -> 9821 | AC28: 2443 | AG28: 2286 | AK28: 2447 | AO28: 2443 | AS28: =AC28+AG28+AK28+AO28 -> 9619 | AW28: 2418 | BA28: 2222 | BE28: 2226 | BI28: 2318 | BM28: =AW28+BA28+BE28+BI28 -> 9184 | BQ28: 2334 | BU28: 2235 | BY28: 2325 | CC28: 2348 | CG28: =BQ28+BU28+BY28+CC28 -> 9242 | CK28: 2410 | CO28: 2271 | CS28: 2403 | CW28: 2487 | DA28: =CK28+CO28+CS28+CW28 -> 9571 | DF28: =DF$14*Ratios!DF40 -> 2379.657734 | DJ28: =DJ$14*Ratios!DJ40 -> 2338.84938 | DN28: =DN$14*Ratios!DN40 -> 2421.595398 | DR28: =DR$14*Ratios!DR40 -> 2535.749764 | DV28: =DF28+DJ28+DN28+DR28 -> 9675.852275 | DZ28: =DZ$14*Ratios!DZ40 -> 2445.635381 | ED28: =ED$14*Ratios!ED40 -> 2396.539851 | EH28: =EH$14*Ratios!EH40 -> 2477.592386 | EL28: =EL$14*Ratios!EL40 -> 2599.28728 | EP28: =DZ28+ED28+EH28+EL28 -> 9919.054898 | ET28: =ET$14*Ratios!ET40 -> 2503.62098 | EX28: =EX$14*Ratios!EX40 -> 2457.409681 | FB28: =FB$14*Ratios!FB40 -> 2554.826451 | FF28: =FF$14*Ratios!FF40 -> 2698.326238 | FJ28: =ET28+EX28+FB28+FF28 -> 10214.18335 | FN28: =FN$14*Ratios!FN40 -> 2731.471229 | FR28: =FR$14*Ratios!FR40 -> 2613.136148 | FV28: =FV$14*Ratios!FV40 -> 2677.377579 | FZ28: =FZ$14*Ratios!FZ40 -> 2816.930826 | GD28: =FN28+FR28+FV28+FZ28 -> 10838.91578 | GH28: =GH$14*Ratios!GH40 -> 2844.159902 | GL28: =GL$14*Ratios!GL40 -> 2723.359716 | GP28: =GP$14*Ratios!GP40 -> 2789.436636 | GT28: =GT$14*Ratios!GT40 -> 2932.813883 | GX28: =GH28+GL28+GP28+GT28 -> 11289.77014 | HB28: =HB$14*Ratios!HB40 -> 2953.082046 | HF28: =HF$14*Ratios!HF40 -> 2829.831468 | HJ28: =HJ$14*Ratios!HJ40 -> 2897.699046 | HN28: =HN$14*Ratios!HN40 -> 3044.235157 | HR28: =HB28+HF28+HJ28+HN28 -> 11724.84772 | HV28: =HV$14*Ratios!HV40 -> 3056.538788 | HZ28: =HZ$14*Ratios!HZ40 -> 2930.931166 | ID28: =ID$14*Ratios!ID40 -> 3000.525093 | IH28: =IH$14*Ratios!IH40 -> 3149.362773 | IL28: =HV28+HZ28+ID28+IH28 -> 12137.35782 | IP28: =IP$14*Ratios!IP40 -> 3091.782674 | IT28: =IT$14*Ratios!IT40 -> 2964.936738 | IX28: =IX$14*Ratios!IX40 -> 3035.825328 | JB28: =JB$14*Ratios!JB40 -> 3186.320075 | JF28: =IP28+IT28+IX28+JB28 -> 12278.86482 | JJ28: =JJ$14*Ratios!JJ40 -> 3134.684972 | JN28: =JN$14*Ratios!JN40 -> 3005.454667 | JR28: =JR$14*Ratios!JR40 -> 3077.809099 | JV28: =JV$14*Ratios!JV40 -> 3231.07866 | JZ28: =JJ28+JN28+JR28+JV28 -> 12449.0274 | KD28: =KD$14*Ratios!KD40 -> 3179.066141 | KH28: =KH$14*Ratios!KH40 -> 3047.40695 | KL28: =KL$14*Ratios!KL40 -> 3121.259028 | KP28: =KP$14*Ratios!KP40 -> 3277.362086 | KT28: =KD28+KH28+KL28+KP28 -> 12625.09421
B29: General and administrative (a), (d) & (f) | I29: 504 | M29: 490 | Q29: 510 | U29: 536 | Y29: =I29+M29+Q29+U29 -> 2040 | AC29: 539 | AG29: 176 | AK29: 566 | AO29: 533 | AS29: =AC29+AG29+AK29+AO29 -> 1814 | AW29: 555 | BA29: 456 | BE29: 487 | BI29: 495 | BM29: =AW29+BA29+BE29+BI29 -> 1993 | BQ29: 557 | BU29: 483 | BY29: 561 | CC29: 543 | CG29: =BQ29+BU29+BY29+CC29 -> 2144 | CK29: 211 | CO29: 509 | CS29: 541 | CW29: 566 | DA29: =CK29+CO29+CS29+CW29 -> 1827 | DF29: =DF$14*Ratios!DF41 -> 454.2508285 | DJ29: =DJ$14*Ratios!DJ41 -> 446.4609567 | DN29: =DN$14*Ratios!DN41 -> 462.2562733 | DR29: =DR$14*Ratios!DR41 -> 484.0471026 | DV29: =DF29+DJ29+DN29+DR29 -> 1847.015161 | DZ29: =DZ$14*Ratios!DZ41 -> 466.8452451 | ED29: =ED$14*Ratios!ED41 -> 457.4734415 | EH29: =EH$14*Ratios!EH41 -> 472.9454905 | EL29: =EL$14*Ratios!EL41 -> 496.1757246 | EP29: =DZ29+ED29+EH29+EL29 -> 1893.439902 | ET29: =ET$14*Ratios!ET41 -> 477.9140665 | EX29: =EX$14*Ratios!EX41 -> 469.0928311 | FB29: =FB$14*Ratios!FB41 -> 487.688635 | FF29: =FF$14*Ratios!FF41 -> 515.0811867 | FJ29: =ET29+EX29+FB29+FF29 -> 1949.776719 | FN29: =FN$14*Ratios!FN41 -> 521.4082055 | FR29: =FR$14*Ratios!FR41 -> 498.8193231 | FV29: =FV$14*Ratios!FV41 -> 511.0823151 | FZ29: =FZ$14*Ratios!FZ41 -> 537.7215148 | GD29: =FN29+FR29+FV29+FZ29 -> 2069.031359 | GH29: =GH$14*Ratios!GH41 -> 542.91925 | GL29: =GL$14*Ratios!GL41 -> 519.8598058 | GP29: =GP$14*Ratios!GP41 -> 532.4731724 | GT29: =GT$14*Ratios!GT41 -> 559.8423325 | GX29: =GH29+GL29+GP29+GT29 -> 2155.094561 | HB29: =HB$14*Ratios!HB41 -> 563.7113048 | HF29: =HF$14*Ratios!HF41 -> 540.1841075 | HJ29: =HJ$14*Ratios!HJ41 -> 553.1392913 | HN29: =HN$14*Ratios!HN41 -> 581.1114441 | HR29: =HB29+HF29+HJ29+HN29 -> 2238.146148 | HV29: =HV$14*Ratios!HV41 -> 583.4600738 | HZ29: =HZ$14*Ratios!HZ41 -> 559.4829423 | ID29: =ID$14*Ratios!ID41 -> 572.7676674 | IH29: =IH$14*Ratios!IH41 -> 601.1791648 | IL29: =HV29+HZ29+ID29+IH29 -> 2316.889848 | IP29: =IP$14*Ratios!IP41 -> 590.1877491 | IT29: =IT$14*Ratios!IT41 -> 565.9742368 | IX29: =IX$14*Ratios!IX41 -> 579.5060992 | JB29: =JB$14*Ratios!JB41 -> 608.2339125 | JF29: =IP29+IT29+IX29+JB29 -> 2343.901998 | JJ29: =JJ$14*Ratios!JJ41 -> 598.3773319 | JN29: =JN$14*Ratios!JN41 -> 573.7086696 | JR29: =JR$14*Ratios!JR41 -> 587.5203452 | JV29: =JV$14*Ratios!JV41 -> 616.7778404 | JZ29: =JJ29+JN29+JR29+JV29 -> 2376.384187 | KD29: =KD$14*Ratios!KD41 -> 606.8492154 | KH29: =KH$14*Ratios!KH41 -> 581.7169051 | KL29: =KL$14*Ratios!KL41 -> 595.8144649 | KP29: =KP$14*Ratios!KP41 -> 625.6128441 | KT29: =KD29+KH29+KL29+KP29 -> 2409.993429
B30: Amortization of purchased intangible assets (b) | I30: 71 | M30: 72 | Q30: 70 | U30: 146 | Y30: =I30+M30+Q30+U30 -> 359 | AC30: 69 | AG30: 71 | AK30: 81 | AO30: 82 | AS30: =AC30+AG30+AK30+AO30 -> 303 | AW30: 78 | BA30: 64 | BE30: 59 | BI30: 58 | BM30: =AW30+BA30+BE30+BI30 -> 259 | BQ30: 61 | BU30: 60 | BY30: 67 | CC30: 33 | CG30: =BQ30+BU30+BY30+CC30 -> 221 | CK30: 34 | CO30: 39 | CS30: 39 | CW30: 38 | DA30: =CK30+CO30+CS30+CW30 -> 150 | DF30: =DF$14*Ratios!DF42 -> 37.2948135 | DJ30: =DJ$14*Ratios!DJ42 -> 36.65525096 | DN30: =DN$14*Ratios!DN42 -> 37.95207498 | DR30: =DR$14*Ratios!DR42 -> 39.74114143 | DV30: =DF30+DJ30+DN30+DR30 -> 151.6432809 | DZ30: =DZ$14*Ratios!DZ42 -> 38.32883785 | ED30: =ED$14*Ratios!ED42 -> 37.55939585 | EH30: =EH$14*Ratios!EH42 -> 38.82967902 | EL30: =EL$14*Ratios!EL42 -> 40.7369232 | EP30: =DZ30+ED30+EH30+EL30 -> 155.4548359 | ET30: =ET$14*Ratios!ET42 -> 39.23760808 | EX30: =EX$14*Ratios!EX42 -> 38.51336873 | FB30: =FB$14*Ratios!FB42 -> 40.04011782 | FF30: =FF$14*Ratios!FF42 -> 42.28909579 | FJ30: =ET30+EX30+FB30+FF30 -> 160.0801904 | FN30: =FN$14*Ratios!FN42 -> 42.80855546 | FR30: =FR$14*Ratios!FR42 -> 40.95396742 | FV30: =FV$14*Ratios!FV42 -> 41.9607812 | FZ30: =FZ$14*Ratios!FZ42 -> 44.14790762 | GD30: =FN30+FR30+FV30+FZ30 -> 169.8712117 | GH30: =GH$14*Ratios!GH42 -> 44.57465107 | GL30: =GL$14*Ratios!GL42 -> 42.68142905 | GP30: =GP$14*Ratios!GP42 -> 43.71700923 | GT30: =GT$14*Ratios!GT42 -> 45.96406671 | GX30: =GH30+GL30+GP30+GT30 -> 176.9371561 | HB30: =HB$14*Ratios!HB42 -> 46.28171632 | HF30: =HF$14*Ratios!HF42 -> 44.35009092 | HJ30: =HJ$14*Ratios!HJ42 -> 45.41373492 | HN30: =HN$14*Ratios!HN42 -> 47.71029919 | HR30: =HB30+HF30+HJ30+HN30 -> 183.7558413 | HV30: =HV$14*Ratios!HV42 -> 47.90312593 | HZ30: =HZ$14*Ratios!HZ42 -> 45.93456013 | ID30: =ID$14*Ratios!ID42 -> 47.02526005 | IH30: =IH$14*Ratios!IH42 -> 49.3578953 | IL30: =HV30+HZ30+ID30+IH30 -> 190.2208414 | IP30: =IP$14*Ratios!IP42 -> 48.45548022 | IT30: =IT$14*Ratios!IT42 -> 46.46750712 | IX30: =IX$14*Ratios!IX42 -> 47.57849747 | JB30: =JB$14*Ratios!JB42 -> 49.93710283 | JF30: =IP30+IT30+IX30+JB30 -> 192.4385876 | JJ30: =JJ$14*Ratios!JJ42 -> 49.12785976 | JN30: =JN$14*Ratios!JN42 -> 47.10251803 | JR30: =JR$14*Ratios!JR42 -> 48.23648155 | JV30: =JV$14*Ratios!JV42 -> 50.63857475 | JZ30: =JJ30+JN30+JR30+JV30 -> 195.1054341 | KD30: =KD$14*Ratios!KD42 -> 49.8234167 | KH30: =KH$14*Ratios!KH42 -> 47.76000863 | KL30: =KL$14*Ratios!KL42 -> 48.91744376 | KP30: =KP$14*Ratios!KP42 -> 51.36394451 | KT30: =KD30+KH30+KL30+KP30 -> 197.8648136
B31: Restructuring and other charges (e) | I31: 318 | M31: 69 | Q31: 24 | U31: 73 | Y31: =I31+M31+Q31+U31 -> 484 | AC31: 142 | AG31: 96 | AK31: 17 | AO31: 13 | AS31: =AC31+AG31+AK31+AO31 -> 268 | AW31: 411 | BA31: 133 | BE31: 70 | BI31: 142 | BM31: =AW31+BA31+BE31+BI31 -> 756 | BQ31: 152 | BU31: 98 | BY31: 82 | CC31: 26 | CG31: =BQ31+BU31+BY31+CC31 -> 358 | CK31: 78 | CO31: 186 | CS31: 18 | CW31: 40 | DA31: =CK31+CO31+CS31+CW31 -> 322 | DF31: =DF$14*Ratios!DF43 -> 80.05953298 | DJ31: =DJ$14*Ratios!DJ43 -> 78.6866054 | DN31: =DN$14*Ratios!DN43 -> 81.4704543 | DR31: =DR$14*Ratios!DR43 -> 85.3109836 | DV31: =DF31+DJ31+DN31+DR31 -> 325.5275763 | DZ31: =DZ$14*Ratios!DZ43 -> 82.27923859 | ED31: =ED$14*Ratios!ED43 -> 80.6275031 | EH31: =EH$14*Ratios!EH43 -> 83.35437764 | EL31: =EL$14*Ratios!EL43 -> 87.44859514 | EP31: =DZ31+ED31+EH31+EL31 -> 333.7097145 | ET31: =ET$14*Ratios!ET43 -> 84.23006535 | EX31: =EX$14*Ratios!EX43 -> 82.67536488 | FB31: =FB$14*Ratios!FB43 -> 85.95278625 | FF31: =FF$14*Ratios!FF43 -> 90.78059229 | FJ31: =ET31+EX31+FB31+FF31 -> 343.6388088 | FN31: =FN$14*Ratios!FN43 -> 91.89569906 | FR31: =FR$14*Ratios!FR43 -> 87.91451672 | FV31: =FV$14*Ratios!FV43 -> 90.07581032 | FZ31: =FZ$14*Ratios!FZ43 -> 94.7708417 | GD31: =FN31+FR31+FV31+FZ31 -> 364.6568678 | GH31: =GH$14*Ratios!GH43 -> 95.68691763 | GL31: =GL$14*Ratios!GL43 -> 91.62280102 | GP31: =GP$14*Ratios!GP43 -> 93.84584648 | GT31: =GT$14*Ratios!GT43 -> 98.66952987 | GX31: =GH31+GL31+GP31+GT31 -> 379.825095 | HB31: =HB$14*Ratios!HB43 -> 99.3514177 | HF31: =HF$14*Ratios!HF43 -> 95.20486185 | HJ31: =HJ$14*Ratios!HJ43 -> 97.48815095 | HN31: =HN$14*Ratios!HN43 -> 102.4181089 | HR31: =HB31+HF31+HJ31+HN31 -> 394.4625394 | HV31: =HV$14*Ratios!HV43 -> 102.8320437 | HZ31: =HZ$14*Ratios!HZ43 -> 98.60618907 | ID31: =ID$14*Ratios!ID43 -> 100.9475582 | IH31: =IH$14*Ratios!IH43 -> 105.9549486 | IL31: =HV31+HZ31+ID31+IH31 -> 408.3407395 | IP31: =IP$14*Ratios!IP43 -> 104.0177642 | IT31: =IT$14*Ratios!IT43 -> 99.75024862 | IX31: =IX$14*Ratios!IX43 -> 102.1351746 | JB31: =JB$14*Ratios!JB43 -> 107.1983141 | JF31: =IP31+IT31+IX31+JB31 -> 413.1015015 | JJ31: =JJ$14*Ratios!JJ43 -> 105.461139 | JN31: =JN$14*Ratios!JN43 -> 101.1134054 | JR31: =JR$14*Ratios!JR43 -> 103.5476471 | JV31: =JV$14*Ratios!JV43 -> 108.7041405 | JZ31: =JJ31+JN31+JR31+JV31 -> 418.8263318 | KD31: =KD$14*Ratios!KD43 -> 106.9542678 | KH31: =KH$14*Ratios!KH43 -> 102.5248185 | KL31: =KL$14*Ratios!KL43 -> 105.0094459 | KP31: =KP$14*Ratios!KP43 -> 110.2612675 | KT31: =KD31+KH31+KL31+KP31 -> 424.7497998
B32: Total operating expenses (a), (b), & (d) - (f) | I32: =SUM(I27:I31) -> 4991 | M32: =SUM(M27:M31) -> 4468 | Q32: =SUM(Q27:Q31) -> 4600 | U32: =SUM(U27:U31) -> 4852 | Y32: =SUM(Y27:Y31) -> 18911 | AC32: =SUM(AC27:AC31) -> 4753 | AG32: =SUM(AG27:AG31) -> 4138 | AK32: =SUM(AK27:AK31) -> 4737 | AO32: =SUM(AO27:AO31) -> 4672 | AS32: =SUM(AS27:AS31) -> 18300 | AW32: =SUM(AW27:AW31) -> 5007 | BA32: =SUM(BA27:BA31) -> 4383 | BE32: =SUM(BE27:BE31) -> 4349 | BI32: =SUM(BI27:BI31) -> 4512 | BM32: =SUM(BM27:BM31) -> 18251 | BQ32: =SUM(BQ27:BQ31) -> 4671 | BU32: =SUM(BU27:BU31) -> 4425 | BY32: =SUM(BY27:BY31) -> 4625 | CC32: =SUM(CC27:CC31) -> 4576 | CG32: =SUM(CG27:CG31) -> 18297 | CK32: =SUM(CK27:CK31) -> 4341 | CO32: =SUM(CO27:CO31) -> 4562 | CS32: =SUM(CS27:CS31) -> 4660 | CW32: =SUM(CW27:CW31) -> 4884 | DA32: =SUM(DA27:DA31) -> 18447 | DF32: =SUM(DF27:DF31) -> 4586.516164 | DJ32: =SUM(DJ27:DJ31) -> 4507.862763 | DN32: =SUM(DN27:DN31) -> 4667.346182 | DR32: =SUM(DR27:DR31) -> 4887.365573 | DV32: =SUM(DV27:DV31) -> 18649.09068 | DZ32: =SUM(DZ27:DZ31) -> 4713.680479 | ED32: =SUM(ED27:ED31) -> 4619.054502 | EH32: =SUM(EH27:EH31) -> 4775.273926 | EL32: =SUM(EL27:EL31) -> 5009.826815 | EP32: =SUM(EP27:EP31) -> 19117.83572 | ET32: =SUM(ET27:ET31) -> 4825.441042 | EX32: =SUM(EX27:EX31) -> 4736.374087 | FB32: =SUM(FB27:FB31) -> 4924.133689 | FF32: =SUM(FF27:FF31) -> 5200.713 | FJ32: =SUM(FJ27:FJ31) -> 19686.66182 | FN32: =SUM(FN27:FN31) -> 5264.596151 | FR32: =SUM(FR27:FR31) -> 5036.518913 | FV32: =SUM(FV27:FV31) -> 5160.336873 | FZ32: =SUM(FZ27:FZ31) -> 5429.309679 | GD32: =SUM(GD27:GD31) -> 20890.76162 | GH32: =SUM(GH27:GH31) -> 5481.790588 | GL32: =SUM(GL27:GL31) -> 5248.962144 | GP32: =SUM(GP27:GP31) -> 5376.317795 | GT32: =SUM(GT27:GT31) -> 5652.660924 | GX32: =SUM(GX27:GX31) -> 21759.73145 | HB32: =SUM(HB27:HB31) -> 5691.725473 | HF32: =SUM(HF27:HF31) -> 5454.174182 | HJ32: =SUM(HJ27:HJ31) -> 5584.98112 | HN32: =SUM(HN27:HN31) -> 5867.412594 | HR32: =SUM(HR27:HR31) -> 22598.29337 | HV32: =SUM(HV27:HV31) -> 5891.126426 | HZ32: =SUM(HZ27:HZ31) -> 5649.032204 | ID32: =SUM(ID27:ID31) -> 5783.166481 | IH32: =SUM(IH27:IH31) -> 6070.033964 | IL32: =SUM(IL27:IL31) -> 23393.35908 | IP32: =SUM(IP27:IP31) -> 5959.054957 | IT32: =SUM(IT27:IT31) -> 5714.574026 | IX32: =SUM(IX27:IX31) -> 5851.203619 | JB32: =SUM(JB27:JB31) -> 6141.264907 | JF32: =SUM(JF27:JF31) -> 23666.09751 | JJ32: =SUM(JJ27:JJ31) -> 6041.744193 | JN32: =SUM(JN27:JN31) -> 5792.667667 | JR32: =SUM(JR27:JR31) -> 5932.122501 | JV32: =SUM(JV27:JV31) -> 6227.531923 | JZ32: =SUM(JZ27:JZ31) -> 23994.06628 | KD32: =SUM(KD27:KD31) -> 6127.283785 | KH32: =SUM(KH27:KH31) -> 5873.525861 | KL32: =SUM(KL27:KL31) -> 6015.867233 | KP32: =SUM(KP27:KP31) -> 6316.737895 | KT32: =SUM(KT27:KT31) -> 24333.41477
B33: Operating expense as a percentage of revenue | I33: =I32/I14 -> 0.4075949367 | M33: =M32/M14 -> 0.3743297587 | Q33: =Q32/Q14 -> 0.3790063442 | U33: =U32/U14 -> 0.3777933505 | Y33: =Y32/Y14 -> 0.3846748439 | AC33: =AC32/AC14 -> 0.3747831572 | AG33: =AG32/AG14 -> 0.3469439088 | AK33: =AK32/AK14 -> 0.39475 | AO33: =AO32/AO14 -> 0.3696787466 | AS33: =AS32/AS14 -> 0.3715962394 | AW33: =AW32/AW14 -> 0.405359456 | BA33: =BA32/BA14 -> 0.3784974093 | BE33: =BE32/BE14 -> 0.3642378559 | BI33: =BI32/BI14 -> 0.3718783483 | BM33: =BM32/BM14 -> 0.3801895636 | BQ33: =BQ32/BQ14 -> 0.3848879367 | BU33: =BU32/BU14 -> 0.3722554051 | BY33: =BY32/BY14 -> 0.3710984514 | CC33: =CC32/CC14 -> 0.3562753036 | CG33: =CG32/CG14 -> 0.3709101966 | CK33: =CK32/CK14 -> 0.3320838433 | CO33: =CO32/CO14 -> 0.3665434678 | CS33: =CS32/CS14 -> 0.3596233987 | CW33: =CW32/CW14 -> 0.363717605 | DA33: =DA32/DA14 -> 0.3554061344 | DF33: =DF32/DF14 -> 0.3554061344 | DJ33: =DJ32/DJ14 -> 0.3554061344 | DN33: =DN32/DN14 -> 0.3554061344 | DR33: =DR32/DR14 -> 0.3554061344 | DV33: =DV32/DV14 -> 0.3554061344 | DZ33: =DZ32/DZ14 -> 0.3554061344 | ED33: =ED32/ED14 -> 0.3554061344 | EH33: =EH32/EH14 -> 0.3554061344 | EL33: =EL32/EL14 -> 0.3554061344 | EP33: =EP32/EP14 -> 0.3554061344 | ET33: =ET32/ET14 -> 0.3554061344 | EX33: =EX32/EX14 -> 0.3554061344 | FB33: =FB32/FB14 -> 0.3554061344 | FF33: =FF32/FF14 -> 0.3554061344 | FJ33: =FJ32/FJ14 -> 0.3554061344 | FN33: =FN32/FN14 -> 0.3554061344 | FR33: =FR32/FR14 -> 0.3554061344 | FV33: =FV32/FV14 -> 0.3554061344 | FZ33: =FZ32/FZ14 -> 0.3554061344 | GD33: =GD32/GD14 -> 0.3554061344 | GH33: =GH32/GH14 -> 0.3554061344 | GL33: =GL32/GL14 -> 0.3554061344 | GP33: =GP32/GP14 -> 0.3554061344 | GT33: =GT32/GT14 -> 0.3554061344 | GX33: =GX32/GX14 -> 0.3554061344 | HB33: =HB32/HB14 -> 0.3554061344 | HF33: =HF32/HF14 -> 0.3554061344 | HJ33: =HJ32/HJ14 -> 0.3554061344 | HN33: =HN32/HN14 -> 0.3554061344 | HR33: =HR32/HR14 -> 0.3554061344 | HV33: =HV32/HV14 -> 0.3554061344 | HZ33: =HZ32/HZ14 -> 0.3554061344 | ID33: =ID32/ID14 -> 0.3554061344 | IH33: =IH32/IH14 -> 0.3554061344 | IL33: =IL32/IL14 -> 0.3554061344 | IP33: =IP32/IP14 -> 0.3554061344 | IT33: =IT32/IT14 -> 0.3554061344 | IX33: =IX32/IX14 -> 0.3554061344 | JB33: =JB32/JB14 -> 0.3554061344 | JF33: =JF32/JF14 -> 0.3554061344 | JJ33: =JJ32/JJ14 -> 0.3554061344 | JN33: =JN32/JN14 -> 0.3554061344 | JR33: =JR32/JR14 -> 0.3554061344 | JV33: =JV32/JV14 -> 0.3554061344 | JZ33: =JZ32/JZ14 -> 0.3554061344 | KD33: =KD32/KD14 -> 0.3554061344 | KH33: =KH32/KH14 -> 0.3554061344 | KL33: =KL32/KL14 -> 0.3554061344 | KP33: =KP32/KP14 -> 0.3554061344 | KT33: =KT32/KT14 -> 0.3554061344
A35: OPERATING INCOME (a) - (f) | I35: =I21-I32 -> 2342 | M35: =M21-M32 -> 2622 | Q35: =Q21-Q32 -> 2925 | U35: =U21-U32 -> 2881 | Y35: =I35+M35+Q35+U35 -> 10770 | AC35: =AC21-AC32 -> 3079 | AG35: =AG21-AG32 -> 3294 | AK35: =AK21-AK32 -> 2984 | AO35: =AO21-AO32 -> 3303 | AS35: =AS21-AS32 -> 12660 | AW35: =AW21-AW32 -> 2877 | BA35: =BA21-BA32 -> 2893 | BE35: =BE21-BE32 -> 3169 | BI35: =BI21-BI32 -> 3034 | BM35: =BM21-BM32 -> 11973 | BQ35: =BQ21-BQ32 -> 2756 | BU35: =BU21-BU32 -> 3073 | BY35: =BY21-BY32 -> 3134 | CC35: =CC21-CC32 -> 3346 | CG35: =CG21-CG32 -> 12309 | CK35: =CK21-CK32 -> 3805 | CO35: =CO21-CO32 -> 3211 | CS35: =CS21-CS32 -> 3513 | CW35: =CW21-CW32 -> 3690 | DA35: =DA21-DA32 -> 14219 | DF35: =DF21-DF32 -> 3392.045173 | DJ35: =DJ21-DJ32 -> 3357.3279 | DN35: =DN21-DN32 -> 3595.129893 | DR35: =DR21-DR32 -> 3668.694649 | DV35: =DV21-DV32 -> 14013.19761 | DZ35: =DZ21-DZ32 -> 3486.369453 | ED35: =ED21-ED32 -> 3441.104453 | EH35: =EH21-EH32 -> 3679.076017 | EL35: =EL21-EL32 -> 3761.51446 | EP35: =EP21-EP32 -> 14368.06438 | ET35: =ET21-ET32 -> 3569.821185 | EX35: =EX21-EX32 -> 3529.361817 | FB35: =FB21-FB32 -> 3793.621232 | FF35: =FF21-FF32 -> 3903.326993 | FJ35: =FJ21-FJ32 -> 14796.13123 | FN35: =FN21-FN32 -> 3887.813546 | FR35: =FR21-FR32 -> 3747.782018 | FV35: =FV21-FV32 -> 3974.249124 | FZ35: =FZ21-FZ32 -> 4068.397667 | GD35: =GD21-GD32 -> 15678.24235 | GH35: =GH21-GH32 -> 4048.039218 | GL35: =GL21-GL32 -> 3905.432364 | GP35: =GP21-GP32 -> 4140.346466 | GT35: =GT21-GT32 -> 4235.542972 | GX35: =GX21-GX32 -> 16329.36102 | HB35: =HB21-HB32 -> 4203.304005 | HF35: =HF21-HF32 -> 4058.30496 | HJ35: =HJ21-HJ32 -> 4301.200479 | HN35: =HN21-HN32 -> 4396.861624 | HR35: =HR21-HR32 -> 16959.67107 | HV35: =HV21-HV32 -> 4351.281981 | HZ35: =HZ21-HZ32 -> 4204.211949 | ID35: =ID21-ID32 -> 4454.465133 | IH35: =IH21-IH32 -> 4549.846412 | IL35: =IL21-IL32 -> 17559.80548 | IP35: =IP21-IP32 -> 4405.756994 | IT35: =IT21-IT32 -> 4259.33699 | IX35: =IX21-IX32 -> 4510.999382 | JB35: =JB21-JB32 -> 4609.40301 | JF35: =JF21-JF32 -> 17785.49637 | JJ35: =JJ21-JJ32 -> 4469.426161 | JN35: =JN21-JN32 -> 4321.3403 | JR35: =JR21-JR32 -> 4575.843201 | JV35: =JV21-JV32 -> 4677.770411 | JZ35: =JZ21-JZ32 -> 18044.38007 | KD35: =KD21-KD32 -> 4535.268971 | KH35: =KH21-KH32 -> 4385.500901 | KL35: =KL21-KL32 -> 4642.929042 | KP35: =KP21-KP32 -> 4748.439279 | KT35: =KT21-KT32 -> 18312.13819
B36: Operating income as a percentage of revenue | I36: =I35/I14 -> 0.1912617395 | M36: =M35/M14 -> 0.2196715818 | Q36: =Q35/Q14 -> 0.2409985993 | U36: =U35/U14 -> 0.2243245348 | Y36: =Y35/Y14 -> 0.2190760969 | AC36: =AC35/AC14 -> 0.2427850497 | AG36: =AG35/AG14 -> 0.2761800956 | AK36: =AK35/AK14 -> 0.2486666667 | AO36: =AO35/AO14 -> 0.2613546447 | AS36: =AS35/AS14 -> 0.2570714967 | AW36: =AW35/AW14 -> 0.2329177461 | BA36: =BA35/BA14 -> 0.2498272884 | BE36: =BE35/BE14 -> 0.2654103853 | BI36: =BI35/BI14 -> 0.2500618149 | BM36: =BM35/BM14 -> 0.2494115196 | BQ36: =BQ35/BQ14 -> 0.2270929466 | BU36: =BU35/BU14 -> 0.2585177084 | BY36: =BY35/BY14 -> 0.2514643344 | CC36: =CC35/CC14 -> 0.2605107443 | CG36: =CG35/CG14 -> 0.2495236165 | CK36: =CK35/CK14 -> 0.2910801714 | CO36: =CO35/CO14 -> 0.2579945364 | CS36: =CS35/CS14 -> 0.2711066523 | CW36: =CW35/CW14 -> 0.2747989276 | DA36: =DA35/DA14 -> 0.273948058 | DF36: =DF35/DF14 -> 0.2628473594 | DJ36: =DJ35/DJ14 -> 0.2646963747 | DN36: =DN35/DN14 -> 0.2737596844 | DR36: =DR35/DR14 -> 0.2667851553 | DV36: =DV35/DV14 -> 0.2670573316 | DZ36: =DZ35/DZ14 -> 0.2628682822 | ED36: =ED35/ED14 -> 0.2647705566 | EH36: =EH35/EH14 -> 0.2738201422 | EL36: =EL35/EL14 -> 0.2668486083 | EP36: =EP35/EP14 -> 0.2671065018 | ET36: =ET35/ET14 -> 0.2629265049 | EX36: =EX35/EX14 -> 0.264834833 | FB36: =FB35/FB14 -> 0.2738098399 | FF36: =FF35/FF14 -> 0.266745417 | FJ36: =FJ35/FJ14 -> 0.267116683 | FN36: =FN35/FN14 -> 0.2624613065 | FR36: =FR35/FR14 -> 0.2644653466 | FV36: =FV35/FV14 -> 0.2737171144 | FZ36: =FZ35/FZ14 -> 0.266319951 | GD36: =GD35/GD14 -> 0.2667276384 | GH36: =GH35/GH14 -> 0.2624503704 | GL36: =GL35/GL14 -> 0.2644360126 | GP36: =GP35/GP14 -> 0.2737011815 | GT36: =GT35/GT14 -> 0.2663060769 | GX36: =GX35/GX14 -> 0.266710786 | HB36: =HB35/HB14 -> 0.2624652287 | HF36: =HF35/HF14 -> 0.2644481877 | HJ36: =HJ35/HJ14 -> 0.2737114061 | HN36: =HN35/HN14 -> 0.2663306131 | HR36: =HR35/HR14 -> 0.2667268292 | HV36: =HV35/HV14 -> 0.2625087626 | HZ36: =HZ35/HZ14 -> 0.2645059655 | ID36: =ID35/ID14 -> 0.2737504167 | IH36: =IH35/IH14 -> 0.2663977393 | IL36: =IL35/IL14 -> 0.2667792413 | IP36: =IP35/IP14 -> 0.2627653333 | IT36: =IT35/IT14 -> 0.2649006711 | IX36: =IX35/IX14 -> 0.2740012068 | JB36: =JB35/JB14 -> 0.2667545091 | JF36: =JF35/JF14 -> 0.2670940789 | JJ36: =JJ35/JJ14 -> 0.2629143876 | JN36: =JN35/JN14 -> 0.2651336033 | JR36: =JR35/JR14 -> 0.2741485436 | JV36: =JV35/JV14 -> 0.2669610241 | JZ36: =JZ35/JZ14 -> 0.2672778884 | KD36: =KD35/KD14 -> 0.2630631239 | KH36: =KH35/KH14 -> 0.265365976 | KL36: =KL35/KL14 -> 0.2742955253 | KP36: =KP35/KP14 -> 0.2671670848 | KT36: =KT35/KT14 -> 0.2674612794
A38: Interest income | I38: 179 | M38: 189 | Q38: 190 | U38: 211 | Y38: =I38+M38+Q38+U38 -> 769 | AC38: 225 | AG38: 237 | AK38: 270 | AO38: 273 | AS38: =AC38+AG38+AK38+AO38 -> 1005 | AW38: 295 | BA38: 329 | BE38: 354 | BI38: 360 | BM38: =AW38+BA38+BE38+BI38 -> 1338 | BQ38: 379 | BU38: 396 | BY38: 380 | CC38: 353 | CG38: =BQ38+BU38+BY38+CC38 -> 1508 | CK38: 344 | CO38: 328 | CS38: 331 | CW38: 305 | DA38: =CK38+CO38+CS38+CW38 -> 1308 | DF38: =DF69*Ratios!DF36 -> 218.0052073 | DJ38: =DJ69*Ratios!DJ36 -> 232.5999738 | DN38: =DN69*Ratios!DN36 -> 293.9674073 | DR38: =DR69*Ratios!DR36 -> 305 | DV38: =DF38+DJ38+DN38+DR38 -> 1049.572588 | DZ38: =DZ69*Ratios!DZ36 -> 218.0052073 | ED38: =ED69*Ratios!ED36 -> 232.5999738 | EH38: =EH69*Ratios!EH36 -> 293.9674073 | EL38: =EL69*Ratios!EL36 -> 305 | EP38: =DZ38+ED38+EH38+EL38 -> 1049.572588 | ET38: =ET69*Ratios!ET36 -> 218.0052073 | EX38: =EX69*Ratios!EX36 -> 232.5999738 | FB38: =FB69*Ratios!FB36 -> 293.9674073 | FF38: =FF69*Ratios!FF36 -> 305 | FJ38: =ET38+EX38+FB38+FF38 -> 1049.572588 | FN38: =FN69*Ratios!FN36 -> 218.0052073 | FR38: =FR69*Ratios!FR36 -> 232.5999738 | FV38: =FV69*Ratios!FV36 -> 293.9674073 | FZ38: =FZ69*Ratios!FZ36 -> 305 | GD38: =FN38+FR38+FV38+FZ38 -> 1049.572588 | GH38: =GH69*Ratios!GH36 -> 218.0052073 | GL38: =GL69*Ratios!GL36 -> 232.5999738 | GP38: =GP69*Ratios!GP36 -> 293.9674073 | GT38: =GT69*Ratios!GT36 -> 305 | GX38: =GH38+GL38+GP38+GT38 -> 1049.572588 | HB38: =HB69*Ratios!HB36 -> 218.0052073 | HF38: =HF69*Ratios!HF36 -> 232.5999738 | HJ38: =HJ69*Ratios!HJ36 -> 293.9674073 | HN38: =HN69*Ratios!HN36 -> 305 | HR38: =HB38+HF38+HJ38+HN38 -> 1049.572588 | HV38: =HV69*Ratios!HV36 -> 218.0052073 | HZ38: =HZ69*Ratios!HZ36 -> 232.5999738 | ID38: =ID69*Ratios!ID36 -> 293.9674073 | IH38: =IH69*Ratios!IH36 -> 305 | IL38: =HV38+HZ38+ID38+IH38 -> 1049.572588 | IP38: =IP69*Ratios!IP36 -> 218.0052073 | IT38: =IT69*Ratios!IT36 -> 232.5999738 | IX38: =IX69*Ratios!IX36 -> 293.9674073 | JB38: =JB69*Ratios!JB36 -> 305 | JF38: =IP38+IT38+IX38+JB38 -> 1049.572588 | JJ38: =JJ69*Ratios!JJ36 -> 218.0052073 | JN38: =JN69*Ratios!JN36 -> 232.5999738 | JR38: =JR69*Ratios!JR36 -> 293.9674073 | JV38: =JV69*Ratios!JV36 -> 305 | JZ38: =JJ38+JN38+JR38+JV38 -> 1049.572588 | KD38: =KD69*Ratios!KD36 -> 218.0052073 | KH38: =KH69*Ratios!KH36 -> 232.5999738 | KL38: =KL69*Ratios!KL36 -> 293.9674073 | KP38: =KP69*Ratios!KP36 -> 305 | KT38: =KD38+KH38+KL38+KP38 -> 1049.572588
A39: Interest expense | I39: -139 | M39: -139 | Q39: -139 | U39: -149 | Y39: =I39+M39+Q39+U39 -> -566 | AC39: -159 | AG39: -162 | AK39: -175 | AO39: -180 | AS39: =AC39+AG39+AK39+AO39 -> -676 | AW39: -198 | BA39: -222 | BE39: -219 | BI39: -222 | BM39: =AW39+BA39+BE39+BI39 -> -861 | BQ39: -235 | BU39: -247 | BY39: -237 | CC39: -224 | CG39: =BQ39+BU39+BY39+CC39 -> -943 | CK39: -221 | CO39: -223 | CS39: -211 | CW39: -204 | DA39: =CK39+CO39+CS39+CW39 -> -859 | DF39: =-'Debt Schedule'!DG48 -> -210.8875 | DJ39: =-'Debt Schedule'!DK48 -> -175.9331 | DN39: =-'Debt Schedule'!DO48 -> -300.98125 | DR39: =-'Debt Schedule'!DS48 -> -175.9331 | DV39: =DF39+DJ39+DN39+DR39 -> -863.73495 | DZ39: =-'Debt Schedule'!EA48 -> -300.98125 | ED39: =-'Debt Schedule'!EE48 -> -175.9331 | EH39: =-'Debt Schedule'!EI48 -> -300.98125 | EL39: =-'Debt Schedule'!EM48 -> -175.9331 | EP39: =DZ39+ED39+EH39+EL39 -> -953.8287 | ET39: =-'Debt Schedule'!EU48 -> -300.98125 | EX39: =-'Debt Schedule'!EY48 -> -175.9331 | FB39: =-'Debt Schedule'!FC48 -> -300.98125 | FF39: =-'Debt Schedule'!FG48 -> -175.9331 | FJ39: =ET39+EX39+FB39+FF39 -> -953.8287 | FN39: =-'Debt Schedule'!FO48 -> -300.98125 | FR39: =-'Debt Schedule'!FS48 -> -175.9331 | FV39: =-'Debt Schedule'!FW48 -> -300.98125 | FZ39: =-'Debt Schedule'!GA48 -> -175.9331 | GD39: =FN39+FR39+FV39+FZ39 -> -953.8287 | GH39: =-'Debt Schedule'!GI48 -> -300.98125 | GL39: =-'Debt Schedule'!GM48 -> -175.9331 | GP39: =-'Debt Schedule'!GQ48 -> -300.98125 | GT39: =-'Debt Schedule'!GU48 -> -175.9331 | GX39: =GH39+GL39+GP39+GT39 -> -953.8287 | HB39: =-'Debt Schedule'!HC48 -> -300.98125 | HF39: =-'Debt Schedule'!HG48 -> -175.9331 | HJ39: =-'Debt Schedule'!HK48 -> -300.98125 | HN39: =-'Debt Schedule'!HO48 -> -175.9331 | HR39: =HB39+HF39+HJ39+HN39 -> -953.8287 | HV39: =-'Debt Schedule'!HW48 -> -300.98125 | HZ39: =-'Debt Schedule'!IA48 -> -175.9331 | ID39: =-'Debt Schedule'!IE48 -> -300.98125 | IH39: =-'Debt Schedule'!II48 -> -175.9331 | IL39: =HV39+HZ39+ID39+IH39 -> -953.8287 | IP39: =-'Debt Schedule'!IQ48 -> -300.98125 | IT39: =-'Debt Schedule'!IU48 -> -175.9331 | IX39: =-'Debt Schedule'!IY48 -> -300.98125 | JB39: =-'Debt Schedule'!JC48 -> -175.9331 | JF39: =IP39+IT39+IX39+JB39 -> -953.8287 | JJ39: =-'Debt Schedule'!JK48 -> -300.98125 | JN39: =-'Debt Schedule'!JO48 -> -175.9331 | JR39: =-'Debt Schedule'!JS48 -> -300.98125 | JV39: =-'Debt Schedule'!JW48 -> -175.9331 | JZ39: =JJ39+JN39+JR39+JV39 -> -953.8287 | KD39: =-'Debt Schedule'!KE48 -> -300.98125 | KH39: =-'Debt Schedule'!KI48 -> -175.9331 | KL39: =-'Debt Schedule'!KM48 -> -300.98125 | KP39: =-'Debt Schedule'!KQ48 -> -175.9331 | KT39: =KD39+KH39+KL39+KP39 -> -953.8287
A40: Other income (loss), net (g) | I40: -22 | M40: 201 | Q40: 59 | U40: -10 | Y40: =I40+M40+Q40+U40 -> 228 | AC40: -8 | AG40: -63 | AK40: 4 | AO40: -2 | AS40: =AC40+AG40+AK40+AO40 -> -69 | AW40: -21 | BA40: -37 | BE40: -113 | BI40: 8 | BM40: =AW40+BA40+BE40+BI40 -> -163 | BQ40: 62 | BU40: 10 | BY40: -24 | CC40: 117 | CG40: =BQ40+BU40+BY40+CC40 -> 165 | CK40: -19 | CO40: 27 | CS40: -18 | CW40: -87 | DA40: =CK40+CO40+CS40+CW40 -> -97 | DF40: 0 | DJ40: =DF40 -> 0 | DN40: =DJ40 -> 0 | DR40: =DN40 -> 0 | DV40: =DF40+DJ40+DN40+DR40 -> 0 | DZ40: =DR40 -> 0 | ED40: =DZ40 -> 0 | EH40: =ED40 -> 0 | EL40: =EH40 -> 0 | EP40: =DZ40+ED40+EH40+EL40 -> 0 | ET40: =EL40 -> 0 | EX40: =ET40 -> 0 | FB40: =EX40 -> 0 | FF40: =FB40 -> 0 | FJ40: =ET40+EX40+FB40+FF40 -> 0 | FN40: =FF40 -> 0 | FR40: =FN40 -> 0 | FV40: =FR40 -> 0 | FZ40: =FV40 -> 0 | GD40: =FN40+FR40+FV40+FZ40 -> 0 | GH40: =FZ40 -> 0 | GL40: =GH40 -> 0 | GP40: =GL40 -> 0 | GT40: =GP40 -> 0 | GX40: =GH40+GL40+GP40+GT40 -> 0 | HB40: =GT40 -> 0 | HF40: =HB40 -> 0 | HJ40: =HF40 -> 0 | HN40: =HJ40 -> 0 | HR40: =HB40+HF40+HJ40+HN40 -> 0 | HV40: =HN40 -> 0 | HZ40: =HV40 -> 0 | ID40: =HZ40 -> 0 | IH40: =ID40 -> 0 | IL40: =HV40+HZ40+ID40+IH40 -> 0 | IP40: =IH40 -> 0 | IT40: =IP40 -> 0 | IX40: =IT40 -> 0 | JB40: =IX40 -> 0 | JF40: =IP40+IT40+IX40+JB40 -> 0 | JJ40: =JB40 -> 0 | JN40: =JJ40 -> 0 | JR40: =JN40 -> 0 | JV40: =JR40 -> 0 | JZ40: =JJ40+JN40+JR40+JV40 -> 0 | KD40: =JV40 -> 0 | KH40: =KD40 -> 0 | KL40: =KH40 -> 0 | KP40: =KL40 -> 0 | KT40: =KD40+KH40+KL40+KP40 -> 0
B41: Interest and other income (loss), net | I41: =SUM(I38:I40) -> 18 | M41: =SUM(M38:M40) -> 251 | Q41: =SUM(Q38:Q40) -> 110 | U41: =SUM(U38:U40) -> 52 | Y41: =SUM(Y38:Y40) -> 431 | AC41: =SUM(AC38:AC40) -> 58 | AG41: =SUM(AG38:AG40) -> 12 | AK41: =SUM(AK38:AK40) -> 99 | AO41: =SUM(AO38:AO40) -> 91 | AS41: =SUM(AS38:AS40) -> 260 | AW41: =SUM(AW38:AW40) -> 76 | BA41: =SUM(BA38:BA40) -> 70 | BE41: =SUM(BE38:BE40) -> 22 | BI41: =SUM(BI38:BI40) -> 146 | BM41: =SUM(BM38:BM40) -> 314 | BQ41: =SUM(BQ38:BQ40) -> 206 | BU41: =SUM(BU38:BU40) -> 159 | BY41: =SUM(BY38:BY40) -> 119 | CC41: =SUM(CC38:CC40) -> 246 | CG41: =SUM(CG38:CG40) -> 730 | CK41: =SUM(CK38:CK40) -> 104 | CO41: =SUM(CO38:CO40) -> 132 | CS41: =SUM(CS38:CS40) -> 102 | CW41: =SUM(CW38:CW40) -> 14 | DA41: =SUM(DA38:DA40) -> 352 | DF41: =SUM(DF38:DF40) -> 7.117707267 | DJ41: =SUM(DJ38:DJ40) -> 56.66687381 | DN41: =SUM(DN38:DN40) -> -7.013842653 | DR41: =SUM(DR38:DR40) -> 129.0669 | DV41: =SUM(DV38:DV40) -> 185.8376384 | DZ41: =SUM(DZ38:DZ40) -> -82.97604273 | ED41: =SUM(ED38:ED40) -> 56.66687381 | EH41: =SUM(EH38:EH40) -> -7.013842653 | EL41: =SUM(EL38:EL40) -> 129.0669 | EP41: =SUM(EP38:EP40) -> 95.74388843 | ET41: =SUM(ET38:ET40) -> -82.97604273 | EX41: =SUM(EX38:EX40) -> 56.66687381 | FB41: =SUM(FB38:FB40) -> -7.013842653 | FF41: =SUM(FF38:FF40) -> 129.0669 | FJ41: =SUM(FJ38:FJ40) -> 95.74388843 | FN41: =SUM(FN38:FN40) -> -82.97604273 | FR41: =SUM(FR38:FR40) -> 56.66687381 | FV41: =SUM(FV38:FV40) -> -7.013842653 | FZ41: =SUM(FZ38:FZ40) -> 129.0669 | GD41: =SUM(GD38:GD40) -> 95.74388843 | GH41: =SUM(GH38:GH40) -> -82.97604273 | GL41: =SUM(GL38:GL40) -> 56.66687381 | GP41: =SUM(GP38:GP40) -> -7.013842653 | GT41: =SUM(GT38:GT40) -> 129.0669 | GX41: =SUM(GX38:GX40) -> 95.74388843 | HB41: =SUM(HB38:HB40) -> -82.97604273 | HF41: =SUM(HF38:HF40) -> 56.66687381 | HJ41: =SUM(HJ38:HJ40) -> -7.013842653 | HN41: =SUM(HN38:HN40) -> 129.0669 | HR41: =SUM(HR38:HR40) -> 95.74388843 | HV41: =SUM(HV38:HV40) -> -82.97604273 | HZ41: =SUM(HZ38:HZ40) -> 56.66687381 | ID41: =SUM(ID38:ID40) -> -7.013842653 | IH41: =SUM(IH38:IH40) -> 129.0669 | IL41: =SUM(IL38:IL40) -> 95.74388843 | IP41: =SUM(IP38:IP40) -> -82.97604273 | IT41: =SUM(IT38:IT40) -> 56.66687381 | IX41: =SUM(IX38:IX40) -> -7.013842653 | JB41: =SUM(JB38:JB40) -> 129.0669 | JF41: =SUM(JF38:JF40) -> 95.74388843 | JJ41: =SUM(JJ38:JJ40) -> -82.97604273 | JN41: =SUM(JN38:JN40) -> 56.66687381 | JR41: =SUM(JR38:JR40) -> -7.013842653 | JV41: =SUM(JV38:JV40) -> 129.0669 | JZ41: =SUM(JZ38:JZ40) -> 95.74388843 | KD41: =SUM(KD38:KD40) -> -82.97604273 | KH41: =SUM(KH38:KH40) -> 56.66687381 | KL41: =SUM(KL38:KL40) -> -7.013842653 | KP41: =SUM(KP38:KP40) -> 129.0669 | KT41: =SUM(KT38:KT40) -> 95.74388843
A43: INCOME BEFORE PROVISION FOR INCOME TAXES (a) - (g) | I43: =I35+I41 -> 2360 | M43: =M35+M41 -> 2873 | Q43: =Q35+Q41 -> 3035 | U43: =U35+U41 -> 2933 | Y43: =I43+M43+Q43+U43 -> 11201 | AC43: =AC35+AC41 -> 3137 | AG43: =AG35+AG41 -> 3306 | AK43: =AK35+AK41 -> 3083 | AO43: =AO35+AO41 -> 3394 | AS43: =AS35+AS41 -> 12920 | AW43: =AW35+AW41 -> 2953 | BA43: =BA35+BA41 -> 2963 | BE43: =BE35+BE41 -> 3191 | BI43: =BI35+BI41 -> 3180 | BM43: =BM35+BM41 -> 12287 | BQ43: =BQ35+BQ41 -> 2962 | BU43: =BU35+BU41 -> 3232 | BY43: =BY35+BY41 -> 3253 | CC43: =CC35+CC41 -> 3592 | CG43: =CG35+CG41 -> 13039 | CK43: =CK35+CK41 -> 3909 | CO43: =CO35+CO41 -> 3343 | CS43: =CS35+CS41 -> 3615 | CW43: =CW35+CW41 -> 3704 | DA43: =DA35+DA41 -> 14571 | DF43: =DF35+DF41 -> 3399.16288 | DJ43: =DJ35+DJ41 -> 3413.994774 | DN43: =DN35+DN41 -> 3588.11605 | DR43: =DR35+DR41 -> 3797.761549 | DV43: =DV35+DV41 -> 14199.03525 | DZ43: =DZ35+DZ41 -> 3403.39341 | ED43: =ED35+ED41 -> 3497.771326 | EH43: =EH35+EH41 -> 3672.062175 | EL43: =EL35+EL41 -> 3890.58136 | EP43: =EP35+EP41 -> 14463.80827 | ET43: =ET35+ET41 -> 3486.845142 | EX43: =EX35+EX41 -> 3586.028691 | FB43: =FB35+FB41 -> 3786.607389 | FF43: =FF35+FF41 -> 4032.393893 | FJ43: =FJ35+FJ41 -> 14891.87512 | FN43: =FN35+FN41 -> 3804.837503 | FR43: =FR35+FR41 -> 3804.448892 | FV43: =FV35+FV41 -> 3967.235281 | FZ43: =FZ35+FZ41 -> 4197.464567 | GD43: =GD35+GD41 -> 15773.98624 | GH43: =GH35+GH41 -> 3965.063176 | GL43: =GL35+GL41 -> 3962.099238 | GP43: =GP35+GP41 -> 4133.332623 | GT43: =GT35+GT41 -> 4364.609872 | GX43: =GX35+GX41 -> 16425.10491 | HB43: =HB35+HB41 -> 4120.327962 | HF43: =HF35+HF41 -> 4114.971834 | HJ43: =HJ35+HJ41 -> 4294.186636 | HN43: =HN35+HN41 -> 4525.928524 | HR43: =HR35+HR41 -> 17055.41496 | HV43: =HV35+HV41 -> 4268.305938 | HZ43: =HZ35+HZ41 -> 4260.878823 | ID43: =ID35+ID41 -> 4447.45129 | IH43: =IH35+IH41 -> 4678.913312 | IL43: =IL35+IL41 -> 17655.54936 | IP43: =IP35+IP41 -> 4322.780951 | IT43: =IT35+IT41 -> 4316.003864 | IX43: =IX35+IX41 -> 4503.985539 | JB43: =JB35+JB41 -> 4738.46991 | JF43: =JF35+JF41 -> 17881.24026 | JJ43: =JJ35+JJ41 -> 4386.450118 | JN43: =JN35+JN41 -> 4378.007173 | JR43: =JR35+JR41 -> 4568.829359 | JV43: =JV35+JV41 -> 4806.837311 | JZ43: =JZ35+JZ41 -> 18140.12396 | KD43: =KD35+KD41 -> 4452.292929 | KH43: =KH35+KH41 -> 4442.167774 | KL43: =KL35+KL41 -> 4635.915199 | KP43: =KP35+KP41 -> 4877.506179 | KT43: =KT35+KT41 -> 18407.88208
CK44: =CK45/CK43 -> 0.092095165 | CO44: =CO45/CO43 -> 0.1558480407 | CS44: =CS45/CS43 -> 0.1579529737 | CW44: =CW45/CW43 -> 0.4044276458 | DA44: =DA45/DA43 -> 0.202456935 | DF44: =DA45/DA43 -> 0.202456935 | DJ44: =DF44 -> 0.202456935 | DN44: =DJ44 -> 0.202456935 | DR44: =DN44 -> 0.202456935 | DV44: =DV45/DV43 -> 0.202456935 | DZ44: =DR44 -> 0.202456935 | ED44: =DZ44 -> 0.202456935 | EH44: =ED44 -> 0.202456935 | EL44: =EH44 -> 0.202456935 | EP44: =EP45/EP43 -> 0.202456935 | ET44: =EL44 -> 0.202456935 | EX44: =ET44 -> 0.202456935 | FB44: =EX44 -> 0.202456935 | FF44: =FB44 -> 0.202456935 | FJ44: =FJ45/FJ43 -> 0.202456935 | FN44: =FF44 -> 0.202456935 | FR44: =FN44 -> 0.202456935 | FV44: =FR44 -> 0.202456935 | FZ44: =FV44 -> 0.202456935 | GD44: =GD45/GD43 -> 0.202456935 | GH44: =FZ44 -> 0.202456935 | GL44: =GH44 -> 0.202456935 | GP44: =GL44 -> 0.202456935 | GT44: =GP44 -> 0.202456935 | GX44: =GX45/GX43 -> 0.202456935 | HB44: =GT44 -> 0.202456935 | HF44: =HB44 -> 0.202456935 | HJ44: =HF44 -> 0.202456935 | HN44: =HJ44 -> 0.202456935 | HR44: =HR45/HR43 -> 0.202456935 | HV44: =HN44 -> 0.202456935 | HZ44: =HV44 -> 0.202456935 | ID44: =HZ44 -> 0.202456935 | IH44: =ID44 -> 0.202456935 | IL44: =IL45/IL43 -> 0.202456935 | IP44: =IH44 -> 0.202456935 | IT44: =IP44 -> 0.202456935 | IX44: =IT44 -> 0.202456935 | JB44: =IX44 -> 0.202456935 | JF44: =JF45/JF43 -> 0.202456935 | JJ44: =JB44 -> 0.202456935 | JN44: =JJ44 -> 0.202456935 | JR44: =JN44 -> 0.202456935 | JV44: =JR44 -> 0.202456935 | JZ44: =JZ45/JZ43 -> 0.202456935 | KD44: =JV44 -> 0.202456935 | KH44: =KD44 -> 0.202456935 | KL44: =KH44 -> 0.202456935 | KP44: =KL44 -> 0.202456935 | KT44: =KT45/KT43 -> 0.202456935
A45: Provision for income taxes (h) - (i) | I45: 532 | M45: 476 | Q45: 598 | U45: 614 | Y45: =I45+M45+Q45+U45 -> 2220 | AC45: 707 | AG45: 159 | AK45: 734 | AO45: 581 | AS45: =AC45+AG45+AK45+AO45 -> 2181 | AW45: 631 | BA45: 615 | BE45: 676 | BI45: 756 | BM45: =AW45+BA45+BE45+BI45 -> 2678 | BQ45: 568 | BU45: 12010 | BY45: 562 | CC45: -211 | CG45: =BQ45+BU45+BY45+CC45 -> 12929 | CK45: 360 | CO45: 521 | CS45: 571 | CW45: 1498 | DA45: =CK45+CO45+CS45+CW45 -> 2950 | DF45: =DF43*DF44 -> 688.1840983 | DJ45: =DJ43*DJ44 -> 691.1869181 | DN45: =DN43*DN44 -> 726.4389779 | DR45: =DR43*DR44 -> 768.8831631 | DV45: =DF45+DJ45+DN45+DR45 -> 2874.693157 | DZ45: =DZ43*DZ44 -> 689.0405984 | ED45: =ED43*ED44 -> 708.1480621 | EH45: =EH43*EH44 -> 743.434453 | EL45: =EL43*EL44 -> 787.6751775 | EP45: =DZ45+ED45+EH45+EL45 -> 2928.298291 | ET45: =ET43*ET44 -> 705.9359804 | EX45: =EX43*EX44 -> 726.0163777 | FB45: =FB43*FB44 -> 766.6249261 | FF45: =FF43*FF44 -> 816.3861083 | FJ45: =ET45+EX45+FB45+FF45 -> 3014.963392 | FN45: =FN43*FN44 -> 770.3157391 | FR45: =FR43*FR44 -> 770.2370621 | FV45: =FV43*FV44 -> 803.1942954 | FZ45: =FZ43*FZ44 -> 849.805811 | GD45: =FN45+FR45+FV45+FZ45 -> 3193.552908 | GH45: =GH43*GH44 -> 802.7545377 | GL45: =GL43*GL44 -> 802.1544679 | GP45: =GP43*GP44 -> 836.8218542 | GT45: =GT43*GT44 -> 883.6455372 | GX45: =GH45+GL45+GP45+GT45 -> 3325.376397 | HB45: =HB43*HB44 -> 834.1889705 | HF45: =HF43*HF44 -> 833.1045851 | HJ45: =HJ43*HJ44 -> 869.3878647 | HN45: =HN43*HN44 -> 916.3056171 | HR45: =HB45+HF45+HJ45+HN45 -> 3452.987037 | HV45: =HV43*HV44 -> 864.148138 | HZ45: =HZ43*HZ44 -> 862.644467 | ID45: =ID43*ID44 -> 900.4173568 | IH45: =IH43*IH44 -> 947.2784483 | IL45: =HV45+HZ45+ID45+IH45 -> 3574.48841 | IP45: =IP43*IP44 -> 875.176982 | IT45: =IT43*IT44 -> 873.8049137 | IX45: =IX43*IX44 -> 911.8631076 | JB45: =JB43*JB44 -> 959.3360945 | JF45: =IP45+IT45+IX45+JB45 -> 3620.181098 | JJ45: =JJ43*JJ44 -> 888.0672464 | JN45: =JN43*JN44 -> 886.3579138 | JR45: =JR43*JR44 -> 924.9911885 | JV45: =JV43*JV44 -> 973.1775491 | JZ45: =JJ45+JN45+JR45+JV45 -> 3672.593898 | KD45: =KD43*KD44 -> 901.3975801 | KH45: =KH43*KH44 -> 899.3476724 | KL45: =KL43*KL44 -> 938.5731821 | KP45: =KP43*KP44 -> 987.4849515 | KT45: =KD45+KH45+KL45+KP45 -> 3726.803386
A47: NET INCOME (a) - (i) | I47: =I43-I45 -> 1828 | M47: =M43-M45 -> 2397 | Q47: =Q43-Q45 -> 2437 | U47: =U43-U45 -> 2319 | Y47: =Y43-Y45 -> 8981 | AC47: =AC43-AC45 -> 2430 | AG47: =AG43-AG45 -> 3147 | AK47: =AK43-AK45 -> 2349 | AO47: =AO43-AO45 -> 2813 | AS47: =AS43-AS45 -> 10739 | AW47: =AW43-AW45 -> 2322 | BA47: =BA43-BA45 -> 2348 | BE47: =BE43-BE45 -> 2515 | BI47: =BI43-BI45 -> 2424 | BM47: =BM43-BM45 -> 9609 | BQ47: =BQ43-BQ45 -> 2394 | BU47: =BU43-BU45 -> -8778 | BY47: =BY43-BY45 -> 2691 | CC47: =CC43-CC45 -> 3803 | CG47: =CG43-CG45 -> 110 | CK47: =CK43-CK45 -> 3549 | CO47: =CO43-CO45 -> 2822 | CS47: =CS43-CS45 -> 3044 | CW47: =CW43-CW45 -> 2206 | DA47: =DA43-DA45 -> 11621 | DF47: =DF43-DF45 -> 2710.978782 | DJ47: =DJ43-DJ45 -> 2722.807856 | DN47: =DN43-DN45 -> 2861.677072 | DR47: =DR43-DR45 -> 3028.878386 | DV47: =DV43-DV45 -> 11324.3421 | DZ47: =DZ43-DZ45 -> 2714.352812 | ED47: =ED43-ED45 -> 2789.623264 | EH47: =EH43-EH45 -> 2928.627722 | EL47: =EL43-EL45 -> 3102.906182 | EP47: =EP43-EP45 -> 11535.50998 | ET47: =ET43-ET45 -> 2780.909162 | EX47: =EX43-EX45 -> 2860.012313 | FB47: =FB43-FB45 -> 3019.982463 | FF47: =FF43-FF45 -> 3216.007785 | FJ47: =FJ43-FJ45 -> 11876.91172 | FN47: =FN43-FN45 -> 3034.521764 | FR47: =FR43-FR45 -> 3034.21183 | FV47: =FV43-FV45 -> 3164.040985 | FZ47: =FZ43-FZ45 -> 3347.658756 | GD47: =GD43-GD45 -> 12580.43334 | GH47: =GH43-GH45 -> 3162.308638 | GL47: =GL43-GL45 -> 3159.94477 | GP47: =GP43-GP45 -> 3296.510769 | GT47: =GT43-GT45 -> 3480.964335 | GX47: =GX43-GX45 -> 13099.72851 | HB47: =HB43-HB45 -> 3286.138992 | HF47: =HF43-HF45 -> 3281.867249 | HJ47: =HJ43-HJ45 -> 3424.798772 | HN47: =HN43-HN45 -> 3609.622907 | HR47: =HR43-HR45 -> 13602.42792 | HV47: =HV43-HV45 -> 3404.1578 | HZ47: =HZ43-HZ45 -> 3398.234356 | ID47: =ID43-ID45 -> 3547.033933 | IH47: =IH43-IH45 -> 3731.634864 | IL47: =IL43-IL45 -> 14081.06095 | IP47: =IP43-IP45 -> 3447.603969 | IT47: =IT43-IT45 -> 3442.19895 | IX47: =IX43-IX45 -> 3592.122432 | JB47: =JB43-JB45 -> 3779.133815 | JF47: =JF43-JF45 -> 14261.05917 | JJ47: =JJ43-JJ45 -> 3498.382871 | JN47: =JN43-JN45 -> 3491.64926 | JR47: =JR43-JR45 -> 3643.83817 | JV47: =JV43-JV45 -> 3833.659762 | JZ47: =JZ43-JZ45 -> 14467.53006 | KD47: =KD43-KD45 -> 3550.895348 | KH47: =KH43-KH45 -> 3542.820102 | KL47: =KL43-KL45 -> 3697.342017 | KP47: =KP43-KP45 -> 3890.021228 | KT47: =KT43-KT45 -> 14681.0787
A49: Net income per share:
A50: Basic (a) - (i) | I50: =IFERROR(I47/I55," ") -> 0.3575899844 | M50: =IFERROR(M47/M55," ") -> 0.4684385382 | Q50: =IFERROR(Q47/Q55," ") -> 0.4776558212 | U50: =IFERROR(U47/U55," ") -> 0.4559575305 | Y50: =IFERROR(Y47/Y55," ") -> 1.759600313 | AC50: =IFERROR(AC47/AC55," ") -> 0.4783464567 | AG50: =IFERROR(AG47/AG55," ") -> 0.6207100592 | AK50: =IFERROR(AK47/AK55," ") -> 0.4668124006 | AO50: =IFERROR(AO47/AO55," ") -> 0.5591333731 | AS50: =IFERROR(AS47/AS55," ") -> 2.125272116 | AW50: =IFERROR(AW47/AW55," ") -> 0.4619057092 | BA50: =IFERROR(BA47/BA55," ") -> 0.4681954138 | BE50: =IFERROR(BE47/BE55," ") -> 0.5024975025 | BI50: =IFERROR(BI47/BI55," ") -> 0.4854796715 | BM50: =IFERROR(BM47/BM55," ") -> 1.917964072 | BQ50: =IFERROR(BQ47/BQ55," ") -> 0.4827586207 | BU50: =IFERROR(BU47/BU55," ") -> -1.782696994 | BY50: =IFERROR(BY47/BY55," ") -> 0.5616781465 | CC50: =IFERROR(CC47/CC55," ") -> 0.8139982877 | CG50: =IFERROR(CG47/CG55," ") -> 0.02274136862 | CK50: =IFERROR(CK47/CK55," ") -> 0.7774370208 | CO50: =IFERROR(CO47/CO55," ") -> 0.6313199105 | CS50: =IFERROR(CS47/CS55," ") -> 0.6965675057 | CW50: =IFERROR(CW47/CW55," ") -> 0.5167486531 | DA50: =IFERROR(DA47/DA55," ") -> 2.629780493 | DF50: =IFERROR(DF47/DF55," ") -> 0.6427150859 | DJ50: =IFERROR(DJ47/DJ55," ") -> 0.6520675801 | DN50: =IFERROR(DN47/DN55," ") -> 0.6911484583 | DR50: =IFERROR(DR47/DR55," ") -> 0.7367316036 | DV50: =IFERROR(DV47/DV55," ") -> 2.721319926 | DZ50: =IFERROR(DZ47/DZ55," ") -> 0.6631287825 | ED50: =IFERROR(ED47/ED55," ") -> 0.6840144322 | EH50: =IFERROR(EH47/EH55," ") -> 0.7202903031 | EL50: =IFERROR(EL47/EL55," ") -> 0.7650938515 | EP50: =IFERROR(EP47/EP55," ") -> 2.832007502 | ET50: =IFERROR(ET47/ET55," ") -> 0.6860601891 | EX50: =IFERROR(EX47/EX55," ") -> 0.7058849641 | FB50: =IFERROR(FB47/FB55," ") -> 0.7456394115 | FF50: =IFERROR(FF47/FF55," ") -> 0.7942791405 | FJ50: =IFERROR(FJ47/FJ55," ") -> 2.931797549 | FN50: =IFERROR(FN47/FN55," ") -> 0.7496450882 | FR50: =IFERROR(FR47/FR55," ") -> 0.7497253941 | FV50: =IFERROR(FV47/FV55," ") -> 0.7819409069 | FZ50: =IFERROR(FZ47/FZ55," ") -> 0.8274385499 | GD50: =IFERROR(GD47/GD55," ") -> 3.108727354 | GH50: =IFERROR(GH47/GH55," ") -> 0.7817194986 | GL50: =IFERROR(GL47/GL55," ") -> 0.7812130414 | GP50: =IFERROR(GP47/GP55," ") -> 0.8150428952 | GT50: =IFERROR(GT47/GT55," ") -> 0.8607071826 | GX50: =IFERROR(GX47/GX55," ") -> 3.238671646 | HB50: =IFERROR(HB47/HB55," ") -> 0.8125809009 | HF50: =IFERROR(HF47/HF55," ") -> 0.8115631471 | HJ50: =IFERROR(HJ47/HJ55," ") -> 0.8469416712 | HN50: =IFERROR(HN47/HN55," ") -> 0.8926773406 | HR50: =IFERROR(HR47/HR55," ") -> 3.363757739 | HV50: =IFERROR(HV47/HV55," ") -> 0.8418877406 | HZ50: =IFERROR(HZ47/HZ55," ") -> 0.8404418135 | ID50: =IFERROR(ID47/ID55," ") -> 0.8772589921 | IH50: =IFERROR(IH47/IH55," ") -> 0.9229292415 | IL50: =IFERROR(IL47/IL55," ") -> 3.482515214 | IP50: =IFERROR(IP47/IP55," ") -> 0.8526921552 | IT50: =IFERROR(IT47/IT55," ") -> 0.8513645082 | IX50: =IFERROR(IX47/IX55," ") -> 0.8884532698 | JB50: =IFERROR(JB47/JB55," ") -> 0.9347144527 | JF50: =IFERROR(JF47/JF55," ") -> 3.527223146 | JJ50: =IFERROR(JJ47/JJ55," ") -> 0.8652800833 | JN50: =IFERROR(JN47/JN55," ") -> 0.8636190408 | JR50: =IFERROR(JR47/JR55," ") -> 0.9012650471 | JV50: =IFERROR(JV47/JV55," ") -> 0.9482187778 | JZ50: =IFERROR(JZ47/JZ55," ") -> 3.578382352 | KD50: =IFERROR(KD47/KD55," ") -> 0.8782823091 | KH50: =IFERROR(KH47/KH55," ") -> 0.8762871093 | KL50: =IFERROR(KL47/KL55," ") -> 0.9145086764 | KP50: =IFERROR(KP47/KP55," ") -> 0.9621679964 | KT50: =IFERROR(KT47/KT55," ") -> 3.631245804
A52: Diluted (a) - (i) | I52: =IFERROR(I47/I57," ") -> 0.3545384019 | M52: =IFERROR(M47/M57," ") -> 0.4645348837 | Q52: =IFERROR(Q47/Q57," ") -> 0.4733877234 | U52: =IFERROR(U47/U57," ") -> 0.4519586825 | Y52: =IFERROR(Y47/Y57," ") -> 1.745239021 | AC52: =IFERROR(AC47/AC57," ") -> 0.4752591434 | AG52: =IFERROR(AG47/AG57," ") -> 0.6174220129 | AK52: =IFERROR(AK47/AK57," ") -> 0.4637709773 | AO52: =IFERROR(AO47/AO57," ") -> 0.5551608447 | AS52: =IFERROR(AS47/AS57," ") -> 2.110652516 | AW52: =IFERROR(AW47/AW57," ") -> 0.4583497829 | BA52: =IFERROR(BA47/BA57," ") -> 0.4658730159 | BE52: =IFERROR(BE47/BE57," ") -> 0.4985133796 | BI52: =IFERROR(BI47/BI57," ") -> 0.4821961408 | BM52: =IFERROR(BM47/BM57," ") -> 1.903149138 | BQ52: =IFERROR(BQ47/BQ57," ") -> 0.4793752503 | BU52: =IFERROR(BU47/BU57," ") -> -1.782696994 | BY52: =IFERROR(BY47/BY57," ") -> 0.5555326177 | CC52: =IFERROR(CC47/CC57," ") -> 0.8053790767 | CG52: =IFERROR(CG47/CG57," ") -> 0.0225363655 | CK52: =IFERROR(CK47/CK57," ") -> 0.7691807542 | CO52: =IFERROR(CO47/CO57," ") -> 0.6264150943 | CS52: =IFERROR(CS47/CS57," ") -> 0.6894677237 | CW52: =IFERROR(CW47/CW57," ") -> 0.512189459 | DA52: =IFERROR(DA47/DA57," ") -> 2.609701325 | DF52: =IFERROR(DF47/DF57," ") -> 0.6376482759 | DJ52: =IFERROR(DJ47/DJ57," ") -> 0.6469270402 | DN52: =IFERROR(DN47/DN57," ") -> 0.6856998264 | DR52: =IFERROR(DR47/DR57," ") -> 0.7309236194 | DV52: =IFERROR(DV47/DV57," ") -> 2.699866546 | DZ52: =IFERROR(DZ47/DZ57," ") -> 0.6579010423 | ED52: =IFERROR(ED47/ED57," ") -> 0.678622041 | EH52: =IFERROR(EH47/EH57," ") -> 0.714611933 | EL52: =IFERROR(EL47/EL57," ") -> 0.7590622751 | EP52: =IFERROR(EP47/EP57," ") -> 2.809681523 | ET52: =IFERROR(ET47/ET57," ") -> 0.6806516703 | EX52: =IFERROR(EX47/EX57," ") -> 0.7003201577 | FB52: =IFERROR(FB47/FB57," ") -> 0.7397612031 | FF52: =IFERROR(FF47/FF57," ") -> 0.7880174834 | FJ52: =IFERROR(FJ47/FJ57," ") -> 2.908684879 | FN52: =IFERROR(FN47/FN57," ") -> 0.7437353012 | FR52: =IFERROR(FR47/FR57," ") -> 0.743814974 | FV52: =IFERROR(FV47/FV57," ") -> 0.7757765176 | FZ52: =IFERROR(FZ47/FZ57," ") -> 0.8209154823 | GD52: =IFERROR(GD47/GD57," ") -> 3.084219868 | GH52: =IFERROR(GH47/GH57," ") -> 0.7755568548 | GL52: =IFERROR(GL47/GL57," ") -> 0.7750543902 | GP52: =IFERROR(GP47/GP57," ") -> 0.8086175481 | GT52: =IFERROR(GT47/GT57," ") -> 0.8539218436 | GX52: =IFERROR(GX47/GX57," ") -> 3.213139752 | HB52: =IFERROR(HB47/HB57," ") -> 0.8061749629 | HF52: =IFERROR(HF47/HF57," ") -> 0.8051652325 | HJ52: =IFERROR(HJ47/HJ57," ") -> 0.8402648518 | HN52: =IFERROR(HN47/HN57," ") -> 0.8856399665 | HR52: =IFERROR(HR47/HR57," ") -> 3.337239735 | HV52: =IFERROR(HV47/HV57," ") -> 0.8352507636 | HZ52: =IFERROR(HZ47/HZ57," ") -> 0.8338162355 | ID52: =IFERROR(ID47/ID57," ") -> 0.8703431677 | IH52: =IFERROR(IH47/IH57," ") -> 0.9156533781 | IL52: =IFERROR(IL47/IL57," ") -> 3.455060991 | IP52: =IFERROR(IP47/IP57," ") -> 0.8459700022 | IT52: =IFERROR(IT47/IT57," ") -> 0.8446528216 | IX52: =IFERROR(IX47/IX57," ") -> 0.8814491959 | JB52: =IFERROR(JB47/JB57," ") -> 0.9273456813 | JF52: =IFERROR(JF47/JF57," ") -> 3.499416471 | JJ52: =IFERROR(JJ47/JJ57," ") -> 0.8584586941 | JN52: =IFERROR(JN47/JN57," ") -> 0.8568107463 | JR52: =IFERROR(JR47/JR57," ") -> 0.8941599723 | JV52: =IFERROR(JV47/JV57," ") -> 0.9407435458 | JZ52: =IFERROR(JZ47/JZ57," ") -> 3.550172366 | KD52: =IFERROR(KD47/KD57," ") -> 0.8713584175 | KH52: =IFERROR(KH47/KH57," ") -> 0.8693789467 | KL52: =IFERROR(KL47/KL57," ") -> 0.9072991961 | KP52: =IFERROR(KP47/KP57," ") -> 0.9545827965 | KT52: =IFERROR(KT47/KT57," ") -> 3.602619071
A54: Shares used in per-share calculation:
A55: Basic | I55: 5112 | M55: 5117 | Q55: 5102 | U55: 5086 | Y55: 5104 | AC55: 5080 | AG55: 5070 | AK55: 5032 | AO55: 5031 | AS55: 5053 | AW55: 5027 | BA55: 5015 | BE55: 5005 | BI55: 4993 | BM55: 5010 | BQ55: 4959 | BU55: 4924 | BY55: 4791 | CC55: 4672 | CG55: 4837 | CK55: 4565 | CO55: 4470 | CS55: 4370 | CW55: 4269 | DA55: 4419 | DF55: =Ratios!DF55 -> 4218.01019 | DJ55: =Ratios!DJ55 -> 4175.652861 | DN55: =Ratios!DN55 -> 4140.466549 | DR55: =Ratios!DR55 -> 4111.237215 | DV55: =AVERAGE(DF55:DR55) -> 4161.341704 | DZ55: =Ratios!DZ55 -> 4093.251391 | ED55: =Ratios!ED55 -> 4078.310534 | EH55: =Ratios!EH55 -> 4065.899137 | EL55: =Ratios!EL55 -> 4055.588966 | EP55: =AVERAGE(DZ55:EL55) -> 4073.262507 | ET55: =Ratios!ET55 -> 4053.447797 | EX55: =Ratios!EX55 -> 4051.669123 | FB55: =Ratios!FB55 -> 4050.191576 | FF55: =Ratios!FF55 -> 4048.964175 | FJ55: =AVERAGE(ET55:FF55) -> 4051.068168 | FN55: =Ratios!FN55 -> 4047.94457 | FR55: =Ratios!FR55 -> 4047.097583 | FV55: =Ratios!FV55 -> 4046.393989 | FZ55: =Ratios!FZ55 -> 4045.809512 | GD55: =AVERAGE(FN55:FZ55) -> 4046.811413 | GH55: =Ratios!GH55 -> 4045.323986 | GL55: =Ratios!GL55 -> 4044.920659 | GP55: =Ratios!GP55 -> 4044.585614 | GT55: =Ratios!GT55 -> 4044.307292 | GX55: =AVERAGE(GH55:GT55) -> 4044.784388 | HB55: =Ratios!HB55 -> 4044.076089 | HF55: =Ratios!HF55 -> 4043.884028 | HJ55: =Ratios!HJ55 -> 4043.724483 | HN55: =Ratios!HN55 -> 4043.591949 | HR55: =AVERAGE(HB55:HN55) -> 4043.819137 | HV55: =Ratios!HV55 -> 4043.481852 | HZ55: =Ratios!HZ55 -> 4043.390395 | ID55: =Ratios!ID55 -> 4043.314421 | IH55: =Ratios!IH55 -> 4043.251309 | IL55: =AVERAGE(HV55:IH55) -> 4043.359494 | IP55: =Ratios!IP55 -> 4043.198882 | IT55: =Ratios!IT55 -> 4043.155331 | IX55: =Ratios!IX55 -> 4043.119153 | JB55: =Ratios!JB55 -> 4043.0891 | JF55: =AVERAGE(IP55:JB55) -> 4043.140617 | JJ55: =Ratios!JJ55 -> 4043.064135 | JN55: =Ratios!JN55 -> 4043.043396 | JR55: =Ratios!JR55 -> 4043.026168 | JV55: =Ratios!JV55 -> 4043.011857 | JZ55: =AVERAGE(JJ55:JV55) -> 4043.036389 | KD55: =Ratios!KD55 -> 4042.999969 | KH55: =Ratios!KH55 -> 4042.990094 | KL55: =Ratios!KL55 -> 4042.98189 | KP55: =Ratios!KP55 -> 4042.975075 | KT55: =AVERAGE(KD55:KP55) -> 4042.986757
A57: Diluted | I57: 5156 | M57: 5160 | Q57: 5148 | U57: 5131 | Y57: 5146 | AC57: 5113 | AG57: 5097 | AK57: 5065 | AO57: 5067 | AS57: 5088 | AW57: 5066 | BA57: 5040 | BE57: 5045 | BI57: 5027 | BM57: 5049 | BQ57: 4994 | BU57: 4924 | BY57: 4844 | CC57: 4722 | CG57: 4881 | CK57: 4614 | CO57: 4505 | CS57: 4415 | CW57: 4307 | DA57: 4453 | DF57: =Ratios!DF58 -> 4251.526875 | DJ57: =Ratios!DJ58 -> 4208.83297 | DN57: =Ratios!DN58 -> 4173.367065 | DR57: =Ratios!DR58 -> 4143.905472 | DV57: =AVERAGE(DF57:DR57) -> 4194.408096 | DZ57: =Ratios!DZ58 -> 4125.776731 | ED57: =Ratios!ED58 -> 4110.717153 | EH57: =Ratios!EH58 -> 4098.207134 | EL57: =Ratios!EL58 -> 4087.815037 | EP57: =AVERAGE(DZ57:EL57) -> 4105.629014 | ET57: =Ratios!ET58 -> 4085.656854 | EX57: =Ratios!EX58 -> 4083.864047 | FB57: =Ratios!FB58 -> 4082.374759 | FF57: =Ratios!FF58 -> 4081.137605 | FJ57: =AVERAGE(ET57:FF57) -> 4083.258316 | FN57: =Ratios!FN58 -> 4080.109898 | FR57: =Ratios!FR58 -> 4079.256181 | FV57: =Ratios!FV58 -> 4078.546996 | FZ57: =Ratios!FZ58 -> 4077.957875 | GD57: =AVERAGE(FN57:FZ57) -> 4078.967737 | GH57: =Ratios!GH58 -> 4077.468491 | GL57: =Ratios!GL58 -> 4077.061959 | GP57: =Ratios!GP58 -> 4076.724252 | GT57: =Ratios!GT58 -> 4076.443718 | GX57: =AVERAGE(GH57:GT57) -> 4076.924605 | HB57: =Ratios!HB58 -> 4076.210678 | HF57: =Ratios!HF58 -> 4076.017091 | HJ57: =Ratios!HJ58 -> 4075.856278 | HN57: =Ratios!HN58 -> 4075.722691 | HR57: =AVERAGE(HB57:HN57) -> 4075.951684 | HV57: =Ratios!HV58 -> 4075.611719 | HZ57: =Ratios!HZ58 -> 4075.519535 | ID57: =Ratios!ID58 -> 4075.442957 | IH57: =Ratios!IH58 -> 4075.379344 | IL57: =AVERAGE(HV57:IH57) -> 4075.488389 | IP57: =Ratios!IP58 -> 4075.326501 | IT57: =Ratios!IT58 -> 4075.282604 | IX57: =Ratios!IX58 -> 4075.246138 | JB57: =Ratios!JB58 -> 4075.215846 | JF57: =AVERAGE(IP57:JB57) -> 4075.267772 | JJ57: =Ratios!JJ58 -> 4075.190682 | JN57: =Ratios!JN58 -> 4075.169779 | JR57: =Ratios!JR58 -> 4075.152414 | JV57: =Ratios!JV58 -> 4075.13799 | JZ57: =AVERAGE(JJ57:JV57) -> 4075.162716 | KD57: =Ratios!KD58 -> 4075.126007 | KH57: =Ratios!KH58 -> 4075.116053 | KL57: =Ratios!KL58 -> 4075.107784 | KP57: =Ratios!KP58 -> 4075.100915 | KT57: =AVERAGE(KD57:KP57) -> 4075.11269
A58: Cash dividends declared per common share | I58: 0.19 | M58: 0.19 | Q58: 0.21 | U58: 0.21 | Y58: =Q58+M58+I58+U58 -> 0.8 | AC58: 0.21 | AG58: 0.21 | AK58: 0.26 | AO58: 0.26 | AS58: =AC58+AG58+AK58+AO58 -> 0.94 | AW58: 0.26 | BA58: 0.26 | BE58: 0.29 | BI58: 0.29 | BM58: =AW58+BA58+BE58+BI58 -> 1.1 | BQ58: 0.29 | BU58: 0.29 | BY58: 0.33 | CC58: 0.33 | CG58: =BQ58+BU58+BY58+CC58 -> 1.24 | CK58: 0.33 | CO58: 0.33 | CS58: 0.35 | CW58: 0.35 | DA58: =CK58+CO58+CS58+CW58 -> 1.36 | DF58: =CW58 -> 0.35 | DJ58: =DF58 -> 0.35 | DN58: =DJ58*(1+Ratios!EH46) -> 0.402208979 | DR58: =DN58 -> 0.402208979 | DV58: =DF58+DJ58+DN58+DR58 -> 1.504417958 | DZ58: =DR58 -> 0.402208979 | ED58: =DZ58 -> 0.402208979 | EH58: =ED58*(1+Ratios!FB46) -> 0.4622058937 | EL58: =EH58 -> 0.4622058937 | EP58: =DZ58+ED58+EH58+EL58 -> 1.728829745 | ET58: =EL58 -> 0.4622058937 | EX58: =ET58 -> 0.4622058937 | FB58: =EX58*(1+Ratios!FV46) -> 0.5311524589 | FF58: =FB58 -> 0.5311524589 | FJ58: =ET58+EX58+FB58+FF58 -> 1.986716705 | FN58: =FF58 -> 0.5311524589 | FR58: =FN58 -> 0.5311524589 | FV58: =FR58*(1+Ratios!GP46) -> 0.6103836805 | FZ58: =FV58 -> 0.6103836805 | GD58: =FN58+FR58+FV58+FZ58 -> 2.283072279 | GH58: =FZ58 -> 0.6103836805 | GL58: =GH58 -> 0.6103836805 | GP58: =GL58*(1+Ratios!HJ46) -> 0.7014337056 | GT58: =GP58 -> 0.7014337056 | GX58: =GH58+GL58+GP58+GT58 -> 2.623634772 | HB58: =GT58 -> 0.7014337056 | HF58: =HB58 -> 0.7014337056 | HJ58: =HF58*(1+Ratios!ID46) -> 0.8060655273 | HN58: =HJ58 -> 0.8060655273 | HR58: =HB58+HF58+HJ58+HN58 -> 3.014998466 | HV58: =HN58 -> 0.8060655273 | HZ58: =HV58 -> 0.8060655273 | ID58: =HZ58*(1+Ratios!IX46) -> 0.9263051222 | IH58: =ID58 -> 0.9263051222 | IL58: =HV58+HZ58+ID58+IH58 -> 3.464741299 | IP58: =IH58 -> 0.9263051222 | IT58: =IP58 -> 0.9263051222 | IX58: =IT58*(1+Ratios!JR46) -> 1.064480678 | JB58: =IX58 -> 1.064480678 | JF58: =IP58+IT58+IX58+JB58 -> 3.981571601 | JJ58: =JB58 -> 1.064480678 | JN58: =JJ58 -> 1.064480678 | JR58: =JN58*(1+Ratios!KL46) -> 1.223267677 | JV58: =JR58 -> 1.223267677 | JZ58: =JJ58+JN58+JR58+JV58 -> 4.57549671 | KD58: =JV58 -> 1.223267677 | KH58: =KD58 -> 1.223267677 | KL58: =KH58*(1+Ratios!LF46) -> 1.223267677 | KP58: =KL58 -> 1.223267677 | KT58: =KD58+KH58+KL58+KP58 -> 4.893070707
A61: *Includes the results of the SP Video Software Solutions business prior to its divestiture on October 28, 2018.
A64: Balance Sheet | G64: x
A66: ASSETS
A67: Current assets:
A68: Cash and cash equivalents | I68: 4387 | M68: 4797 | Q68: 3870 | U68: 6877 | Y68: 6877 | AC68: 5758 | AG68: 6314 | AK68: 8895 | AO68: 7631 | AS68: 7631 | AW68: 8583 | BA68: 10898 | BE68: 8116 | BI68: 11708 | BM68: 11708 | BQ68: 11043 | BU68: 17624 | BY68: 6719 | CC68: 8934 | CG68: 8934 | CK68: 8410 | CO68: 9835 | CS68: 10251 | CW68: 11750 | DA68: 11750 | DF68: =DF173 -> 5598.19237 | DJ68: =DJ173 -> 7220.312408 | DN68: =DN173 -> 5352.31263 | DR68: =DR173 -> 3902.930995 | DV68: =DR68 -> 3902.930995 | DZ68: =DZ173 -> 325.5717546 | ED68: =ED173 -> 2647.585824 | EH68: =EH173 -> 1420.171103 | EL68: =EL173 -> 646.5414044 | EP68: =EL68 -> 646.5414044 | ET68: =ET173 -> -1540.68357 | EX68: =EX173 -> 2374.10792 | FB68: =FB173 -> 2687.932385 | FF68: =FF173 -> 3506.510802 | FJ68: =FF68 -> 3506.510802 | FN68: =FN173 -> 1401.542981 | FR68: =FR173 -> 5430.621646 | FV68: =FV173 -> 5542.995887 | FZ68: =FZ173 -> 6216.117001 | GD68: =FZ68 -> 6216.117001 | GH68: =GH173 -> 3845.957285 | GL68: =GL173 -> 7876.127392 | GP68: =GP173 -> 7781.766267 | GT68: =GT173 -> 8256.44852 | GX68: =GT68 -> 8256.44852 | HB68: =HB173 -> 5793.483273 | HF68: =HF173 -> 9942.958824 | HJ68: =HJ173 -> 9734.112249 | HN68: =HN173 -> 10087.37181 | HR68: =HN68 -> 10087.37181 | HV68: =HV173 -> 7109.370904 | HZ68: =HZ173 -> 11016.42544 | ID68: =ID173 -> 10373.67382 | IH68: =IH173 -> 10313.49929 | IL68: =IH68 -> 10313.49929 | IP68: =IP173 -> 6679.485532 | IT68: =IT173 -> 10161.33431 | IX68: =IX173 -> 8976.264683 | JB68: =JB173 -> 8384.660294 | JF68: =JB68 -> 8384.660294 | JJ68: =JJ173 -> 4194.728325 | JN68: =JN173 -> 7210.528294 | JR68: =JR173 -> 5422.551329 | JV68: =JV173 -> 4239.043243 | JZ68: =JV68 -> 4239.043243 | KD68: =KD173 -> -591.1518564 | KH68: =KH173 -> 1888.582882 | KL68: =KL173 -> 149.3431331 | KP68: =KP173 -> -975.5204825 | KT68: =KP68 -> -975.5204825
A69: Investments | I69: 47720 | M69: 48225 | Q69: 50549 | U69: 53539 | Y69: 53539 | AC69: 53349 | AG69: 54061 | AK69: 54617 | AO69: 58125 | AS69: 58125 | AW69: 62385 | BA69: 60947 | BE69: 59858 | BI69: 58784 | BM69: 58784 | BQ69: 60545 | BU69: 56059 | BY69: 47712 | CC69: 37614 | CG69: 37614 | CK69: 34183 | CO69: =30486+62 -> 30548 | CS69: =24387+5 -> 24392 | CW69: 21663 | DA69: 21663 | DF69: =CW69 -> 21663 | DJ69: =DF69 -> 21663 | DN69: =DJ69 -> 21663 | DR69: =DN69 -> 21663 | DV69: =DR69 -> 21663 | DZ69: =DR69 -> 21663 | ED69: =DZ69 -> 21663 | EH69: =ED69 -> 21663 | EL69: =EH69 -> 21663 | EP69: =EL69 -> 21663 | ET69: =EL69 -> 21663 | EX69: =ET69 -> 21663 | FB69: =EX69 -> 21663 | FF69: =FB69 -> 21663 | FJ69: =FF69 -> 21663 | FN69: =FF69 -> 21663 | FR69: =FN69 -> 21663 | FV69: =FR69 -> 21663 | FZ69: =FV69 -> 21663 | GD69: =FZ69 -> 21663 | GH69: =FZ69 -> 21663 | GL69: =GH69 -> 21663 | GP69: =GL69 -> 21663 | GT69: =GP69 -> 21663 | GX69: =GT69 -> 21663 | HB69: =GT69 -> 21663 | HF69: =HB69 -> 21663 | HJ69: =HF69 -> 21663 | HN69: =HJ69 -> 21663 | HR69: =HN69 -> 21663 | HV69: =HN69 -> 21663 | HZ69: =HV69 -> 21663 | ID69: =HZ69 -> 21663 | IH69: =ID69 -> 21663 | IL69: =IH69 -> 21663 | IP69: =IH69 -> 21663 | IT69: =IP69 -> 21663 | IX69: =IT69 -> 21663 | JB69: =IX69 -> 21663 | JF69: =JB69 -> 21663 | JJ69: =JB69 -> 21663 | JN69: =JJ69 -> 21663 | JR69: =JN69 -> 21663 | JV69: =JR69 -> 21663 | JZ69: =JV69 -> 21663 | KD69: =JV69 -> 21663 | KH69: =KD69 -> 21663 | KL69: =KH69 -> 21663 | KP69: =KL69 -> 21663 | KT69: =KP69 -> 21663
A70: Accounts receivable, net | I70: 4375 | M70: 4541 | Q70: 4889 | U70: 5344 | Y70: 5344 | AC70: 4712 | AG70: 4302 | AK70: 4047 | AO70: 5847 | AS70: 5847 | AW70: 4805 | BA70: 4458 | BE70: 4635 | BI70: 5146 | BM70: 5146 | BQ70: 4206 | BU70: 3963 | BY70: 4274 | CC70: 5554 | CG70: 5554 | CK70: 4536 | CO70: 3745 | CS70: 3795 | CW70: 5491 | DA70: 5491 | DF70: =(DF14*Ratios!DF15)/Ratios!DF11 -> 4675.270253 | DJ70: =(DJ14*Ratios!DJ15)/Ratios!DJ11 -> 4465.683542 | DN70: =(DN14*Ratios!DN15)/Ratios!DN11 -> 4633.287147 | DR70: =(DR14*Ratios!DR15)/Ratios!DR11 -> 5897.269286 | DV70: =DR70 -> 5897.269286 | DZ70: =(DZ14*Ratios!DZ15)/Ratios!DZ11 -> 4804.895336 | ED70: =(ED14*Ratios!ED15)/Ratios!ED11 -> 4575.834881 | EH70: =(EH14*Ratios!EH15)/Ratios!EH11 -> 4740.42731 | EL70: =(EL14*Ratios!EL15)/Ratios!EL11 -> 6045.03538 | EP70: =EL70 -> 6045.03538 | ET70: =(ET14*Ratios!ET15)/Ratios!ET11 -> 4918.818587 | EX70: =(EX14*Ratios!EX15)/Ratios!EX11 -> 4692.056728 | FB70: =(FB14*Ratios!FB15)/Ratios!FB11 -> 4888.200798 | FF70: =(FF14*Ratios!FF15)/Ratios!FF11 -> 6275.365446 | FJ70: =FF70 -> 6275.365446 | FN70: =(FN14*Ratios!FN15)/Ratios!FN11 -> 5366.471826 | FR70: =(FR14*Ratios!FR15)/Ratios!FR11 -> 4989.393156 | FV70: =(FV14*Ratios!FV15)/Ratios!FV11 -> 5122.680335 | FZ70: =(FZ14*Ratios!FZ15)/Ratios!FZ11 -> 6551.198337 | GD70: =FZ70 -> 6551.198337 | GH70: =(GH14*Ratios!GH15)/Ratios!GH11 -> 5587.869213 | GL70: =(GL14*Ratios!GL15)/Ratios!GL11 -> 5199.848596 | GP70: =(GP14*Ratios!GP15)/Ratios!GP11 -> 5337.08518 | GT70: =(GT14*Ratios!GT15)/Ratios!GT11 -> 6820.7019 | GX70: =GT70 -> 6820.7019 | HB70: =(HB14*Ratios!HB15)/Ratios!HB11 -> 5801.866566 | HF70: =(HF14*Ratios!HF15)/Ratios!HF11 -> 5403.140503 | HJ70: =(HJ14*Ratios!HJ15)/Ratios!HJ11 -> 5544.225825 | HN70: =(HN14*Ratios!HN15)/Ratios!HN11 -> 7079.828911 | HR70: =HN70 -> 7079.828911 | HV70: =(HV14*Ratios!HV15)/Ratios!HV11 -> 6005.126145 | HZ70: =(HZ14*Ratios!HZ15)/Ratios!HZ11 -> 5596.175276 | ID70: =(ID14*Ratios!ID15)/Ratios!ID11 -> 5740.964968 | IH70: =(IH14*Ratios!IH15)/Ratios!IH11 -> 7324.319069 | IL70: =IH70 -> 7324.319069 | IP70: =(IP14*Ratios!IP15)/Ratios!IP11 -> 6074.369167 | IT70: =(IT14*Ratios!IT15)/Ratios!IT11 -> 5661.103835 | IX70: =(IX14*Ratios!IX15)/Ratios!IX11 -> 5808.505618 | JB70: =(JB14*Ratios!JB15)/Ratios!JB11 -> 7410.26886 | JF70: =JB70 -> 7410.26886 | JJ70: =(JJ14*Ratios!JJ15)/Ratios!JJ11 -> 6158.65853 | JN70: =(JN14*Ratios!JN15)/Ratios!JN11 -> 5738.466769 | JR70: =(JR14*Ratios!JR15)/Ratios!JR11 -> 5888.834011 | JV70: =(JV14*Ratios!JV15)/Ratios!JV11 -> 7514.361712 | JZ70: =JV70 -> 7514.361712 | KD70: =(KD14*Ratios!KD15)/Ratios!KD11 -> 6245.853407 | KH70: =(KH14*Ratios!KH15)/Ratios!KH11 -> 5818.568388 | KL70: =(KL14*Ratios!KL15)/Ratios!KL11 -> 5971.967632 | KP70: =(KP14*Ratios!KP15)/Ratios!KP11 -> 7622.000814 | KT70: =KP70 -> 7622.000814
A71: Inventories | I71: 1676 | M71: 1890 | Q71: 1760 | U71: 1627 | Y71: 1627 | AC71: 1482 | AG71: 1362 | AK71: 1343 | AO71: 1217 | AS71: 1217 | AW71: 1176 | BA71: 1264 | BE71: 1366 | BI71: 1616 | BM71: 1616 | BQ71: 1693 | BU71: 1896 | BY71: 1900 | CC71: 1846 | CG71: 1846 | CK71: 1572 | CO71: 1701 | CS71: 1513 | CW71: 1383 | DA71: 1383 | DF71: =(DF14*Ratios!DF16)/Ratios!DF11 -> 1569.601563 | DJ71: =(DJ14*Ratios!DJ16)/Ratios!DJ11 -> 1665.142375 | DN71: =(DN14*Ratios!DN16)/Ratios!DN11 -> 1705.944199 | DR71: =(DR14*Ratios!DR16)/Ratios!DR11 -> 1676.837394 | DV71: =DR71 -> 1676.837394 | DZ71: =(DZ14*Ratios!DZ16)/Ratios!DZ11 -> 1613.119845 | ED71: =(ED14*Ratios!ED16)/Ratios!ED11 -> 1706.21507 | EH71: =(EH14*Ratios!EH16)/Ratios!EH11 -> 1745.392465 | EL71: =(EL14*Ratios!EL16)/Ratios!EL11 -> 1718.853402 | EP71: =EL71 -> 1718.853402 | ET71: =(ET14*Ratios!ET16)/Ratios!ET11 -> 1651.366643 | EX71: =(EX14*Ratios!EX16)/Ratios!EX11 -> 1749.551308 | FB71: =(FB14*Ratios!FB16)/Ratios!FB11 -> 1799.801638 | FF71: =(FF14*Ratios!FF16)/Ratios!FF11 -> 1784.345759 | FJ71: =FF71 -> 1784.345759 | FN71: =(FN14*Ratios!FN16)/Ratios!FN11 -> 1801.654687 | FR71: =(FR14*Ratios!FR16)/Ratios!FR11 -> 1860.42067 | FV71: =(FV14*Ratios!FV16)/Ratios!FV11 -> 1886.135378 | FZ71: =(FZ14*Ratios!FZ16)/Ratios!FZ11 -> 1862.77645 | GD71: =FZ71 -> 1862.77645 | GH71: =(GH14*Ratios!GH16)/Ratios!GH11 -> 1875.983157 | GL71: =(GL14*Ratios!GL16)/Ratios!GL11 -> 1938.894272 | GP71: =(GP14*Ratios!GP16)/Ratios!GP11 -> 1965.077755 | GT71: =(GT14*Ratios!GT16)/Ratios!GT11 -> 1939.407452 | GX71: =GT71 -> 1939.407452 | HB71: =(HB14*Ratios!HB16)/Ratios!HB11 -> 1947.827256 | HF71: =(HF14*Ratios!HF16)/Ratios!HF11 -> 2014.69677 | HJ71: =(HJ14*Ratios!HJ16)/Ratios!HJ11 -> 2041.345504 | HN71: =(HN14*Ratios!HN16)/Ratios!HN11 -> 2013.087971 | HR71: =HN71 -> 2013.087971 | HV71: =(HV14*Ratios!HV16)/Ratios!HV11 -> 2016.066424 | HZ71: =(HZ14*Ratios!HZ16)/Ratios!HZ11 -> 2086.674638 | ID71: =(ID14*Ratios!ID16)/Ratios!ID11 -> 2113.783492 | IH71: =(IH14*Ratios!IH16)/Ratios!IH11 -> 2082.606628 | IL71: =IH71 -> 2082.606628 | IP71: =(IP14*Ratios!IP16)/Ratios!IP11 -> 2039.312985 | IT71: =(IT14*Ratios!IT16)/Ratios!IT11 -> 2110.884883 | IX71: =(IX14*Ratios!IX16)/Ratios!IX11 -> 2138.651491 | JB71: =(JB14*Ratios!JB16)/Ratios!JB11 -> 2107.045706 | JF71: =JB71 -> 2107.045706 | JJ71: =(JJ14*Ratios!JJ16)/Ratios!JJ11 -> 2067.610968 | JN71: =(JN14*Ratios!JN16)/Ratios!JN11 -> 2139.731598 | JR71: =(JR14*Ratios!JR16)/Ratios!JR11 -> 2168.227849 | JV71: =(JV14*Ratios!JV16)/Ratios!JV11 -> 2136.643606 | JZ71: =JV71 -> 2136.643606 | KD71: =(KD14*Ratios!KD16)/Ratios!KD11 -> 2096.884402 | KH71: =(KH14*Ratios!KH16)/Ratios!KH11 -> 2169.5995 | KL71: =(KL14*Ratios!KL16)/Ratios!KL11 -> 2198.837072 | KP71: =(KP14*Ratios!KP16)/Ratios!KP11 -> 2167.249851 | KT71: =KP71 -> 2167.249851
A72: Financing receivables, net | I72: 4265 | M72: 4210 | Q72: 4248 | U72: 4491 | Y72: 4491 | AC72: 4506 | AG72: 4514 | AK72: 4716 | AO72: 4272 | AS72: 4272 | AW72: 4541 | BA72: 4496 | BE72: 4639 | BI72: 4856 | BM72: 4856 | BQ72: 5038 | BU72: 4925 | BY72: 4868 | CC72: 4949 | CG72: 4949 | CK72: 4851 | CO72: 5057 | CS72: 5029 | CW72: 5095 | DA72: 5095 | DF72: =(DF14*Ratios!DF13)/Ratios!DF11 -> 4794.135261 | DJ72: =(DJ14*Ratios!DJ13)/Ratios!DJ11 -> 4921.457444 | DN72: =(DN14*Ratios!DN13)/Ratios!DN11 -> 5017.182536 | DR72: =(DR14*Ratios!DR13)/Ratios!DR11 -> 5095.453373 | DV72: =DR72 -> 5095.453373 | DZ72: =(DZ14*Ratios!DZ13)/Ratios!DZ11 -> 4927.055958 | ED72: =(ED14*Ratios!ED13)/Ratios!ED11 -> 5042.850982 | EH72: =(EH14*Ratios!EH13)/Ratios!EH11 -> 5133.199899 | EL72: =(EL14*Ratios!EL13)/Ratios!EL11 -> 5223.128608 | EP72: =EL72 -> 5223.128608 | ET72: =(ET14*Ratios!ET13)/Ratios!ET11 -> 5043.875617 | EX72: =(EX14*Ratios!EX13)/Ratios!EX11 -> 5170.934593 | FB72: =(FB14*Ratios!FB13)/Ratios!FB11 -> 5293.2173 | FF72: =(FF14*Ratios!FF13)/Ratios!FF11 -> 5422.142093 | FJ72: =FF72 -> 5422.142093 | FN72: =(FN14*Ratios!FN13)/Ratios!FN11 -> 5502.910081 | FR72: =(FR14*Ratios!FR13)/Ratios!FR11 -> 5498.617592 | FV72: =(FV14*Ratios!FV13)/Ratios!FV11 -> 5547.124861 | FZ72: =(FZ14*Ratios!FZ13)/Ratios!FZ11 -> 5660.47166 | GD72: =FZ72 -> 5660.47166 | GH72: =(GH14*Ratios!GH13)/Ratios!GH11 -> 5729.93632 | GL72: =(GL14*Ratios!GL13)/Ratios!GL11 -> 5730.552409 | GP72: =(GP14*Ratios!GP13)/Ratios!GP11 -> 5779.294421 | GT72: =(GT14*Ratios!GT13)/Ratios!GT11 -> 5893.332459 | GX72: =GT72 -> 5893.332459 | HB72: =(HB14*Ratios!HB13)/Ratios!HB11 -> 5949.374385 | HF72: =(HF14*Ratios!HF13)/Ratios!HF11 -> 5954.592572 | HJ72: =(HJ14*Ratios!HJ13)/Ratios!HJ11 -> 6003.597901 | HN72: =(HN14*Ratios!HN13)/Ratios!HN11 -> 6117.227542 | HR72: =HN72 -> 6117.227542 | HV72: =(HV14*Ratios!HV13)/Ratios!HV11 -> 6157.801676 | HZ72: =(HZ14*Ratios!HZ13)/Ratios!HZ11 -> 6167.328743 | ID72: =(ID14*Ratios!ID13)/Ratios!ID11 -> 6216.638051 | IH72: =(IH14*Ratios!IH13)/Ratios!IH11 -> 6328.475858 | IL72: =IH72 -> 6328.475858 | IP72: =(IP14*Ratios!IP13)/Ratios!IP11 -> 6228.805147 | IT72: =(IT14*Ratios!IT13)/Ratios!IT11 -> 6238.884002 | IX72: =(IX14*Ratios!IX13)/Ratios!IX11 -> 6289.774846 | JB72: =(JB14*Ratios!JB13)/Ratios!JB11 -> 6402.739577 | JF72: =JB72 -> 6402.739577 | JJ72: =(JJ14*Ratios!JJ13)/Ratios!JJ11 -> 6315.237499 | JN72: =(JN14*Ratios!JN13)/Ratios!JN11 -> 6324.142705 | JR72: =(JR14*Ratios!JR13)/Ratios!JR11 -> 6376.758924 | JV72: =(JV14*Ratios!JV13)/Ratios!JV11 -> 6492.679556 | JZ72: =JV72 -> 6492.679556 | KD72: =(KD14*Ratios!KD13)/Ratios!KD11 -> 6404.649236 | KH72: =(KH14*Ratios!KH13)/Ratios!KH11 -> 6412.419607 | KL72: =(KL14*Ratios!KL13)/Ratios!KL11 -> 6466.78066 | KP72: =(KP14*Ratios!KP13)/Ratios!KP11 -> 6585.683623 | KT72: =KP72 -> 6585.683623
B73: Deferred tax assets* | I73: 2689 | M73: 2654 | Q73: 2539 | U73: 0 | Y73: 0
A74: Other current assets | I74: 1283 | M74: 1564 | Q74: 1474 | U74: 1490 | Y74: 1490 | AC74: 1433 | AG74: 1618 | AK74: 2230 | AO74: 1627 | AS74: 1627 | AW74: 1651 | BA74: 1329 | BE74: 1348 | BI74: 1593 | BM74: 1593 | BQ74: 1555 | BU74: 1583 | BY74: 1668 | CC74: 2940 | CG74: 2940 | CK74: 2134 | CO74: 2231 | CS74: 2331 | CW74: 2373 | DA74: 2373 | DF74: =CW74 -> 2373 | DJ74: =DF74 -> 2373 | DN74: =DJ74 -> 2373 | DR74: =DN74 -> 2373 | DV74: =DR74 -> 2373 | DZ74: =DR74 -> 2373 | ED74: =DZ74 -> 2373 | EH74: =ED74 -> 2373 | EL74: =EH74 -> 2373 | EP74: =EL74 -> 2373 | ET74: =EL74 -> 2373 | EX74: =ET74 -> 2373 | FB74: =EX74 -> 2373 | FF74: =FB74 -> 2373 | FJ74: =FF74 -> 2373 | FN74: =FF74 -> 2373 | FR74: =FN74 -> 2373 | FV74: =FR74 -> 2373 | FZ74: =FV74 -> 2373 | GD74: =FZ74 -> 2373 | GH74: =FZ74 -> 2373 | GL74: =GH74 -> 2373 | GP74: =GL74 -> 2373 | GT74: =GP74 -> 2373 | GX74: =GT74 -> 2373 | HB74: =GT74 -> 2373 | HF74: =HB74 -> 2373 | HJ74: =HF74 -> 2373 | HN74: =HJ74 -> 2373 | HR74: =HN74 -> 2373 | HV74: =HN74 -> 2373 | HZ74: =HV74 -> 2373 | ID74: =HZ74 -> 2373 | IH74: =ID74 -> 2373 | IL74: =IH74 -> 2373 | IP74: =IH74 -> 2373 | IT74: =IP74 -> 2373 | IX74: =IT74 -> 2373 | JB74: =IX74 -> 2373 | JF74: =JB74 -> 2373 | JJ74: =JB74 -> 2373 | JN74: =JJ74 -> 2373 | JR74: =JN74 -> 2373 | JV74: =JR74 -> 2373 | JZ74: =JV74 -> 2373 | KD74: =JV74 -> 2373 | KH74: =KD74 -> 2373 | KL74: =KH74 -> 2373 | KP74: =KL74 -> 2373 | KT74: =KP74 -> 2373
A75: Total current assets | I75: =SUM(I68:I74) -> 66395 | M75: =SUM(M68:M74) -> 67881 | Q75: =SUM(Q68:Q74) -> 69329 | U75: =SUM(U68:U74) -> 73368 | Y75: =SUM(Y68:Y74) -> 73368 | AC75: =SUM(AC68:AC74) -> 71240 | AG75: =SUM(AG68:AG74) -> 72171 | AK75: =SUM(AK68:AK74) -> 75848 | AO75: =SUM(AO68:AO74) -> 78719 | AS75: =SUM(AS68:AS74) -> 78719 | AW75: =SUM(AW68:AW74) -> 83141 | BA75: =SUM(BA68:BA74) -> 83392 | BE75: =SUM(BE68:BE74) -> 79962 | BI75: =SUM(BI68:BI74) -> 83703 | BM75: =SUM(BM68:BM74) -> 83703 | BQ75: =SUM(BQ68:BQ74) -> 84080 | BU75: =SUM(BU68:BU74) -> 86050 | BY75: =SUM(BY68:BY74) -> 67141 | CC75: =SUM(CC68:CC74) -> 61837 | CG75: =SUM(CG68:CG74) -> 61837 | CK75: =SUM(CK68:CK74) -> 55686 | CO75: =SUM(CO68:CO74) -> 53117 | CS75: =SUM(CS68:CS74) -> 47311 | CW75: =SUM(CW68:CW74) -> 47755 | DA75: =SUM(DA68:DA74) -> 47755 | DF75: =SUM(DF68:DF74) -> 40673.19945 | DJ75: =SUM(DJ68:DJ74) -> 42308.59577 | DN75: =SUM(DN68:DN74) -> 40744.72651 | DR75: =SUM(DR68:DR74) -> 40608.49105 | DV75: =SUM(DV68:DV74) -> 40608.49105 | DZ75: =SUM(DZ68:DZ74) -> 35706.64289 | ED75: =SUM(ED68:ED74) -> 38008.48676 | EH75: =SUM(EH68:EH74) -> 37075.19078 | EL75: =SUM(EL68:EL74) -> 37669.55879 | EP75: =SUM(EP68:EP74) -> 37669.55879 | ET75: =SUM(ET68:ET74) -> 34109.37728 | EX75: =SUM(EX68:EX74) -> 38022.65055 | FB75: =SUM(FB68:FB74) -> 38705.15212 | FF75: =SUM(FF68:FF74) -> 41024.3641 | FJ75: =SUM(FJ68:FJ74) -> 41024.3641 | FN75: =SUM(FN68:FN74) -> 38108.57957 | FR75: =SUM(FR68:FR74) -> 41815.05307 | FV75: =SUM(FV68:FV74) -> 42134.93646 | FZ75: =SUM(FZ68:FZ74) -> 44326.56345 | GD75: =SUM(GD68:GD74) -> 44326.56345 | GH75: =SUM(GH68:GH74) -> 41075.74597 | GL75: =SUM(GL68:GL74) -> 44781.42267 | GP75: =SUM(GP68:GP74) -> 44899.22362 | GT75: =SUM(GT68:GT74) -> 46945.89033 | GX75: =SUM(GX68:GX74) -> 46945.89033 | HB75: =SUM(HB68:HB74) -> 43528.55148 | HF75: =SUM(HF68:HF74) -> 47351.38867 | HJ75: =SUM(HJ68:HJ74) -> 47359.28148 | HN75: =SUM(HN68:HN74) -> 49333.51624 | HR75: =SUM(HR68:HR74) -> 49333.51624 | HV75: =SUM(HV68:HV74) -> 45324.36515 | HZ75: =SUM(HZ68:HZ74) -> 48902.60409 | ID75: =SUM(ID68:ID74) -> 48481.06033 | IH75: =SUM(IH68:IH74) -> 50084.90085 | IL75: =SUM(IL68:IL74) -> 50084.90085 | IP75: =SUM(IP68:IP74) -> 45057.97283 | IT75: =SUM(IT68:IT74) -> 48208.20703 | IX75: =SUM(IX68:IX74) -> 47249.19664 | JB75: =SUM(JB68:JB74) -> 48340.71444 | JF75: =SUM(JF68:JF74) -> 48340.71444 | JJ75: =SUM(JJ68:JJ74) -> 42772.23532 | JN75: =SUM(JN68:JN74) -> 45448.86937 | JR75: =SUM(JR68:JR74) -> 43892.37211 | JV75: =SUM(JV68:JV74) -> 44418.72812 | JZ75: =SUM(JZ68:JZ74) -> 44418.72812 | KD75: =SUM(KD68:KD74) -> 38192.23519 | KH75: =SUM(KH68:KH74) -> 40325.17038 | KL75: =SUM(KL68:KL74) -> 38822.9285 | KP75: =SUM(KP68:KP74) -> 39435.41381 | KT75: =SUM(KT68:KT74) -> 39435.41381
A76: Property and equipment, net | I76: 3233 | M76: 3212 | Q76: 3276 | U76: 3332 | Y76: 3332 | AC76: 3346 | AG76: 3386 | AK76: 3529 | AO76: 3506 | AS76: 3506 | AW76: 3499 | BA76: 3422 | BE76: 3395 | BI76: 3322 | BM76: 3322 | BQ76: 3202 | BU76: 3113 | BY76: 3082 | CC76: 3006 | CG76: 3006 | CK76: 2956 | CO76: 2931 | CS76: 2834 | CW76: 2789 | DA76: 2789 | DF76: =DA76-DF120-DF121-DF118 -> 2555.403522 | DJ76: =DF76-DJ120-DJ121-DJ118 -> 2356.749901 | DN76: =DJ76-DN120-DN121-DN118 -> 2199.206932 | DR76: =DN76-DR120-DR121-DR118 -> 2078.975429 | DV76: =DR76 -> 2078.975429 | DZ76: =DV76-DZ120-DZ121-DZ118 -> 1970.023962 | ED76: =DZ76-ED120-ED121-ED118 -> 1874.453581 | EH76: =ED76-EH120-EH121-EH118 -> 1802.66258 | EL76: =EH76-EL120-EL121-EL118 -> 1754.633903 | EP76: =EL76 -> 1754.633903 | ET76: =EP76-ET120-ET121-ET118 -> 1908.981205 | EX76: =ET76-EX120-EX121-EX118 -> 2029.381846 | FB76: =EX76-FB120-FB121-FB118 -> 2147.107185 | FF76: =FB76-FF120-FF121-FF118 -> 2270.822296 | FJ76: =FF76 -> 2270.822296 | FN76: =FJ76-FN120-FN121-FN118 -> 2379.846369 | FR76: =FN76-FR120-FR121-FR118 -> 2449.607416 | FV76: =FR76-FV120-FV121-FV118 -> 2519.209149 | FZ76: =FV76-FZ120-FZ121-FZ118 -> 2602.111001 | GD76: =FZ76 -> 2602.111001 | GH76: =GD76-GH120-GH121-GH118 -> 2676.06347 | GL76: =GH76-GL120-GL121-GL118 -> 2716.153879 | GP76: =GL76-GP120-GP121-GP118 -> 2761.353559 | GT76: =GP76-GT120-GT121-GT118 -> 2824.59922 | GX76: =GT76 -> 2824.59922 | HB76: =GX76-HB120-HB121-HB118 -> 2640.706747 | HF76: =HB76-HF120-HF121-HF118 -> 2475.481285 | HJ76: =HF76-HJ120-HJ121-HJ118 -> 2344.356037 | HN76: =HJ76-HN120-HN121-HN118 -> 2249.284393 | HR76: =HN76 -> 2249.284393 | HV76: =HR76-HV120-HV121-HV118 -> 2171.239185 | HZ76: =HV76-HZ120-HZ121-HZ118 -> 2094.005031 | ID76: =HZ76-ID120-ID121-ID118 -> 2036.384941 | IH76: =ID76-IH120-IH121-IH118 -> 2002.800561 | IL76: =IH76 -> 2002.800561 | IP76: =IL76-IP120-IP121-IP118 -> 1969.222848 | IT76: =IP76-IT120-IT121-IT118 -> 1928.930652 | IX76: =IT76-IX120-IX121-IX118 -> 1902.225995 | JB76: =IX76-JB120-JB121-JB118 -> 1894.56931 | JF76: =JB76 -> 1894.56931 | JJ76: =JF76-JJ120-JJ121-JJ118 -> 1883.178193 | JN76: =JJ76-JN120-JN121-JN118 -> 1861.146421 | JR76: =JN76-JR120-JR121-JR118 -> 1849.8034 | JV76: =JR76-JV120-JV121-JV118 -> 1855.219307 | JZ76: =JV76 -> 1855.219307 | KD76: =JZ76-KD120-KD121-KD118 -> 1854.687121 | KH76: =KD76-KH120-KH121-KH118 -> 1841.470242 | KL76: =KH76-KL120-KL121-KL118 -> 1837.619422 | KP76: =KL76-KP120-KP121-KP118 -> 1849.554718 | KT76: =KP76 -> 1849.554718
A77: Financing receivables, net | I77: 3691 | M77: 3549 | Q77: 3506 | U77: 3858 | Y77: 3858 | AC77: 4037 | AG77: 3903 | AK77: 3900 | AO77: 4158 | AS77: 4158 | AW77: 4784 | BA77: 4664 | BE77: 4568 | BI77: 4738 | BM77: 4738 | BQ77: 4876 | BU77: 4913 | BY77: 4915 | CC77: 4882 | CG77: 4882 | CK77: 4644 | CO77: 4565 | CS77: 4862 | CW77: 4958 | DA77: 4958 | DF77: =(DF14*Ratios!DF14)/Ratios!DF11 -> 4553.14991 | DJ77: =(DJ14*Ratios!DJ14)/Ratios!DJ11 -> 4584.985672 | DN77: =(DN14*Ratios!DN14)/Ratios!DN11 -> 4638.447461 | DR77: =(DR14*Ratios!DR14)/Ratios!DR11 -> 4865.934019 | DV77: =DR77 -> 4865.934019 | DZ77: =(DZ14*Ratios!DZ14)/Ratios!DZ11 -> 4679.389123 | ED77: =(ED14*Ratios!ED14)/Ratios!ED11 -> 4698.079738 | EH77: =(EH14*Ratios!EH14)/Ratios!EH11 -> 4745.706952 | EL77: =(EL14*Ratios!EL14)/Ratios!EL11 -> 4987.858257 | EP77: 4987.858257 | ET77: =(ET14*Ratios!ET14)/Ratios!ET11 -> 4790.336643 | EX77: =(EX14*Ratios!EX14)/Ratios!EX11 -> 4817.406488 | FB77: =(FB14*Ratios!FB14)/Ratios!FB11 -> 4893.645023 | FF77: =(FF14*Ratios!FF14)/Ratios!FF11 -> 5177.907388 | FJ77: 5177.907388 | FN77: =(FN14*Ratios!FN14)/Ratios!FN11 -> 5226.296961 | FR77: =(FR14*Ratios!FR14)/Ratios!FR11 -> 5122.686352 | FV77: =(FV14*Ratios!FV14)/Ratios!FV11 -> 5128.385711 | FZ77: =(FZ14*Ratios!FZ14)/Ratios!FZ11 -> 5405.50165 | GD77: 5405.50165 | GH77: =(GH14*Ratios!GH14)/Ratios!GH11 -> 5441.91134 | GL77: =(GL14*Ratios!GL14)/Ratios!GL11 -> 5338.764175 | GP77: =(GP14*Ratios!GP14)/Ratios!GP11 -> 5343.029348 | GT77: =(GT14*Ratios!GT14)/Ratios!GT11 -> 5627.873478 | GX77: 5627.873478 | HB77: =(HB14*Ratios!HB14)/Ratios!HB11 -> 5650.318978 | HF77: =(HF14*Ratios!HF14)/Ratios!HF11 -> 5547.487089 | HJ77: =(HJ14*Ratios!HJ14)/Ratios!HJ11 -> 5550.400696 | HN77: =(HN14*Ratios!HN14)/Ratios!HN11 -> 5841.683443 | HR77: 5841.683443 | HV77: =(HV14*Ratios!HV14)/Ratios!HV11 -> 5848.269318 | HZ77: =(HZ14*Ratios!HZ14)/Ratios!HZ11 -> 5745.678846 | ID77: =(ID14*Ratios!ID14)/Ratios!ID11 -> 5747.358956 | IH77: =(IH14*Ratios!IH14)/Ratios!IH11 -> 6043.416299 | IL77: 6043.416299 | IP77: =(IP14*Ratios!IP14)/Ratios!IP11 -> 5915.703678 | IT77: =(IT14*Ratios!IT14)/Ratios!IT11 -> 5812.341992 | IX77: =(IX14*Ratios!IX14)/Ratios!IX11 -> 5814.97483 | JB77: =(JB14*Ratios!JB14)/Ratios!JB11 -> 6114.334887 | JF77: 6114.334887 | JJ77: =(JJ14*Ratios!JJ14)/Ratios!JJ11 -> 5997.791362 | JN77: =(JN14*Ratios!JN14)/Ratios!JN11 -> 5891.7717 | JR77: =(JR14*Ratios!JR14)/Ratios!JR11 -> 5895.392688 | JV77: =(JV14*Ratios!JV14)/Ratios!JV11 -> 6200.223614 | JZ77: 6200.223614 | KD77: =(KD14*Ratios!KD14)/Ratios!KD11 -> 6082.708665 | KH77: =(KH14*Ratios!KH14)/Ratios!KH11 -> 5974.013259 | KL77: =(KL14*Ratios!KL14)/Ratios!KL11 -> 5978.6189 | KP77: =(KP14*Ratios!KP14)/Ratios!KP11 -> 6289.03841 | KT77: 6289.03841
A78: Goodwill | I78: 24364 | M78: 24382 | Q78: 24398 | U78: 24469 | Y78: 24469 | AC78: 24882 | AG78: 24958 | AK78: 26762 | AO78: 26625 | AS78: 26625 | AW78: 26823 | BA78: 26822 | BE78: 29516 | BI78: 29766 | BM78: 29766 | BQ78: 30233 | BU78: 30391 | BY78: 31654 | CC78: 31706 | CG78: 31706 | CK78: 33386 | CO78: 33293 | CS78: 33544 | CW78: 33529 | DA78: 33529 | DF78: =DA78 -> 33529 | DJ78: =DF78 -> 33529 | DN78: =DJ78+2.6 -> 33531.6 | DR78: =DN78 -> 33531.6 | DV78: 33531.6 | DZ78: =DV78 -> 33531.6 | ED78: =DZ78 -> 33531.6 | EH78: =ED78 -> 33531.6 | EL78: =EH78 -> 33531.6 | EP78: 33531.6 | ET78: =EP78 -> 33531.6 | EX78: =ET78 -> 33531.6 | FB78: =EX78 -> 33531.6 | FF78: =FB78 -> 33531.6 | FJ78: 33531.6 | FN78: =FJ78 -> 33531.6 | FR78: =FN78 -> 33531.6 | FV78: =FR78 -> 33531.6 | FZ78: =FV78 -> 33531.6 | GD78: 33531.6 | GH78: =GD78 -> 33531.6 | GL78: =GH78 -> 33531.6 | GP78: =GL78 -> 33531.6 | GT78: =GP78 -> 33531.6 | GX78: 33531.6 | HB78: =GX78 -> 33531.6 | HF78: =HB78 -> 33531.6 | HJ78: =HF78 -> 33531.6 | HN78: =HJ78 -> 33531.6 | HR78: 33531.6 | HV78: =HR78 -> 33531.6 | HZ78: =HV78 -> 33531.6 | ID78: =HZ78 -> 33531.6 | IH78: =ID78 -> 33531.6 | IL78: 33531.6 | IP78: =IL78 -> 33531.6 | IT78: =IP78 -> 33531.6 | IX78: =IT78 -> 33531.6 | JB78: =IX78 -> 33531.6 | JF78: 33531.6 | JJ78: =JF78 -> 33531.6 | JN78: =JJ78 -> 33531.6 | JR78: =JN78 -> 33531.6 | JV78: =JR78 -> 33531.6 | JZ78: 33531.6 | KD78: =JZ78 -> 33531.6 | KH78: =KD78 -> 33531.6 | KL78: =KH78 -> 33531.6 | KP78: =KL78 -> 33531.6 | KT78: 33531.6
A79: Purchased intangible assets, net | I79: 3066 | M79: 2755 | Q79: 2626 | U79: 2376 | Y79: 2376 | AC79: 2292 | AG79: 2322 | AK79: 2744 | AO79: 2501 | AS79: 2501 | AW79: 2297 | BA79: 2117 | BE79: 2704 | BI79: 2539 | BM79: 2539 | BQ79: 2677 | BU79: 2474 | BY79: 2681 | CC79: 2552 | CG79: 2552 | CK79: 2716 | CO79: 2270 | CS79: 2398 | CW79: 2201 | DA79: 2201 | DF79: =CW79-DF30 -> 2163.705186 | DJ79: =DF79-DJ30 -> 2127.049936 | DN79: =DJ79-DN30 -> 2089.097861 | DR79: =DN79-DR30 -> 2049.356719 | DV79: 2049.356719 | DZ79: =DR79-DZ30 -> 2011.027881 | ED79: =DZ79-ED30 -> 1973.468485 | EH79: =ED79-EH30 -> 1934.638806 | EL79: =EH79-EL30 -> 1893.901883 | EP79: 1893.901883 | ET79: =EL79-ET30 -> 1854.664275 | EX79: =ET79-EX30 -> 1816.150906 | FB79: =EX79-FB30 -> 1776.110789 | FF79: =FB79-FF30 -> 1733.821693 | FJ79: 1733.821693 | FN79: =FF79-FN30 -> 1691.013137 | FR79: =FN79-FR30 -> 1650.05917 | FV79: =FR79-FV30 -> 1608.098389 | FZ79: =FV79-FZ30 -> 1563.950481 | GD79: 1563.950481 | GH79: =FZ79-GH30 -> 1519.37583 | GL79: =GH79-GL30 -> 1476.694401 | GP79: =GL79-GP30 -> 1432.977392 | GT79: =GP79-GT30 -> 1387.013325 | GX79: 1387.013325 | HB79: =GT79-HB30 -> 1340.731609 | HF79: =HB79-HF30 -> 1296.381518 | HJ79: =HF79-HJ30 -> 1250.967783 | HN79: =HJ79-HN30 -> 1203.257484 | HR79: 1203.257484 | HV79: =HN79-HV30 -> 1155.354358 | HZ79: =HV79-HZ30 -> 1109.419798 | ID79: =HZ79-ID30 -> 1062.394538 | IH79: =ID79-IH30 -> 1013.036642 | IL79: 1013.036642 | IP79: =IH79-IP30 -> 964.5811621 | IT79: =IP79-IT30 -> 918.1136549 | IX79: =IT79-IX30 -> 870.5351575 | JB79: =IX79-JB30 -> 820.5980546 | JF79: 820.5980546 | JJ79: =JB79-JJ30 -> 771.4701949 | JN79: =JJ79-JN30 -> 724.3676768 | JR79: =JN79-JR30 -> 676.1311953 | JV79: =JR79-JV30 -> 625.4926205 | JZ79: 625.4926205 | KD79: =JV79-KD30 -> 575.6692038 | KH79: =KD79-KH30 -> 527.9091952 | KL79: =KH79-KL30 -> 478.9917515 | KP79: =KL79-KP30 -> 427.627807 | KT79: 427.627807
A80: Deferred tax assets | I80: 0 | M80: 0 | Q80: 0 | U80: 4454 | Y80: 4454 | AC80: 4158 | AG80: 4148 | AK80: =4005+1 -> 4006 | AO80: 4299 | AS80: 4299 | AW80: 4057 | BA80: 4293 | BE80: 4351 | BI80: 4239 | BM80: 4239 | BQ80: 4006 | BU80: 3097 | BY80: 3044 | CC80: 3219 | CG80: 3219 | CK80: 3960 | CO80: 4081 | CS80: 4023 | CW80: 4065 | DA80: 4065 | DF80: =DF43*Ratios!DF28 -> 4383.803653 | DJ80: =DJ43*Ratios!DJ28 -> 4087.546964 | DN80: =DN43*Ratios!DN28 -> 4226.370858 | DR80: =DR43*Ratios!DR28 -> 4683.191172 | DV80: =DR80 -> 4683.191172 | DZ80: =DZ43*Ratios!DZ28 -> 4389.259647 | ED80: =ED43*Ratios!ED28 -> 4187.851919 | EH80: =EH43*Ratios!EH28 -> 4325.249336 | EL80: =EL43*Ratios!EL28 -> 4797.651469 | EP80: 4797.651469 | ET80: =ET43*Ratios!ET28 -> 4496.884972 | EX80: =EX43*Ratios!EX28 -> 4293.521712 | FB80: =FB43*Ratios!FB28 -> 4460.169877 | FF80: =FF43*Ratios!FF28 -> 4972.526904 | FJ80: 4972.526904 | FN80: =FN43*Ratios!FN28 -> 4906.990672 | FR80: =FR43*Ratios!FR28 -> 4555.034365 | FV80: =FV43*Ratios!FV28 -> 4672.927894 | FZ80: =FZ43*Ratios!FZ28 -> 5176.083002 | GD80: 5176.083002 | GH80: =GH43*Ratios!GH28 -> 5113.629163 | GL80: =GL43*Ratios!GL28 -> 4743.787786 | GP80: =GP43*Ratios!GP28 -> 4868.570665 | GT80: =GT43*Ratios!GT28 -> 5382.197422 | GX80: 5382.197422 | HB80: =HB43*Ratios!HB28 -> 5313.869741 | HF80: =HF43*Ratios!HF28 -> 4926.820847 | HJ80: =HJ43*Ratios!HJ28 -> 5058.037423 | HN80: =HN43*Ratios!HN28 -> 5581.126733 | HR80: 5581.126733 | HV80: =HV43*Ratios!HV28 -> 5504.712726 | HZ80: =HZ43*Ratios!HZ28 -> 5101.514047 | ID80: =ID43*Ratios!ID28 -> 5238.564825 | IH80: =IH43*Ratios!IH28 -> 5769.77918 | IL80: 5769.77918 | IP80: =IP43*Ratios!IP28 -> 5574.9676 | IT80: =IT43*Ratios!IT28 -> 5167.51479 | IX80: =IX43*Ratios!IX28 -> 5305.155397 | JB80: =JB43*Ratios!JB28 -> 5843.221108 | JF80: 5843.221108 | JJ80: =JJ43*Ratios!JJ28 -> 5657.079913 | JN80: =JN43*Ratios!JN28 -> 5241.750827 | JR80: =JR43*Ratios!JR28 -> 5381.533648 | JV80: =JV43*Ratios!JV28 -> 5927.528037 | JZ80: 5927.528037 | KD80: =KD43*Ratios!KD28 -> 5741.995513 | KH80: =KH43*Ratios!KH28 -> 5318.56977 | KL80: =KL43*Ratios!KL28 -> 5460.552731 | KP80: =KP43*Ratios!KP28 -> 6014.673007 | KT80: 6014.673007
A81: Other assets | I81: 3167 | M81: 3083 | Q81: 3020 | U81: 1516 | Y81: 1516 | AC81: =1686+1 -> 1687 | AG81: =1698-1 -> 1697 | AK81: =1804-1 -> 1803 | AO81: 1844 | AS81: 1844 | AW81: 1686 | BA81: 1538 | BE81: 1454 | BI81: 1511 | BM81: 1511 | BQ81: 1448 | BU81: 1472 | BY81: 1491 | CC81: 1582 | CG81: 1582 | CK81: =778+1240+63 -> 2081 | CO81: =893+1253+59 -> 2205 | CS81: =85+1256+974 -> 2315 | CW81: =1183+1207+106 -> 2496 | DA81: =1183+1207+106 -> 2496 | DF81: =DA81 -> 2496 | DJ81: =DF81 -> 2496 | DN81: =DJ81 -> 2496 | DR81: =DN81 -> 2496 | DV81: 2496 | DZ81: =DV81 -> 2496 | ED81: =DZ81 -> 2496 | EH81: =ED81 -> 2496 | EL81: =EH81 -> 2496 | EP81: 2496 | ET81: =EP81 -> 2496 | EX81: =ET81 -> 2496 | FB81: =EX81 -> 2496 | FF81: =FB81 -> 2496 | FJ81: 2496 | FN81: =FJ81 -> 2496 | FR81: =FN81 -> 2496 | FV81: =FR81 -> 2496 | FZ81: =FV81 -> 2496 | GD81: 2496 | GH81: =GD81 -> 2496 | GL81: =GH81 -> 2496 | GP81: =GL81 -> 2496 | GT81: =GP81 -> 2496 | GX81: 2496 | HB81: =GX81 -> 2496 | HF81: =HB81 -> 2496 | HJ81: =HF81 -> 2496 | HN81: =HJ81 -> 2496 | HR81: 2496 | HV81: =HR81 -> 2496 | HZ81: =HV81 -> 2496 | ID81: =HZ81 -> 2496 | IH81: =ID81 -> 2496 | IL81: 2496 | IP81: =IL81 -> 2496 | IT81: =IP81 -> 2496 | IX81: =IT81 -> 2496 | JB81: =IX81 -> 2496 | JF81: 2496 | JJ81: =JF81 -> 2496 | JN81: =JJ81 -> 2496 | JR81: =JN81 -> 2496 | JV81: =JR81 -> 2496 | JZ81: 2496 | KD81: =JZ81 -> 2496 | KH81: =KD81 -> 2496 | KL81: =KH81 -> 2496 | KP81: =KL81 -> 2496 | KT81: 2496
A83: Total Assets | I83: =SUM(I75:I81) -> 103916 | M83: =SUM(M75:M81) -> 104862 | Q83: =SUM(Q75:Q81) -> 106155 | U83: =SUM(U75:U81) -> 113373 | Y83: =SUM(Y75:Y81) -> 113373 | AC83: =SUM(AC75:AC81) -> 111642 | AG83: =SUM(AG75:AG81) -> 112585 | AK83: =SUM(AK75:AK81) -> 118592 | AO83: =SUM(AO75:AO81) -> 121652 | AS83: =SUM(AS75:AS81) -> 121652 | AW83: =SUM(AW75:AW81) -> 126287 | BA83: =SUM(BA75:BA81) -> 126248 | BE83: =SUM(BE75:BE81) -> 125950 | BI83: =SUM(BI75:BI81) -> 129818 | BM83: =SUM(BM75:BM81) -> 129818 | BQ83: =SUM(BQ75:BQ81) -> 130522 | BU83: =SUM(BU75:BU81) -> 131510 | BY83: =SUM(BY75:BY81) -> 114008 | CC83: =SUM(CC75:CC81) -> 108784 | CG83: =SUM(CG75:CG81) -> 108784 | CK83: =SUM(CK75:CK81) -> 105429 | CO83: =SUM(CO75:CO81) -> 102462 | CS83: =SUM(CS75:CS81) -> 97287 | CW83: =SUM(CW75:CW81) -> 97793 | DA83: =SUM(DA75:DA81) -> 97793 | DF83: =SUM(DF75:DF81) -> 90354.26172 | DJ83: =SUM(DJ75:DJ81) -> 91489.92824 | DN83: =SUM(DN75:DN81) -> 89925.44962 | DR83: =SUM(DR75:DR81) -> 90313.54839 | DV83: =SUM(DV75:DV81) -> 90313.54839 | DZ83: =SUM(DZ75:DZ81) -> 84783.94351 | ED83: =SUM(ED75:ED81) -> 86769.94048 | EH83: =SUM(EH75:EH81) -> 85911.04845 | EL83: =SUM(EL75:EL81) -> 87131.20431 | EP83: =SUM(EP75:EP81) -> 87131.20431 | ET83: =SUM(ET75:ET81) -> 83187.84437 | EX83: =SUM(EX75:EX81) -> 87006.7115 | FB83: =SUM(FB75:FB81) -> 88009.78499 | FF83: =SUM(FF75:FF81) -> 91207.04238 | FJ83: =SUM(FJ75:FJ81) -> 91207.04238 | FN83: =SUM(FN75:FN81) -> 88340.32671 | FR83: =SUM(FR75:FR81) -> 91620.04037 | FV83: =SUM(FV75:FV81) -> 92091.1576 | FZ83: =SUM(FZ75:FZ81) -> 95101.80958 | GD83: =SUM(GD75:GD81) -> 95101.80958 | GH83: =SUM(GH75:GH81) -> 91854.32578 | GL83: =SUM(GL75:GL81) -> 95084.42291 | GP83: =SUM(GP75:GP81) -> 95332.75459 | GT83: =SUM(GT75:GT81) -> 98195.17378 | GX83: =SUM(GX75:GX81) -> 98195.17378 | HB83: =SUM(HB75:HB81) -> 94501.77855 | HF83: =SUM(HF75:HF81) -> 97625.15941 | HJ83: =SUM(HJ75:HJ81) -> 97590.64342 | HN83: =SUM(HN75:HN81) -> 100236.4683 | HR83: =SUM(HR75:HR81) -> 100236.4683 | HV83: =SUM(HV75:HV81) -> 96031.54074 | HZ83: =SUM(HZ75:HZ81) -> 98980.82182 | ID83: =SUM(ID75:ID81) -> 98593.36359 | IH83: =SUM(IH75:IH81) -> 100941.5335 | IL83: =SUM(IL75:IL81) -> 100941.5335 | IP83: =SUM(IP75:IP81) -> 95510.04812 | IT83: =SUM(IT75:IT81) -> 98062.70812 | IX83: =SUM(IX75:IX81) -> 97169.68802 | JB83: =SUM(JB75:JB81) -> 99041.0378 | JF83: =SUM(JF75:JF81) -> 99041.0378 | JJ83: =SUM(JJ75:JJ81) -> 93109.35499 | JN83: =SUM(JN75:JN81) -> 95195.50599 | JR83: =SUM(JR75:JR81) -> 93722.83304 | JV83: =SUM(JV75:JV81) -> 95054.7917 | JZ83: =SUM(JZ75:JZ81) -> 95054.7917 | KD83: =SUM(KD75:KD81) -> 88474.89569 | KH83: =SUM(KH75:KH81) -> 90014.73284 | KL83: =SUM(KL75:KL81) -> 88606.3113 | KP83: =SUM(KP75:KP81) -> 90043.90775 | KT83: =SUM(KT75:KT81) -> 90043.90775
A85: LIABILITIES AND EQUITY
A86: Current liabilities:
A87: Short-term debt | I87: 1356 | M87: 854 | Q87: 4416 | U87: 3897 | Y87: 3897 | AC87: 3027 | AG87: 3008 | AK87: 4164 | AO87: 4160 | AS87: 4160 | AW87: 4155 | BA87: 4451 | BE87: 4248 | BI87: 7992 | BM87: 7992 | BQ87: 10239 | BU87: 13741 | BY87: 7736 | CC87: 5238 | CG87: 5238 | CK87: 7241 | CO87: 9737 | CS87: 7777 | CW87: 10191 | DA87: 10191 | DF87: ='Debt Schedule'!DG55 -> 8193 | DJ87: ='Debt Schedule'!DK55 -> 5693 | DN87: ='Debt Schedule'!DO55 -> 8693 | DR87: ='Debt Schedule'!DS55 -> 7193 | DV87: =DR87 -> 7193 | DZ87: ='Debt Schedule'!EA55 -> 9193 | ED87: ='Debt Schedule'!EE55 -> 9193 | EH87: ='Debt Schedule'!EI55 -> 6193 | EL87: ='Debt Schedule'!EM55 -> 6693 | EP87: =EL87 -> 6693 | ET87: ='Debt Schedule'!EU55 -> 4693 | EX87: ='Debt Schedule'!EY55 -> 4693 | FB87: ='Debt Schedule'!FC55 -> 5193 | FF87: ='Debt Schedule'!FG55 -> 4693 | FJ87: =FF87 -> 4693 | FN87: ='Debt Schedule'!FO55 -> 5443 | FR87: ='Debt Schedule'!FS55 -> 5443 | FV87: ='Debt Schedule'!FW55 -> 5943 | FZ87: ='Debt Schedule'!GA55 -> 5943 | GD87: =FZ87 -> 5943 | GH87: ='Debt Schedule'!GI55 -> 5193 | GL87: ='Debt Schedule'!GM55 -> 5193 | GP87: ='Debt Schedule'!GQ55 -> 4193 | GT87: ='Debt Schedule'!GU55 -> 4693 | GX87: =GT87 -> 4693 | HB87: ='Debt Schedule'!HC55 -> 4693 | HF87: ='Debt Schedule'!HG55 -> 4693 | HJ87: ='Debt Schedule'!HK55 -> 5443 | HN87: ='Debt Schedule'!HO55 -> 4943 | HR87: =HN87 -> 4943 | HV87: ='Debt Schedule'!HW55 -> 6443 | HZ87: ='Debt Schedule'!IA55 -> 6443 | ID87: ='Debt Schedule'!IE55 -> 5693 | IH87: ='Debt Schedule'!II55 -> 5693 | IL87: =IH87 -> 5693 | IP87: ='Debt Schedule'!IQ55 -> 4193 | IT87: ='Debt Schedule'!IU55 -> 4193 | IX87: ='Debt Schedule'!IY55 -> 4193 | JB87: ='Debt Schedule'!JC55 -> 4193 | JF87: =JB87 -> 4193 | JJ87: ='Debt Schedule'!JK55 -> 4193 | JN87: ='Debt Schedule'!JO55 -> 4193 | JR87: ='Debt Schedule'!JS55 -> 4193 | JV87: ='Debt Schedule'!JW55 -> 4193 | JZ87: =JV87 -> 4193 | KD87: ='Debt Schedule'!KE55 -> 4193 | KH87: ='Debt Schedule'!KI55 -> 4193 | KL87: ='Debt Schedule'!KM55 -> 4193 | KP87: ='Debt Schedule'!KQ55 -> 4193 | KT87: =KP87 -> 4193
A88: Accounts payable | I88: 1022 | M88: 988 | Q88: 1118 | U88: 1104 | Y88: 1104 | AC88: 1119 | AG88: 962 | AK88: 1007 | AO88: 1056 | AS88: 1056 | AW88: 996 | BA88: 957 | BE88: 1219 | BI88: 1385 | BM88: 1385 | BQ88: 1155 | BU88: 1060 | BY88: 1552 | CC88: 1904 | CG88: 1904 | CK88: 1805 | CO88: 1655 | CS88: 2022 | CW88: 2059 | DA88: 2059 | DF88: =(Ratios!DF17*'Integrated Financial Statements'!DF19)/Ratios!DF11 -> 1254.665534 | DJ88: =(Ratios!DJ17*'Integrated Financial Statements'!DJ19)/Ratios!DJ11 -> 1191.058396 | DN88: =(Ratios!DN17*'Integrated Financial Statements'!DN19)/Ratios!DN11 -> 1466.74839 | DR88: =(Ratios!DR17*'Integrated Financial Statements'!DR19)/Ratios!DR11 -> 1616.270302 | DV88: 1616.270302 | DZ88: =(Ratios!DZ17*'Integrated Financial Statements'!DZ19)/Ratios!DZ11 -> 1289.381326 | ED88: =(Ratios!ED17*'Integrated Financial Statements'!ED19)/Ratios!ED11 -> 1220.19894 | EH88: =(Ratios!EH17*'Integrated Financial Statements'!EH19)/Ratios!EH11 -> 1500.420833 | EL88: =(Ratios!EL17*'Integrated Financial Statements'!EL19)/Ratios!EL11 -> 1656.490444 | EP88: 1656.490444 | ET88: =(Ratios!ET17*'Integrated Financial Statements'!ET19)/Ratios!ET11 -> 1319.751012 | EX88: =(Ratios!EX17*'Integrated Financial Statements'!EX19)/Ratios!EX11 -> 1250.979095 | FB88: =(Ratios!FB17*'Integrated Financial Statements'!FB19)/Ratios!FB11 -> 1547.236489 | FF88: =(Ratios!FF17*'Integrated Financial Statements'!FF19)/Ratios!FF11 -> 1720.076383 | FJ88: 1720.076383 | FN88: =(Ratios!FN17*'Integrated Financial Statements'!FN19)/Ratios!FN11 -> 1441.614272 | FR88: =(Ratios!FR17*'Integrated Financial Statements'!FR19)/Ratios!FR11 -> 1331.548122 | FV88: =(Ratios!FV17*'Integrated Financial Statements'!FV19)/Ratios!FV11 -> 1621.860556 | FZ88: =(Ratios!FZ17*'Integrated Financial Statements'!FZ19)/Ratios!FZ11 -> 1797.704101 | GD88: 1797.704101 | GH88: =(Ratios!GH17*'Integrated Financial Statements'!GH19)/Ratios!GH11 -> 1501.131992 | GL88: =(Ratios!GL17*'Integrated Financial Statements'!GL19)/Ratios!GL11 -> 1387.820667 | GP88: =(Ratios!GP17*'Integrated Financial Statements'!GP19)/Ratios!GP11 -> 1689.814557 | GT88: =(Ratios!GT17*'Integrated Financial Statements'!GT19)/Ratios!GT11 -> 1871.7268 | GX88: 1871.7268 | HB88: =(Ratios!HB17*'Integrated Financial Statements'!HB19)/Ratios!HB11 -> 1558.5599 | HF88: =(Ratios!HF17*'Integrated Financial Statements'!HF19)/Ratios!HF11 -> 1442.032352 | HJ88: =(Ratios!HJ17*'Integrated Financial Statements'!HJ19)/Ratios!HJ11 -> 1755.350518 | HN88: =(Ratios!HN17*'Integrated Financial Statements'!HN19)/Ratios!HN11 -> 1942.710032 | HR88: 1942.710032 | HV88: =(Ratios!HV17*'Integrated Financial Statements'!HV19)/Ratios!HV11 -> 1612.977899 | HZ88: =(Ratios!HZ17*'Integrated Financial Statements'!HZ19)/Ratios!HZ11 -> 1493.323978 | ID88: =(Ratios!ID17*'Integrated Financial Statements'!ID19)/Ratios!ID11 -> 1817.448671 | IH88: =(Ratios!IH17*'Integrated Financial Statements'!IH19)/Ratios!IH11 -> 2009.441647 | IL88: 2009.441647 | IP88: =(Ratios!IP17*'Integrated Financial Statements'!IP19)/Ratios!IP11 -> 1630.480981 | IT88: =(Ratios!IT17*'Integrated Financial Statements'!IT19)/Ratios!IT11 -> 1509.081237 | IX88: =(Ratios!IX17*'Integrated Financial Statements'!IX19)/Ratios!IX11 -> 1837.586839 | JB88: =(Ratios!JB17*'Integrated Financial Statements'!JB19)/Ratios!JB11 -> 2031.104301 | JF88: 2031.104301 | JJ88: =(Ratios!JJ17*'Integrated Financial Statements'!JJ19)/Ratios!JJ11 -> 1652.460592 | JN88: =(Ratios!JN17*'Integrated Financial Statements'!JN19)/Ratios!JN11 -> 1528.765451 | JR88: =(Ratios!JR17*'Integrated Financial Statements'!JR19)/Ratios!JR11 -> 1862.258966 | JV88: =(Ratios!JV17*'Integrated Financial Statements'!JV19)/Ratios!JV11 -> 2058.509713 | JZ88: 2058.509713 | KD88: =(Ratios!KD17*'Integrated Financial Statements'!KD19)/Ratios!KD11 -> 1675.203225 | KH88: =(Ratios!KH17*'Integrated Financial Statements'!KH19)/Ratios!KH11 -> 1549.155803 | KL88: =(Ratios!KL17*'Integrated Financial Statements'!KL19)/Ratios!KL11 -> 1887.799456 | KP88: =(Ratios!KP17*'Integrated Financial Statements'!KP19)/Ratios!KP11 -> 2086.857388 | KT88: 2086.857388
A89: Income taxes payable | I89: 94 | M89: 0 | Q89: 80 | U89: 62 | Y89: 62 | AC89: 122 | AG89: 370 | AK89: 152 | AO89: 517 | AS89: 517 | AW89: 32 | BA89: 57 | BE89: 20 | BI89: 98 | BM89: 98 | BQ89: 86 | BU89: 2204 | BY89: 962 | CC89: 1004 | CG89: 1004 | CK89: 1084 | CO89: 1110 | CS89: 953 | CW89: 1149 | DA89: 1149 | DF89: =DF43*Ratios!DF29 -> 269.146272 | DJ89: =DJ43*Ratios!DJ29 -> 781.8886308 | DN89: =DN43*Ratios!DN29 -> 460.1975623 | DR89: =DR43*Ratios!DR29 -> 603.0839406 | DV89: 603.0839406 | DZ89: =DZ43*Ratios!DZ29 -> 269.4812461 | ED89: =ED43*Ratios!ED29 -> 801.0755183 | EH89: =EH43*Ratios!EH29 -> 470.96416 | EL89: =EL43*Ratios!EL29 -> 617.823712 | EP89: 617.823712 | ET89: =ET43*Ratios!ET29 -> 276.0889679 | EX89: =EX43*Ratios!EX29 -> 821.2886219 | FB89: =FB43*Ratios!FB29 -> 485.6552758 | FF89: =FF43*Ratios!FF29 -> 640.3435201 | FJ89: 640.3435201 | FN89: =FN43*Ratios!FN29 -> 301.267655 | FR89: =FR43*Ratios!FR29 -> 871.312211 | FV89: =FV43*Ratios!FV29 -> 508.8218943 | FZ89: =FZ43*Ratios!FZ29 -> 666.5567173 | GD89: 666.5567173 | GH89: =GH43*Ratios!GH29 -> 313.9543499 | GL89: =GL43*Ratios!GL29 -> 907.4180112 | GP89: =GP43*Ratios!GP29 -> 530.1248819 | GT89: =GT43*Ratios!GT29 -> 693.0993656 | GX89: 693.0993656 | HB89: =HB43*Ratios!HB29 -> 326.248241 | HF89: =HF43*Ratios!HF29 -> 942.4295892 | HJ89: =HJ43*Ratios!HJ29 -> 550.755381 | HN89: =HN43*Ratios!HN29 -> 718.7167424 | HR89: 718.7167424 | HV89: =HV43*Ratios!HV29 -> 337.9651614 | HZ89: =HZ43*Ratios!HZ29 -> 975.8458725 | ID89: =ID43*Ratios!ID29 -> 570.4124989 | IH89: =IH43*Ratios!IH29 -> 743.0107028 | IL89: 743.0107028 | IP89: =IP43*Ratios!IP29 -> 342.2785017 | IT89: =IT43*Ratios!IT29 -> 988.4708603 | IX89: =IX43*Ratios!IX29 -> 577.6633579 | JB89: =JB43*Ratios!JB29 -> 752.4682812 | JF89: 752.4682812 | JJ89: =JJ43*Ratios!JJ29 -> 347.3198368 | JN89: =JN43*Ratios!JN29 -> 1002.671141 | JR89: =JR43*Ratios!JR29 -> 585.9799695 | JV89: =JV43*Ratios!JV29 -> 763.3250139 | JZ89: 763.3250139 | KD89: =KD43*Ratios!KD29 -> 352.5332813 | KH89: =KH43*Ratios!KH29 -> 1017.365494 | KL89: =KL43*Ratios!KL29 -> 594.5841338 | KP89: =KP43*Ratios!KP29 -> 774.5472191 | KT89: 774.5472191
A90: Accrued compensation | I90: 2638 | M90: 2694 | Q90: 2726 | U90: 3049 | Y90: 3049 | AC90: 2611 | AG90: 2667 | AK90: 2745 | AO90: 2951 | AS90: 2951 | AW90: 2619 | BA90: 2522 | BE90: 2825 | BI90: 2895 | BM90: 2895 | BQ90: 2684 | BU90: 2736 | BY90: 2966 | CC90: 2986 | CG90: 2986 | CK90: 2622 | CO90: 2599 | CS90: 2872 | CW90: 3221 | DA90: 3221 | DF90: =DA90 -> 3221 | DJ90: =DF90 -> 3221 | DN90: =DJ90 -> 3221 | DR90: =DN90 -> 3221 | DV90: 3221 | DZ90: =DV90 -> 3221 | ED90: =DZ90 -> 3221 | EH90: =ED90 -> 3221 | EL90: =EH90 -> 3221 | EP90: 3221 | ET90: =EP90 -> 3221 | EX90: =ET90 -> 3221 | FB90: =EX90 -> 3221 | FF90: =FB90 -> 3221 | FJ90: 3221 | FN90: =FJ90 -> 3221 | FR90: =FN90 -> 3221 | FV90: =FR90 -> 3221 | FZ90: =FV90 -> 3221 | GD90: 3221 | GH90: =GD90 -> 3221 | GL90: =GH90 -> 3221 | GP90: =GL90 -> 3221 | GT90: =GP90 -> 3221 | GX90: 3221 | HB90: =GX90 -> 3221 | HF90: =HB90 -> 3221 | HJ90: =HF90 -> 3221 | HN90: =HJ90 -> 3221 | HR90: 3221 | HV90: =HR90 -> 3221 | HZ90: =HV90 -> 3221 | ID90: =HZ90 -> 3221 | IH90: =ID90 -> 3221 | IL90: 3221 | IP90: =IL90 -> 3221 | IT90: =IP90 -> 3221 | IX90: =IT90 -> 3221 | JB90: =IX90 -> 3221 | JF90: 3221 | JJ90: =JF90 -> 3221 | JN90: =JJ90 -> 3221 | JR90: =JN90 -> 3221 | JV90: =JR90 -> 3221 | JZ90: 3221 | KD90: =JZ90 -> 3221 | KH90: =KD90 -> 3221 | KL90: =KH90 -> 3221 | KP90: =KL90 -> 3221 | KT90: 3221
A91: Deferred revenue | I91: 9449 | M91: 9369 | Q91: 9371 | U91: 9824 | Y91: 9824 | AC91: 9821 | AG91: 9796 | AK91: 9662 | AO91: 10155 | AS91: 10155 | AW91: 10215 | BA91: 10243 | BE91: 10344 | BI91: 10821 | BM91: 10821 | BQ91: 10920 | BU91: 11102 | BY91: 11301 | CC91: 11490 | CG91: 11490 | CK91: 9637 | CO91: 9976 | CS91: 10117 | CW91: 10668 | DA91: 10668 | DF91: =Ratios!DF26*'Integrated Financial Statements'!DF14 -> 10599.38592 | DJ91: =Ratios!DJ26*'Integrated Financial Statements'!DJ14 -> 11077.28941 | DN91: =Ratios!DN26*'Integrated Financial Statements'!DN14 -> 11179.41389 | DR91: =Ratios!DR26*'Integrated Financial Statements'!DR14 -> 11830.43668 | DV91: 11830.43668 | DZ91: =Ratios!DZ26*'Integrated Financial Statements'!DZ14 -> 10893.26118 | ED91: =Ratios!ED26*'Integrated Financial Statements'!ED14 -> 11350.52379 | EH91: =Ratios!EH26*'Integrated Financial Statements'!EH14 -> 11437.92674 | EL91: =Ratios!EL26*'Integrated Financial Statements'!EL14 -> 12126.86836 | EP91: 12126.86836 | ET91: =Ratios!ET26*'Integrated Financial Statements'!ET14 -> 11151.53855 | EX91: =Ratios!EX26*'Integrated Financial Statements'!EX14 -> 11638.81628 | FB91: =Ratios!FB26*'Integrated Financial Statements'!FB14 -> 11794.48158 | FF91: =Ratios!FF26*'Integrated Financial Statements'!FF14 -> 12588.93057 | FJ91: 12588.93057 | FN91: =Ratios!FN26*'Integrated Financial Statements'!FN14 -> 12166.42094 | FR91: =Ratios!FR26*'Integrated Financial Statements'!FR14 -> 12376.37003 | FV91: =Ratios!FV26*'Integrated Financial Statements'!FV14 -> 12360.24488 | FZ91: =Ratios!FZ26*'Integrated Financial Statements'!FZ14 -> 13142.27541 | GD91: 13142.27541 | GH91: =Ratios!GH26*'Integrated Financial Statements'!GH14 -> 12668.35478 | GL91: =Ratios!GL26*'Integrated Financial Statements'!GL14 -> 12898.41236 | GP91: =Ratios!GP26*'Integrated Financial Statements'!GP14 -> 12877.571 | GT91: =Ratios!GT26*'Integrated Financial Statements'!GT14 -> 13682.92307 | GX91: 13682.92307 | HB91: =Ratios!HB26*'Integrated Financial Statements'!HB14 -> 13153.51188 | HF91: =Ratios!HF26*'Integrated Financial Statements'!HF14 -> 13402.68528 | HJ91: =Ratios!HJ26*'Integrated Financial Statements'!HJ14 -> 13377.36973 | HN91: =Ratios!HN26*'Integrated Financial Statements'!HN14 -> 14202.75446 | HR91: 14202.75446 | HV91: =Ratios!HV26*'Integrated Financial Statements'!HV14 -> 13614.32518 | HZ91: =Ratios!HZ26*'Integrated Financial Statements'!HZ14 -> 13881.51501 | ID91: =Ratios!ID26*'Integrated Financial Statements'!ID14 -> 13852.07122 | IH91: =Ratios!IH26*'Integrated Financial Statements'!IH14 -> 14693.22305 | IL91: 14693.22305 | IP91: =Ratios!IP26*'Integrated Financial Statements'!IP14 -> 13771.30723 | IT91: =Ratios!IT26*'Integrated Financial Statements'!IT14 -> 14042.57265 | IX91: =Ratios!IX26*'Integrated Financial Statements'!IX14 -> 14015.03649 | JB91: =Ratios!JB26*'Integrated Financial Statements'!JB14 -> 14865.64583 | JF91: 14865.64583 | JJ91: =Ratios!JJ26*'Integrated Financial Statements'!JJ14 -> 13962.4011 | JN91: =Ratios!JN26*'Integrated Financial Statements'!JN14 -> 14234.4742 | JR91: =Ratios!JR26*'Integrated Financial Statements'!JR14 -> 14208.85662 | JV91: =Ratios!JV26*'Integrated Financial Statements'!JV14 -> 15074.46517 | JZ91: 15074.46517 | KD91: =Ratios!KD26*'Integrated Financial Statements'!KD14 -> 14160.08211 | KH91: =Ratios!KH26*'Integrated Financial Statements'!KH14 -> 14433.16916 | KL91: =Ratios!KL26*'Integrated Financial Statements'!KL14 -> 14409.44535 | KP91: =Ratios!KP26*'Integrated Financial Statements'!KP14 -> 15290.3986 | KT91: 15290.3986
A92: Other current liabilities | I92: 5496 | M92: 6128 | Q92: 5532 | U92: 5476 | Y92: 5476 | AC92: 5223 | AG92: 5898 | AK92: 6155 | AO92: 6072 | AS92: 6072 | AW92: 5200 | BA92: 4478 | BE92: 4062 | BI92: 4392 | BM92: 4392 | BQ92: 4200 | BU92: 4521 | BY92: 4125 | CC92: 4413 | CG92: 4413 | CK92: =3961+64 -> 4025 | CO92: =4344+58 -> 4402 | CS92: =4138+34 -> 4172 | CW92: =4391+33 -> 4424 | DA92: =4391+33 -> 4424 | DF92: =DA92 -> 4424 | DJ92: =DF92 -> 4424 | DN92: =DJ92 -> 4424 | DR92: =DN92 -> 4424 | DV92: 4424 | DZ92: =DV92 -> 4424 | ED92: =DZ92 -> 4424 | EH92: =ED92 -> 4424 | EL92: =EH92 -> 4424 | EP92: 4424 | ET92: =EP92 -> 4424 | EX92: =ET92 -> 4424 | FB92: =EX92 -> 4424 | FF92: =FB92 -> 4424 | FJ92: 4424 | FN92: =FJ92 -> 4424 | FR92: =FN92 -> 4424 | FV92: =FR92 -> 4424 | FZ92: =FV92 -> 4424 | GD92: 4424 | GH92: =GD92 -> 4424 | GL92: =GH92 -> 4424 | GP92: =GL92 -> 4424 | GT92: =GP92 -> 4424 | GX92: 4424 | HB92: =GX92 -> 4424 | HF92: =HB92 -> 4424 | HJ92: =HF92 -> 4424 | HN92: =HJ92 -> 4424 | HR92: 4424 | HV92: =HR92 -> 4424 | HZ92: =HV92 -> 4424 | ID92: =HZ92 -> 4424 | IH92: =ID92 -> 4424 | IL92: 4424 | IP92: =IL92 -> 4424 | IT92: =IP92 -> 4424 | IX92: =IT92 -> 4424 | JB92: =IX92 -> 4424 | JF92: 4424 | JJ92: =JF92 -> 4424 | JN92: =JJ92 -> 4424 | JR92: =JN92 -> 4424 | JV92: =JR92 -> 4424 | JZ92: 4424 | KD92: =JZ92 -> 4424 | KH92: =KD92 -> 4424 | KL92: =KH92 -> 4424 | KP92: =KL92 -> 4424 | KT92: 4424
A93: Total current liabilities | I93: =SUM(I87:I92) -> 20055 | M93: =SUM(M87:M92) -> 20033 | Q93: =SUM(Q87:Q92) -> 23243 | U93: =SUM(U87:U92) -> 23412 | Y93: =SUM(Y87:Y92) -> 23412 | AC93: =SUM(AC87:AC92) -> 21923 | AG93: =SUM(AG87:AG92) -> 22701 | AK93: =SUM(AK87:AK92) -> 23885 | AO93: =SUM(AO87:AO92) -> 24911 | AS93: =SUM(AS87:AS92) -> 24911 | AW93: =SUM(AW87:AW92) -> 23217 | BA93: =SUM(BA87:BA92) -> 22708 | BE93: =SUM(BE87:BE92) -> 22718 | BI93: =SUM(BI87:BI92) -> 27583 | BM93: =SUM(BM87:BM92) -> 27583 | BQ93: =SUM(BQ87:BQ92) -> 29284 | BU93: =SUM(BU87:BU92) -> 35364 | BY93: =SUM(BY87:BY92) -> 28642 | CC93: =SUM(CC87:CC92) -> 27035 | CG93: =SUM(CG87:CG92) -> 27035 | CK93: =SUM(CK87:CK92) -> 26414 | CO93: =SUM(CO87:CO92) -> 29479 | CS93: =SUM(CS87:CS92) -> 27913 | CW93: =SUM(CW87:CW92) -> 31712 | DA93: =SUM(DA87:DA92) -> 31712 | DF93: =SUM(DF87:DF92) -> 27961.19773 | DJ93: =SUM(DJ87:DJ92) -> 26388.23644 | DN93: =SUM(DN87:DN92) -> 29444.35985 | DR93: =SUM(DR87:DR92) -> 28887.79093 | DV93: =SUM(DV87:DV92) -> 28887.79093 | DZ93: =SUM(DZ87:DZ92) -> 29290.12376 | ED93: =SUM(ED87:ED92) -> 30209.79824 | EH93: =SUM(EH87:EH92) -> 27247.31173 | EL93: =SUM(EL87:EL92) -> 28739.18252 | EP93: =SUM(EP87:EP92) -> 28739.18252 | ET93: =SUM(ET87:ET92) -> 25085.37853 | EX93: =SUM(EX87:EX92) -> 26049.08399 | FB93: =SUM(FB87:FB92) -> 26665.37335 | FF93: =SUM(FF87:FF92) -> 27287.35047 | FJ93: =SUM(FJ87:FJ92) -> 27287.35047 | FN93: =SUM(FN87:FN92) -> 26997.30287 | FR93: =SUM(FR87:FR92) -> 27667.23037 | FV93: =SUM(FV87:FV92) -> 28078.92733 | FZ93: =SUM(FZ87:FZ92) -> 29194.53623 | GD93: =SUM(GD87:GD92) -> 29194.53623 | GH93: =SUM(GH87:GH92) -> 27321.44112 | GL93: =SUM(GL87:GL92) -> 28031.65104 | GP93: =SUM(GP87:GP92) -> 26935.51044 | GT93: =SUM(GT87:GT92) -> 28585.74924 | GX93: =SUM(GX87:GX92) -> 28585.74924 | HB93: =SUM(HB87:HB92) -> 27376.32002 | HF93: =SUM(HF87:HF92) -> 28125.14722 | HJ93: =SUM(HJ87:HJ92) -> 28771.47563 | HN93: =SUM(HN87:HN92) -> 29452.18123 | HR93: =SUM(HR87:HR92) -> 29452.18123 | HV93: =SUM(HV87:HV92) -> 29653.26824 | HZ93: =SUM(HZ87:HZ92) -> 30438.68486 | ID93: =SUM(ID87:ID92) -> 29577.93239 | IH93: =SUM(IH87:IH92) -> 30783.6754 | IL93: =SUM(IL87:IL92) -> 30783.6754 | IP93: =SUM(IP87:IP92) -> 27582.06671 | IT93: =SUM(IT87:IT92) -> 28378.12475 | IX93: =SUM(IX87:IX92) -> 28268.28668 | JB93: =SUM(JB87:JB92) -> 29487.21841 | JF93: =SUM(JF87:JF92) -> 29487.21841 | JJ93: =SUM(JJ87:JJ92) -> 27800.18153 | JN93: =SUM(JN87:JN92) -> 28603.91079 | JR93: =SUM(JR87:JR92) -> 28495.09556 | JV93: =SUM(JV87:JV92) -> 29734.2999 | JZ93: =SUM(JZ87:JZ92) -> 29734.2999 | KD93: =SUM(KD87:KD92) -> 28025.81861 | KH93: =SUM(KH87:KH92) -> 28837.69046 | KL93: =SUM(KL87:KL92) -> 28729.82894 | KP93: =SUM(KP87:KP92) -> 29989.80321 | KT93: =SUM(KT87:KT92) -> 29989.80321
A95: Long-term debt | I95: 19554 | M95: 19608 | Q95: 16531 | U95: 21457 | Y95: 21457 | AC95: 21594 | AG95: 21591 | AK95: 24431 | AO95: 24483 | AS95: 24483 | AW95: 30634 | BA95: 30471 | BE95: 28222 | BI95: 25725 | BM95: 25725 | BQ95: 25684 | BU95: 25625 | BY95: 20336 | CC95: 20331 | CG95: 20331 | CK95: 18323 | CO95: 15893 | CS95: 15921 | CW95: 14475 | DA95: 14475 | DF95: ='Debt Schedule'!DG56 -> 19250 | DJ95: ='Debt Schedule'!DK56 -> 21750 | DN95: ='Debt Schedule'!DO56 -> 18750 | DR95: ='Debt Schedule'!DS56 -> 20250 | DV95: =DR95 -> 20250 | DZ95: ='Debt Schedule'!EA56 -> 18250 | ED95: ='Debt Schedule'!EE56 -> 18250 | EH95: ='Debt Schedule'!EI56 -> 21250 | EL95: ='Debt Schedule'!EM56 -> 20750 | EP95: =EL95 -> 20750 | ET95: ='Debt Schedule'!EU56 -> 22750 | EX95: ='Debt Schedule'!EY56 -> 22750 | FB95: ='Debt Schedule'!FC56 -> 22250 | FF95: ='Debt Schedule'!FG56 -> 22750 | FJ95: =FF95 -> 22750 | FN95: ='Debt Schedule'!FO56 -> 22000 | FR95: ='Debt Schedule'!FS56 -> 22000 | FV95: ='Debt Schedule'!FW56 -> 21500 | FZ95: ='Debt Schedule'!GA56 -> 21500 | GD95: =FZ95 -> 21500 | GH95: ='Debt Schedule'!GI56 -> 22250 | GL95: ='Debt Schedule'!GM56 -> 22250 | GP95: ='Debt Schedule'!GQ56 -> 23250 | GT95: ='Debt Schedule'!GU56 -> 22750 | GX95: =GT95 -> 22750 | HB95: ='Debt Schedule'!HC56 -> 22750 | HF95: ='Debt Schedule'!HG56 -> 22750 | HJ95: ='Debt Schedule'!HK56 -> 22000 | HN95: ='Debt Schedule'!HO56 -> 22500 | HR95: =HN95 -> 22500 | HV95: ='Debt Schedule'!HW56 -> 21000 | HZ95: ='Debt Schedule'!IA56 -> 21000 | ID95: ='Debt Schedule'!IE56 -> 21750 | IH95: ='Debt Schedule'!II56 -> 21750 | IL95: =IH95 -> 21750 | IP95: ='Debt Schedule'!IQ56 -> 23250 | IT95: ='Debt Schedule'!IU56 -> 23250 | IX95: ='Debt Schedule'!IY56 -> 23250 | JB95: ='Debt Schedule'!JC56 -> 23250 | JF95: =JB95 -> 23250 | JJ95: ='Debt Schedule'!JK56 -> 23250 | JN95: ='Debt Schedule'!JO56 -> 23250 | JR95: ='Debt Schedule'!JS56 -> 23250 | JV95: ='Debt Schedule'!JW56 -> 23250 | JZ95: =JV95 -> 23250 | KD95: ='Debt Schedule'!KE56 -> 23250 | KH95: ='Debt Schedule'!KI56 -> 23250 | KL95: ='Debt Schedule'!KM56 -> 23250 | KP95: ='Debt Schedule'!KQ56 -> 23250 | KT95: =KP95 -> 23250
A96: Income taxes payable | I96: 1504 | M96: 1433 | Q96: 1294 | U96: 1876 | Y96: 1876 | AC96: 1490 | AG96: 706 | AK96: 891 | AO96: 925 | AS96: 925 | AW96: 883 | BA96: 1025 | BE96: 1168 | BI96: 1250 | BM96: 1250 | BQ96: 883 | BU96: 9185 | BY96: 9076 | CC96: 8585 | CG96: 8585 | CK96: 8216 | CO96: 7760 | CS96: 8038 | CW96: 8927 | DA96: 8927 | DF96: =DF43*Ratios!DF30 -> 2590.983272 | DJ96: =DJ43*Ratios!DJ30 -> 4247.984497 | DN96: =DN43*Ratios!DN30 -> 4373.874656 | DR96: =DR43*Ratios!DR30 -> 4637.348095 | DV96: =DR96 -> 4637.348095 | DZ96: =DZ43*Ratios!DZ30 -> 2594.207958 | ED96: =ED43*Ratios!ED30 -> 4352.226453 | EH96: =EH43*Ratios!EH30 -> 4476.204074 | EL96: =EL43*Ratios!EL30 -> 4750.687958 | EP96: =EL96 -> 4750.687958 | ET96: =ET43*Ratios!ET30 -> 2657.818338 | EX96: =EX43*Ratios!EX30 -> 4462.04382 | FB96: =FB43*Ratios!FB30 -> 4615.833452 | FF96: =FF43*Ratios!FF30 -> 4923.851562 | FJ96: =FF96 -> 4923.851562 | FN96: =FN43*Ratios!FN30 -> 2900.205337 | FR96: =FR43*Ratios!FR30 -> 4733.820929 | FV96: =FV43*Ratios!FV30 -> 4836.016898 | FZ96: =FZ43*Ratios!FZ30 -> 5125.41508 | GD96: =FZ96 -> 5125.41508 | GH96: =GH43*Ratios!GH30 -> 3022.336006 | GL96: =GL43*Ratios!GL30 -> 4929.982982 | GP96: =GP43*Ratios!GP30 -> 5038.487762 | GT96: =GT43*Ratios!GT30 -> 5329.511875 | GX96: =GT96 -> 5329.511875 | HB96: =HB43*Ratios!HB30 -> 3140.685281 | HF96: =HF43*Ratios!HF30 -> 5120.20015 | HJ96: =HJ43*Ratios!HJ30 -> 5234.567064 | HN96: =HN43*Ratios!HN30 -> 5526.493896 | HR96: =HN96 -> 5526.493896 | HV96: =HV43*Ratios!HV30 -> 3253.480247 | HZ96: =HZ43*Ratios!HZ30 -> 5301.750114 | ID96: =ID43*Ratios!ID30 -> 5421.39502 | IH96: =IH43*Ratios!IH30 -> 5713.299651 | IL96: =IH96 -> 5713.299651 | IP96: =IP43*Ratios!IP30 -> 3295.003366 | IT96: =IT43*Ratios!IT30 -> 5370.341407 | IX96: =IX43*Ratios!IX30 -> 5490.309658 | JB96: =JB43*Ratios!JB30 -> 5786.022667 | JF96: =JB96 -> 5786.022667 | JJ96: =JJ43*Ratios!JJ30 -> 3343.534653 | JN96: =JN43*Ratios!JN30 -> 5447.491232 | JR96: =JR43*Ratios!JR30 -> 5569.353572 | JV96: =JV43*Ratios!JV30 -> 5869.504328 | JZ96: =JV96 -> 5869.504328 | KD96: =KD43*Ratios!KD30 -> 3393.722781 | KH96: =KH43*Ratios!KH30 -> 5527.325343 | KL96: =KL43*Ratios!KL30 -> 5651.130486 | KP96: =KP43*Ratios!KP30 -> 5955.796249 | KT96: =KP96 -> 5955.796249
A97: Deferred revenue | I97: 4295 | M97: 4652 | Q97: 4810 | U97: 5359 | Y97: 5359 | AC97: 5341 | AG97: 5389 | AK97: 5610 | AO97: 6317 | AS97: 6317 | AW97: 6736 | BA97: 6843 | BE97: 6978 | BI97: 7673 | BM97: 7673 | BQ97: 7645 | BU97: 7686 | BY97: 7652 | CC97: 8195 | CG97: 8195 | CK97: 7177 | CO97: 7285 | CS97: 7339 | CW97: 7799 | DA97: 7799 | DF97: =DF14*Ratios!DF27 -> 7417.436375 | DJ97: =DJ14*Ratios!DJ27 -> 7706.823939 | DN97: =DN14*Ratios!DN27 -> 7725.229649 | DR97: =DR14*Ratios!DR27 -> 8485.817743 | DV97: =DR97 -> 8485.817743 | DZ97: =DZ14*Ratios!DZ27 -> 7623.0899 | ED97: =ED14*Ratios!ED27 -> 7896.921819 | EH97: =EH14*Ratios!EH27 -> 7903.867912 | EL97: =EL14*Ratios!EL27 -> 8698.444313 | EP97: =EL97 -> 8698.444313 | ET97: =ET14*Ratios!ET27 -> 7803.832065 | EX97: =EX14*Ratios!EX27 -> 8097.496111 | FB97: =FB14*Ratios!FB27 -> 8150.255433 | FF97: =FF14*Ratios!FF27 -> 9029.8755 | FJ97: =FF97 -> 9029.8755 | FN97: =FN14*Ratios!FN27 -> 8514.04543 | FR97: =FR14*Ratios!FR27 -> 8610.635808 | FV97: =FV14*Ratios!FV27 -> 8541.210756 | FZ97: =FZ14*Ratios!FZ27 -> 9426.782531 | GD97: =FZ97 -> 9426.782531 | GH97: =GH14*Ratios!GH27 -> 8865.298072 | GL97: =GL14*Ratios!GL27 -> 8973.837322 | GP97: =GP14*Ratios!GP27 -> 8898.694893 | GT97: =GT14*Ratios!GT27 -> 9814.582037 | GX97: =GT97 -> 9814.582037 | HB97: =HB14*Ratios!HB27 -> 9204.810371 | HF97: =HF14*Ratios!HF27 -> 9324.676096 | HJ97: =HJ14*Ratios!HJ27 -> 9244.067197 | HN97: =HN14*Ratios!HN27 -> 10187.4503 | HR97: =HN97 -> 10187.4503 | HV97: =HV14*Ratios!HV27 -> 9527.286916 | HZ97: =HZ14*Ratios!HZ27 -> 9657.813228 | ID97: =ID14*Ratios!ID27 -> 9572.096738 | IH97: =IH14*Ratios!IH27 -> 10539.25702 | IL97: =IH97 -> 10539.25702 | IP97: =IP14*Ratios!IP27 -> 9637.14275 | IT97: =IT14*Ratios!IT27 -> 9769.866169 | IX97: =IX14*Ratios!IX27 -> 9684.709451 | JB97: =JB14*Ratios!JB27 -> 10662.93363 | JF97: =JB97 -> 10662.93363 | JJ97: =JJ14*Ratios!JJ27 -> 9770.86999 | JN97: =JN14*Ratios!JN27 -> 9903.378206 | JR97: =JR14*Ratios!JR27 -> 9818.64358 | JV97: =JV14*Ratios!JV27 -> 10812.71701 | JZ97: =JV97 -> 10812.71701 | KD97: =KD14*Ratios!KD27 -> 9909.206901 | KH97: =KH14*Ratios!KH27 -> 10041.61663 | KL97: =KL14*Ratios!KL27 -> 9957.254959 | KP97: =KP14*Ratios!KP27 -> 10967.60324 | KT97: =KP97 -> 10967.60324
A98: Other long-term liabilities | I98: 1793 | M98: 1403 | Q98: 1444 | U98: 1562 | Y98: 1562 | AC98: =267+1042 -> 1309 | AG98: =250+1070 -> 1320 | AK98: =307+1109+1 -> 1417 | AO98: 1431 | AS98: 1431 | AW98: 1404 | BA98: 1383 | BE98: 1482 | BI98: 1450 | BM98: 1450 | BQ98: =258+1218 -> 1476 | BU98: 1668 | BY98: =1497+144 -> 1641 | CC98: 1434 | CG98: 1434 | CK98: =150+1301 -> 1451 | CO98: =1153+103 -> 1256 | CS98: =1174+98 -> 1272 | CW98: =1214+95 -> 1309 | DA98: =1214+95 -> 1309 | DF98: =DA98 -> 1309 | DJ98: =DF98 -> 1309 | DN98: =DJ98 -> 1309 | DR98: =DN98 -> 1309 | DV98: =DR98 -> 1309 | DZ98: =DV98 -> 1309 | ED98: =DZ98 -> 1309 | EH98: =ED98 -> 1309 | EL98: =EH98 -> 1309 | EP98: =EL98 -> 1309 | ET98: =EP98 -> 1309 | EX98: =ET98 -> 1309 | FB98: =EX98 -> 1309 | FF98: =FB98 -> 1309 | FJ98: =FF98 -> 1309 | FN98: =FJ98 -> 1309 | FR98: =FN98 -> 1309 | FV98: =FR98 -> 1309 | FZ98: =FV98 -> 1309 | GD98: =FZ98 -> 1309 | GH98: =GD98 -> 1309 | GL98: =GH98 -> 1309 | GP98: =GL98 -> 1309 | GT98: =GP98 -> 1309 | GX98: =GT98 -> 1309 | HB98: =GX98 -> 1309 | HF98: =HB98 -> 1309 | HJ98: =HF98 -> 1309 | HN98: =HJ98 -> 1309 | HR98: =HN98 -> 1309 | HV98: =HR98 -> 1309 | HZ98: =HV98 -> 1309 | ID98: =HZ98 -> 1309 | IH98: =ID98 -> 1309 | IL98: =IH98 -> 1309 | IP98: =IL98 -> 1309 | IT98: =IP98 -> 1309 | IX98: =IT98 -> 1309 | JB98: =IX98 -> 1309 | JF98: =JB98 -> 1309 | JJ98: =JF98 -> 1309 | JN98: =JJ98 -> 1309 | JR98: =JN98 -> 1309 | JV98: =JR98 -> 1309 | JZ98: =JV98 -> 1309 | KD98: =JZ98 -> 1309 | KH98: =KD98 -> 1309 | KL98: =KH98 -> 1309 | KP98: =KL98 -> 1309 | KT98: =KP98 -> 1309
A99: Total liabilities | I99: =SUM(I93:I98) -> 47201 | M99: =SUM(M93:M98) -> 47129 | Q99: =SUM(Q93:Q98) -> 47322 | U99: =SUM(U93:U98) -> 53666 | Y99: =SUM(Y93:Y98) -> 53666 | AC99: =SUM(AC93:AC98) -> 51657 | AG99: =SUM(AG93:AG98) -> 51707 | AK99: =SUM(AK93:AK98) -> 56234 | AO99: =SUM(AO93:AO98) -> 58067 | AS99: =SUM(AS93:AS98) -> 58067 | AW99: =SUM(AW93:AW98) -> 62874 | BA99: =SUM(BA93:BA98) -> 62430 | BE99: =SUM(BE93:BE98) -> 60568 | BI99: =SUM(BI93:BI98) -> 63681 | BM99: =SUM(BM93:BM98) -> 63681 | BQ99: =SUM(BQ93:BQ98) -> 64972 | BU99: =SUM(BU93:BU98) -> 79528 | BY99: =SUM(BY93:BY98) -> 67347 | CC99: =SUM(CC93:CC98) -> 65580 | CG99: =SUM(CG93:CG98) -> 65580 | CK99: =SUM(CK93:CK98) -> 61581 | CO99: =SUM(CO93:CO98) -> 61673 | CS99: =SUM(CS93:CS98) -> 60483 | CW99: =SUM(CW93:CW98) -> 64222 | DA99: =SUM(DA93:DA98) -> 64222 | DF99: =SUM(DF93:DF98) -> 58528.61737 | DJ99: =SUM(DJ93:DJ98) -> 61402.04487 | DN99: =SUM(DN93:DN98) -> 61602.46415 | DR99: =SUM(DR93:DR98) -> 63569.95676 | DV99: =SUM(DV93:DV98) -> 63569.95676 | DZ99: =SUM(DZ93:DZ98) -> 59066.42161 | ED99: =SUM(ED93:ED98) -> 62017.94652 | EH99: =SUM(EH93:EH98) -> 62186.38371 | EL99: =SUM(EL93:EL98) -> 64247.31479 | EP99: =SUM(EP93:EP98) -> 64247.31479 | ET99: =SUM(ET93:ET98) -> 59606.02894 | EX99: =SUM(EX93:EX98) -> 62667.62393 | FB99: =SUM(FB93:FB98) -> 62990.46223 | FF99: =SUM(FF93:FF98) -> 65300.07753 | FJ99: =SUM(FJ93:FJ98) -> 65300.07753 | FN99: =SUM(FN93:FN98) -> 61720.55363 | FR99: =SUM(FR93:FR98) -> 64320.6871 | FV99: =SUM(FV93:FV98) -> 64265.15498 | FZ99: =SUM(FZ93:FZ98) -> 66555.73384 | GD99: =SUM(GD93:GD98) -> 66555.73384 | GH99: =SUM(GH93:GH98) -> 62768.0752 | GL99: =SUM(GL93:GL98) -> 65494.47134 | GP99: =SUM(GP93:GP98) -> 65431.6931 | GT99: =SUM(GT93:GT98) -> 67788.84315 | GX99: =SUM(GX93:GX98) -> 67788.84315 | HB99: =SUM(HB93:HB98) -> 63780.81567 | HF99: =SUM(HF93:HF98) -> 66629.02347 | HJ99: =SUM(HJ93:HJ98) -> 66559.10989 | HN99: =SUM(HN93:HN98) -> 68975.12543 | HR99: =SUM(HR93:HR98) -> 68975.12543 | HV99: =SUM(HV93:HV98) -> 64743.0354 | HZ99: =SUM(HZ93:HZ98) -> 67707.2482 | ID99: =SUM(ID93:ID98) -> 67630.42414 | IH99: =SUM(IH93:IH98) -> 70095.23207 | IL99: =SUM(IL93:IL98) -> 70095.23207 | IP99: =SUM(IP93:IP98) -> 65073.21283 | IT99: =SUM(IT93:IT98) -> 68077.33232 | IX99: =SUM(IX93:IX98) -> 68002.30579 | JB99: =SUM(JB93:JB98) -> 70495.1747 | JF99: =SUM(JF93:JF98) -> 70495.1747 | JJ99: =SUM(JJ93:JJ98) -> 65473.58617 | JN99: =SUM(JN93:JN98) -> 68513.78023 | JR99: =SUM(JR93:JR98) -> 68442.09271 | JV99: =SUM(JV93:JV98) -> 70975.52124 | JZ99: =SUM(JZ93:JZ98) -> 70975.52124 | KD99: =SUM(KD93:KD98) -> 65887.7483 | KH99: =SUM(KH93:KH98) -> 68965.63243 | KL99: =SUM(KL93:KL98) -> 68897.21438 | KP99: =SUM(KP93:KP98) -> 71472.2027 | KT99: =SUM(KT93:KT98) -> 71472.2027
A101: Equity:
B102: Cisco shareholders' equity:
B103: Preferred stock, no par value: 5 shares authorized; none
B104: issued and outstanding | CG104: 0
B105: Common stock and additional paid-in capital, $0.001 par
B106: value: 20,000 shares authorized; 4,614 and 4,983 shares
B107: issued and outstanding at July 28, 2018 and July 29, 2017,
B108: respectively | BM108: 45253 | CG108: 42820 | DA108: 40266 | DF108: =DA108+DF130 -> 40660.96913 | DJ108: =DF108+DJ130 -> 41036.8788 | DN108: =DJ108+DN130 -> 41450.63665 | DR108: =DN108+DR130 -> 41870.94094 | DV108: =DR108 -> 41870.94094 | DZ108: =DV108+DZ130 -> 42276.86086 | ED108: =DZ108+ED130 -> 42662.04279 | EH108: =ED108+EH130 -> 43085.36838 | EL108: =EH108+EL130 -> 43516.20411 | EP108: =EL108 -> 43516.20411 | ET108: =EP108+ET130 -> 43931.74832 | EX108: =ET108+EX130 -> 44326.7135 | FB108: =EX108+FB130 -> 44763.23543 | FF108: =FB108+FF130 -> 45210.48701 | FJ108: =FF108 -> 45210.48701 | FN108: =FJ108+FN130 -> 45663.84919 | FR108: =FN108+FR130 -> 46083.84338 | FV108: =FR108+FV130 -> 46541.30461 | FZ108: =FV108+FZ130 -> 47008.21507 | GD108: =FZ108 -> 47008.21507 | GH108: =GD108+GH130 -> 47480.28101 | GL108: =GH108+GL130 -> 47917.99079 | GP108: =GL108+GP130 -> 48394.59862 | GT108: =GP108+GT130 -> 48880.71687 | GX108: =GT108 -> 48880.71687 | HB108: =GX108+HB130 -> 49370.86141 | HF108: =HB108+HF130 -> 49825.68378 | HJ108: =HF108+HJ130 -> 50320.7895 | HN108: =HJ108+HN130 -> 50825.376 | HR108: =HN108 -> 50825.376 | HV108: =HR108+HV130 -> 51332.69201 | HZ108: =HV108+HZ130 -> 51803.76354 | ID108: =HZ108+ID130 -> 52316.4383 | IH108: =ID108+IH130 -> 52838.44985 | IL108: =IH108 -> 52838.44985 | IP108: =IL108+IP130 -> 53351.61555 | IT108: =IP108+IT130 -> 53828.1526 | IX108: =IT108+IX130 -> 54346.85881 | JB108: =IX108+JB130 -> 54874.99609 | JF108: =JB108 -> 54874.99609 | JJ108: =JF108+JJ130 -> 55395.28259 | JN108: =JJ108+JN130 -> 55878.33186 | JR108: =JN108+JR130 -> 56404.21149 | JV108: =JR108+JV130 -> 56939.76757 | JZ108: =JV108 -> 56939.76757 | KD108: =JZ108+KD130 -> 57467.42034 | KH108: =KD108+KH130 -> 57957.21235 | KL108: =KH108+KL130 -> 58490.5159 | KP108: =KL108+KP130 -> 59033.74353 | KT108: =KP108 -> 59033.74353
B109: Retained earnings | BM109: 20838 | CG109: 1233 | DA109: -5903 | DF109: =DA109+DF127+DF167+DF161 -> -8043.324785 | DJ109: =DF109+DJ127+DJ167+DJ161 -> -10156.99543 | DN109: =DJ109+DN127+DN167+DN161 -> -12335.65118 | DR109: =DN109+DR127+DR167+DR161 -> -14335.34932 | DV109: =DR109 -> -14335.34932 | DZ109: =DV109+DZ127+DZ167+DZ161 -> -15767.33897 | ED109: =DZ109+ED127+ED167+ED161 -> -17118.04882 | EH109: =ED109+EH127+EH167+EH161 -> -18568.70364 | EL109: =EH109+EL127+EL167+EL161 -> -19840.31458 | EP109: =EL109 -> -19840.31458 | ET109: =EP109+ET127+ET167+ET161 -> -19557.93288 | EX109: =ET109+EX127+EX167+EX161 -> -19195.62592 | FB109: =EX109+FB127+FB167+FB161 -> -18951.91267 | FF109: =FB109+FF127+FF167+FF161 -> -18511.52216 | FJ109: =FF109 -> -18511.52216 | FN109: =FJ109+FN127+FN167+FN161 -> -18252.07611 | FR109: =FN109+FR127+FR167+FR161 -> -17992.49011 | FV109: =FR109+FV127+FV167+FV161 -> -17923.30198 | FZ109: =FV109+FZ127+FZ167+FZ161 -> -17670.13933 | GD109: =FZ109 -> -17670.13933 | GH109: =GD109+GH127+GH167+GH161 -> -17602.03043 | GL109: =GH109+GL127+GL167+GL161 -> -17536.03922 | GP109: =GL109+GP127+GP167+GP161 -> -17701.53713 | GT109: =GP109+GT127+GT167+GT161 -> -17682.38624 | GX109: =GT109 -> -17682.38624 | HB109: =GX109+HB127+HB167+HB161 -> -17857.89853 | HF109: =HB109+HF127+HF167+HF161 -> -18037.54784 | HJ109: =HF109+HJ127+HJ167+HJ161 -> -18497.25597 | HN109: =HJ109+HN127+HN167+HN161 -> -18772.03314 | HR109: =HN109 -> -18772.03314 | HV109: =HR109+HV127+HV167+HV161 -> -19252.18667 | HZ109: =HV109+HZ127+HZ167+HZ161 -> -19738.18993 | ID109: =HZ109+ID127+ID167+ID161 -> -20561.49885 | IH109: =ID109+IH127+IH167+IH161 -> -21200.14839 | IL109: =IH109 -> -21200.14839 | IP109: =IL109+IP127+IP167+IP161 -> -22122.78025 | IT109: =IP109+IT127+IT167+IT161 -> -23050.7768 | IX109: =IT109+IX127+IX167+IX161 -> -24387.47658 | JB109: =IX109+JB127+JB167+JB161 -> -25537.133 | JF109: =JB109 -> -25537.133 | JJ109: =JF109+JJ127+JJ167+JJ161 -> -26967.51378 | JN109: =JJ109+JN127+JN167+JN161 -> -28404.60609 | JR109: =JN109+JR127+JR167+JR161 -> -30331.47115 | JV109: =JR109+JV127+JV167+JV161 -> -32068.49711 | JZ109: =JV109 -> -32068.49711 | KD109: =JZ109+KD127+KD167+KD161 -> -34088.27294 | KH109: =KD109+KH127+KH167+KH161 -> -36116.11194 | KL109: =KH109+KL127+KL167+KL161 -> -37989.41899 | KP109: =KL109+KP127+KP167+KP161 -> -39670.03848 | KT109: =KP109 -> -39670.03848
B110: Accumulated other comprehensive income (loss) | BM110: 46 | CG110: -849 | DA110: -792 | DF110: =DA110 -> -792 | DJ110: =DF110 -> -792 | DN110: =DJ110 -> -792 | DR110: =DN110 -> -792 | DV110: =DR110 -> -792 | DZ110: =DV110 -> -792 | ED110: =DZ110 -> -792 | EH110: =ED110 -> -792 | EL110: =EH110 -> -792 | EP110: =EL110 -> -792 | ET110: =EP110 -> -792 | EX110: =ET110 -> -792 | FB110: =EX110 -> -792 | FF110: =FB110 -> -792 | FJ110: =FF110 -> -792 | FN110: =FJ110 -> -792 | FR110: =FN110 -> -792 | FV110: =FR110 -> -792 | FZ110: =FV110 -> -792 | GD110: =FZ110 -> -792 | GH110: =GD110 -> -792 | GL110: =GH110 -> -792 | GP110: =GL110 -> -792 | GT110: =GP110 -> -792 | GX110: =GT110 -> -792 | HB110: =GX110 -> -792 | HF110: =HB110 -> -792 | HJ110: =HF110 -> -792 | HN110: =HJ110 -> -792 | HR110: =HN110 -> -792 | HV110: =HR110 -> -792 | HZ110: =HV110 -> -792 | ID110: =HZ110 -> -792 | IH110: =ID110 -> -792 | IL110: =IH110 -> -792 | IP110: =IL110 -> -792 | IT110: =IP110 -> -792 | IX110: =IT110 -> -792 | JB110: =IX110 -> -792 | JF110: =JB110 -> -792 | JJ110: =JF110 -> -792 | JN110: =JJ110 -> -792 | JR110: =JN110 -> -792 | JV110: =JR110 -> -792 | JZ110: =JV110 -> -792 | KD110: =JZ110 -> -792 | KH110: =KD110 -> -792 | KL110: =KH110 -> -792 | KP110: =KL110 -> -792 | KT110: =KP110 -> -792
A112: Total equity | I112: 56715 | M112: 57733 | Q112: 58833 | U112: 59707 | Y112: 59707 | AC112: 59985 | AG112: 60878 | AK112: 62358 | AO112: 63585 | AS112: 63585 | AW112: 63413 | BA112: 63818 | BE112: 65382 | BI112: 66137 | BM112: =SUM(BM104:BM110) -> 66137 | BQ112: 65550 | BU112: 51982 | BY112: 46661 | CC112: 43204 | CG112: =SUM(CG104:CG110) -> 43204 | CK112: 43848 | CO112: 40789 | CS112: 36804 | CW112: 33571 | DA112: 33571 | DF112: =SUM(DF108:DF110) -> 31825.64435 | DJ112: =SUM(DJ108:DJ110) -> 30087.88337 | DN112: =SUM(DN108:DN110) -> 28322.98547 | DR112: =SUM(DR108:DR110) -> 26743.59162 | DV112: =SUM(DV108:DV110) -> 26743.59162 | DZ112: =SUM(DZ108:DZ110) -> 25717.52189 | ED112: =SUM(ED108:ED110) -> 24751.99396 | EH112: =SUM(EH108:EH110) -> 23724.66474 | EL112: =SUM(EL108:EL110) -> 22883.88952 | EP112: =SUM(EP108:EP110) -> 22883.88952 | ET112: =SUM(ET108:ET110) -> 23581.81543 | EX112: =SUM(EX108:EX110) -> 24339.08758 | FB112: =SUM(FB108:FB110) -> 25019.32276 | FF112: =SUM(FF108:FF110) -> 25906.96485 | FJ112: =SUM(FJ108:FJ110) -> 25906.96485 | FN112: =SUM(FN108:FN110) -> 26619.77308 | FR112: =SUM(FR108:FR110) -> 27299.35327 | FV112: =SUM(FV108:FV110) -> 27826.00262 | FZ112: =SUM(FZ108:FZ110) -> 28546.07574 | GD112: =SUM(GD108:GD110) -> 28546.07574 | GH112: =SUM(GH108:GH110) -> 29086.25058 | GL112: =SUM(GL108:GL110) -> 29589.95157 | GP112: =SUM(GP108:GP110) -> 29901.06149 | GT112: =SUM(GT108:GT110) -> 30406.33063 | GX112: =SUM(GX108:GX110) -> 30406.33063 | HB112: =SUM(HB108:HB110) -> 30720.96288 | HF112: =SUM(HF108:HF110) -> 30996.13594 | HJ112: =SUM(HJ108:HJ110) -> 31031.53353 | HN112: =SUM(HN108:HN110) -> 31261.34286 | HR112: =SUM(HR108:HR110) -> 31261.34286 | HV112: =SUM(HV108:HV110) -> 31288.50533 | HZ112: =SUM(HZ108:HZ110) -> 31273.57361 | ID112: =SUM(ID108:ID110) -> 30962.93944 | IH112: =SUM(IH108:IH110) -> 30846.30146 | IL112: =SUM(IL108:IL110) -> 30846.30146 | IP112: =SUM(IP108:IP110) -> 30436.83529 | IT112: =SUM(IT108:IT110) -> 29985.3758 | IX112: =SUM(IX108:IX110) -> 29167.38223 | JB112: =SUM(JB108:JB110) -> 28545.8631 | JF112: =SUM(JF108:JF110) -> 28545.8631 | JJ112: =SUM(JJ108:JJ110) -> 27635.76882 | JN112: =SUM(JN108:JN110) -> 26681.72576 | JR112: =SUM(JR108:JR110) -> 25280.74033 | JV112: =SUM(JV108:JV110) -> 24079.27046 | JZ112: =SUM(JZ108:JZ110) -> 24079.27046 | KD112: =SUM(KD108:KD110) -> 22587.14739 | KH112: =SUM(KH108:KH110) -> 21049.10041 | KL112: =SUM(KL108:KL110) -> 19709.09692 | KP112: =SUM(KP108:KP110) -> 18571.70505 | KT112: =SUM(KT108:KT110) -> 18571.70505
A114: Total Liabilities and Equity | I114: =I99+I112 -> 103916 | M114: =M99+M112 -> 104862 | Q114: =Q99+Q112 -> 106155 | U114: =U99+U112 -> 113373 | Y114: =Y99+Y112 -> 113373 | AC114: =AC99+AC112 -> 111642 | AG114: =AG99+AG112 -> 112585 | AK114: =AK99+AK112 -> 118592 | AO114: =AO99+AO112 -> 121652 | AS114: =AS99+AS112 -> 121652 | AW114: =AW99+AW112 -> 126287 | BA114: =BA99+BA112 -> 126248 | BE114: =BE99+BE112 -> 125950 | BI114: =BI99+BI112 -> 129818 | BM114: =BM99+BM112 -> 129818 | BQ114: =BQ99+BQ112 -> 130522 | BU114: =BU99+BU112 -> 131510 | BY114: =BY99+BY112 -> 114008 | CC114: =CC99+CC112 -> 108784 | CG114: =CG99+CG112 -> 108784 | CK114: =CK99+CK112 -> 105429 | CO114: =CO99+CO112 -> 102462 | CS114: =CS99+CS112 -> 97287 | CW114: =CW99+CW112 -> 97793 | DA114: =DA99+DA112 -> 97793 | DF114: =DF99+DF112 -> 90354.26172 | DJ114: =DJ99+DJ112 -> 91489.92824 | DN114: =DN99+DN112 -> 89925.44962 | DR114: =DR99+DR112 -> 90313.54839 | DV114: =DV99+DV112 -> 90313.54839 | DZ114: =DZ99+DZ112 -> 84783.94351 | ED114: =ED99+ED112 -> 86769.94048 | EH114: =EH99+EH112 -> 85911.04845 | EL114: =EL99+EL112 -> 87131.20431 | EP114: =EP99+EP112 -> 87131.20431 | ET114: =ET99+ET112 -> 83187.84437 | EX114: =EX99+EX112 -> 87006.7115 | FB114: =FB99+FB112 -> 88009.78499 | FF114: =FF99+FF112 -> 91207.04238 | FJ114: =FJ99+FJ112 -> 91207.04238 | FN114: =FN99+FN112 -> 88340.32671 | FR114: =FR99+FR112 -> 91620.04037 | FV114: =FV99+FV112 -> 92091.1576 | FZ114: =FZ99+FZ112 -> 95101.80958 | GD114: =GD99+GD112 -> 95101.80958 | GH114: =GH99+GH112 -> 91854.32578 | GL114: =GL99+GL112 -> 95084.42291 | GP114: =GP99+GP112 -> 95332.75459 | GT114: =GT99+GT112 -> 98195.17378 | GX114: =GX99+GX112 -> 98195.17378 | HB114: =HB99+HB112 -> 94501.77855 | HF114: =HF99+HF112 -> 97625.15941 | HJ114: =HJ99+HJ112 -> 97590.64342 | HN114: =HN99+HN112 -> 100236.4683 | HR114: =HR99+HR112 -> 100236.4683 | HV114: =HV99+HV112 -> 96031.54074 | HZ114: =HZ99+HZ112 -> 98980.82182 | ID114: =ID99+ID112 -> 98593.36359 | IH114: =IH99+IH112 -> 100941.5335 | IL114: =IL99+IL112 -> 100941.5335 | IP114: =IP99+IP112 -> 95510.04812 | IT114: =IT99+IT112 -> 98062.70812 | IX114: =IX99+IX112 -> 97169.68802 | JB114: =JB99+JB112 -> 99041.0378 | JF114: =JF99+JF112 -> 99041.0378 | JJ114: =JJ99+JJ112 -> 93109.35499 | JN114: =JN99+JN112 -> 95195.50599 | JR114: =JR99+JR112 -> 93722.83304 | JV114: =JV99+JV112 -> 95054.7917 | JZ114: =JZ99+JZ112 -> 95054.7917 | KD114: =KD99+KD112 -> 88474.89569 | KH114: =KH99+KH112 -> 90014.73284 | KL114: =KL99+KL112 -> 88606.3113 | KP114: =KP99+KP112 -> 90043.90775 | KT114: =KT99+KT112 -> 90043.90775
F117: Additional D&A | DF117: =DF129 -> 464.4662913 | DJ117: =DJ129 -> 425.5642871 | DN117: =DN129 -> 392.4814937 | DR117: =DR129 -> 366.2450654 | DV117: =DV129 -> 1648.757137 | DZ117: =DZ129 -> 346.2223044 | ED117: =ED129 -> 328.078065 | EH117: =EH129 -> 312.1622456 | EL117: =EL129 -> 300.2065268 | EP117: =EP129 -> 1286.669142 | ET117: =ET129 -> 292.2080679 | EX117: =EX129 -> 317.9123057 | FB117: =FB129 -> 337.9632341 | FF117: =FF129 -> 357.5686308 | FJ117: =FJ129 -> 1305.652238 | FN117: =FN129 -> 378.1715345 | FR117: =FR129 -> 396.3278655 | FV117: =FV129 -> 407.9455259 | FZ117: =FZ129 -> 419.5366548 | GD117: =GD129 -> 1601.981581 | GH117: =GH129 -> 433.34272 | GL117: =GL129 -> 445.6583991 | GP117: =GP129 -> 452.3348578 | GT117: =GT129 -> 459.8621895 | GX117: =GX129 -> 1791.198167 | HB117: =HB129 -> 470.3948097 | HF117: =HF129 -> 439.7702651 | HJ117: =HJ129 -> 412.2544323 | HN117: =HN129 -> 390.4174809 | HR117: =HR129 -> 1712.836988 | HV117: =HV129 -> 374.5847185 | HZ117: =HZ129 -> 361.5874549 | ID117: =ID129 -> 348.7252602 | IH117: =IH129 -> 339.1294948 | IL117: =IL129 -> 1424.026928 | IP117: =IP129 -> 333.536518 | IT117: =IT129 -> 327.9446514 | IX117: =IX129 -> 321.2345881 | JB117: =JB129 -> 316.7873263 | JF117: =JF129 -> 1299.503084 | JJ117: =JJ129 -> 315.5122198 | JN117: =JN129 -> 313.6151994 | JR117: =JR129 -> 309.9461369 | JV117: =JV129 -> 308.0571261 | JZ117: =JZ129 -> 1247.130682 | KD117: =KD129 -> 308.9590645 | KH117: =KH129 -> 308.8704369 | KL117: =KL129 -> 306.6693631 | KP117: =KP129 -> 306.0280666 | KT117: =KT129 -> 1230.526931
F118: Additional Depreciation | DF118: =DF117-DF30 -> 427.1714778 | DJ118: =DJ117-DJ30 -> 388.9090361 | DN118: =DN117-DN30 -> 354.5294187 | DR118: =DR117-DR30 -> 326.503924 | DV118: =DV117-DV30 -> 1497.113857 | DZ118: =DZ117-DZ30 -> 307.8934665 | ED118: =ED117-ED30 -> 290.5186692 | EH118: =EH117-EH30 -> 273.3325666 | EL118: =EL117-EL30 -> 259.4696036 | EP118: =EP117-EP30 -> 1131.214306 | ET118: =ET117-ET30 -> 252.9704599 | EX118: =EX117-EX30 -> 279.3989369 | FB118: =FB117-FB30 -> 297.9231162 | FF118: =FF117-FF30 -> 315.279535 | FJ118: =FJ117-FJ30 -> 1145.572048 | FN118: =FN117-FN30 -> 335.3629791 | FR118: =FR117-FR30 -> 355.3738981 | FV118: =FV117-FV30 -> 365.9847447 | FZ118: =FZ117-FZ30 -> 375.3887472 | GD118: =GD117-GD30 -> 1432.110369 | GH118: =GH117-GH30 -> 388.768069 | GL118: =GL117-GL30 -> 402.9769701 | GP118: =GP117-GP30 -> 408.6178486 | GT118: =GT117-GT30 -> 413.8981228 | GX118: =GX117-GX30 -> 1614.26101 | HB118: =HB117-HB30 -> 424.1130933 | HF118: =HF117-HF30 -> 395.4201741 | HJ118: =HJ117-HJ30 -> 366.8406973 | HN118: =HN117-HN30 -> 342.7071817 | HR118: =HR117-HR30 -> 1529.081146 | HV118: =HV117-HV30 -> 326.6815926 | HZ118: =HZ117-HZ30 -> 315.6528948 | ID118: =ID117-ID30 -> 301.7000001 | IH118: =IH117-IH30 -> 289.7715995 | IL118: =IL117-IL30 -> 1233.806087 | IP118: =IP117-IP30 -> 285.0810378 | IT118: =IT117-IT30 -> 281.4771443 | IX118: =IX117-IX30 -> 273.6560906 | JB118: =JB117-JB30 -> 266.8502235 | JF118: =JF117-JF30 -> 1107.064496 | JJ118: =JJ117-JJ30 -> 266.38436 | JN118: =JN117-JN30 -> 266.5126814 | JR118: =JR117-JR30 -> 261.7096554 | JV118: =JV117-JV30 -> 257.4185514 | JZ118: =JZ117-JZ30 -> 1052.025248 | KD118: =KD117-KD30 -> 259.1356478 | KH118: =KH117-KH30 -> 261.1104283 | KL118: =KL117-KL30 -> 257.7519193 | KP118: =KP117-KP30 -> 254.6641221 | KT118: =KT117-KT30 -> 1032.662118
F119: =C130 -> Share-based compensation expense | DF119: =DF130 -> 394.9691299 | DJ119: =DJ130 -> 375.9096693 | DN119: =DN130 -> 413.7578553 | DR119: =DR130 -> 420.304287 | DV119: =DV130 -> 1604.940942 | DZ119: =DZ130 -> 405.9199207 | ED119: =ED130 -> 385.1819235 | EH119: =EH130 -> 423.3255948 | EL119: =EL130 -> 430.8357245 | EP119: =EP130 -> 1645.263163 | ET119: =ET130 -> 415.544213 | EX119: =EX130 -> 394.9651775 | FB119: =FB130 -> 436.5219367 | FF119: =FF130 -> 447.2515789 | FJ119: =FJ130 -> 1694.282906 | FN119: =FN130 -> 453.3621787 | FR119: =FR130 -> 419.9941875 | FV119: =FV130 -> 457.4612283 | FZ119: =FZ130 -> 466.9104653 | GD119: =GD130 -> 1797.72806 | GH119: =GH130 -> 472.0659388 | GL119: =GL130 -> 437.7097812 | GP119: =GP130 -> 476.6078268 | GT119: =GT130 -> 486.1182541 | GX119: =GX130 -> 1872.501801 | HB119: =HB130 -> 490.1445404 | HF119: =HF130 -> 454.8223671 | HJ119: =HJ130 -> 495.105724 | HN119: =HN130 -> 504.5864956 | HR119: =HR130 -> 1944.659127 | HV119: =HV130 -> 507.3160097 | HZ119: =HZ130 -> 471.0715341 | ID119: =ID130 -> 512.674755 | IH119: =IH130 -> 522.011554 | IL119: =IL130 -> 2013.073853 | IP119: =IP130 -> 513.1656942 | IT119: =IT130 -> 476.537052 | IX119: =IX130 -> 518.7062125 | JB119: =JB130 -> 528.1372816 | JF119: =JF130 -> 2036.54624 | JJ119: =JJ130 -> 520.286501 | JN119: =JN130 -> 483.0492633 | JR119: =JR130 -> 525.8796301 | JV119: =JV130 -> 535.5560835 | JZ119: =JZ130 -> 2064.771478 | KD119: =KD130 -> 527.6527671 | KH119: =KH130 -> 489.79201 | KL119: =KL130 -> 533.3035578 | KP119: =KP130 -> 543.2276301 | KT119: =KT130 -> 2093.975965
F120: PPE Spend | DF120: =DF154 -> -193.575 | DJ120: =DJ154 -> -190.2554146 | DN120: =DN154 -> -196.98645 | DR120: =DR154 -> -206.2724205 | DV120: =DV154 -> -787.0892851 | DZ120: =DZ154 -> -198.942 | ED120: =ED154 -> -194.9482882 | EH120: =EH154 -> -201.541566 | EL120: =EL154 -> -211.4409262 | EP120: =EP154 -> -806.8727804 | ET120: =ET154 -> -407.317762 | EX120: =EX154 -> -399.7995781 | FB120: =FB154 -> -415.6484551 | FF120: =FF154 -> -438.9946455 | FJ120: =FJ154 -> -1661.760441 | FN120: =FN154 -> -444.3870525 | FR120: =FR154 -> -425.134945 | FV120: =FV154 -> -435.5864775 | FZ120: =FZ154 -> -458.2905994 | GD120: =GD154 -> -1763.399074 | GH120: =GH154 -> -462.7205378 | GL120: =GL154 -> -443.0673787 | GP120: =GP154 -> -453.8175294 | GT120: =GT154 -> -477.1437837 | GX120: =GX154 -> -1836.74923 | HB120: =HB154 -> -240.2206204 | HF120: =HF154 -> -230.1947119 | HJ120: =HJ154 -> -235.7154497 | HN120: =HN154 -> -247.6355369 | HR120: =HR154 -> -953.7663189 | HV120: =HV154 -> -248.6363848 | HZ120: =HZ154 -> -238.4187409 | ID120: =ID154 -> -244.0799097 | IH120: =IH154 -> -256.1872198 | IL120: =IL154 -> -987.3222552 | IP120: =IP154 -> -251.5033245 | IT120: =IT154 -> -241.184949 | IX120: =IX154 -> -246.9514333 | JB120: =JB154 -> -259.1935386 | JF120: =JF154 -> -998.8332453 | JJ120: =JJ154 -> -254.9932433 | JN120: =JN154 -> -244.4809096 | JR120: =JR154 -> -250.3666338 | JV120: =JV154 -> -262.8344584 | JZ120: =JZ154 -> -1012.675245 | KD120: =KD154 -> -258.603462 | KH120: =KH154 -> -247.8935488 | KL120: =KL154 -> -253.9011001 | KP120: =KP154 -> -266.5994176 | KT120: =KT154 -> -1026.997528
F121: PPE Proceeds | DF121: =DF155 -> 0 | DJ121: =DJ155 -> 0 | DN121: =DN155 -> 0 | DR121: =DR155 -> 0 | DV121: =DV155 -> 0 | DZ121: =DZ155 -> 0 | ED121: =ED155 -> 0 | EH121: =EH155 -> 0 | EL121: =EL155 -> 0 | EP121: =EP155 -> 0 | ET121: =ET155 -> 0 | EX121: =EX155 -> 0 | FB121: =FB155 -> 0 | FF121: =FF155 -> 0 | FJ121: =FJ155 -> 0 | FN121: =FN155 -> 0 | FR121: =FR155 -> 0 | FV121: =FV155 -> 0 | FZ121: =FZ155 -> 0 | GD121: =GD155 -> 0 | GH121: =GH155 -> 0 | GL121: =GL155 -> 0 | GP121: =GP155 -> 0 | GT121: =GT155 -> 0 | GX121: =GX155 -> 0 | HB121: =HB155 -> 0 | HF121: =HF155 -> 0 | HJ121: =HJ155 -> 0 | HN121: =HN155 -> 0 | HR121: =HR155 -> 0 | HV121: =HV155 -> 0 | HZ121: =HZ155 -> 0 | ID121: =ID155 -> 0 | IH121: =IH155 -> 0 | IL121: =IL155 -> 0 | IP121: =IP155 -> 0 | IT121: =IT155 -> 0 | IX121: =IX155 -> 0 | JB121: =JB155 -> 0 | JF121: =JF155 -> 0 | JJ121: =JJ155 -> 0 | JN121: =JN155 -> 0 | JR121: =JR155 -> 0 | JV121: =JV155 -> 0 | JZ121: =JZ155 -> 0 | KD121: =KD155 -> 0 | KH121: =KH155 -> 0 | KL121: =KL155 -> 0 | KP121: =KP155 -> 0 | KT121: =KT155 -> 0
F123: Balance Sheet Check | DF123: =DF83-DF114 -> 0 | DJ123: =DJ83-DJ114 -> 0 | DN123: =DN83-DN114 -> 0 | DR123: =DR83-DR114 -> 0 | DV123: =DV83-DV114 -> 0 | DZ123: =DZ83-DZ114 -> 0 | ED123: =ED83-ED114 -> 0 | EH123: =EH83-EH114 -> 0 | EL123: =EL83-EL114 -> 0 | EP123: =EP83-EP114 -> 0 | ET123: =ET83-ET114 -> 0 | EX123: =EX83-EX114 -> 0 | FB123: =FB83-FB114 -> 0 | FF123: =FF83-FF114 -> 0 | FJ123: =FJ83-FJ114 -> 0 | FN123: =FN83-FN114 -> 0 | FR123: =FR83-FR114 -> 0 | FV123: =FV83-FV114 -> 0 | FZ123: =FZ83-FZ114 -> 0 | GD123: =GD83-GD114 -> 0 | GH123: =GH83-GH114 -> 0 | GL123: =GL83-GL114 -> 0 | GP123: =GP83-GP114 -> 0 | GT123: =GT83-GT114 -> 0 | GX123: =GX83-GX114 -> 0 | HB123: =HB83-HB114 -> 0 | HF123: =HF83-HF114 -> 0 | HJ123: =HJ83-HJ114 -> 0 | HN123: =HN83-HN114 -> 0 | HR123: =HR83-HR114 -> 0 | HV123: =HV83-HV114 -> 0 | HZ123: =HZ83-HZ114 -> 0 | ID123: =ID83-ID114 -> 0 | IH123: =IH83-IH114 -> 0 | IL123: =IL83-IL114 -> 0 | IP123: =IP83-IP114 -> 0 | IT123: =IT83-IT114 -> 0 | IX123: =IX83-IX114 -> 0 | JB123: =JB83-JB114 -> 0 | JF123: =JF83-JF114 -> 0 | JJ123: =JJ83-JJ114 -> 0 | JN123: =JN83-JN114 -> 0 | JR123: =JR83-JR114 -> 0 | JV123: =JV83-JV114 -> 0 | JZ123: =JZ83-JZ114 -> 0 | KD123: =KD83-KD114 -> 0 | KH123: =KH83-KH114 -> 0 | KL123: =KL83-KL114 -> 0 | KP123: =KP83-KP114 -> 0 | KT123: =KT83-KT114 -> 0
A124: Statement of Cash Flows | G124: x
A126: Cash flows from operating activities:
B127: Net income | I127: 1828 | M127: 2397 | Q127: 2437 | U127: 2319 | Y127: =+M127+I127+Q127+U127 -> 8981 | AC127: 2430 | AG127: 3147 | AK127: 2349 | AO127: 2813 | AS127: =AC127+AG127+AK127+AO127 -> 10739 | AW127: 2322 | BA127: 2348 | BE127: 2515 | BI127: 2424 | BM127: =SUM(AW127+BA127+BE127+BI127) -> 9609 | BQ127: 2394 | BU127: -8778 | BY127: 2691 | CC127: 3803 | CG127: =CG47 -> 110 | CK127: 3549 | CO127: 2822 | CS127: 3044 | CW127: 2206 | DA127: =CS127+CW127+CO127+CK127 -> 11621 | DF127: =DF47 -> 2710.978782 | DJ127: =DJ47 -> 2722.807856 | DN127: =DN47 -> 2861.677072 | DR127: =DR47 -> 3028.878386 | DV127: =DN127+DR127+DJ127+DF127 -> 11324.3421 | DZ127: =DZ47 -> 2714.352812 | ED127: =ED47 -> 2789.623264 | EH127: =EH47 -> 2928.627722 | EL127: =EL47 -> 3102.906182 | EP127: =EH127+EL127+ED127+DZ127 -> 11535.50998 | ET127: =ET47 -> 2780.909162 | EX127: =EX47 -> 2860.012313 | FB127: =FB47 -> 3019.982463 | FF127: =FF47 -> 3216.007785 | FJ127: =FB127+FF127+EX127+ET127 -> 11876.91172 | FN127: =FN47 -> 3034.521764 | FR127: =FR47 -> 3034.21183 | FV127: =FV47 -> 3164.040985 | FZ127: =FZ47 -> 3347.658756 | GD127: =FV127+FZ127+FR127+FN127 -> 12580.43334 | GH127: =GH47 -> 3162.308638 | GL127: =GL47 -> 3159.94477 | GP127: =GP47 -> 3296.510769 | GT127: =GT47 -> 3480.964335 | GX127: =GP127+GT127+GL127+GH127 -> 13099.72851 | HB127: =HB47 -> 3286.138992 | HF127: =HF47 -> 3281.867249 | HJ127: =HJ47 -> 3424.798772 | HN127: =HN47 -> 3609.622907 | HR127: =HJ127+HN127+HF127+HB127 -> 13602.42792 | HV127: =HV47 -> 3404.1578 | HZ127: =HZ47 -> 3398.234356 | ID127: =ID47 -> 3547.033933 | IH127: =IH47 -> 3731.634864 | IL127: =ID127+IH127+HZ127+HV127 -> 14081.06095 | IP127: =IP47 -> 3447.603969 | IT127: =IT47 -> 3442.19895 | IX127: =IX47 -> 3592.122432 | JB127: =JB47 -> 3779.133815 | JF127: =IX127+JB127+IT127+IP127 -> 14261.05917 | JJ127: =JJ47 -> 3498.382871 | JN127: =JN47 -> 3491.64926 | JR127: =JR47 -> 3643.83817 | JV127: =JV47 -> 3833.659762 | JZ127: =JR127+JV127+JN127+JJ127 -> 14467.53006 | KD127: =KD47 -> 3550.895348 | KH127: =KH47 -> 3542.820102 | KL127: =KL47 -> 3697.342017 | KP127: =KP47 -> 3890.021228 | KT127: =KL127+KP127+KH127+KD127 -> 14681.0787
B128: Adjustments to reconcile net income to net cash provided by operating activities:
C129: Depreciation, amortization, and other | I129: 599 | M129: 630 | Q129: 570 | U129: 643 | Y129: =+M129+I129+Q129+U129 -> 2442 | AC129: 507 | AG129: 498 | AK129: 541 | AO129: 604 | AS129: =AC129+AG129+AK129+AO129 -> 2150 | AW129: 599 | BA129: 549 | BE129: 560 | BI129: 578 | BM129: =AW129+BA129+BE129+BI129 -> 2286 | BQ129: 566 | BU129: 546 | BY129: 564 | CC129: 516 | CG129: =BQ129+BU129+BY129+CC129 -> 2192 | CK129: 465 | CO129: 487 | CS129: 481 | CW129: 464 | DA129: =CS129+CW129+CO129+CK129 -> 1897 | DF129: =DF180*DA$76 -> 464.4662913 | DJ129: =DJ180*DF$76 -> 425.5642871 | DN129: =DN180*DJ$76 -> 392.4814937 | DR129: =DR180*DN$76 -> 366.2450654 | DV129: =DN129+DR129+DJ129+DF129 -> 1648.757137 | DZ129: =DZ180*DV$76 -> 346.2223044 | ED129: =ED180*DZ$76 -> 328.078065 | EH129: =EH180*ED$76 -> 312.1622456 | EL129: =EL180*EH$76 -> 300.2065268 | EP129: =EH129+EL129+ED129+DZ129 -> 1286.669142 | ET129: =ET180*EP$76 -> 292.2080679 | EX129: =EX180*ET$76 -> 317.9123057 | FB129: =FB180*EX$76 -> 337.9632341 | FF129: =FF180*FB$76 -> 357.5686308 | FJ129: =FB129+FF129+EX129+ET129 -> 1305.652238 | FN129: =FN180*FJ$76 -> 378.1715345 | FR129: =FR180*FN$76 -> 396.3278655 | FV129: =FV180*FR$76 -> 407.9455259 | FZ129: =FZ180*FV$76 -> 419.5366548 | GD129: =FV129+FZ129+FR129+FN129 -> 1601.981581 | GH129: =GH180*GD$76 -> 433.34272 | GL129: =GL180*GH$76 -> 445.6583991 | GP129: =GP180*GL$76 -> 452.3348578 | GT129: =GT180*GP$76 -> 459.8621895 | GX129: =GP129+GT129+GL129+GH129 -> 1791.198167 | HB129: =HB180*GX$76 -> 470.3948097 | HF129: =HF180*HB$76 -> 439.7702651 | HJ129: =HJ180*HF$76 -> 412.2544323 | HN129: =HN180*HJ$76 -> 390.4174809 | HR129: =HJ129+HN129+HF129+HB129 -> 1712.836988 | HV129: =HV180*HR$76 -> 374.5847185 | HZ129: =HZ180*HV$76 -> 361.5874549 | ID129: =ID180*HZ$76 -> 348.7252602 | IH129: =IH180*ID$76 -> 339.1294948 | IL129: =ID129+IH129+HZ129+HV129 -> 1424.026928 | IP129: =IP180*IL$76 -> 333.536518 | IT129: =IT180*IP$76 -> 327.9446514 | IX129: =IX180*IT$76 -> 321.2345881 | JB129: =JB180*IX$76 -> 316.7873263 | JF129: =IX129+JB129+IT129+IP129 -> 1299.503084 | JJ129: =JJ180*JF$76 -> 315.5122198 | JN129: =JN180*JJ$76 -> 313.6151994 | JR129: =JR180*JN$76 -> 309.9461369 | JV129: =JV180*JR$76 -> 308.0571261 | JZ129: =JR129+JV129+JN129+JJ129 -> 1247.130682 | KD129: =KD180*JZ$76 -> 308.9590645 | KH129: =KH180*KD$76 -> 308.8704369 | KL129: =KL180*KH$76 -> 306.6693631 | KP129: =KP180*KL$76 -> 306.0280666 | KT129: =KL129+KP129+KH129+KD129 -> 1230.526931
C130: Share-based compensation expense | I130: 369 | M130: 308 | Q130: 367 | U130: 396 | Y130: =+M130+I130+Q130+U130 -> 1440 | AC130: 376 | AG130: 330 | AK130: 395 | AO130: 357 | AS130: =AC130+AG130+AK130+AO130 -> 1458 | AW130: 372 | BA130: 352 | BE130: 400 | BI130: 402 | BM130: 1526 | BQ130: 392 | BU130: 393 | BY130: 399 | CC130: 392 | CG130: =BQ130+BU130+BY130+CC130 -> 1576 | CK130: 403 | CO130: 389 | CS130: 374 | CW130: 404 | DA130: =CS130+CW130+CO130+CK130 -> 1570 | DF130: =DF181*DF$14 -> 394.9691299 | DJ130: =DJ181*DJ$14 -> 375.9096693 | DN130: =DN181*DN$14 -> 413.7578553 | DR130: =DR181*DR$14 -> 420.304287 | DV130: =DN130+DR130+DJ130+DF130 -> 1604.940942 | DZ130: =DZ181*DZ$14 -> 405.9199207 | ED130: =ED181*ED$14 -> 385.1819235 | EH130: =EH181*EH$14 -> 423.3255948 | EL130: =EL181*EL$14 -> 430.8357245 | EP130: =EH130+EL130+ED130+DZ130 -> 1645.263163 | ET130: =ET181*ET$14 -> 415.544213 | EX130: =EX181*EX$14 -> 394.9651775 | FB130: =FB181*FB$14 -> 436.5219367 | FF130: =FF181*FF$14 -> 447.2515789 | FJ130: =FB130+FF130+EX130+ET130 -> 1694.282906 | FN130: =FN181*FN$14 -> 453.3621787 | FR130: =FR181*FR$14 -> 419.9941875 | FV130: =FV181*FV$14 -> 457.4612283 | FZ130: =FZ181*FZ$14 -> 466.9104653 | GD130: =FV130+FZ130+FR130+FN130 -> 1797.72806 | GH130: =GH181*GH$14 -> 472.0659388 | GL130: =GL181*GL$14 -> 437.7097812 | GP130: =GP181*GP$14 -> 476.6078268 | GT130: =GT181*GT$14 -> 486.1182541 | GX130: =GP130+GT130+GL130+GH130 -> 1872.501801 | HB130: =HB181*HB$14 -> 490.1445404 | HF130: =HF181*HF$14 -> 454.8223671 | HJ130: =HJ181*HJ$14 -> 495.105724 | HN130: =HN181*HN$14 -> 504.5864956 | HR130: =HJ130+HN130+HF130+HB130 -> 1944.659127 | HV130: =HV181*HV$14 -> 507.3160097 | HZ130: =HZ181*HZ$14 -> 471.0715341 | ID130: =ID181*ID$14 -> 512.674755 | IH130: =IH181*IH$14 -> 522.011554 | IL130: =ID130+IH130+HZ130+HV130 -> 2013.073853 | IP130: =IP181*IP$14 -> 513.1656942 | IT130: =IT181*IT$14 -> 476.537052 | IX130: =IX181*IX$14 -> 518.7062125 | JB130: =JB181*JB$14 -> 528.1372816 | JF130: =IX130+JB130+IT130+IP130 -> 2036.54624 | JJ130: =JJ181*JJ$14 -> 520.286501 | JN130: =JN181*JN$14 -> 483.0492633 | JR130: =JR181*JR$14 -> 525.8796301 | JV130: =JV181*JV$14 -> 535.5560835 | JZ130: =JR130+JV130+JN130+JJ130 -> 2064.771478 | KD130: =KD181*KD$14 -> 527.6527671 | KH130: =KH181*KH$14 -> 489.79201 | KL130: =KL181*KL$14 -> 533.3035578 | KP130: =KP181*KP$14 -> 543.2276301 | KT130: =KL130+KP130+KH130+KD130 -> 2093.975965
C131: Provision for receivables | I131: 43 | M131: 19 | Q131: 20 | U131: 52 | Y131: =+M131+I131+Q131+U131 -> 134 | AC131: 7 | AG131: 24 | AK131: -58 | AO131: 18 | AS131: -9 | AW131: 15 | BA131: -11 | BE131: 16 | BI131: -28 | BM131: -8 | BQ131: -17 | BU131: -26 | BY131: -61 | CC131: -30 | CG131: =BQ131+BU131+BY131+CC131 -> -134 | CK131: 8 | CO131: 22 | CS131: 2 | CW131: 8 | DA131: =CS131+CW131+CO131+CK131 -> 40 | DF131: 0 | DJ131: 0 | DN131: 0 | DR131: 0 | DV131: =DN131+DR131+DJ131+DF131 -> 0 | DZ131: 0 | ED131: 0 | EH131: 0 | EL131: 0 | EP131: =EH131+EL131+ED131+DZ131 -> 0 | ET131: 0 | EX131: 0 | FB131: 0 | FF131: 0 | FJ131: =FB131+FF131+EX131+ET131 -> 0 | FN131: 0 | FR131: 0 | FV131: 0 | FZ131: 0 | GD131: =FV131+FZ131+FR131+FN131 -> 0 | GH131: 0 | GL131: 0 | GP131: 0 | GT131: 0 | GX131: =GP131+GT131+GL131+GH131 -> 0 | HB131: 0 | HF131: 0 | HJ131: 0 | HN131: 0 | HR131: =HJ131+HN131+HF131+HB131 -> 0 | HV131: 0 | HZ131: 0 | ID131: 0 | IH131: 0 | IL131: =ID131+IH131+HZ131+HV131 -> 0 | IP131: 0 | IT131: 0 | IX131: 0 | JB131: 0 | JF131: =IX131+JB131+IT131+IP131 -> 0 | JJ131: 0 | JN131: 0 | JR131: 0 | JV131: 0 | JZ131: =JR131+JV131+JN131+JJ131 -> 0 | KD131: 0 | KH131: 0 | KL131: 0 | KP131: 0 | KT131: =KL131+KP131+KH131+KD131 -> 0
C132: Deferred income taxes | I132: 236 | M132: 149 | Q132: 53 | U132: -461 | Y132: -23 | AC132: 193 | AG132: 81 | AK132: -45 | AO132: -423 | AS132: -194 | AW132: 158 | BA132: -184 | BE132: -99 | BI132: 1 | BM132: -124 | BQ132: 178 | BU132: 843 | BY132: -8 | CC132: -113 | CG132: =BQ132+BU132+BY132+CC132 -> 900 | CK132: -72 | CO132: -185 | CS132: -24 | CW132: -69 | DA132: =CS132+CW132+CO132+CK132 -> -350 | DF132: =DA80-DF80 -> -318.8036528 | DJ132: =DF80-DJ80 -> 296.2566888 | DN132: =DJ80-DN80 -> -138.823894 | DR132: =DN80-DR80 -> -456.8203137 | DV132: =DN132+DR132+DJ132+DF132 -> -618.1911716 | DZ132: =DV80-DZ80 -> 293.9315244 | ED132: =DZ80-ED80 -> 201.4077284 | EH132: =ED80-EH80 -> -137.3974176 | EL132: =EH80-EL80 -> -472.4021329 | EP132: =EH132+EL132+ED132+DZ132 -> -114.4602977 | ET132: =EP80-ET80 -> 300.7664973 | EX132: =ET80-EX80 -> 203.3632596 | FB132: =EX80-FB80 -> -166.6481644 | FF132: =FB80-FF80 -> -512.3570277 | FJ132: =FB132+FF132+EX132+ET132 -> -174.8754351 | FN132: =FJ80-FN80 -> 65.5362321 | FR132: =FN80-FR80 -> 351.9563073 | FV132: =FR80-FV80 -> -117.8935293 | FZ132: =FV80-FZ80 -> -503.1551081 | GD132: =FV132+FZ132+FR132+FN132 -> -203.5560981 | GH132: =GD80-GH80 -> 62.45383928 | GL132: =GH80-GL80 -> 369.8413771 | GP132: =GL80-GP80 -> -124.7828791 | GT132: =GP80-GT80 -> -513.6267569 | GX132: =GP132+GT132+GL132+GH132 -> -206.1144196 | HB132: =GX80-HB80 -> 68.32768141 | HF132: =HB80-HF80 -> 387.0488935 | HJ132: =HF80-HJ80 -> -131.2165758 | HN132: =HJ80-HN80 -> -523.0893103 | HR132: =HJ132+HN132+HF132+HB132 -> -198.9293111 | HV132: =HR80-HV80 -> 76.41400692 | HZ132: =HV80-HZ80 -> 403.1986791 | ID132: =HZ80-ID80 -> -137.0507774 | IH132: =ID80-IH80 -> -531.2143552 | IL132: =ID132+IH132+HZ132+HV132 -> -188.6524465 | IP132: =IL80-IP80 -> 194.8115799 | IT132: =IP80-IT80 -> 407.4528097 | IX132: =IT80-IX80 -> -137.640607 | JB132: =IX80-JB80 -> -538.0657111 | JF132: =IX132+JB132+IT132+IP132 -> -73.44192845 | JJ132: =JF80-JJ80 -> 186.1411952 | JN132: =JJ80-JN80 -> 415.3290863 | JR132: =JN80-JR80 -> -139.7828217 | JV132: =JR80-JV80 -> -545.9943882 | JZ132: =JR132+JV132+JN132+JJ132 -> -84.30692841 | KD132: =JZ80-KD80 -> 185.532524 | KH132: =KD80-KH80 -> 423.4257429 | KL132: =KH80-KL80 -> -141.9829617 | KP132: =KL80-KP80 -> -554.1202759 | KT132: =KL132+KP132+KH132+KD132 -> -87.1449707
C133: Excess tax benefits from share-based compensation | I133: -71 | M133: -12 | Q133: -19 | U133: -26 | Y133: -128 | AC133: -73 | AG133: -9 | AK133: -21 | AO133: -26 | AS133: -129 | AW133: -91 | BA133: -10 | BE133: -24 | BI133: -28 | BM133: -153
C134: (Gains) losses on divestitures, investments and other, net | I134: 29 | M134: -211 | Q134: -49 | U134: -27 | Y134: -258 | AC134: -4 | AG134: -256 | AK134: -19 | AO134: -38 | AS134: -317 | AW134: 32 | BA134: 47 | BE134: 77 | BI134: -2 | BM134: 154 | BQ134: -56 | BU134: -118 | BY134: 15 | CC134: -163 | CG134: =BQ134+BU134+BY134+CC134 -> -322 | CK134: 7 | CO134: -84 | CS134: -2 | CW134: 55 | DA134: =CS134+CW134+CO134+CK134 -> -24 | DF134: =-(DA110-DF110) -> 0 | DJ134: =-(DF110-DJ110) -> 0 | DN134: =-(DJ110-DN110) -> 0 | DR134: =-(DN110-DR110) -> 0 | DV134: =DN134+DR134+DJ134+DF134 -> 0 | DZ134: =-(DV110-DZ110) -> 0 | ED134: =-(DZ110-ED110) -> 0 | EH134: =-(ED110-EH110) -> 0 | EL134: =-(EH110-EL110) -> 0 | EP134: =EH134+EL134+ED134+DZ134 -> 0 | ET134: =-(EP110-ET110) -> 0 | EX134: =-(ET110-EX110) -> 0 | FB134: =-(EX110-FB110) -> 0 | FF134: =-(FB110-FF110) -> 0 | FJ134: =FB134+FF134+EX134+ET134 -> 0 | FN134: =-(FJ110-FN110) -> 0 | FR134: =-(FN110-FR110) -> 0 | FV134: =-(FR110-FV110) -> 0 | FZ134: =-(FV110-FZ110) -> 0 | GD134: =FV134+FZ134+FR134+FN134 -> 0 | GH134: =-(GD110-GH110) -> 0 | GL134: =-(GH110-GL110) -> 0 | GP134: =-(GL110-GP110) -> 0 | GT134: =-(GP110-GT110) -> 0 | GX134: =GP134+GT134+GL134+GH134 -> 0 | HB134: =-(GX110-HB110) -> 0 | HF134: =-(HB110-HF110) -> 0 | HJ134: =-(HF110-HJ110) -> 0 | HN134: =-(HJ110-HN110) -> 0 | HR134: =HJ134+HN134+HF134+HB134 -> 0 | HV134: =-(HR110-HV110) -> 0 | HZ134: =-(HV110-HZ110) -> 0 | ID134: =-(HZ110-ID110) -> 0 | IH134: =-(ID110-IH110) -> 0 | IL134: =ID134+IH134+HZ134+HV134 -> 0 | IP134: =-(IL110-IP110) -> 0 | IT134: =-(IP110-IT110) -> 0 | IX134: =-(IT110-IX110) -> 0 | JB134: =-(IX110-JB110) -> 0 | JF134: =IX134+JB134+IT134+IP134 -> 0 | JJ134: =-(JF110-JJ110) -> 0 | JN134: =-(JJ110-JN110) -> 0 | JR134: =-(JN110-JR110) -> 0 | JV134: =-(JR110-JV110) -> 0 | JZ134: =JR134+JV134+JN134+JJ134 -> 0 | KD134: =-(JZ110-KD110) -> 0 | KH134: =-(KD110-KH110) -> 0 | KL134: =-(KH110-KL110) -> 0 | KP134: =-(KL110-KP110) -> 0 | KT134: =KL134+KP134+KH134+KD134 -> 0
C135: Change in operating assets and liabilities, net of effects of acquisitions and divestitures:
D136: Accounts receivable | I136: 723 | M136: -222 | Q136: -404 | U136: -510 | Y136: =+M136+I136+Q136+U136 -> -413 | AC136: 631 | AG136: 357 | AK136: 424 | AO136: -1816 | AS136: -404 | AW136: 1049 | BA136: 347 | BE136: -143 | BI136: -497 | BM136: =AW136+BA136+BE136+BI136 -> 756 | BQ136: 957 | BU136: 279 | BY136: -172 | CC136: -1333 | CG136: =BQ136+BU136+BY136+CC136 -> -269 | CK136: 892 | CO136: 721 | CS136: -53 | CW136: -1644 | DA136: =CS136+CW136+CO136+CK136 -> -84 | DF136: =DA70-DF70 -> 815.7297474 | DJ136: =DF70-DJ70 -> 209.5867103 | DN136: =DJ70-DN70 -> -167.6036043 | DR136: =DN70-DR70 -> -1263.98214 | DV136: =DN136+DR136+DJ136+DF136 -> -406.2692861 | DZ136: =DV70-DZ70 -> 1092.37395 | ED136: =DZ70-ED70 -> 229.0604547 | EH136: =ED70-EH70 -> -164.5924289 | EL136: =EH70-EL70 -> -1304.608071 | EP136: =EH136+EL136+ED136+DZ136 -> -147.7660944 | ET136: =EP70-ET70 -> 1126.216793 | EX136: =ET70-EX70 -> 226.761859 | FB136: =EX70-FB70 -> -196.1440701 | FF136: =FB70-FF70 -> -1387.164648 | FJ136: =FB136+FF136+EX136+ET136 -> -230.3300655 | FN136: =FJ70-FN70 -> 908.8936202 | FR136: =FN70-FR70 -> 377.0786696 | FV136: =FR70-FV70 -> -133.2871793 | FZ136: =FV70-FZ70 -> -1428.518002 | GD136: =FV136+FZ136+FR136+FN136 -> -275.8328915 | GH136: =GD70-GH70 -> 963.3291249 | GL136: =GH70-GL70 -> 388.0206163 | GP136: =GL70-GP70 -> -137.2365836 | GT136: =GP70-GT70 -> -1483.61672 | GX136: =GP136+GT136+GL136+GH136 -> -269.5035625 | HB136: =GX70-HB70 -> 1018.835334 | HF136: =HB70-HF70 -> 398.7260625 | HJ136: =HF70-HJ70 -> -141.085322 | HN136: =HJ70-HN70 -> -1535.603085 | HR136: =HJ136+HN136+HF136+HB136 -> -259.1270105 | HV136: =HR70-HV70 -> 1074.702765 | HZ136: =HV70-HZ70 -> 408.9508692 | ID136: =HZ70-ID70 -> -144.7896914 | IH136: =ID70-IH70 -> -1583.354101 | IL136: =ID136+IH136+HZ136+HV136 -> -244.4901583 | IP136: =IL70-IP70 -> 1249.949901 | IT136: =IP70-IT70 -> 413.265332 | IX136: =IT70-IX70 -> -147.4017827 | JB136: =IX70-JB70 -> -1601.763241 | JF136: =IX136+JB136+IT136+IP136 -> -85.94979077 | JJ136: =JF70-JJ70 -> 1251.610329 | JN136: =JJ70-JN70 -> 420.1917614 | JR136: =JN70-JR70 -> -150.3672418 | JV136: =JR70-JV70 -> -1625.527702 | JZ136: =JR136+JV136+JN136+JJ136 -> -104.0928526 | KD136: =JZ70-KD70 -> 1268.508306 | KH136: =KD70-KH70 -> 427.2850187 | KL136: =KH70-KL70 -> -153.3992445 | KP136: =KL70-KP70 -> -1650.033182 | KT136: =KL136+KP136+KH136+KD136 -> -107.6391022
D137: Inventories | I137: -107 | M137: -233 | Q137: 105 | U137: 119 | Y137: =+M137+I137+Q137+U137 -> -116 | AC137: 130 | AG137: 23 | AK137: 36 | AO137: 126 | AS137: 315 | AW137: 44 | BA137: -95 | BE137: -98 | BI137: -245 | BM137: -394 | BQ137: -80 | BU137: -196 | BY137: -13 | CC137: 45 | CG137: -244 | CK137: -34 | CO137: -169 | CS137: 202 | CW137: 132 | DA137: 131 | DF137: =DA71-DF71 -> -186.6015625 | DJ137: =DF71-DJ71 -> -95.54081212 | DN137: =DJ71-DN71 -> -40.80182468 | DR137: =DN71-DR71 -> 29.10680527 | DV137: -293.8373941 | DZ137: =DV71-DZ71 -> 63.71754877 | ED137: =DZ71-ED71 -> -93.09522515 | EH137: =ED71-EH71 -> -39.17739407 | EL137: =EH71-EL71 -> 26.53906261 | EP137: -42.01600785 | ET137: =EP71-ET71 -> 67.48675932 | EX137: =ET71-EX71 -> -98.18466539 | FB137: =EX71-FB71 -> -50.25033033 | FF137: =FB71-FF71 -> 15.45587917 | FJ137: -65.49235724 | FN137: =FJ71-FN71 -> -17.30892771 | FR137: =FN71-FR71 -> -58.76598322 | FV137: =FR71-FV71 -> -25.71470788 | FZ137: =FV71-FZ71 -> 23.35892748 | GD137: -78.43069133 | GH137: =GD71-GH71 -> -13.20670632 | GL137: =GH71-GL71 -> -62.91111493 | GP137: =GL71-GP71 -> -26.18348321 | GT137: =GP71-GT71 -> 25.67030298 | GX137: -76.63100149 | HB137: =GX71-HB71 -> -8.419804115 | HF137: =HB71-HF71 -> -66.86951395 | HJ137: =HF71-HJ71 -> -26.64873428 | HN137: =HJ71-HN71 -> 28.25753345 | HR137: -73.6805189 | HV137: =HR71-HV71 -> -2.978453477 | HZ137: =HV71-HZ71 -> -70.60821353 | ID137: =HZ71-ID71 -> -27.10885437 | IH137: =ID71-IH71 -> 31.1768645 | IL137: -69.51865687 | IP137: =IL71-IP71 -> 43.29364228 | IT137: =IP71-IT71 -> -71.57189801 | IX137: =IT71-IX71 -> -27.76660796 | JB137: =IX71-JB71 -> 31.60578584 | JF137: -24.43907785 | JJ137: =JF71-JJ71 -> 39.43473768 | JN137: =JJ71-JN71 -> -72.12063018 | JR137: =JN71-JR71 -> -28.49625045 | JV137: =JR71-JV71 -> 31.58424276 | JZ137: -29.59790019 | KD137: =JZ71-KD71 -> 39.75920408 | KH137: =KD71-KH71 -> -72.71509878 | KL137: =KH71-KL71 -> -29.23757113 | KP137: =KL71-KP71 -> 31.58722032 | KT137: -30.60624551
D138: Financing receivables | I138: -2 | M138: 76 | Q138: -38 | U138: -670 | Y138: -634 | AC138: -206 | AG138: 35 | AK138: -125 | AO138: 146 | AS138: -150 | AW138: -900 | BA138: 136 | BE138: -9 | BI138: -265 | BM138: -1038 | BQ138: -333 | BU138: 177 | BY138: -9 | CC138: -54 | CG138: -219 | CK138: 273 | CO138: -112 | CS138: -273 | CW138: -137 | DA138: -249 | DF138: =(DA72-DF72)+(DA77-DF77) -> 705.714829 | DJ138: =(DF72-DJ72)+(DF77-DJ77) -> -159.1579448 | DN138: =(DJ72-DN72)+(DJ77-DN77) -> -149.1868818 | DR138: =(DN72-DR72)+(DN77-DR77) -> -305.7573945 | DV138: 91.61260797 | DZ138: =(DV72-DZ72)+(DV77-DZ77) -> 354.9423114 | ED138: =(DZ72-ED72)+(DZ77-ED77) -> -134.4856394 | EH138: =(ED72-EH72)+(ED77-EH77) -> -137.9761308 | EL138: =(EH72-EL72)+(EH77-EL77) -> -332.0800148 | EP138: -249.5994736 | ET138: =(EP72-ET72)+(EP77-ET77) -> 376.7746052 | EX138: =(ET72-EX72)+(ET77-EX77) -> -154.1288212 | FB138: =(EX72-FB72)+(EX77-FB77) -> -198.5212409 | FF138: =(FB72-FF72)+(FB77-FF77) -> -413.1871582 | FJ138: -389.0626151 | FN138: =(FJ72-FN72)+(FJ77-FN77) -> -129.1575613 | FR138: =(FN72-FR72)+(FN77-FR77) -> 107.9030978 | FV138: =(FR72-FV72)+(FR77-FV77) -> -54.20662764 | FZ138: =(FV72-FZ72)+(FV77-FZ77) -> -390.4627382 | GD138: -465.9238293 | GH138: =(GD72-GH72)+(GD77-GH77) -> -105.8743494 | GL138: =(GH72-GL72)+(GH77-GL77) -> 102.5310759 | GP138: =(GL72-GP72)+(GL77-GP77) -> -53.00718623 | GT138: =(GP72-GT72)+(GP77-GT77) -> -398.8821673 | GX138: -455.2326271 | HB138: =(GX72-HB72)+(GX77-HB77) -> -78.4874253 | HF138: =(HB72-HF72)+(HB77-HF77) -> 97.61370158 | HJ138: =(HF72-HJ72)+(HF77-HJ77) -> -51.91893686 | HN138: =(HJ72-HN72)+(HJ77-HN77) -> -404.9123874 | HR138: -437.705048 | HV138: =(HR72-HV72)+(HR77-HV77) -> -47.16000895 | HZ138: =(HV72-HZ72)+(HV77-HZ77) -> 93.06340498 | ID138: =(HZ72-ID72)+(HZ77-ID77) -> -50.98941859 | IH138: =(ID72-IH72)+(ID77-IH77) -> -407.8951493 | IL138: -412.9811719 | IP138: =(IL72-IP72)+(IL77-IP77) -> 227.3833319 | IT138: =(IP72-IT72)+(IP77-IT77) -> 93.28283139 | IX138: =(IT72-IX72)+(IT77-IX77) -> -53.52368277 | JB138: =(IX72-JB72)+(IX77-JB77) -> -412.3247879 | JF138: -145.1823074 | JJ138: =(JF72-JJ72)+(JF77-JJ77) -> 204.0456033 | JN138: =(JJ72-JN72)+(JJ77-JN77) -> 97.11445644 | JR138: =(JN72-JR72)+(JN77-JR77) -> -56.23720744 | JV138: =(JR72-JV72)+(JR77-JV77) -> -420.7515587 | JZ138: -175.8287064 | KD138: =(JZ72-KD72)+(JZ77-KD77) -> 205.5452697 | KH138: =(KD72-KH72)+(KD77-KH77) -> 100.9250354 | KL138: =(KH72-KL72)+(KH77-KL77) -> -58.96669472 | KP138: =(KL72-KP72)+(KL77-KP77) -> -429.3224732 | KT138: -181.8188628
D139: Other assets | I139: 2 | M139: -225 | Q139: -126 | U139: -21 | Y139: -370 | AC139: 129 | AG139: -310 | AK139: 87 | AO139: 57 | AS139: -37 | AW139: 191 | BA139: -36 | BE139: -15 | BI139: -125 | BM139: 15 | BQ139: 8 | BU139: -23 | BY139: -120 | CC139: 201 | CG139: 66 | CK139: -295 | CO139: -357 | CS139: -84 | CW139: -219 | DA139: -955 | DF139: =(DA74-DF74)+(DA81-DF81) -> 0 | DJ139: =(DF74-DJ74)+(DF81-DJ81) -> 0 | DN139: =(DJ74-DN74)+(DJ81-DN81) -> 0 | DR139: =(DN74-DR74)+(DN81-DR81) -> 0 | DV139: 0 | DZ139: =(DV74-DZ74)+(DV81-DZ81) -> 0 | ED139: =(DZ74-ED74)+(DZ81-ED81) -> 0 | EH139: =(ED74-EH74)+(ED81-EH81) -> 0 | EL139: =(EH74-EL74)+(EH81-EL81) -> 0 | EP139: 0 | ET139: =(EP74-ET74)+(EP81-ET81) -> 0 | EX139: =(ET74-EX74)+(ET81-EX81) -> 0 | FB139: =(EX74-FB74)+(EX81-FB81) -> 0 | FF139: =(FB74-FF74)+(FB81-FF81) -> 0 | FJ139: 0 | FN139: =(FJ74-FN74)+(FJ81-FN81) -> 0 | FR139: =(FN74-FR74)+(FN81-FR81) -> 0 | FV139: =(FR74-FV74)+(FR81-FV81) -> 0 | FZ139: =(FV74-FZ74)+(FV81-FZ81) -> 0 | GD139: 0 | GH139: =(GD74-GH74)+(GD81-GH81) -> 0 | GL139: =(GH74-GL74)+(GH81-GL81) -> 0 | GP139: =(GL74-GP74)+(GL81-GP81) -> 0 | GT139: =(GP74-GT74)+(GP81-GT81) -> 0 | GX139: 0 | HB139: =(GX74-HB74)+(GX81-HB81) -> 0 | HF139: =(HB74-HF74)+(HB81-HF81) -> 0 | HJ139: =(HF74-HJ74)+(HF81-HJ81) -> 0 | HN139: =(HJ74-HN74)+(HJ81-HN81) -> 0 | HR139: 0 | HV139: =(HR74-HV74)+(HR81-HV81) -> 0 | HZ139: =(HV74-HZ74)+(HV81-HZ81) -> 0 | ID139: =(HZ74-ID74)+(HZ81-ID81) -> 0 | IH139: =(ID74-IH74)+(ID81-IH81) -> 0 | IL139: 0 | IP139: =(IL74-IP74)+(IL81-IP81) -> 0 | IT139: =(IP74-IT74)+(IP81-IT81) -> 0 | IX139: =(IT74-IX74)+(IT81-IX81) -> 0 | JB139: =(IX74-JB74)+(IX81-JB81) -> 0 | JF139: 0 | JJ139: =(JF74-JJ74)+(JF81-JJ81) -> 0 | JN139: =(JJ74-JN74)+(JJ81-JN81) -> 0 | JR139: =(JN74-JR74)+(JN81-JR81) -> 0 | JV139: =(JR74-JV74)+(JR81-JV81) -> 0 | JZ139: 0 | KD139: =(JZ74-KD74)+(JZ81-KD81) -> 0 | KH139: =(KD74-KH74)+(KD81-KH81) -> 0 | KL139: =(KH74-KL74)+(KH81-KL81) -> 0 | KP139: =(KL74-KP74)+(KL81-KP81) -> 0 | KT139: 0
D140: Accounts payable | I140: -5 | M140: -27 | Q140: 133 | U140: -14 | Y140: 87 | AC140: 4 | AG140: -151 | AK140: 33 | AO140: 49 | AS140: -65 | AW140: -63 | BA140: -35 | BE140: 247 | BI140: 162 | BM140: 311 | BQ140: -235 | BU140: -103 | BY140: 486 | CC140: 356 | CG140: 504 | CK140: -153 | CO140: -143 | CS140: 348 | CW140: 35 | DA140: 87 | DF140: =-(DA88-DF88) -> -804.3344662 | DJ140: =-(DF88-DJ88) -> -63.6071381 | DN140: =-(DJ88-DN88) -> 275.6899942 | DR140: =-(DN88-DR88) -> 149.521912 | DV140: -442.7296981 | DZ140: =-(DV88-DZ88) -> -326.8889758 | ED140: =-(DZ88-ED88) -> -69.18238648 | EH140: =-(ED88-EH88) -> 280.2218937 | EL140: =-(EH88-EL88) -> 156.0696107 | EP140: 40.22014209 | ET140: =-(EP88-ET88) -> -336.7394318 | EX140: =-(ET88-EX88) -> -68.7719173 | FB140: =-(EX88-FB88) -> 296.2573939 | FF140: =-(FB88-FF88) -> 172.839894 | FJ140: 63.58593886 | FN140: =-(FJ88-FN88) -> -278.4621113 | FR140: =-(FN88-FR88) -> -110.0661497 | FV140: =-(FR88-FV88) -> 290.3124345 | FZ140: =-(FV88-FZ88) -> 175.8435446 | GD140: 77.62771813 | GH140: =-(GD88-GH88) -> -296.572109 | GL140: =-(GH88-GL88) -> -113.3113256 | GP140: =-(GL88-GP88) -> 301.9938908 | GT140: =-(GP88-GT88) -> 181.9122429 | GX140: 74.02269915 | HB140: =-(GX88-HB88) -> -313.1668999 | HF140: =-(HB88-HF88) -> -116.5275484 | HJ140: =-(HF88-HJ88) -> 313.318166 | HN140: =-(HJ88-HN88) -> 187.3595139 | HR140: 70.98323166 | HV140: =-(HR88-HV88) -> -329.7321325 | HZ140: =-(HV88-HZ88) -> -119.6539214 | ID140: =-(HZ88-ID88) -> 324.124693 | IH140: =-(ID88-IH88) -> 191.9929756 | IL140: 66.73161468 | IP140: =-(IL88-IP88) -> -378.9606659 | IT140: =-(IP88-IT88) -> -121.3997433 | IX140: =-(IT88-IX88) -> 328.5056017 | JB140: =-(IX88-JB88) -> 193.5174617 | JF140: 21.66265419 | JJ140: =-(JF88-JJ88) -> -378.6437083 | JN140: =-(JJ88-JN88) -> -123.6951418 | JR140: =-(JN88-JR88) -> 333.4935152 | JV140: =-(JR88-JV88) -> 196.2507469 | JZ140: 27.40541201 | KD140: =-(JZ88-KD88) -> -383.3064879 | KH140: =-(KD88-KH88) -> -126.0474222 | KL140: =-(KH88-KL88) -> 338.6436538 | KP140: =-(KL88-KP88) -> 199.0579318 | KT140: 28.34767549
D141: Income taxes, net | I141: -398 | M141: -130 | Q141: 17 | U141: 564 | Y141: 53 | AC141: -315 | AG141: -449 | AK141: 41 | AO141: 423 | AS141: -300 | AW141: -440 | BA141: 183 | BE141: 145 | BI141: 172 | BM141: 60 | BQ141: -419 | BU141: 10665 | BY141: -1451 | CC141: -677 | CG141: 8118 | CK141: -437 | CO141: -393 | CS141: 71 | CW141: 1071 | DA141: 312 | DF141: =-(DA89-DF89)-(DA96-DF96) -> -7215.870456 | DJ141: =-(DF89-DJ89)-(DF96-DJ96) -> 2169.743583 | DN141: =-(DJ89-DN89)-(DJ96-DN96) -> -195.8009089 | DR141: =-(DN89-DR89)-(DN96-DR96) -> 406.3598171 | DV141: -4835.567964 | DZ141: =-(DV89-DZ89)-(DV96-DZ96) -> -2376.742831 | ED141: =-(DZ89-ED89)-(DZ96-ED96) -> 2289.612767 | EH141: =-(ED89-EH89)-(ED96-EH96) -> -206.1337372 | EL141: =-(EH89-EL89)-(EH96-EL96) -> 421.3434351 | EP141: 128.0796339 | ET141: =-(EP89-ET89)-(EP96-ET96) -> -2434.604363 | EX141: =-(ET89-EX89)-(ET96-EX96) -> 2349.425136 | FB141: =-(EX89-FB89)-(EX96-FB96) -> -181.8437144 | FF141: =-(FB89-FF89)-(FB96-FF96) -> 462.7063548 | FJ141: 195.6834131 | FN141: =-(FJ89-FN89)-(FJ96-FN96) -> -2362.722091 | FR141: =-(FN89-FR89)-(FN96-FR96) -> 2403.660148 | FV141: =-(FR89-FV89)-(FR96-FV96) -> -260.2943471 | FZ141: =-(FV89-FZ89)-(FV96-FZ96) -> 447.1330043 | GD141: 227.7767143 | GH141: =-(GD89-GH89)-(GD96-GH96) -> -2455.681441 | GL141: =-(GH89-GL89)-(GH96-GL96) -> 2501.110638 | GP141: =-(GL89-GP89)-(GL96-GP96) -> -268.7883496 | GT141: =-(GP89-GT89)-(GP96-GT96) -> 453.998597 | GX141: 230.6394439 | HB141: =-(GX89-HB89)-(GX96-HB96) -> -2555.677718 | HF141: =-(HB89-HF89)-(HB96-HF96) -> 2595.696217 | HJ141: =-(HF89-HJ89)-(HF96-HJ96) -> -277.3072937 | HN141: =-(HJ89-HN89)-(HJ96-HN96) -> 459.8881933 | HR141: 222.5993979 | HV141: =-(HR89-HV89)-(HR96-HV96) -> -2653.76523 | HZ141: =-(HV89-HZ89)-(HV96-HZ96) -> 2686.150578 | ID141: =-(HZ89-ID89)-(HZ96-ID96) -> -285.7884678 | IH141: =-(ID89-IH89)-(ID96-IH96) -> 464.5028355 | IL141: 211.0997156 | IP141: =-(IL89-IP89)-(IL96-IP96) -> -2819.028486 | IT141: =-(IP89-IT89)-(IP96-IT96) -> 2721.530399 | IX141: =-(IT89-IX89)-(IT96-IX96) -> -290.839252 | JB141: =-(IX89-JB89)-(IX96-JB96) -> 470.517933 | JF141: 82.18059449 | JJ141: =-(JF89-JJ89)-(JF96-JJ96) -> -2847.636459 | JN141: =-(JJ89-JN89)-(JJ96-JN96) -> 2759.307883 | JR141: =-(JN89-JR89)-(JN96-JR96) -> -294.8288309 | JV141: =-(JR89-JV89)-(JR96-JV96) -> 477.4957995 | JZ141: 94.33839284 | KD141: =-(JZ89-KD89)-(JZ96-KD96) -> -2886.57328 | KH141: =-(KD89-KH89)-(KD96-KH96) -> 2798.434775 | KL141: =-(KH89-KL89)-(KH96-KL96) -> -298.9762172 | KP141: =-(KL89-KP89)-(KL96-KP96) -> 484.6288481 | KT141: 97.51412648
D142: Accrued compensation | I142: -495 | M142: 105 | Q142: 66 | U142: 331 | Y142: =+M142+I142+Q142+U142 -> 7 | AC142: -434 | AG142: 86 | AK142: 30 | AO142: 217 | AS142: -101 | AW142: -333 | BA142: -84 | BE142: 263 | BI142: 44 | BM142: -110 | BQ142: -215 | BU142: 26 | BY142: 242 | CC142: 47 | CG142: 100 | CK142: -348 | CO142: 9 | CS142: 271 | CW142: 345 | DA142: 277 | DF142: =-(DA90-DF90) -> 0 | DJ142: =-(DF90-DJ90) -> 0 | DN142: =-(DJ90-DN90) -> 0 | DR142: =-(DN90-DR90) -> 0 | DV142: 0 | DZ142: =-(DV90-DZ90) -> 0 | ED142: =-(DZ90-ED90) -> 0 | EH142: =-(ED90-EH90) -> 0 | EL142: =-(EH90-EL90) -> 0 | EP142: 0 | ET142: =-(EP90-ET90) -> 0 | EX142: =-(ET90-EX90) -> 0 | FB142: =-(EX90-FB90) -> 0 | FF142: =-(FB90-FF90) -> 0 | FJ142: 0 | FN142: =-(FJ90-FN90) -> 0 | FR142: =-(FN90-FR90) -> 0 | FV142: =-(FR90-FV90) -> 0 | FZ142: =-(FV90-FZ90) -> 0 | GD142: 0 | GH142: =-(GD90-GH90) -> 0 | GL142: =-(GH90-GL90) -> 0 | GP142: =-(GL90-GP90) -> 0 | GT142: =-(GP90-GT90) -> 0 | GX142: 0 | HB142: =-(GX90-HB90) -> 0 | HF142: =-(HB90-HF90) -> 0 | HJ142: =-(HF90-HJ90) -> 0 | HN142: =-(HJ90-HN90) -> 0 | HR142: 0 | HV142: =-(HR90-HV90) -> 0 | HZ142: =-(HV90-HZ90) -> 0 | ID142: =-(HZ90-ID90) -> 0 | IH142: =-(ID90-IH90) -> 0 | IL142: 0 | IP142: =-(IL90-IP90) -> 0 | IT142: =-(IP90-IT90) -> 0 | IX142: =-(IT90-IX90) -> 0 | JB142: =-(IX90-JB90) -> 0 | JF142: 0 | JJ142: =-(JF90-JJ90) -> 0 | JN142: =-(JJ90-JN90) -> 0 | JR142: =-(JN90-JR90) -> 0 | JV142: =-(JR90-JV90) -> 0 | JZ142: 0 | KD142: =-(JZ90-KD90) -> 0 | KH142: =-(KD90-KH90) -> 0 | KL142: =-(KH90-KL90) -> 0 | KP142: =-(KL90-KP90) -> 0 | KT142: 0
D143: Deferred revenue | I143: -328 | M143: 354 | Q143: 191 | U143: 1058 | Y143: 1275 | AC143: -19 | AG143: 88 | AK143: -62 | AO143: 1212 | AS143: 1219 | AW143: 462 | BA143: 149 | BE143: -19 | BI143: 1091 | BM143: 1683 | BQ143: 77 | BU143: 160 | BY143: 178 | CC143: 790 | CG143: 1205 | CK143: -309 | CO143: 516 | CS143: 214 | CW143: 986 | DA143: 1407 | DF143: =-(DA91-DF91)-(DA97-DF97) -> -450.1777053 | DJ143: =-(DF91-DJ91)-(DF97-DJ97) -> 767.2910538 | DN143: =-(DJ91-DN91)-(DJ97-DN97) -> 120.5301936 | DR143: =-(DN91-DR91)-(DN97-DR97) -> 1411.610884 | DV143: 1849.254426 | DZ143: =-(DV91-DZ91)-(DV97-DZ97) -> -1799.903343 | ED143: =-(DZ91-ED91)-(DZ97-ED97) -> 731.0945214 | EH143: =-(ED91-EH91)-(ED97-EH97) -> 94.34904231 | EL143: =-(EH91-EL91)-(EH97-EL97) -> 1483.518026 | EP143: 509.0582476 | ET143: =-(EP91-ET91)-(EP97-ET97) -> -1869.942054 | EX143: =-(ET91-EX91)-(ET97-EX97) -> 780.9417692 | FB143: =-(EX91-FB91)-(EX97-FB97) -> 208.4246265 | FF143: =-(FB91-FF91)-(FB97-FF97) -> 1674.069051 | FJ143: 793.4933926 | FN143: =-(FJ91-FN91)-(FJ97-FN97) -> -938.3396951 | FR143: =-(FN91-FR91)-(FN97-FR97) -> 306.5394699 | FV143: =-(FR91-FV91)-(FR97-FV97) -> -85.55020916 | FZ143: =-(FV91-FZ91)-(FV97-FZ97) -> 1667.602311 | GD143: 950.2518762 | GH143: =-(GD91-GH91)-(GD97-GH97) -> -1035.40509 | GL143: =-(GH91-GL91)-(GH97-GL97) -> 338.5968276 | GP143: =-(GL91-GP91)-(GL97-GP97) -> -95.98378316 | GT143: =-(GP91-GT91)-(GP97-GT97) -> 1721.23921 | GX143: 928.4471641 | HB143: =-(GX91-HB91)-(GX97-HB97) -> -1139.18286 | HF143: =-(HB91-HF91)-(HB97-HF97) -> 369.0391295 | HJ143: =-(HF91-HJ91)-(HF97-HJ97) -> -105.9244495 | HN143: =-(HJ91-HN91)-(HJ97-HN97) -> 1768.767838 | HR143: 892.699658 | HV143: =-(HR91-HV91)-(HR97-HV97) -> -1248.592671 | HZ143: =-(HV91-HZ91)-(HV97-HZ97) -> 397.7161439 | ID143: =-(HZ91-ID91)-(HZ97-ID97) -> -115.1602832 | IH143: =-(ID91-IH91)-(ID97-IH97) -> 1808.312111 | IL143: 842.2753007 | IP143: =-(IL91-IP91)-(IL97-IP97) -> -1824.030087 | IT143: =-(IP91-IT91)-(IP97-IT97) -> 403.988838 | IX143: =-(IT91-IX91)-(IT97-IX97) -> -112.6928796 | JB143: =-(IX91-JB91)-(IX97-JB97) -> 1828.833515 | JF143: 296.0993864 | JJ143: =-(JF91-JJ91)-(JF97-JJ97) -> -1795.308364 | JN143: =-(JJ91-JN91)-(JJ97-JN97) -> 404.5813179 | JR143: =-(JN91-JR91)-(JN97-JR97) -> -110.3522034 | JV143: =-(JR91-JV91)-(JR97-JV97) -> 1859.681981 | JZ143: 358.6027321 | KD143: =-(JZ91-KD91)-(JZ97-KD97) -> -1817.893174 | KH143: =-(KD91-KH91)-(KD97-KH97) -> 405.4967858 | KL143: =-(KH91-KL91)-(KH97-KL97) -> -108.0854879 | KP143: =-(KL91-KP91)-(KL97-KP97) -> 1891.301536 | KT143: 370.819659
D144: Other liabilities | I144: 68 | M144: -95 | Q144: -283 | U144: 385 | Y144: 75 | AC144: -590 | AG144: 428 | AK144: -542 | AO144: 99 | AS144: -605 | AW144: -687 | BA144: 116 | BE144: -443 | BI144: 317 | BM144: -697 | BQ144: -137 | BU144: 225 | BY144: -325 | CC144: 320 | CG144: 83 | CK144: -186 | CO144: 274 | CS144: -242 | CW144: 305 | DA144: 151 | DF144: =-(DA92-DF92)-(DA98-DF98) -> 0 | DJ144: =-(DF92-DJ92)-(DF98-DJ98) -> 0 | DN144: =-(DJ92-DN92)-(DJ98-DN98) -> 0 | DR144: =-(DN92-DR92)-(DN98-DR98) -> 0 | DV144: 0 | DZ144: =-(DV92-DZ92)-(DV98-DZ98) -> 0 | ED144: =-(DZ92-ED92)-(DZ98-ED98) -> 0 | EH144: =-(ED92-EH92)-(ED98-EH98) -> 0 | EL144: =-(EH92-EL92)-(EH98-EL98) -> 0 | EP144: 0 | ET144: =-(EP92-ET92)-(EP98-ET98) -> 0 | EX144: =-(ET92-EX92)-(ET98-EX98) -> 0 | FB144: =-(EX92-FB92)-(EX98-FB98) -> 0 | FF144: =-(FB92-FF92)-(FB98-FF98) -> 0 | FJ144: 0 | FN144: =-(FJ92-FN92)-(FJ98-FN98) -> 0 | FR144: =-(FN92-FR92)-(FN98-FR98) -> 0 | FV144: =-(FR92-FV92)-(FR98-FV98) -> 0 | FZ144: =-(FV92-FZ92)-(FV98-FZ98) -> 0 | GD144: 0 | GH144: =-(GD92-GH92)-(GD98-GH98) -> 0 | GL144: =-(GH92-GL92)-(GH98-GL98) -> 0 | GP144: =-(GL92-GP92)-(GL98-GP98) -> 0 | GT144: =-(GP92-GT92)-(GP98-GT98) -> 0 | GX144: 0 | HB144: =-(GX92-HB92)-(GX98-HB98) -> 0 | HF144: =-(HB92-HF92)-(HB98-HF98) -> 0 | HJ144: =-(HF92-HJ92)-(HF98-HJ98) -> 0 | HN144: =-(HJ92-HN92)-(HJ98-HN98) -> 0 | HR144: 0 | HV144: =-(HR92-HV92)-(HR98-HV98) -> 0 | HZ144: =-(HV92-HZ92)-(HV98-HZ98) -> 0 | ID144: =-(HZ92-ID92)-(HZ98-ID98) -> 0 | IH144: =-(ID92-IH92)-(ID98-IH98) -> 0 | IL144: 0 | IP144: =-(IL92-IP92)-(IL98-IP98) -> 0 | IT144: =-(IP92-IT92)-(IP98-IT98) -> 0 | IX144: =-(IT92-IX92)-(IT98-IX98) -> 0 | JB144: =-(IX92-JB92)-(IX98-JB98) -> 0 | JF144: 0 | JJ144: =-(JF92-JJ92)-(JF98-JJ98) -> 0 | JN144: =-(JJ92-JN92)-(JJ98-JN98) -> 0 | JR144: =-(JN92-JR92)-(JN98-JR98) -> 0 | JV144: =-(JR92-JV92)-(JR98-JV98) -> 0 | JZ144: 0 | KD144: =-(JZ92-KD92)-(JZ98-KD98) -> 0 | KH144: =-(KD92-KH92)-(KD98-KH98) -> 0 | KL144: =-(KH92-KL92)-(KH98-KL98) -> 0 | KP144: =-(KL92-KP92)-(KL98-KP98) -> 0 | KT144: 0
E145: Net cash provided by operating activities | I145: =SUM(I126:I144) -> 2491 | M145: =SUM(M126:M144) -> 2883 | Q145: =SUM(Q126:Q144) -> 3040 | U145: =SUM(U126:U144) -> 4138 | Y145: =SUM(Y126:Y144) -> 12552 | AC145: =SUM(AC126:AC144) -> 2766 | AG145: =SUM(AG126:AG144) -> 3922 | AK145: =SUM(AK126:AK144) -> 3064 | AO145: =SUM(AO126:AO144) -> 3818 | AS145: =SUM(AS126:AS144) -> 13570 | AW145: =SUM(AW126:AW144) -> 2730 | BA145: =SUM(BA126:BA144) -> 3772 | BE145: =SUM(BE126:BE144) -> 3373 | BI145: =SUM(BI126:BI144) -> 4001 | BM145: =SUM(BM126:BM144) -> 13876 | BQ145: =SUM(BQ126:BQ144) -> 3080 | BU145: =SUM(BU126:BU144) -> 4070 | BY145: =SUM(BY126:BY144) -> 2416 | CC145: =SUM(CC126:CC144) -> 4100 | CG145: =SUM(CG126:CG144) -> 13666 | CK145: =SUM(CK126:CK144) -> 3763 | CO145: =SUM(CO126:CO144) -> 3797 | CS145: =SUM(CS126:CS144) -> 4329 | CW145: =SUM(CW126:CW144) -> 3942 | DA145: =SUM(DA126:DA144) -> 15831 | DF145: =SUM(DF126:DF144) -> -3883.929063 | DJ145: =SUM(DJ126:DJ144) -> 6648.853954 | DN145: =SUM(DN126:DN144) -> 3371.919495 | DR145: =SUM(DR126:DR144) -> 3785.467309 | DV145: =SUM(DV126:DV144) -> 9922.311694 | DZ145: =SUM(DZ126:DZ144) -> 767.9252221 | ED145: =SUM(ED126:ED144) -> 6657.295474 | EH145: =SUM(EH126:EH144) -> 3353.40939 | EL145: =SUM(EL126:EL144) -> 3812.32835 | EP145: =SUM(EP126:EP144) -> 14590.95844 | ET145: =SUM(ET126:ET144) -> 718.6202491 | EX145: =SUM(EX126:EX144) -> 6812.296417 | FB145: =SUM(FB126:FB144) -> 3505.742134 | FF145: =SUM(FF126:FF144) -> 4033.19034 | FJ145: =SUM(FJ126:FJ144) -> 15069.84914 | FN145: =SUM(FN126:FN144) -> 1114.494944 | FR145: =SUM(FR126:FR144) -> 7228.839443 | FV145: =SUM(FV126:FV144) -> 3642.813574 | FZ145: =SUM(FZ126:FZ144) -> 4225.907815 | GD145: =SUM(GD126:GD144) -> 16212.05577 | GH145: =SUM(GH126:GH144) -> 1186.760565 | GL145: =SUM(GL126:GL144) -> 7567.191045 | GP145: =SUM(GP126:GP144) -> 3821.465079 | GT145: =SUM(GT126:GT144) -> 4413.639487 | GX145: =SUM(GX126:GX144) -> 16989.05618 | HB145: =SUM(HB126:HB144) -> 1238.90665 | HF145: =SUM(HF126:HF144) -> 7841.186822 | HJ145: =SUM(HJ126:HJ144) -> 3911.375782 | HN145: =SUM(HN126:HN144) -> 4485.295179 | HR145: =SUM(HR126:HR144) -> 17476.76443 | HV145: =SUM(HV126:HV144) -> 1154.946805 | HZ145: =SUM(HZ126:HZ144) -> 8029.710885 | ID145: =SUM(ID126:ID144) -> 3971.671149 | IH145: =SUM(IH126:IH144) -> 4566.297093 | IL145: =SUM(IL126:IL144) -> 17722.62593 | IP145: =SUM(IP126:IP144) -> 987.7253979 | IT145: =SUM(IT126:IT144) -> 8093.229222 | IX145: =SUM(IX126:IX144) -> 3990.704022 | JB145: =SUM(JB126:JB144) -> 4596.379378 | JF145: =SUM(JF126:JF144) -> 17668.03802 | JJ145: =SUM(JJ126:JJ144) -> 993.8249267 | JN145: =SUM(JN126:JN144) -> 8189.022456 | JR145: =SUM(JR126:JR144) -> 4033.092897 | JV145: =SUM(JV126:JV144) -> 4650.012094 | JZ145: =SUM(JZ126:JZ144) -> 17865.95237 | KD145: =SUM(KD126:KD144) -> 999.0795416 | KH145: =SUM(KH126:KH144) -> 8298.287386 | KL145: =SUM(KL126:KL144) -> 4085.310414 | KP145: =SUM(KP126:KP144) -> 4712.376529 | KT145: =SUM(KT126:KT144) -> 18095.05387
A147: Cash flows from investing activities:
B148: Purchases of investments | I148: -9761 | M148: -10300 | Q148: -10556 | U148: -13358 | Y148: =+M148+I148+Q148+U148 -> -43975 | AC148: -10823 | AG148: -8266 | AK148: -17277 | AO148: -10394 | AS148: =AC148+AG148+AK148+AO148 -> -46760 | AW148: -18667 | BA148: -9180 | BE148: -7715 | BI148: -7140 | BM148: =AW148+BA148+BE148+BI148 -> -42702 | BQ148: -8275 | BU148: -5679 | BY148: -178 | CC148: -153 | CG148: =BQ148+BU148+BY148+CC148 -> -14285 | CK148: -484 | CO148: -193 | CS148: -499 | CW148: -1240 | DA148: =CS148+CW148+CO148+CK148 -> -2416 | DF148: 0 | DJ148: 0 | DN148: 0 | DR148: 0 | DV148: =DN148+DR148+DJ148+DF148 -> 0 | DZ148: 0 | ED148: 0 | EH148: 0 | EL148: 0 | EP148: =EH148+EL148+ED148+DZ148 -> 0 | ET148: 0 | EX148: 0 | FB148: 0 | FF148: 0 | FJ148: =FB148+FF148+EX148+ET148 -> 0 | FN148: 0 | FR148: 0 | FV148: 0 | FZ148: 0 | GD148: =FV148+FZ148+FR148+FN148 -> 0 | GH148: 0 | GL148: 0 | GP148: 0 | GT148: 0 | GX148: =GP148+GT148+GL148+GH148 -> 0 | HB148: 0 | HF148: 0 | HJ148: 0 | HN148: 0 | HR148: =HJ148+HN148+HF148+HB148 -> 0 | HV148: 0 | HZ148: 0 | ID148: 0 | IH148: 0 | IL148: =ID148+IH148+HZ148+HV148 -> 0 | IP148: 0 | IT148: 0 | IX148: 0 | JB148: 0 | JF148: =IX148+JB148+IT148+IP148 -> 0 | JJ148: 0 | JN148: 0 | JR148: 0 | JV148: 0 | JZ148: =JR148+JV148+JN148+JJ148 -> 0 | KD148: 0 | KH148: 0 | KL148: 0 | KP148: 0 | KT148: =KL148+KP148+KH148+KD148 -> 0
B149: Proceeds from sales of investments | I149: 3450 | M149: 6498 | Q149: 3942 | U149: 6347 | Y149: 20237 | AC149: 6675 | AG149: 3572 | AK149: 13559 | AO149: 4972 | AS149: =AC149+AG149+AK149+AO149 -> 28778 | AW149: 11337 | BA149: 7083 | BE149: 5994 | BI149: 4413 | BM149: 28827 | BQ149: 2682 | BU149: 6429 | BY149: 3311 | CC149: 5284 | CG149: =BQ149+BU149+BY149+CC149 -> 17706 | CK149: 2805 | CO149: 250 | CS149: 2336 | CW149: 1997 | DA149: 7388 | DF149: =(DA79-DF79)+(DA69-DF69)-DF30 -> 0 | DJ149: =(DF79-DJ79)+(DF69-DJ69)-DJ30 -> 1.207922651e-13 | DN149: =(DJ79-DN79)+(DJ69-DN69)-DN30 -> 0 | DR149: =(DN79-DR79)+(DN69-DR69)-DR30 -> -1.492139745e-13 | DV149: -2.842170943e-14 | DZ149: =(DV79-DZ79)+(DV69-DZ69)-DZ30 -> -7.815970093e-14 | ED149: =(DZ79-ED79)+(DZ69-ED69)-ED30 -> -8.526512829e-14 | EH149: =(ED79-EH79)+(ED69-EH69)-EH30 -> 9.237055565e-14 | EL149: =(EH79-EL79)+(EH69-EL69)-EL30 -> 0 | EP149: -7.105427358e-14 | ET149: =(EP79-ET79)+(EP69-ET69)-ET30 -> 8.526512829e-14 | EX149: =(ET79-EX79)+(ET69-EX69)-EX30 -> 8.526512829e-14 | FB149: =(EX79-FB79)+(EX69-FB69)-FB30 -> 0 | FF149: =(FB79-FF79)+(FB69-FF69)-FF30 -> -8.526512829e-14 | FJ149: 8.526512829e-14 | FN149: =(FJ79-FN79)+(FJ69-FN69)-FN30 -> -1.065814104e-13 | FR149: =(FN79-FR79)+(FN69-FR69)-FR30 -> 0 | FV149: =(FR79-FV79)+(FR69-FV69)-FV30 -> -9.947598301e-14 | FZ149: =(FV79-FZ79)+(FV69-FZ69)-FZ30 -> -7.105427358e-14 | GD149: -2.771116669e-13 | GH149: =(GD79-GH79)+(GD69-GH69)-GH30 -> 0 | GL149: =(GH79-GL79)+(GH69-GL69)-GL30 -> 0 | GP149: =(GL79-GP79)+(GL69-GP69)-GP30 -> -6.394884622e-14 | GT149: =(GP79-GT79)+(GP69-GT69)-GT30 -> 0 | GX149: -6.394884622e-14 | HB149: =(GX79-HB79)+(GX69-HB69)-HB30 -> 7.815970093e-14 | HF149: =(HB79-HF79)+(HB69-HF69)-HF30 -> 0 | HJ149: =(HF79-HJ79)+(HF69-HJ69)-HJ30 -> 7.815970093e-14 | HN149: =(HJ79-HN79)+(HJ69-HN69)-HN30 -> 6.394884622e-14 | HR149: 2.202682481e-13 | HV149: =(HR79-HV79)+(HR69-HV69)-HV30 -> 0 | HZ149: =(HV79-HZ79)+(HV69-HZ69)-HZ30 -> 0 | ID149: =(HZ79-ID79)+(HZ69-ID69)-ID30 -> -5.684341886e-14 | IH149: =(ID79-IH79)+(ID69-IH69)-IH30 -> 0 | IL149: -5.684341886e-14 | IP149: =(IL79-IP79)+(IL69-IP69)-IP30 -> 0 | IT149: =(IP79-IT79)+(IP69-IT69)-IT30 -> 0 | IX149: =(IT79-IX79)+(IT69-IX69)-IX30 -> 0 | JB149: =(IX79-JB79)+(IX69-JB69)-JB30 -> 0 | JF149: 0 | JJ149: =(JF79-JJ79)+(JF69-JJ69)-JJ30 -> 0 | JN149: =(JJ79-JN79)+(JJ69-JN69)-JN30 -> 0 | JR149: =(JN79-JR79)+(JN69-JR69)-JR30 -> 0 | JV149: =(JR79-JV79)+(JR69-JV69)-JV30 -> 0 | JZ149: 0 | KD149: =(JZ79-KD79)+(JZ69-KD69)-KD30 -> 0 | KH149: =(KD79-KH79)+(KD69-KH69)-KH30 -> 0 | KL149: =(KH79-KL79)+(KH69-KL69)-KL30 -> 0 | KP149: =(KL79-KP79)+(KL69-KP69)-KP30 -> 0 | KT149: 0
B150: Proceeds from maturities of investments | I150: 3906 | M150: 3306 | Q150: 4420 | U150: 3661 | Y150: 15293 | AC150: 4133 | AG150: 3822 | AK150: 3835 | AO150: 2325 | AS150: 14115 | AW150: 2449 | BA150: 2796 | BE150: 3145 | BI150: 3753 | BM150: 12143 | BQ150: 3929 | BU150: 3436 | BY150: 4894 | CC150: 3510 | CG150: =BQ150+BU150+BY150+CC150 -> 15769 | CK150: 2541 | CO150: 3722 | CS150: 4534 | CW150: 2131 | DA150: 12928 | DF150: 0 | DJ150: 0 | DN150: 0 | DR150: 0 | DV150: 0 | DZ150: 0 | ED150: 0 | EH150: 0 | EL150: 0 | EP150: 0 | ET150: 0 | EX150: 0 | FB150: 0 | FF150: 0 | FJ150: 0 | FN150: 0 | FR150: 0 | FV150: 0 | FZ150: 0 | GD150: 0 | GH150: 0 | GL150: 0 | GP150: 0 | GT150: 0 | GX150: 0 | HB150: 0 | HF150: 0 | HJ150: 0 | HN150: 0 | HR150: 0 | HV150: 0 | HZ150: 0 | ID150: 0 | IH150: 0 | IL150: 0 | IP150: 0 | IT150: 0 | IX150: 0 | JB150: 0 | JF150: 0 | JJ150: 0 | JN150: 0 | JR150: 0 | JV150: 0 | JZ150: 0 | KD150: 0 | KH150: 0 | KL150: 0 | KP150: 0 | KT150: 0
B151: Acquisitions and divestitures | I151: -184 | M151: -33 | Q151: -21 | U151: -88 | Y151: =+M151+I151+Q151+U151 -> -326 | AC151: -614 | AG151: -103 | AK151: -2072 | AO151: 0 | AS151: -2789 | AW151: -251 | BA151: 0 | BE151: -2960 | BI151: -113 | BM151: -3324 | BQ151: -725 | BU151: -2 | BY151: -2035 | CC151: -217 | CG151: -1642 | CK151: -1964 | CO151: 365 | CS151: -576 | CW151: 0 | DA151: -2175 | DF151: =DA78-DF78 -> 0 | DJ151: =DF78-DJ78 -> 0 | DN151: =DJ78-DN78 -> -2.6 | DR151: =DN78-DR78 -> 0 | DV151: -2.6 | DZ151: =DV78-DZ78 -> 0 | ED151: =DZ78-ED78 -> 0 | EH151: =ED78-EH78 -> 0 | EL151: =EH78-EL78 -> 0 | EP151: 0 | ET151: =EP78-ET78 -> 0 | EX151: =ET78-EX78 -> 0 | FB151: =EX78-FB78 -> 0 | FF151: =FB78-FF78 -> 0 | FJ151: 0 | FN151: =FJ78-FN78 -> 0 | FR151: =FN78-FR78 -> 0 | FV151: =FR78-FV78 -> 0 | FZ151: =FV78-FZ78 -> 0 | GD151: 0 | GH151: =GD78-GH78 -> 0 | GL151: =GH78-GL78 -> 0 | GP151: =GL78-GP78 -> 0 | GT151: =GP78-GT78 -> 0 | GX151: 0 | HB151: =GX78-HB78 -> 0 | HF151: =HB78-HF78 -> 0 | HJ151: =HF78-HJ78 -> 0 | HN151: =HJ78-HN78 -> 0 | HR151: 0 | HV151: =HR78-HV78 -> 0 | HZ151: =HV78-HZ78 -> 0 | ID151: =HZ78-ID78 -> 0 | IH151: =ID78-IH78 -> 0 | IL151: 0 | IP151: =IL78-IP78 -> 0 | IT151: =IP78-IT78 -> 0 | IX151: =IT78-IX78 -> 0 | JB151: =IX78-JB78 -> 0 | JF151: 0 | JJ151: =JF78-JJ78 -> 0 | JN151: =JJ78-JN78 -> 0 | JR151: =JN78-JR78 -> 0 | JV151: =JR78-JV78 -> 0 | JZ151: 0 | KD151: =JZ78-KD78 -> 0 | KH151: =KD78-KH78 -> 0 | KL151: =KH78-KL78 -> 0 | KP151: =KL78-KP78 -> 0 | KT151: 0
B152: Purchases of investments in privately held companies | I152: -50 | M152: -41 | Q152: -64 | U152: -67 | Y152: -222 | AC152: -78 | AG152: -88 | AK152: -36 | AO152: -54 | AS152: -256 | AW152: -38 | BA152: -104 | BE152: -30 | BI152: -50 | BM152: -222 | BQ152: -20 | BU152: -69 | BY152: 0 | CC152: -141 | CG152: =BQ152+BU152+BY152+CC152 -> -230 | CK152: -29 | CO152: -39 | CS152: -50 | CW152: -30 | DA152: -148 | DF152: 0 | DJ152: 0 | DN152: 0 | DR152: 0 | DV152: 0 | DZ152: 0 | ED152: 0 | EH152: 0 | EL152: 0 | EP152: 0 | ET152: 0 | EX152: 0 | FB152: 0 | FF152: 0 | FJ152: 0 | FN152: 0 | FR152: 0 | FV152: 0 | FZ152: 0 | GD152: 0 | GH152: 0 | GL152: 0 | GP152: 0 | GT152: 0 | GX152: 0 | HB152: 0 | HF152: 0 | HJ152: 0 | HN152: 0 | HR152: 0 | HV152: 0 | HZ152: 0 | ID152: 0 | IH152: 0 | IL152: 0 | IP152: 0 | IT152: 0 | IX152: 0 | JB152: 0 | JF152: 0 | JJ152: 0 | JN152: 0 | JR152: 0 | JV152: 0 | JZ152: 0 | KD152: 0 | KH152: 0 | KL152: 0 | KP152: 0 | KT152: 0
B153: Return of investments in privately held companies | I153: 42 | M153: 185 | Q153: 47 | U153: 14 | Y153: 288 | AC153: 24 | AG153: 11 | AK153: 39 | AO153: 17 | AS153: 91 | AW153: 24 | BA153: 84 | BE153: 60 | BI153: 35 | BM153: 203 | BQ153: 81 | BU153: 43 | BY153: -37 | CC153: 5 | CG153: =BQ153+BU153+BY153+CC153 -> 92 | CK153: 16 | CO153: 27 | CS153: 84 | CW153: 32 | DA153: 159 | DF153: 0 | DJ153: 0 | DN153: 0 | DR153: 0 | DV153: 0 | DZ153: 0 | ED153: 0 | EH153: 0 | EL153: 0 | EP153: 0 | ET153: 0 | EX153: 0 | FB153: 0 | FF153: 0 | FJ153: 0 | FN153: 0 | FR153: 0 | FV153: 0 | FZ153: 0 | GD153: 0 | GH153: 0 | GL153: 0 | GP153: 0 | GT153: 0 | GX153: 0 | HB153: 0 | HF153: 0 | HJ153: 0 | HN153: 0 | HR153: 0 | HV153: 0 | HZ153: 0 | ID153: 0 | IH153: 0 | IL153: 0 | IP153: 0 | IT153: 0 | IX153: 0 | JB153: 0 | JF153: 0 | JJ153: 0 | JN153: 0 | JR153: 0 | JV153: 0 | JZ153: 0 | KD153: 0 | KH153: 0 | KL153: 0 | KP153: 0 | KT153: 0
B154: Acquisition of property and equipment (cap ex) | I154: -285 | M154: -265 | Q154: -357 | U154: -320 | Y154: =+M154+I154+Q154+U154 -> -1227 | AC154: -262 | AG154: -314 | AK154: -304 | AO154: -266 | AS154: -1146 | AW154: -275 | BA154: -251 | BE154: -230 | BI154: -208 | BM154: -964 | BQ154: -168 | BU154: -211 | BY154: 39 | CC154: -214 | CG154: =BQ154+BU154+BY154+CC154 -> -554 | CK154: -212 | CO154: -261 | CS154: -228 | CW154: -208 | DA154: -909 | DF154: =DF$14*Ratios!DF25 -> -193.575 | DJ154: =DJ$14*Ratios!DJ25 -> -190.2554146 | DN154: =DN$14*Ratios!DN25 -> -196.98645 | DR154: =DR$14*Ratios!DR25 -> -206.2724205 | DV154: -787.0892851 | DZ154: =DZ$14*Ratios!DZ25 -> -198.942 | ED154: =ED$14*Ratios!ED25 -> -194.9482882 | EH154: =EH$14*Ratios!EH25 -> -201.541566 | EL154: =EL$14*Ratios!EL25 -> -211.4409262 | EP154: -806.8727804 | ET154: =ET$14*Ratios!ET25 -> -407.317762 | EX154: =EX$14*Ratios!EX25 -> -399.7995781 | FB154: =FB$14*Ratios!FB25 -> -415.6484551 | FF154: =FF$14*Ratios!FF25 -> -438.9946455 | FJ154: -1661.760441 | FN154: =FN$14*Ratios!FN25 -> -444.3870525 | FR154: =FR$14*Ratios!FR25 -> -425.134945 | FV154: =FV$14*Ratios!FV25 -> -435.5864775 | FZ154: =FZ$14*Ratios!FZ25 -> -458.2905994 | GD154: -1763.399074 | GH154: =GH$14*Ratios!GH25 -> -462.7205378 | GL154: =GL$14*Ratios!GL25 -> -443.0673787 | GP154: =GP$14*Ratios!GP25 -> -453.8175294 | GT154: =GT$14*Ratios!GT25 -> -477.1437837 | GX154: -1836.74923 | HB154: =HB$14*Ratios!HB25 -> -240.2206204 | HF154: =HF$14*Ratios!HF25 -> -230.1947119 | HJ154: =HJ$14*Ratios!HJ25 -> -235.7154497 | HN154: =HN$14*Ratios!HN25 -> -247.6355369 | HR154: -953.7663189 | HV154: =HV$14*Ratios!HV25 -> -248.6363848 | HZ154: =HZ$14*Ratios!HZ25 -> -238.4187409 | ID154: =ID$14*Ratios!ID25 -> -244.0799097 | IH154: =IH$14*Ratios!IH25 -> -256.1872198 | IL154: -987.3222552 | IP154: =IP$14*Ratios!IP25 -> -251.5033245 | IT154: =IT$14*Ratios!IT25 -> -241.184949 | IX154: =IX$14*Ratios!IX25 -> -246.9514333 | JB154: =JB$14*Ratios!JB25 -> -259.1935386 | JF154: -998.8332453 | JJ154: =JJ$14*Ratios!JJ25 -> -254.9932433 | JN154: =JN$14*Ratios!JN25 -> -244.4809096 | JR154: =JR$14*Ratios!JR25 -> -250.3666338 | JV154: =JV$14*Ratios!JV25 -> -262.8344584 | JZ154: -1012.675245 | KD154: =KD$14*Ratios!KD25 -> -258.603462 | KH154: =KH$14*Ratios!KH25 -> -247.8935488 | KL154: =KL$14*Ratios!KL25 -> -253.9011001 | KP154: =KP$14*Ratios!KP25 -> -266.5994176 | KT154: -1026.997528
B155: Proceeds from sales of property and equipment | I155: 3 | M155: 2 | Q155: 3 | U155: 14 | Y155: 22 | AC155: 6 | AG155: 5 | AK155: 0 | AO155: 30 | AS155: 41 | AW155: 2 | BA155: 3 | BE155: 1 | BI155: 1 | BM155: 7 | BQ155: 1 | BU155: 50 | BY155: -241 | CC155: 5 | CG155: =BQ155+BU155+BY155+CC155 -> -185 | CK155: 2 | CO155: 8 | CS155: 5 | CW155: 7 | DA155: 22 | DF155: 0 | DJ155: 0 | DN155: 0 | DR155: 0 | DV155: =DN155+DR155+DJ155+DF155 -> 0 | DZ155: 0 | ED155: 0 | EH155: 0 | EL155: 0 | EP155: =EH155+EL155+ED155+DZ155 -> 0 | ET155: 0 | EX155: 0 | FB155: 0 | FF155: 0 | FJ155: =FB155+FF155+EX155+ET155 -> 0 | FN155: 0 | FR155: 0 | FV155: 0 | FZ155: 0 | GD155: =FV155+FZ155+FR155+FN155 -> 0 | GH155: 0 | GL155: 0 | GP155: 0 | GT155: 0 | GX155: =GP155+GT155+GL155+GH155 -> 0 | HB155: 0 | HF155: 0 | HJ155: 0 | HN155: 0 | HR155: =HJ155+HN155+HF155+HB155 -> 0 | HV155: 0 | HZ155: 0 | ID155: 0 | IH155: 0 | IL155: =ID155+IH155+HZ155+HV155 -> 0 | IP155: 0 | IT155: 0 | IX155: 0 | JB155: 0 | JF155: =IX155+JB155+IT155+IP155 -> 0 | JJ155: 0 | JN155: 0 | JR155: 0 | JV155: 0 | JZ155: =JR155+JV155+JN155+JJ155 -> 0 | KD155: 0 | KH155: 0 | KL155: 0 | KP155: 0 | KT155: =KL155+KP155+KH155+KD155 -> 0
B156: Other | I156: 2 | M156: -111 | Q156: -6 | U156: -63 | Y156: -178 | AC156: -11 | AG156: -76 | AK156: -108 | AO156: 4 | AS156: -191 | AW156: 23 | BA156: -13 | BE156: 25 | BI156: 4 | BM156: 39 | BQ156: -10 | BU156: -7 | BY156: 4 | CC156: -3 | CG156: =BQ156+BU156+BY156+CC156 -> -16 | CK156: 0 | CO156: -12 | CS156: 0 | CW156: 0 | DA156: -12 | DV156: 0 | EP156: 0 | FJ156: 0 | GD156: 0 | GX156: 0 | HR156: 0 | IL156: 0 | JF156: 0 | JZ156: 0 | KT156: 0
E157: Net cash provided by / (used in) investing activities | I157: =SUM(I148:I156) -> -2877 | M157: =SUM(M148:M156) -> -759 | Q157: =SUM(Q148:Q156) -> -2592 | U157: =SUM(U148:U156) -> -3860 | Y157: =SUM(Y148:Y156) -> -10088 | AC157: =SUM(AC148:AC156) -> -950 | AG157: =SUM(AG148:AG156) -> -1437 | AK157: =SUM(AK148:AK156) -> -2364 | AO157: =SUM(AO148:AO156) -> -3366 | AS157: =SUM(AS148:AS156) -> -8117 | AW157: =SUM(AW148:AW156) -> -5396 | BA157: =SUM(BA148:BA156) -> 418 | BE157: =SUM(BE148:BE156) -> -1710 | BI157: =SUM(BI148:BI156) -> 695 | BM157: =SUM(BM148:BM156) -> -5993 | BQ157: =SUM(BQ148:BQ156) -> -2505 | BU157: =SUM(BU148:BU156) -> 3990 | BY157: =SUM(BY148:BY156) -> 5757 | CC157: =SUM(CC148:CC156) -> 8076 | CG157: =SUM(CG148:CG156) -> 16655 | CK157: =SUM(CK148:CK156) -> 2675 | CO157: =SUM(CO148:CO156) -> 3867 | CS157: =SUM(CS148:CS156) -> 5606 | CW157: =SUM(CW148:CW156) -> 2689 | DA157: =SUM(DA148:DA156) -> 14837 | DF157: =SUM(DF148:DF156) -> -193.575 | DJ157: =SUM(DJ148:DJ156) -> -190.2554146 | DN157: =SUM(DN148:DN156) -> -199.58645 | DR157: =SUM(DR148:DR156) -> -206.2724205 | DV157: =SUM(DV148:DV156) -> -789.6892851 | DZ157: =SUM(DZ148:DZ156) -> -198.942 | ED157: =SUM(ED148:ED156) -> -194.9482882 | EH157: =SUM(EH148:EH156) -> -201.541566 | EL157: =SUM(EL148:EL156) -> -211.4409262 | EP157: =SUM(EP148:EP156) -> -806.8727804 | ET157: =SUM(ET148:ET156) -> -407.317762 | EX157: =SUM(EX148:EX156) -> -399.7995781 | FB157: =SUM(FB148:FB156) -> -415.6484551 | FF157: =SUM(FF148:FF156) -> -438.9946455 | FJ157: =SUM(FJ148:FJ156) -> -1661.760441 | FN157: =SUM(FN148:FN156) -> -444.3870525 | FR157: =SUM(FR148:FR156) -> -425.134945 | FV157: =SUM(FV148:FV156) -> -435.5864775 | FZ157: =SUM(FZ148:FZ156) -> -458.2905994 | GD157: =SUM(GD148:GD156) -> -1763.399074 | GH157: =SUM(GH148:GH156) -> -462.7205378 | GL157: =SUM(GL148:GL156) -> -443.0673787 | GP157: =SUM(GP148:GP156) -> -453.8175294 | GT157: =SUM(GT148:GT156) -> -477.1437837 | GX157: =SUM(GX148:GX156) -> -1836.74923 | HB157: =SUM(HB148:HB156) -> -240.2206204 | HF157: =SUM(HF148:HF156) -> -230.1947119 | HJ157: =SUM(HJ148:HJ156) -> -235.7154497 | HN157: =SUM(HN148:HN156) -> -247.6355369 | HR157: =SUM(HR148:HR156) -> -953.7663189 | HV157: =SUM(HV148:HV156) -> -248.6363848 | HZ157: =SUM(HZ148:HZ156) -> -238.4187409 | ID157: =SUM(ID148:ID156) -> -244.0799097 | IH157: =SUM(IH148:IH156) -> -256.1872198 | IL157: =SUM(IL148:IL156) -> -987.3222552 | IP157: =SUM(IP148:IP156) -> -251.5033245 | IT157: =SUM(IT148:IT156) -> -241.184949 | IX157: =SUM(IX148:IX156) -> -246.9514333 | JB157: =SUM(JB148:JB156) -> -259.1935386 | JF157: =SUM(JF148:JF156) -> -998.8332453 | JJ157: =SUM(JJ148:JJ156) -> -254.9932433 | JN157: =SUM(JN148:JN156) -> -244.4809096 | JR157: =SUM(JR148:JR156) -> -250.3666338 | JV157: =SUM(JV148:JV156) -> -262.8344584 | JZ157: =SUM(JZ148:JZ156) -> -1012.675245 | KD157: =SUM(KD148:KD156) -> -258.603462 | KH157: =SUM(KH148:KH156) -> -247.8935488 | KL157: =SUM(KL148:KL156) -> -253.9011001 | KP157: =SUM(KP148:KP156) -> -266.5994176 | KT157: =SUM(KT148:KT156) -> -1026.997528
A159: Cash flows from financing activities:
B160: Issuances of common stock | I160: 353 | M160: 809 | Q160: 422 | U160: 432 | Y160: =+M160+I160+Q160+U160 -> 2016 | AC160: 385 | AG160: 316 | AK160: 70 | AO160: 356 | AS160: =AC160+AG160+AK160+AO160 -> 1127 | AW160: 88 | BA160: 298 | BE160: 32 | BI160: 290 | BM160: =AW160+BA160+BE160+BI160 -> 708 | BQ160: 9 | BU160: 293 | BY160: 16 | CC160: 305 | CG160: =BQ160+BU160+BY160+CC160 -> 623 | CK160: 8 | CO160: 304 | CS160: 9 | CW160: 319 | DA160: =CS160+CW160+CO160+CK160 -> 640 | DF160: =-(DA108-DF108)-DF130 -> -2.50111043e-12 | DJ160: =-(DF108-DJ108)-DJ130 -> 1.762145985e-12 | DN160: =-(DJ108-DN108)-DN130 -> -3.296918294e-12 | DR160: =-(DN108-DR108)-DR130 -> 2.444267011e-12 | DV160: =DN160+DR160+DJ160+DF160 -> -1.591615728e-12 | DZ160: =-(DV108-DZ108)-DZ130 -> 2.330580173e-12 | ED160: =-(DZ108-ED108)-ED130 -> -2.387423592e-12 | EH160: =-(ED108-EH108)-EH130 -> 3.410605132e-12 | EL160: =-(EH108-EL108)-EL130 -> 3.467448551e-12 | EP160: =EH160+EL160+ED160+DZ160 -> 6.821210263e-12 | ET160: =-(EP108-ET108)-ET130 -> -2.330580173e-12 | EX160: =-(ET108-EX108)-EX130 -> 1.762145985e-12 | FB160: =-(EX108-FB108)-FB130 -> -2.216893336e-12 | FF160: =-(FB108-FF108)-FF130 -> 1.250555215e-12 | FJ160: =FB160+FF160+EX160+ET160 -> -1.534772309e-12 | FN160: =-(FJ108-FN108)-FN130 -> 0 | FR160: =-(FN108-FR108)-FR130 -> 2.728484105e-12 | FV160: =-(FR108-FV108)-FV130 -> -2.899014362e-12 | FZ160: =-(FV108-FZ108)-FZ130 -> 2.273736754e-12 | GD160: =FV160+FZ160+FR160+FN160 -> 2.103206498e-12 | GH160: =-(GD108-GH108)-GH130 -> 4.547473509e-13 | GL160: =-(GH108-GL108)-GL130 -> -1.421085472e-12 | GP160: =-(GL108-GP108)-GP130 -> -2.842170943e-12 | GT160: =-(GP108-GT108)-GT130 -> 3.069544618e-12 | GX160: =GP160+GT160+GL160+GH160 -> -7.389644452e-13 | HB160: =-(GX108-HB108)-HB130 -> 2.216893336e-12 | HF160: =-(HB108-HF108)-HF130 -> 2.557953849e-12 | HJ160: =-(HF108-HJ108)-HJ130 -> 2.614797268e-12 | HN160: =-(HJ108-HN108)-HN130 -> -1.932676241e-12 | HR160: =HJ160+HN160+HF160+HB160 -> 5.456968211e-12 | HV160: =-(HR108-HV108)-HV130 -> 3.353761713e-12 | HZ160: =-(HV108-HZ108)-HZ130 -> 1.080024958e-12 | ID160: =-(HZ108-ID108)-ID130 -> -2.160049917e-12 | IH160: =-(ID108-IH108)-IH130 -> 9.094947018e-13 | IL160: =ID160+IH160+HZ160+HV160 -> 3.183231456e-12 | IP160: =-(IL108-IP108)-IP130 -> 3.296918294e-12 | IT160: =-(IP108-IT108)-IT130 -> 2.842170943e-12 | IX160: =-(IT108-IX108)-IX130 -> -3.524291969e-12 | JB160: =-(IX108-JB108)-JB130 -> -2.955857781e-12 | JF160: =IX160+JB160+IT160+IP160 -> -3.410605132e-13 | JJ160: =-(JF108-JJ108)-JJ130 -> 1.932676241e-12 | JN160: =-(JJ108-JN108)-JN130 -> 1.307398634e-12 | JR160: =-(JN108-JR108)-JR130 -> 1.364242053e-12 | JV160: =-(JR108-JV108)-JV130 -> 0 | JZ160: =JR160+JV160+JN160+JJ160 -> 4.604316928e-12 | KD160: =-(JZ108-KD108)-KD130 -> -3.069544618e-12 | KH160: =-(KD108-KH108)-KH130 -> 0 | KL160: =-(KH108-KL108)-KL130 -> -2.50111043e-12 | KP160: =-(KL108-KP108)-KP130 -> -2.046363079e-12 | KT160: =KL160+KP160+KH160+KD160 -> -7.617018127e-12
B161: Repurchases of common stock - repurchase program | I161: -1088 | M161: -1108 | Q161: -1129 | U161: -999 | Y161: =+M161+I161+Q161+U161 -> -4324 | AC161: -1210 | AG161: -1134 | AK161: -810 | AO161: -755 | AS161: =AC161+AG161+AK161+AO161 -> -3909 | AW161: -1023 | BA161: -968 | BE161: -525 | BI161: -1169 | BM161: -3685 | BQ161: -1686 | BU161: -3771 | BY161: -6105 | CC161: -5985 | CG161: -17547 | CK161: -5076 | CO161: -4986 | CS161: -5980 | CW161: -4675 | DA161: -20717 | DF161: =-Ratios!DF53 -> -3375 | DJ161: =-Ratios!DJ53 -> -3375 | DN161: =-Ratios!DN53 -> -3375 | DR161: =-Ratios!DR53 -> -3375 | DV161: =SUM(DF161:DR161) -> -13500 | DZ161: =-Ratios!DZ53 -> -2500 | ED161: =-Ratios!ED53 -> -2500 | EH161: =-Ratios!EH53 -> -2500 | EL161: =-Ratios!EL53 -> -2500 | EP161: =SUM(DZ161:EL161) -> -10000 | ET161: =-Ratios!ET53 -> -625 | EX161: =-Ratios!EX53 -> -625 | FB161: =-Ratios!FB53 -> -625 | FF161: =-Ratios!FF53 -> -625 | FJ161: =SUM(ET161:FF161) -> -2500 | FN161: =-Ratios!FN53 -> -625 | FR161: =-Ratios!FR53 -> -625 | FV161: =-Ratios!FV53 -> -625 | FZ161: =-Ratios!FZ53 -> -625 | GD161: =SUM(FN161:FZ161) -> -2500 | GH161: =-Ratios!GH53 -> -625 | GL161: =-Ratios!GL53 -> -625 | GP161: =-Ratios!GP53 -> -625 | GT161: =-Ratios!GT53 -> -625 | GX161: =SUM(GH161:GT161) -> -2500 | HB161: =-Ratios!HB53 -> -625 | HF161: =-Ratios!HF53 -> -625 | HJ161: =-Ratios!HJ53 -> -625 | HN161: =-Ratios!HN53 -> -625 | HR161: =SUM(HB161:HN161) -> -2500 | HV161: =-Ratios!HV53 -> -625 | HZ161: =-Ratios!HZ53 -> -625 | ID161: =-Ratios!ID53 -> -625 | IH161: =-Ratios!IH53 -> -625 | IL161: =SUM(HV161:IH161) -> -2500 | IP161: =-Ratios!IP53 -> -625 | IT161: =-Ratios!IT53 -> -625 | IX161: =-Ratios!IX53 -> -625 | JB161: =-Ratios!JB53 -> -625 | JF161: =SUM(IP161:JB161) -> -2500 | JJ161: =-Ratios!JJ53 -> -625 | JN161: =-Ratios!JN53 -> -625 | JR161: =-Ratios!JR53 -> -625 | JV161: =-Ratios!JV53 -> -625 | JZ161: =SUM(JJ161:JV161) -> -2500 | KD161: =-Ratios!KD53 -> -625 | KH161: =-Ratios!KH53 -> -625 | KL161: =-Ratios!KL53 -> -625 | KP161: =-Ratios!KP53 -> -625 | KT161: =SUM(KD161:KP161) -> -2500
B162: Shares repurchased for tax withholdings on vesting of restricted stock units | I162: -342 | M162: -27 | Q162: -46 | U162: -87 | Y162: -502 | AC162: -382 | AG162: -30 | AK162: -57 | AO162: -88 | AS162: -557 | AW162: -401 | BA162: -31 | BE162: -65 | BI162: -122 | BM162: -619 | BQ162: -342 | BU162: -91 | BY162: -108 | CC162: -162 | CG162: -703 | CK162: -318 | CO162: -196 | CS162: -87 | CW162: -261 | DA162: -862 | DF162: 0 | DJ162: 0 | DN162: 0 | DR162: 0 | DV162: =DN162+DR162+DJ162+DF162 -> 0 | DZ162: 0 | ED162: 0 | EH162: 0 | EL162: 0 | EP162: =EH162+EL162+ED162+DZ162 -> 0 | ET162: 0 | EX162: 0 | FB162: 0 | FF162: 0 | FJ162: =FB162+FF162+EX162+ET162 -> 0 | FN162: 0 | FR162: 0 | FV162: 0 | FZ162: 0 | GD162: =FV162+FZ162+FR162+FN162 -> 0 | GH162: 0 | GL162: 0 | GP162: 0 | GT162: 0 | GX162: =GP162+GT162+GL162+GH162 -> 0 | HB162: 0 | HF162: 0 | HJ162: 0 | HN162: 0 | HR162: =HJ162+HN162+HF162+HB162 -> 0 | HV162: 0 | HZ162: 0 | ID162: 0 | IH162: 0 | IL162: =ID162+IH162+HZ162+HV162 -> 0 | IP162: 0 | IT162: 0 | IX162: 0 | JB162: 0 | JF162: =IX162+JB162+IT162+IP162 -> 0 | JJ162: 0 | JN162: 0 | JR162: 0 | JV162: 0 | JZ162: =JR162+JV162+JN162+JJ162 -> 0 | KD162: 0 | KH162: 0 | KL162: 0 | KP162: 0 | KT162: =KL162+KP162+KH162+KD162 -> 0
B163: Short-term borrowings, original maturities of 90 days or less, net | I163: -4 | M163: 0 | Q163: 500 | U163: -500 | Y163: -4 | AC163: -4 | AG163: 0 | AK163: 0 | AO163: 0 | AS163: -4 | AW163: 0 | BA163: 300 | BE163: 1700 | BI163: 497 | BM163: 2497 | BQ163: -2498 | BU163: 7593 | BY163: -7597 | CC163: 0 | CG163: -2502 | CK163: 0 | CO163: 0 | CS163: 1723 | CW163: 1723 | DA163: 3446 | DF163: =-(DA87-DF87) -> -1998 | DJ163: =-(DF87-DJ87) -> -2500 | DN163: =-(DJ87-DN87) -> 3000 | DR163: =-(DN87-DR87) -> -1500 | DV163: -2998 | DZ163: =-(DV87-DZ87) -> 2000 | ED163: =-(DZ87-ED87) -> 0 | EH163: =-(ED87-EH87) -> -3000 | EL163: =-(EH87-EL87) -> 500 | EP163: -500 | ET163: =-(EP87-ET87) -> -2000 | EX163: =-(ET87-EX87) -> 0 | FB163: =-(EX87-FB87) -> 500 | FF163: =-(FB87-FF87) -> -500 | FJ163: -2000 | FN163: =-(FJ87-FN87) -> 750 | FR163: =-(FN87-FR87) -> 0 | FV163: =-(FR87-FV87) -> 500 | FZ163: =-(FV87-FZ87) -> 0 | GD163: 1250 | GH163: =-(GD87-GH87) -> -750 | GL163: =-(GH87-GL87) -> 0 | GP163: =-(GL87-GP87) -> -1000 | GT163: =-(GP87-GT87) -> 500 | GX163: -1250 | HB163: =-(GX87-HB87) -> 0 | HF163: =-(HB87-HF87) -> 0 | HJ163: =-(HF87-HJ87) -> 750 | HN163: =-(HJ87-HN87) -> -500 | HR163: 250 | HV163: =-(HR87-HV87) -> 1500 | HZ163: =-(HV87-HZ87) -> 0 | ID163: =-(HZ87-ID87) -> -750 | IH163: =-(ID87-IH87) -> 0 | IL163: 750 | IP163: =-(IL87-IP87) -> -1500 | IT163: =-(IP87-IT87) -> 0 | IX163: =-(IT87-IX87) -> 0 | JB163: =-(IX87-JB87) -> 0 | JF163: -1500 | JJ163: =-(JF87-JJ87) -> 0 | JN163: =-(JJ87-JN87) -> 0 | JR163: =-(JN87-JR87) -> 0 | JV163: =-(JR87-JV87) -> 0 | JZ163: 0 | KD163: =-(JZ87-KD87) -> 0 | KH163: =-(KD87-KH87) -> 0 | KL163: =-(KH87-KL87) -> 0 | KP163: =-(KL87-KP87) -> 0 | KT163: 0
B164: Issuances of debt | I164: 0 | M164: 0 | Q164: 0 | U164: 4981 | Y164: =+M164+I164+Q164+U164 -> 4981 | AC164: 0 | AG164: 0 | AK164: 6978 | AO164: 0 | AS164: 6978 | AW164: 6232 | BA164: 0 | BE164: 0 | BI164: 748 | BM164: 6980 | BQ164: 5482 | BU164: 1395 | BY164: 0 | CC164: 0 | CG164: 6877 | CK164: 0 | CO164: 0 | CS164: 1530 | CW164: 720 | DA164: 2250 | DF164: 0 | DJ164: 0 | DN164: 0 | DR164: 0 | DV164: 0 | DZ164: 0 | ED164: 0 | EH164: 0 | EL164: 0 | EP164: 0 | ET164: 0 | EX164: 0 | FB164: 0 | FF164: 0 | FJ164: 0 | FN164: 0 | FR164: 0 | FV164: 0 | FZ164: 0 | GD164: 0 | GH164: 0 | GL164: 0 | GP164: 0 | GT164: 0 | GX164: 0 | HB164: 0 | HF164: 0 | HJ164: 0 | HN164: 0 | HR164: 0 | HV164: 0 | HZ164: 0 | ID164: 0 | IH164: 0 | IL164: 0 | IP164: 0 | IT164: 0 | IX164: 0 | JB164: 0 | JF164: 0 | JJ164: 0 | JN164: 0 | JR164: 0 | JV164: 0 | JZ164: 0 | KD164: 0 | KH164: 0 | KL164: 0 | KP164: 0 | KT164: 0
B165: Repayments of debt | I165: -3 | M165: -503 | Q165: -1 | U165: -1 | Y165: -508 | AC165: -852 | AG165: -10 | AK165: -3001 | AO165: 0 | AS165: -3863 | AW165: -1 | BA165: 0 | BE165: -4150 | BI165: 0 | BM165: -4151 | BQ165: -748 | BU165: -5482 | BY165: -3645 | CC165: -2500 | CG165: -12375 | CK165: 0 | CO165: 0 | CS165: -5250 | CW165: -1530 | DA165: -6780 | DF165: =-(DA95-DF95) -> 4775 | DJ165: =-(DF95-DJ95) -> 2500 | DN165: =-(DJ95-DN95) -> -3000 | DR165: =-(DN95-DR95) -> 1500 | DV165: 5775 | DZ165: =-(DV95-DZ95) -> -2000 | ED165: =-(DZ95-ED95) -> 0 | EH165: =-(ED95-EH95) -> 3000 | EL165: =-(EH95-EL95) -> -500 | EP165: 500 | ET165: =-(EP95-ET95) -> 2000 | EX165: =-(ET95-EX95) -> 0 | FB165: =-(EX95-FB95) -> -500 | FF165: =-(FB95-FF95) -> 500 | FJ165: 2000 | FN165: =-(FJ95-FN95) -> -750 | FR165: =-(FN95-FR95) -> 0 | FV165: =-(FR95-FV95) -> -500 | FZ165: =-(FV95-FZ95) -> 0 | GD165: -1250 | GH165: =-(GD95-GH95) -> 750 | GL165: =-(GH95-GL95) -> 0 | GP165: =-(GL95-GP95) -> 1000 | GT165: =-(GP95-GT95) -> -500 | GX165: 1250 | HB165: =-(GX95-HB95) -> 0 | HF165: =-(HB95-HF95) -> 0 | HJ165: =-(HF95-HJ95) -> -750 | HN165: =-(HJ95-HN95) -> 500 | HR165: -250 | HV165: =-(HR95-HV95) -> -1500 | HZ165: =-(HV95-HZ95) -> 0 | ID165: =-(HZ95-ID95) -> 750 | IH165: =-(ID95-IH95) -> 0 | IL165: -750 | IP165: =-(IL95-IP95) -> 1500 | IT165: =-(IP95-IT95) -> 0 | IX165: =-(IT95-IX95) -> 0 | JB165: =-(IX95-JB95) -> 0 | JF165: 1500 | JJ165: =-(JF95-JJ95) -> 0 | JN165: =-(JJ95-JN95) -> 0 | JR165: =-(JN95-JR95) -> 0 | JV165: =-(JR95-JV95) -> 0 | JZ165: 0 | KD165: =-(JZ95-KD95) -> 0 | KH165: =-(KD95-KH95) -> 0 | KL165: =-(KH95-KL95) -> 0 | KP165: =-(KL95-KP95) -> 0 | KT165: 0
B166: Excess tax benefits from share-based compensation | I166: 71 | M166: 12 | Q166: 19 | U166: 26 | Y166: 128 | AC166: 73 | AG166: 9 | AK166: 21 | AO166: 26 | AS166: 129 | AW166: 91 | BA166: 10 | BE166: 24 | BI166: 28 | BM166: 153
B167: Dividends paid | I167: -973 | M167: -974 | Q167: -1070 | U167: -1069 | Y167: =+M167+I167+Q167+U167 -> -4086 | AC167: -1068 | AG167: -1065 | AK167: -1308 | AO167: -1309 | AS167: -4750 | AW167: -1308 | BA167: -1304 | BE167: -1451 | BI167: -1448 | BM167: -5511 | BQ167: -1436 | BU167: -1425 | BY167: -1572 | CC167: -1535 | CG167: -5968 | CK167: -1500 | CO167: -1470 | CS167: -1519 | CW167: -1490 | DA167: -5979 | DF167: =-DF55*DF58 -> -1476.303567 | DJ167: =-DJ55*DJ58 -> -1461.478501 | DN167: =-DN55*DN58 -> -1665.332823 | DR167: =-DR55*DR58 -> -1653.576523 | DV167: -6256.691414 | DZ167: =-DZ55*DZ58 -> -1646.342463 | ED167: =-ED55*ED58 -> -1640.333116 | EH167: =-EH55*EH58 -> -1879.282544 | EL167: =-EL55*EL58 -> -1874.517123 | EP167: =EH167+EL167+ED167+DZ167 -> -7040.475246 | ET167: =-ET55*ET58 -> -1873.527461 | EX167: =-EX55*EX58 -> -1872.705348 | FB167: =-FB55*FB58 -> -2151.269214 | FF167: =-FF55*FF58 -> -2150.617277 | FJ167: =FB167+FF167+EX167+ET167 -> -8048.119301 | FN167: =-FN55*FN58 -> -2150.075712 | FR167: =-FR55*FR58 -> -2149.625832 | FV167: =-FV55*FV58 -> -2469.852856 | FZ167: =-FZ55*FZ58 -> -2469.496101 | GD167: =FV167+FZ167+FR167+FN167 -> -9239.0505 | GH167: =-GH55*GH58 -> -2469.199743 | GL167: =-GL55*GL58 -> -2468.953559 | GP167: =-GP55*GP58 -> -2837.008675 | GT167: =-GT55*GT58 -> -2836.81345 | GX167: =GP167+GT167+GL167+GH167 -> -10611.97543 | HB167: =-HB55*HB58 -> -2836.651277 | HF167: =-HF55*HF58 -> -2836.516559 | HJ167: =-HJ55*HJ58 -> -3259.506908 | HN167: =-HN55*HN58 -> -3259.400076 | HR167: =HJ167+HN167+HF167+HB167 -> -12192.07482 | HV167: =-HV55*HV58 -> -3259.311331 | HZ167: =-HZ55*HZ58 -> -3259.237611 | ID167: =-ID55*ID58 -> -3745.342859 | IH167: =-IH55*IH58 -> -3745.284398 | IL167: =ID167+IH167+HZ167+HV167 -> -14009.1762 | IP167: =-IP55*IP58 -> -3745.235835 | IT167: =-IT55*IT58 -> -3745.195493 | IX167: =-IX55*IX58 -> -4303.822219 | JB167: =-JB55*JB58 -> -4303.790228 | JF167: =IX167+JB167+IT167+IP167 -> -16098.04377 | JJ167: =-JJ55*JJ58 -> -4303.763653 | JN167: =-JN55*JN58 -> -4303.741577 | JR167: =-JR55*JR58 -> -4945.703228 | JV167: =-JV55*JV58 -> -4945.685722 | JZ167: =JR167+JV167+JN167+JJ167 -> -18498.89418 | KD167: =-KD55*KD58 -> -4945.671179 | KH167: =-KH55*KH58 -> -4945.659099 | KL167: =-KL55*KL58 -> -4945.649063 | KP167: =-KP55*KP58 -> -4945.640727 | KT167: -19782.62007
B168: Other | I168: 33 | M168: 77 | Q168: -70 | U168: -54 | Y168: -14 | AC168: 123 | AG168: -15 | AK168: -12 | AO168: 54 | AS168: 150 | AW168: -60 | BA168: -180 | BE168: -10 | BI168: 72 | BM168: -178 | BQ168: -31 | BU168: 9 | BY168: -70 | CC168: -77 | CG168: -169 | CK168: -59 | CO168: 77 | CS168: 33 | CW168: 62 | DA168: 113 | DF168: 0 | DJ168: 0 | DN168: 0 | DR168: 0 | DV168: 0 | DZ168: 0 | ED168: 0 | EH168: 0 | EL168: 0 | EP168: 0 | ET168: 0 | EX168: 0 | FB168: 0 | FF168: 0 | FJ168: 0 | FN168: 0 | FR168: 0 | FV168: 0 | FZ168: 0 | GD168: 0 | GH168: 0 | GL168: 0 | GP168: 0 | GT168: 0 | GX168: 0 | HB168: 0 | HF168: 0 | HJ168: 0 | HN168: 0 | HR168: 0 | HV168: 0 | HZ168: 0 | ID168: 0 | IH168: 0 | IL168: 0 | IP168: 0 | IT168: 0 | IX168: 0 | JB168: 0 | JF168: 0 | JJ168: 0 | JN168: 0 | JR168: 0 | JV168: 0 | JZ168: 0 | KD168: 0 | KH168: 0 | KL168: 0 | KP168: 0 | KT168: 0
E169: Net cash provided by / (used in) financing activities | I169: =SUM(I160:I168) -> -1953 | M169: =SUM(M160:M168) -> -1714 | Q169: =SUM(Q160:Q168) -> -1375 | U169: =SUM(U160:U168) -> 2729 | Y169: =SUM(Y160:Y168) -> -2313 | AC169: =SUM(AC160:AC168) -> -2935 | AG169: =SUM(AG160:AG168) -> -1929 | AK169: =SUM(AK160:AK168) -> 1881 | AO169: =SUM(AO160:AO168) -> -1716 | AS169: =SUM(AS160:AS168) -> -4699 | AW169: =SUM(AW160:AW168) -> 3618 | BA169: =SUM(BA160:BA168) -> -1875 | BE169: =SUM(BE160:BE168) -> -4445 | BI169: =SUM(BI160:BI168) -> -1104 | BM169: =SUM(BM160:BM168) -> -3806 | BQ169: =SUM(BQ160:BQ168) -> -1250 | BU169: =SUM(BU160:BU168) -> -1479 | BY169: =SUM(BY160:BY168) -> -19081 | CC169: =SUM(CC160:CC168) -> -9954 | CG169: =SUM(CG160:CG168) -> -31764 | CK169: =SUM(CK160:CK168) -> -6945 | CO169: =SUM(CO160:CO168) -> -6271 | CS169: =SUM(CS160:CS168) -> -9541 | CW169: =SUM(CW160:CW168) -> -5132 | DA169: =SUM(DA160:DA168) -> -27889 | DF169: =SUM(DF160:DF168) -> -2074.303567 | DJ169: =SUM(DJ160:DJ168) -> -4836.478501 | DN169: =SUM(DN160:DN168) -> -5040.332823 | DR169: =SUM(DR160:DR168) -> -5028.576523 | DV169: =SUM(DV160:DV168) -> -16979.69141 | DZ169: =SUM(DZ160:DZ168) -> -4146.342463 | ED169: =SUM(ED160:ED168) -> -4140.333116 | EH169: =SUM(EH160:EH168) -> -4379.282544 | EL169: =SUM(EL160:EL168) -> -4374.517123 | EP169: =SUM(EP160:EP168) -> -17040.47525 | ET169: =SUM(ET160:ET168) -> -2498.527461 | EX169: =SUM(EX160:EX168) -> -2497.705348 | FB169: =SUM(FB160:FB168) -> -2776.269214 | FF169: =SUM(FF160:FF168) -> -2775.617277 | FJ169: =SUM(FJ160:FJ168) -> -10548.1193 | FN169: =SUM(FN160:FN168) -> -2775.075712 | FR169: =SUM(FR160:FR168) -> -2774.625832 | FV169: =SUM(FV160:FV168) -> -3094.852856 | FZ169: =SUM(FZ160:FZ168) -> -3094.496101 | GD169: =SUM(GD160:GD168) -> -11739.0505 | GH169: =SUM(GH160:GH168) -> -3094.199743 | GL169: =SUM(GL160:GL168) -> -3093.953559 | GP169: =SUM(GP160:GP168) -> -3462.008675 | GT169: =SUM(GT160:GT168) -> -3461.81345 | GX169: =SUM(GX160:GX168) -> -13111.97543 | HB169: =SUM(HB160:HB168) -> -3461.651277 | HF169: =SUM(HF160:HF168) -> -3461.516559 | HJ169: =SUM(HJ160:HJ168) -> -3884.506908 | HN169: =SUM(HN160:HN168) -> -3884.400076 | HR169: =SUM(HR160:HR168) -> -14692.07482 | HV169: =SUM(HV160:HV168) -> -3884.311331 | HZ169: =SUM(HZ160:HZ168) -> -3884.237611 | ID169: =SUM(ID160:ID168) -> -4370.342859 | IH169: =SUM(IH160:IH168) -> -4370.284398 | IL169: =SUM(IL160:IL168) -> -16509.1762 | IP169: =SUM(IP160:IP168) -> -4370.235835 | IT169: =SUM(IT160:IT168) -> -4370.195493 | IX169: =SUM(IX160:IX168) -> -4928.822219 | JB169: =SUM(JB160:JB168) -> -4928.790228 | JF169: =SUM(JF160:JF168) -> -18598.04377 | JJ169: =SUM(JJ160:JJ168) -> -4928.763653 | JN169: =SUM(JN160:JN168) -> -4928.741577 | JR169: =SUM(JR160:JR168) -> -5570.703228 | JV169: =SUM(JV160:JV168) -> -5570.685722 | JZ169: =SUM(JZ160:JZ168) -> -20998.89418 | KD169: =SUM(KD160:KD168) -> -5570.671179 | KH169: =SUM(KH160:KH168) -> -5570.659099 | KL169: =SUM(KL160:KL168) -> -5570.649063 | KP169: =SUM(KP160:KP168) -> -5570.640727 | KT169: =SUM(KT160:KT168) -> -22282.62007
A171: Net increase (decrease) in cash, cash equivalents, and restricted cash | I171: =+I157+I145+I169 -> -2339 | M171: =+M157+M145+M169 -> 410 | Q171: =+Q157+Q145+Q169 -> -927 | U171: =+U157+U145+U169 -> 3007 | Y171: =+Y157+Y145+Y169 -> 151 | AC171: =AC157+AC145+AC169 -> -1119 | AG171: =AG157+AG145+AG169 -> 556 | AK171: =AK157+AK145+AK169 -> 2581 | AO171: =AO157+AO145+AO169 -> -1264 | AS171: =AS157+AS145+AS169 -> 754 | AW171: =AW157+AW145+AW169 -> 952 | BA171: =BA157+BA145+BA169 -> 2315 | BE171: =BE157+BE145+BE169 -> -2782 | BI171: =BI157+BI145+BI169 -> 3592 | BM171: =AW171+BA171+BE171+BI171 -> 4077 | BQ171: =BQ157+BQ145+BQ169 -> -675 | BU171: =BU157+BU145+BU169 -> 6581 | BY171: =BY157+BY145+BY169 -> -10908 | CC171: =CC157+CC145+CC169 -> 2222 | CG171: =BQ171+BU171+BY171+CC171 -> -2780 | CK171: =CK157+CK145+CK169 -> -507 | CO171: =CO157+CO145+CO169 -> 1393 | CS171: =CS157+CS145+CS169 -> 394 | CW171: =CW157+CW145+CW169 -> 1499 | DA171: =CS171+CW171+CO171+CK171 -> 2779 | DF171: =DF157+DF145+DF169 -> -6151.80763 | DJ171: =DJ157+DJ145+DJ169 -> 1622.120038 | DN171: =DN157+DN145+DN169 -> -1867.999778 | DR171: =DR157+DR145+DR169 -> -1449.381634 | DV171: =DN171+DR171+DJ171+DF171 -> -7847.069005 | DZ171: =DZ157+DZ145+DZ169 -> -3577.359241 | ED171: =ED157+ED145+ED169 -> 2322.014069 | EH171: =EH157+EH145+EH169 -> -1227.414721 | EL171: =EL157+EL145+EL169 -> -773.6296987 | EP171: =EH171+EL171+ED171+DZ171 -> -3256.389591 | ET171: =ET157+ET145+ET169 -> -2187.224974 | EX171: =EX157+EX145+EX169 -> 3914.79149 | FB171: =FB157+FB145+FB169 -> 313.8244647 | FF171: =FF157+FF145+FF169 -> 818.5784168 | FJ171: =FB171+FF171+EX171+ET171 -> 2859.969397 | FN171: =FN157+FN145+FN169 -> -2104.967821 | FR171: =FR157+FR145+FR169 -> 4029.078665 | FV171: =FV157+FV145+FV169 -> 112.3742404 | FZ171: =FZ157+FZ145+FZ169 -> 673.1211145 | GD171: =FV171+FZ171+FR171+FN171 -> 2709.6062 | GH171: =GH157+GH145+GH169 -> -2370.159716 | GL171: =GL157+GL145+GL169 -> 4030.170107 | GP171: =GP157+GP145+GP169 -> -94.3611249 | GT171: =GT157+GT145+GT169 -> 474.6822528 | GX171: =GP171+GT171+GL171+GH171 -> 2040.331519 | HB171: =HB157+HB145+HB169 -> -2462.965247 | HF171: =HF157+HF145+HF169 -> 4149.475551 | HJ171: =HJ157+HJ145+HJ169 -> -208.8465758 | HN171: =HN157+HN145+HN169 -> 353.2595662 | HR171: =HJ171+HN171+HF171+HB171 -> 1830.923295 | HV171: =HV157+HV145+HV169 -> -2978.000911 | HZ171: =HZ157+HZ145+HZ169 -> 3907.054534 | ID171: =ID157+ID145+ID169 -> -642.7516195 | IH171: =IH157+IH145+IH169 -> -60.17452443 | IL171: =ID171+IH171+HZ171+HV171 -> 226.1274788 | IP171: =IP157+IP145+IP169 -> -3634.013761 | IT171: =IT157+IT145+IT169 -> 3481.848781 | IX171: =IX157+IX145+IX169 -> -1185.06963 | JB171: =JB157+JB145+JB169 -> -591.6043883 | JF171: =IX171+JB171+IT171+IP171 -> -1928.838999 | JJ171: =JJ157+JJ145+JJ169 -> -4189.93197 | JN171: =JN157+JN145+JN169 -> 3015.799969 | JR171: =JR157+JR145+JR169 -> -1787.976965 | JV171: =JV157+JV145+JV169 -> -1183.508086 | JZ171: =JR171+JV171+JN171+JJ171 -> -4145.617051 | KD171: =KD157+KD145+KD169 -> -4830.195099 | KH171: =KH157+KH145+KH169 -> 2479.734739 | KL171: =KL157+KL145+KL169 -> -1739.239749 | KP171: =KP157+KP145+KP169 -> -1124.863616 | KT171: =KL171+KP171+KH171+KD171 -> -5214.563726
A172: Cash, cash equivalents, and restricted cash, beginning of period | I172: 6726 | M172: 4387 | Q172: 4797 | U172: =+Q173 -> 3870 | Y172: =I172 -> 6726 | AC172: 6877 | AG172: 5758 | AK172: 6314 | AO172: 8895 | AS172: 6877 | AW172: 7631 | BA172: 8583 | BE172: 10898 | BI172: 8116 | BM172: =AW172 -> 7631 | BQ172: 11773 | BU172: 11098 | BY172: 17679 | CC172: 6771 | CG172: 11773 | CK172: 8993 | CO172: 8486 | CS172: 9879 | CW172: 10273 | DA172: 8993 | DF172: =DA68 -> 11750 | DJ172: =DF173 -> 5598.19237 | DN172: =DJ173 -> 7220.312408 | DR172: =DN173 -> 5352.31263 | DV172: =DA68 -> 11750 | DZ172: =DV68 -> 3902.930995 | ED172: =DZ173 -> 325.5717546 | EH172: =ED173 -> 2647.585824 | EL172: =EH173 -> 1420.171103 | EP172: =DV173 -> 3902.930995 | ET172: =EP68 -> 646.5414044 | EX172: =ET173 -> -1540.68357 | FB172: =EX173 -> 2374.10792 | FF172: =FB173 -> 2687.932385 | FJ172: =EP173 -> 646.5414044 | FN172: =FJ68 -> 3506.510802 | FR172: =FN173 -> 1401.542981 | FV172: =FR173 -> 5430.621646 | FZ172: =FV173 -> 5542.995887 | GD172: =FJ173 -> 3506.510802 | GH172: =GD68 -> 6216.117001 | GL172: =GH173 -> 3845.957285 | GP172: =GL173 -> 7876.127392 | GT172: =GP173 -> 7781.766267 | GX172: =GD173 -> 6216.117001 | HB172: =GX68 -> 8256.44852 | HF172: =HB173 -> 5793.483273 | HJ172: =HF173 -> 9942.958824 | HN172: =HJ173 -> 9734.112249 | HR172: =GX173 -> 8256.44852 | HV172: =HR68 -> 10087.37181 | HZ172: =HV173 -> 7109.370904 | ID172: =HZ173 -> 11016.42544 | IH172: =ID173 -> 10373.67382 | IL172: =HR173 -> 10087.37181 | IP172: =IL68 -> 10313.49929 | IT172: =IP173 -> 6679.485532 | IX172: =IT173 -> 10161.33431 | JB172: =IX173 -> 8976.264683 | JF172: =IL173 -> 10313.49929 | JJ172: =JF68 -> 8384.660294 | JN172: =JJ173 -> 4194.728325 | JR172: =JN173 -> 7210.528294 | JV172: =JR173 -> 5422.551329 | JZ172: =JF173 -> 8384.660294 | KD172: =JZ68 -> 4239.043243 | KH172: =KD173 -> -591.1518564 | KL172: =KH173 -> 1888.582882 | KP172: =KL173 -> 149.3431331 | KT172: =JZ173 -> 4239.043243
A173: Cash, cash equivalents, and restricted cash, end of period | I173: =SUM(I171:I172) -> 4387 | M173: =M171+M172 -> 4797 | Q173: =Q171+Q172 -> 3870 | U173: =U171+U172 -> 6877 | Y173: =Y171+Y172 -> 6877 | AC173: =SUM(AC171:AC172) -> 5758 | AG173: =SUM(AG171:AG172) -> 6314 | AK173: =SUM(AK171:AK172) -> 8895 | AO173: =SUM(AO171:AO172) -> 7631 | AS173: =SUM(AS171:AS172) -> 7631 | AW173: =SUM(AW171:AW172) -> 8583 | BA173: =SUM(BA171:BA172) -> 10898 | BE173: =SUM(BE171:BE172) -> 8116 | BI173: =SUM(BI171:BI172) -> 11708 | BM173: =SUM(BM171:BM172) -> 11708 | BQ173: =SUM(BQ171:BQ172) -> 11098 | BU173: =SUM(BU171:BU172) -> 17679 | BY173: =SUM(BY171:BY172) -> 6771 | CC173: =SUM(CC171:CC172) -> 8993 | CG173: =SUM(CG171:CG172) -> 8993 | CK173: =SUM(CK171:CK172) -> 8486 | CO173: =SUM(CO171:CO172) -> 9879 | CS173: =SUM(CS171:CS172) -> 10273 | CW173: =SUM(CW171:CW172) -> 11772 | DA173: =SUM(DA171:DA172) -> 11772 | DF173: =SUM(DF171:DF172) -> 5598.19237 | DJ173: =SUM(DJ171:DJ172) -> 7220.312408 | DN173: =SUM(DN171:DN172) -> 5352.31263 | DR173: =SUM(DR171:DR172) -> 3902.930995 | DV173: =SUM(DV171:DV172) -> 3902.930995 | DZ173: =SUM(DZ171:DZ172) -> 325.5717546 | ED173: =SUM(ED171:ED172) -> 2647.585824 | EH173: =SUM(EH171:EH172) -> 1420.171103 | EL173: =SUM(EL171:EL172) -> 646.5414044 | EP173: =SUM(EP171:EP172) -> 646.5414044 | ET173: =SUM(ET171:ET172) -> -1540.68357 | EX173: =SUM(EX171:EX172) -> 2374.10792 | FB173: =SUM(FB171:FB172) -> 2687.932385 | FF173: =SUM(FF171:FF172) -> 3506.510802 | FJ173: =SUM(FJ171:FJ172) -> 3506.510802 | FN173: =SUM(FN171:FN172) -> 1401.542981 | FR173: =SUM(FR171:FR172) -> 5430.621646 | FV173: =SUM(FV171:FV172) -> 5542.995887 | FZ173: =SUM(FZ171:FZ172) -> 6216.117001 | GD173: =SUM(GD171:GD172) -> 6216.117001 | GH173: =SUM(GH171:GH172) -> 3845.957285 | GL173: =SUM(GL171:GL172) -> 7876.127392 | GP173: =SUM(GP171:GP172) -> 7781.766267 | GT173: =SUM(GT171:GT172) -> 8256.44852 | GX173: =SUM(GX171:GX172) -> 8256.44852 | HB173: =SUM(HB171:HB172) -> 5793.483273 | HF173: =SUM(HF171:HF172) -> 9942.958824 | HJ173: =SUM(HJ171:HJ172) -> 9734.112249 | HN173: =SUM(HN171:HN172) -> 10087.37181 | HR173: =SUM(HR171:HR172) -> 10087.37181 | HV173: =SUM(HV171:HV172) -> 7109.370904 | HZ173: =SUM(HZ171:HZ172) -> 11016.42544 | ID173: =SUM(ID171:ID172) -> 10373.67382 | IH173: =SUM(IH171:IH172) -> 10313.49929 | IL173: =SUM(IL171:IL172) -> 10313.49929 | IP173: =SUM(IP171:IP172) -> 6679.485532 | IT173: =SUM(IT171:IT172) -> 10161.33431 | IX173: =SUM(IX171:IX172) -> 8976.264683 | JB173: =SUM(JB171:JB172) -> 8384.660294 | JF173: =SUM(JF171:JF172) -> 8384.660294 | JJ173: =SUM(JJ171:JJ172) -> 4194.728325 | JN173: =SUM(JN171:JN172) -> 7210.528294 | JR173: =SUM(JR171:JR172) -> 5422.551329 | JV173: =SUM(JV171:JV172) -> 4239.043243 | JZ173: =SUM(JZ171:JZ172) -> 4239.043243 | KD173: =SUM(KD171:KD172) -> -591.1518564 | KH173: =SUM(KH171:KH172) -> 1888.582882 | KL173: =SUM(KL171:KL172) -> 149.3431331 | KP173: =SUM(KP171:KP172) -> -975.5204825 | KT173: =SUM(KT171:KT172) -> -975.5204825
A178: Cash Flow Assumptions | G178: x
A180: D&A as a percent of last period's PP&E | I180: N/A | J180: =IF(ISNUMBER(J129),J129/J$14,"") ->  | M180: =IF(ISNUMBER(M129),M129/I$76,"") -> 0.19486545 | Q180: =IF(ISNUMBER(Q129),Q129/M$76,"") -> 0.1774595268 | U180: =IF(ISNUMBER(U129),U129/Q$76,"") -> 0.1962759463 | Y180: N/A | AC180: =IF(ISNUMBER(AC129),AC129/Y$76,"") -> 0.1521608643 | AG180: =IF(ISNUMBER(AG129),AG129/AC$76,"") -> 0.1488344292 | AK180: =IF(ISNUMBER(AK129),AK129/AG$76,"") -> 0.1597755464 | AO180: =IF(ISNUMBER(AO129),AO129/AK$76,"") -> 0.1711533012 | AS180: =IF(ISNUMBER(AS129),AS129/Y$76,"") -> 0.6452581032 | AW180: =IF(ISNUMBER(AW129),AW129/AS$76,"") -> 0.1708499715 | BA180: =IF(ISNUMBER(BA129),BA129/AW$76,"") -> 0.156901972 | BE180: =IF(ISNUMBER(BE129),BE129/BA$76,"") -> 0.1636469901 | BI180: =IF(ISNUMBER(BI129),BI129/BE$76,"") -> 0.1702503682 | BM180: =IF(ISNUMBER(BM129),BM129/AS$76,"") -> 0.6520250998 | BQ180: =IF(ISNUMBER(BQ129),BQ129/BM$76,"") -> 0.1703792896 | BU180: =IF(ISNUMBER(BU129),BU129/BQ$76,"") -> 0.170518426 | BV180: =IF(ISNUMBER(BV129),BV129/BV$14,"") ->  | BY180: =IF(ISNUMBER(BY129),BY129/BU$76,"") -> 0.1811757147 | CC180: =IF(ISNUMBER(CC129),CC129/BY$76,"") -> 0.1674237508 | CD180: =IF(ISNUMBER(CD129),CD129/CD$14,"") ->  | CE180: =IF(ISNUMBER(CE129),CE129/CE$14,"") ->  | CF180: =IF(ISNUMBER(CF129),CF129/CF$14,"") ->  | CG180: =IF(ISNUMBER(CG129),CG129/BM$76,"") -> 0.6598434678 | CH180: =IF(ISNUMBER(CH129),CH129/CH$14,"") ->  | CK180: =IF(ISNUMBER(CK129),CK129/CG$76,"") -> 0.1546906188 | CO180: =IF(ISNUMBER(CO129),CO129/CK$76,"") -> 0.1647496617 | CS180: =IF(ISNUMBER(CS129),CS129/CO$76,"") -> 0.164107813 | CW180: =IF(ISNUMBER(CW129),CW129/CS$76,"") -> 0.1637261821 | CX180: =IF(ISNUMBER(CX129),CX129/CX14,"") ->  | CY180: =IF(ISNUMBER(CY129),CY129/CY14,"") ->  | CZ180: =IF(ISNUMBER(CZ129),CZ129/CZ14,"") ->  | DA180: =IF(ISNUMBER(DA129),DA129/CG$76,"") -> 0.631071191 | DB180: =IF(ISNUMBER(DB129),DB129/DB14,"") ->  | DD180: =IF(ISNUMBER(DD129),DD129/DD14,"") ->  | DE180: =IF(ISNUMBER(DE129),DE129/DE14,"") ->  | DF180: =AVERAGE(CK180:CW180,BQ180:CC180,AW180:BI180) -> 0.1665350632 | DJ180: =DF180 -> 0.1665350632 | DN180: =DJ180 -> 0.1665350632 | DR180: =DN180 -> 0.1665350632 | DZ180: =DR180 -> 0.1665350632 | ED180: =DZ180 -> 0.1665350632 | EH180: =ED180 -> 0.1665350632 | EL180: =EH180 -> 0.1665350632 | ET180: =EL180 -> 0.1665350632 | EX180: =ET180 -> 0.1665350632 | FB180: =EX180 -> 0.1665350632 | FF180: =FB180 -> 0.1665350632 | FN180: =FF180 -> 0.1665350632 | FR180: =FN180 -> 0.1665350632 | FV180: =FR180 -> 0.1665350632 | FZ180: =FV180 -> 0.1665350632 | GH180: =FZ180 -> 0.1665350632 | GL180: =GH180 -> 0.1665350632 | GP180: =GL180 -> 0.1665350632 | GT180: =GP180 -> 0.1665350632 | HB180: =GT180 -> 0.1665350632 | HF180: =HB180 -> 0.1665350632 | HJ180: =HF180 -> 0.1665350632 | HN180: =HJ180 -> 0.1665350632 | HV180: =HN180 -> 0.1665350632 | HZ180: =HV180 -> 0.1665350632 | ID180: =HZ180 -> 0.1665350632 | IH180: =ID180 -> 0.1665350632 | IP180: =IH180 -> 0.1665350632 | IT180: =IP180 -> 0.1665350632 | IX180: =IT180 -> 0.1665350632 | JB180: =IX180 -> 0.1665350632 | JJ180: =JB180 -> 0.1665350632 | JN180: =JJ180 -> 0.1665350632 | JR180: =JN180 -> 0.1665350632 | JV180: =JR180 -> 0.1665350632 | KD180: =JV180 -> 0.1665350632 | KH180: =KD180 -> 0.1665350632 | KL180: =KH180 -> 0.1665350632 | KP180: =KL180 -> 0.1665350632
A181: Share-based compensation as a percent of sales | I181: =IF(ISNUMBER(I130),I130/I$14,"") -> 0.03013474888 | M181: 0.02580428954 | Q181: 0.03023811486 | U181: 0.03083391731 | Y181: 0.02929151156 | AC181: 0.02964832045 | AG181: 0.02766831559 | AK181: 0.03291666667 | AO181: 0.02824814053 | AS181: 0.02960586432 | AW181: 0.03011658031 | BA181: 0.03039723661 | BE181: 0.03350083752 | BI181: 0.03313277837 | BM181: =IF(ISNUMBER(BM130),BM130/BM$14,"") -> 0.03178835538 | BQ181: 0.03230059328 | BU181: 0.0330613275 | BY181: 0.0320147637 | CC181: 0.0305200872 | CG181: =IF(ISNUMBER(CG130),CG130/CG$14,"") -> 0.0319481046 | CH181: =IF(ISNUMBER(CH130),CH130/CH$14,"") ->  | CK181: 0.03082925337 | CO181: 0.03125502169 | CS181: 0.02886247878 | CW181: 0.03008638665 | DA181: 0.03024815043 | DD181: =IF(ISNUMBER(DD130),DD130/DD$14,"") ->  | DE181: =IF(ISNUMBER(DE130),DE130/DE$14,"") ->  | DF181: =AVERAGE(CK181,BQ181,AW181,AC181,I181) -> 0.03060589926 | DJ181: =AVERAGE(CO181,BU181,BA181,AG181,M181) -> 0.02963723819 | DN181: =AVERAGE(CS181,BY181,BE181,AK181,Q181) -> 0.0315065723 | DR181: =AVERAGE(CW181,CC181,BI181,AO181,U181) -> 0.03056426201 | DV181: =IF(ISNUMBER(DV130),DV130/DV$14,"") -> 0.03058625569 | DZ181: =DF181 -> 0.03060589926 | ED181: =DJ181 -> 0.02963723819 | EH181: =DN181 -> 0.0315065723 | EL181: =DR181 -> 0.03056426201 | EP181: =IF(ISNUMBER(EP130),EP130/EP$14,"") -> 0.03058592141 | ET181: =DZ181 -> 0.03060589926 | EX181: =ED181 -> 0.02963723819 | FB181: =EH181 -> 0.0315065723 | FF181: =EL181 -> 0.03056426201 | FJ181: =IF(ISNUMBER(FJ130),FJ130/FJ$14,"") -> 0.03058713274 | FN181: =ET181 -> 0.03060589926 | FR181: =EX181 -> 0.02963723819 | FV181: =FB181 -> 0.0315065723 | FZ181: =FF181 -> 0.03056426201 | GD181: =IF(ISNUMBER(GD130),GD130/GD$14,"") -> 0.03058402524 | GH181: =FN181 -> 0.03060589926 | GL181: =FR181 -> 0.02963723819 | GP181: =FV181 -> 0.0315065723 | GT181: =FZ181 -> 0.03056426201 | GX181: =IF(ISNUMBER(GX130),GX130/GX$14,"") -> 0.03058395404 | HB181: =GH181 -> 0.03060589926 | HF181: =GL181 -> 0.02963723819 | HJ181: =GP181 -> 0.0315065723 | HN181: =GT181 -> 0.03056426201 | HR181: =IF(ISNUMBER(HR130),HR130/HR$14,"") -> 0.03058389286 | HV181: =HB181 -> 0.03060589926 | HZ181: =HF181 -> 0.02963723819 | ID181: =HJ181 -> 0.0315065723 | IH181: =HN181 -> 0.03056426201 | IL181: =IF(ISNUMBER(IL130),IL130/IL$14,"") -> 0.03058384193 | IP181: =HV181 -> 0.03060589926 | IT181: =HZ181 -> 0.02963723819 | IX181: =ID181 -> 0.0315065723 | JB181: =IH181 -> 0.03056426201 | JF181: =IF(ISNUMBER(JF130),JF130/JF$14,"") -> 0.03058387749 | JJ181: =IP181 -> 0.03060589926 | JN181: =IT181 -> 0.02963723819 | JR181: =IX181 -> 0.0315065723 | JV181: =JB181 -> 0.03056426201 | JZ181: =IF(ISNUMBER(JZ130),JZ130/JZ$14,"") -> 0.03058391357 | KD181: =JJ181 -> 0.03060589926 | KH181: =JN181 -> 0.02963723819 | KL181: =JR181 -> 0.0315065723 | KP181: =JV181 -> 0.03056426201 | KT181: =IF(ISNUMBER(KT130),KT130/KT$14,"") -> 0.03058394846
A182: =B155&" as a percent of sales" -> Proceeds from sales of property and equipment as a percent of sales | I182: =IF(ISNUMBER(I155),I155/I$14,"") -> 0.0002449979584 | M182: 0.0001675603217 | Q182: 0.0002471780506 | U182: 0.001090087986 | Y182: 0.0004475092045 | AC182: 0.0004731114966 | AG182: 0.0004192169028 | AK182: 0 | AO182: 0.002373793322 | AS182: 0.0008325380226 | AW182: 0.0001619170984 | BA182: 0.0002590673575 | BE182: 8.37520938e-05 | BI182: 8.24198467e-05 | BM182: =IF(ISNUMBER(BM155),BM155/BM$14,"") -> 0.0001458181439 | BQ182: 8.239947264e-05 | BU182: 0.004206275763 | BY182: -0.01933723823 | CC182: 0.0003892868265 | CG182: =IF(ISNUMBER(CG155),CG155/CG$14,"") -> -0.003750253395 | CH182: =IF(ISNUMBER(CH155),CH155/CH$14,"") ->  | CI182: =IF(ISNUMBER(CI155),CI155/CI$14,"") ->  | CJ182: =IF(ISNUMBER(CJ155),CJ155/CJ$14,"") ->  | CK182: =IF(ISNUMBER(CK155),CK155/CK$14,"") -> 0.000152998776 | CO182: 0.0006427767958 | CS182: 0.0003858620157 | CW182: 0.0005212987787 | DA182: 0.0004238594328 | DF182: =AVERAGE(DA182,BM182,AS182,Y182) -> 0.000462431201 | DJ182: =DF182 -> 0.000462431201 | DN182: =DJ182 -> 0.000462431201 | DR182: =DN182 -> 0.000462431201 | DV182: =IF(ISNUMBER(DV155),DV155/DV$14,"") -> 0 | DZ182: =AVERAGE(DV182,DA182) -> 0.0002119297164 | ED182: =DZ182 -> 0.0002119297164 | EH182: =ED182 -> 0.0002119297164 | EL182: =EH182 -> 0.0002119297164 | EP182: =IF(ISNUMBER(EP155),EP155/EP$14,"") -> 0 | ET182: =AVERAGE(EP182,DV182) -> 0 | EX182: =ET182 -> 0 | FB182: =EX182 -> 0 | FF182: =FB182 -> 0 | FJ182: =IF(ISNUMBER(FJ155),FJ155/FJ$14,"") -> 0 | FN182: =AVERAGE(FJ182,EP182) -> 0 | FR182: =FN182 -> 0 | FV182: =FR182 -> 0 | FZ182: =FV182 -> 0 | GD182: =IF(ISNUMBER(GD155),GD155/GD$14,"") -> 0 | GH182: =AVERAGE(GD182,FJ182) -> 0 | GL182: =GH182 -> 0 | GP182: =GL182 -> 0 | GT182: =GP182 -> 0 | GX182: =IF(ISNUMBER(GX155),GX155/GX$14,"") -> 0 | HB182: =AVERAGE(GX182,GD182) -> 0 | HF182: =HB182 -> 0 | HJ182: =HF182 -> 0 | HN182: =HJ182 -> 0 | HR182: =IF(ISNUMBER(HR155),HR155/HR$14,"") -> 0 | HV182: =AVERAGE(HR182,GX182) -> 0 | HZ182: =HV182 -> 0 | ID182: =HZ182 -> 0 | IH182: =ID182 -> 0 | IL182: =IF(ISNUMBER(IL155),IL155/IL$14,"") -> 0 | IP182: =AVERAGE(IL182,HR182) -> 0 | IT182: =IP182 -> 0 | IX182: =IT182 -> 0 | JB182: =IX182 -> 0 | JF182: =IF(ISNUMBER(JF155),JF155/JF$14,"") -> 0 | JJ182: =AVERAGE(JF182,IL182) -> 0 | JN182: =JJ182 -> 0 | JR182: =JN182 -> 0 | JV182: =JR182 -> 0 | JZ182: =IF(ISNUMBER(JZ155),JZ155/JZ$14,"") -> 0 | KD182: =AVERAGE(JZ182,JF182) -> 0 | KH182: =KD182 -> 0 | KL182: =KH182 -> 0 | KP182: =KL182 -> 0 | KT182: =IF(ISNUMBER(KT155),KT155/KT$14,"") -> 0

Sheet Ratios
DD1: =""&IF($A$8=1,"Bear",IF($A$8=2,"Base",IF($A$8=3,"Bull","Check Case"))) -> Base
G3: Historical Financials | DD3: ="Proforma Financials" -> Proforma Financials
I6: FY 2015 | M6: FY 2015 | Q6: FY 2015 | U6: FY 2015 | Y6: FY 2015 | AC6: FY 2016 | AG6: FY 2016 | AK6: FY 2016 | AO6: FY 2016 | AS6: FY 2016 | AW6: FY 2017 | BA6: FY 2017 | BE6: FY 2017 | BI6: FY 2017 | BM6: FY 2017 | BQ6: FY 2018 | BU6: FY 2018 | BY6: FY 2018 | CC6: FY 2018 | CG6: FY 2018 | CK6: FY 2019 | CO6: FY 2019 | CS6: FY 2019 | CW6: FY 2019 | DA6: FY 2019 | DF6: =DV6 -> FY 2020 | DJ6: =DV6 -> FY 2020 | DN6: =DV6 -> FY 2020 | DR6: =DV6 -> FY 2020 | DV6: FY 2020 | DZ6: =EP6 -> FY 2021 | ED6: =EP6 -> FY 2021 | EH6: =EP6 -> FY 2021 | EL6: =EP6 -> FY 2021 | EP6: ="FY "&RIGHT(DV6,4)+1 -> FY 2021 | ET6: =FJ6 -> FY 2022 | EX6: =FJ6 -> FY 2022 | FB6: =FJ6 -> FY 2022 | FF6: =FJ6 -> FY 2022 | FJ6: ="FY "&RIGHT(EP6,4)+1 -> FY 2022 | FN6: =GD6 -> FY 2023 | FR6: =GD6 -> FY 2023 | FV6: =GD6 -> FY 2023 | FZ6: =GD6 -> FY 2023 | GD6: ="FY "&RIGHT(FJ6,4)+1 -> FY 2023 | GH6: =GX6 -> FY 2024 | GL6: =GX6 -> FY 2024 | GP6: =GX6 -> FY 2024 | GT6: =GX6 -> FY 2024 | GX6: ="FY "&RIGHT(GD6,4)+1 -> FY 2024 | HB6: =HR6 -> FY 2025 | HF6: =HR6 -> FY 2025 | HJ6: =HR6 -> FY 2025 | HN6: =HR6 -> FY 2025 | HR6: ="FY "&RIGHT(GX6,4)+1 -> FY 2025 | HV6: =IL6 -> FY 2026 | HZ6: =IL6 -> FY 2026 | ID6: =IL6 -> FY 2026 | IH6: =IL6 -> FY 2026 | IL6: ="FY "&RIGHT(HR6,4)+1 -> FY 2026 | IP6: =JF6 -> FY 2027 | IT6: =JF6 -> FY 2027 | IX6: =JF6 -> FY 2027 | JB6: =JF6 -> FY 2027 | JF6: ="FY "&RIGHT(IL6,4)+1 -> FY 2027 | JJ6: =JZ6 -> FY 2028 | JN6: =JZ6 -> FY 2028 | JR6: =JZ6 -> FY 2028 | JV6: =JZ6 -> FY 2028 | JZ6: ="FY "&RIGHT(JF6,4)+1 -> FY 2028 | KD6: =KT6 -> FY 2029 | KH6: =KT6 -> FY 2029 | KL6: =KT6 -> FY 2029 | KP6: =KT6 -> FY 2029 | KT6: ="FY "&RIGHT(JZ6,4)+1 -> FY 2029
I7: Quarter Ended | M7: Quarter Ended | Q7: Quarter Ended | U7: Quarter Ended | Y7: Year Ended | AC7: Quarter Ended | AG7: Quarter Ended | AK7: Quarter Ended | AO7: Quarter Ended | AS7: Year Ended | AW7: Quarter Ended | BA7: Quarter Ended | BE7: Quarter Ended | BI7: Quarter Ended | BM7: Year Ended | BQ7: Quarter Ended | BU7: Quarter Ended | BY7: Quarter Ended | CC7: Quarter Ended | CG7: Year Ended | CK7: Quarter Ended | CO7: Quarter Ended | CS7: Quarter Ended | CW7: Quarter Ended | DA7: Year Ended | DF7: Quarter Ended | DJ7: Quarter Ended | DN7: Quarter Ended | DR7: Quarter Ended | DV7: Year Ended | DZ7: Quarter Ended | ED7: Quarter Ended | EH7: Quarter Ended | EL7: Quarter Ended | EP7: Year Ended | ET7: Quarter Ended | EX7: Quarter Ended | FB7: Quarter Ended | FF7: Quarter Ended | FJ7: Year Ended | FN7: Quarter Ended | FR7: Quarter Ended | FV7: Quarter Ended | FZ7: Quarter Ended | GD7: Year Ended | GH7: Quarter Ended | GL7: Quarter Ended | GP7: Quarter Ended | GT7: Quarter Ended | GX7: Year Ended | HB7: Quarter Ended | HF7: Quarter Ended | HJ7: Quarter Ended | HN7: Quarter Ended | HR7: Year Ended | HV7: Quarter Ended | HZ7: Quarter Ended | ID7: Quarter Ended | IH7: Quarter Ended | IL7: Year Ended | IP7: Quarter Ended | IT7: Quarter Ended | IX7: Quarter Ended | JB7: Quarter Ended | JF7: Year Ended | JJ7: Quarter Ended | JN7: Quarter Ended | JR7: Quarter Ended | JV7: Quarter Ended | JZ7: Year Ended | KD7: Quarter Ended | KH7: Quarter Ended | KL7: Quarter Ended | KP7: Quarter Ended | KT7: Year Ended
A8: ='Integrated Financial Statements'!A8 -> 2 | I8: October 25, 2014 | M8: January 24, 2015 | Q8: April 25, 2015 | U8: July 25, 2015 | Y8: =U8 -> July 25, 2015 | AC8: October 24, 2015 | AG8: January 23, 2016 | AK8: April 30, 2016 | AO8: July 30, 2016 | AS8: =AO8 -> July 30, 2016 | AW8: October 29, 2016 | BA8: January 28, 2017 | BE8: April 29, 2017 | BI8: July 29, 2017 | BM8: =BI8 -> July 29, 2017 | BQ8: October 28, 2017 | BU8: January 27, 2018 | BY8: April 28, 2018 | CC8: July 28, 2018 | CG8: =CC8 -> July 28, 2018 | CK8: October 27, 2018 | CO8: January 26, 2019 | CS8: April 27, 2019 | CW8: July 27, 2019 | DA8: =CW8 -> July 27, 2019 | DF8: ="October 27, "&RIGHT(DF6,4)-1 -> October 27, 2019 | DJ8: ="January 26, "&RIGHT(DF6,4) -> January 26, 2020 | DN8: ="April 27, "&RIGHT(DF6,4) -> April 27, 2020 | DR8: ="July 27, "&RIGHT(DF6,4) -> July 27, 2020 | DV8: ="July 27, "&RIGHT(DF6,4) -> July 27, 2020 | DZ8: ="October 27, "&RIGHT(DZ6,4)-1 -> October 27, 2020 | ED8: ="January 26, "&RIGHT(DZ6,4) -> January 26, 2021 | EH8: ="April 27, "&RIGHT(DZ6,4) -> April 27, 2021 | EL8: ="July 27, "&RIGHT(DZ6,4) -> July 27, 2021 | EP8: ="July 27, "&RIGHT(DZ6,4) -> July 27, 2021 | ET8: ="October 27, "&RIGHT(ET6,4)-1 -> October 27, 2021 | EX8: ="January 26, "&RIGHT(ET6,4) -> January 26, 2022 | FB8: ="April 27, "&RIGHT(ET6,4) -> April 27, 2022 | FF8: ="July 27, "&RIGHT(ET6,4) -> July 27, 2022 | FJ8: ="July 27, "&RIGHT(ET6,4) -> July 27, 2022 | FN8: ="October 27, "&RIGHT(FN6,4)-1 -> October 27, 2022 | FR8: ="January 26, "&RIGHT(FN6,4) -> January 26, 2023 | FV8: ="April 27, "&RIGHT(FN6,4) -> April 27, 2023 | FZ8: ="July 27, "&RIGHT(FN6,4) -> July 27, 2023 | GD8: ="July 27, "&RIGHT(FN6,4) -> July 27, 2023 | GH8: ="October 27, "&RIGHT(GH6,4)-1 -> October 27, 2023 | GL8: ="January 26, "&RIGHT(GH6,4) -> January 26, 2024 | GP8: ="April 27, "&RIGHT(GH6,4) -> April 27, 2024 | GT8: ="July 27, "&RIGHT(GH6,4) -> July 27, 2024 | GX8: ="July 27, "&RIGHT(GH6,4) -> July 27, 2024 | HB8: ="October 27, "&RIGHT(HB6,4)-1 -> October 27, 2024 | HF8: ="January 26, "&RIGHT(HB6,4) -> January 26, 2025 | HJ8: ="April 27, "&RIGHT(HB6,4) -> April 27, 2025 | HN8: ="July 27, "&RIGHT(HB6,4) -> July 27, 2025 | HR8: ="July 27, "&RIGHT(HB6,4) -> July 27, 2025 | HV8: ="October 27, "&RIGHT(HV6,4)-1 -> October 27, 2025 | HZ8: ="January 26, "&RIGHT(HV6,4) -> January 26, 2026 | ID8: ="April 27, "&RIGHT(HV6,4) -> April 27, 2026 | IH8: ="July 27, "&RIGHT(HV6,4) -> July 27, 2026 | IL8: ="July 27, "&RIGHT(HV6,4) -> July 27, 2026 | IP8: ="October 27, "&RIGHT(IP6,4)-1 -> October 27, 2026 | IT8: ="January 26, "&RIGHT(IP6,4) -> January 26, 2027 | IX8: ="April 27, "&RIGHT(IP6,4) -> April 27, 2027 | JB8: ="July 27, "&RIGHT(IP6,4) -> July 27, 2027 | JF8: ="July 27, "&RIGHT(IP6,4) -> July 27, 2027 | JJ8: ="October 27, "&RIGHT(JJ6,4)-1 -> October 27, 2027 | JN8: ="January 26, "&RIGHT(JJ6,4) -> January 26, 2028 | JR8: ="April 27, "&RIGHT(JJ6,4) -> April 27, 2028 | JV8: ="July 27, "&RIGHT(JJ6,4) -> July 27, 2028 | JZ8: ="July 27, "&RIGHT(JJ6,4) -> July 27, 2028 | KD8: ="October 27, "&RIGHT(KD6,4)-1 -> October 27, 2028 | KH8: ="January 26, "&RIGHT(KD6,4) -> January 26, 2029 | KL8: ="April 27, "&RIGHT(KD6,4) -> April 27, 2029 | KP8: ="July 27, "&RIGHT(KD6,4) -> July 27, 2029 | KT8: ="July 27, "&RIGHT(KD6,4) -> July 27, 2029
A9: Ratios
A10: =IF('Integrated Financial Statements'!$A$8=1,"Bear Case",IF('Integrated Financial Statements'!$A$8=2,"Base Case",IF('Integrated Financial Statements'!$A$8=3,"Bull Case","Check Case"))) -> Base Case
A11: Days per period | I11: 91 | M11: 91 | Q11: 91 | U11: 91 | Y11: 365 | AC11: 91 | AG11: 91 | AK11: 91 | AO11: 91 | AS11: 366 | AW11: 91 | BA11: 91 | BE11: 91 | BI11: 91 | BM11: 365 | BQ11: 91 | BU11: 91 | BY11: 91 | CC11: 91 | CG11: 365 | CK11: 91 | CO11: 91 | CS11: 91 | CW11: 91 | DA11: 365 | DF11: 91 | DJ11: 91 | DN11: 91 | DR11: 91 | DV11: 366 | DZ11: 91 | ED11: 91 | EH11: 91 | EL11: 91 | EP11: 365 | ET11: 91 | EX11: 91 | FB11: 91 | FF11: 91 | FJ11: 365 | FN11: 91 | FR11: 91 | FV11: 91 | FZ11: 91 | GD11: 365 | GH11: 91 | GL11: 91 | GP11: 91 | GT11: 91 | GX11: 365 | HB11: 91 | HF11: 91 | HJ11: 91 | HN11: 91 | HR11: 365 | HV11: 91 | HZ11: 91 | ID11: 91 | IH11: 91 | IL11: 365 | IP11: 91 | IT11: 91 | IX11: 91 | JB11: 91 | JF11: 365 | JJ11: 91 | JN11: 91 | JR11: 91 | JV11: 91 | JZ11: 365 | KD11: 91 | KH11: 91 | KL11: 91 | KP11: 91 | KT11: 365
A12: Inventory turnover | I12: N/A | M12: ='Integrated Financial Statements'!M14/AVERAGE('Integrated Financial Statements'!M71,'Integrated Financial Statements'!I71) -> 6.69433539 | Q12: ='Integrated Financial Statements'!Q14/AVERAGE('Integrated Financial Statements'!Q71,'Integrated Financial Statements'!M71) -> 6.650410959 | U12: ='Integrated Financial Statements'!U14/AVERAGE('Integrated Financial Statements'!U71,'Integrated Financial Statements'!Q71) -> 7.583702391 | Y12: N/A | AC12: ='Integrated Financial Statements'!AC14/AVERAGE('Integrated Financial Statements'!AC71,'Integrated Financial Statements'!U71) -> 8.158250241 | AG12: ='Integrated Financial Statements'!AG14/AVERAGE('Integrated Financial Statements'!AG71,'Integrated Financial Statements'!AC71) -> 8.387482419 | AK12: ='Integrated Financial Statements'!AK14/AVERAGE('Integrated Financial Statements'!AK71,'Integrated Financial Statements'!AG71) -> 8.87245841 | AO12: ='Integrated Financial Statements'!AO14/AVERAGE('Integrated Financial Statements'!AO71,'Integrated Financial Statements'!AK71) -> 9.8734375 | AS12: ='Integrated Financial Statements'!AS14/AVERAGE('Integrated Financial Statements'!AS71,'Integrated Financial Statements'!AK71) -> 38.47421875 | AW12: ='Integrated Financial Statements'!AW14/AVERAGE('Integrated Financial Statements'!AW71,'Integrated Financial Statements'!AO71) -> 10.32344338 | BA12: ='Integrated Financial Statements'!BA14/AVERAGE('Integrated Financial Statements'!BA71,'Integrated Financial Statements'!AW71) -> 9.491803279 | BE12: ='Integrated Financial Statements'!BE14/AVERAGE('Integrated Financial Statements'!BE71,'Integrated Financial Statements'!BA71) -> 9.079847909 | BI12: ='Integrated Financial Statements'!BI14/AVERAGE('Integrated Financial Statements'!BI71,'Integrated Financial Statements'!BE71) -> 8.137491616 | BM12: ='Integrated Financial Statements'!BM14/AVERAGE('Integrated Financial Statements'!BM71,'Integrated Financial Statements'!BE71) -> 32.19651241 | BQ12: ='Integrated Financial Statements'!BQ14/AVERAGE('Integrated Financial Statements'!BQ71,'Integrated Financial Statements'!BI71) -> 7.33514657 | BU12: ='Integrated Financial Statements'!BU14/AVERAGE('Integrated Financial Statements'!BU71,'Integrated Financial Statements'!BQ71) -> 6.624129284 | BY12: ='Integrated Financial Statements'!BY14/AVERAGE('Integrated Financial Statements'!BY71,'Integrated Financial Statements'!BU71) -> 6.566385669 | CC12: ='Integrated Financial Statements'!CC14/AVERAGE('Integrated Financial Statements'!CC71,'Integrated Financial Statements'!BY71) -> 6.857447944 | CG12: ='Integrated Financial Statements'!CG14/AVERAGE('Integrated Financial Statements'!CG71,'Integrated Financial Statements'!BY71) -> 26.33742659 | CK12: ='Integrated Financial Statements'!CK14/AVERAGE('Integrated Financial Statements'!CK71,'Integrated Financial Statements'!CC71) -> 7.648917496 | CO12: ='Integrated Financial Statements'!CO14/AVERAGE('Integrated Financial Statements'!CO71,'Integrated Financial Statements'!CK71) -> 7.605255118 | CS12: ='Integrated Financial Statements'!CS14/AVERAGE('Integrated Financial Statements'!CS71,'Integrated Financial Statements'!CO71) -> 8.063472309 | CW12: ='Integrated Financial Statements'!CW14/AVERAGE('Integrated Financial Statements'!CW71,'Integrated Financial Statements'!CS71) -> 9.273480663 | DA12: ='Integrated Financial Statements'!DA14/AVERAGE('Integrated Financial Statements'!DA71,'Integrated Financial Statements'!CS71) -> 35.84530387 | DF12: ='Integrated Financial Statements'!DF14/AVERAGE('Integrated Financial Statements'!DF71,'Integrated Financial Statements'!DA71) -> 8.741443589 | DJ12: ='Integrated Financial Statements'!DJ14/AVERAGE('Integrated Financial Statements'!DJ71,'Integrated Financial Statements'!DF71) -> 7.842162813 | DN12: ='Integrated Financial Statements'!DN14/AVERAGE('Integrated Financial Statements'!DN71,'Integrated Financial Statements'!DJ71) -> 7.791214917 | DR12: ='Integrated Financial Statements'!DR14/AVERAGE('Integrated Financial Statements'!DR71,'Integrated Financial Statements'!DN71) -> 8.130288237 | DV12: ='Integrated Financial Statements'!DV14/AVERAGE('Integrated Financial Statements'!DV71,'Integrated Financial Statements'!DN71) -> 31.02335611 | DZ12: ='Integrated Financial Statements'!DZ14/AVERAGE('Integrated Financial Statements'!DZ71,'Integrated Financial Statements'!DV71) -> 8.062597192 | ED12: ='Integrated Financial Statements'!ED14/AVERAGE('Integrated Financial Statements'!ED71,'Integrated Financial Statements'!DZ71) -> 7.830817244 | EH12: ='Integrated Financial Statements'!EH14/AVERAGE('Integrated Financial Statements'!EH71,'Integrated Financial Statements'!ED71) -> 7.785418396 | EL12: ='Integrated Financial Statements'!EL14/AVERAGE('Integrated Financial Statements'!EL71,'Integrated Financial Statements'!EH71) -> 8.138026162 | EP12: ='Integrated Financial Statements'!EP14/AVERAGE('Integrated Financial Statements'!EP71,'Integrated Financial Statements'!EH71) -> 31.0552546 | ET12: ='Integrated Financial Statements'!ET14/AVERAGE('Integrated Financial Statements'!ET71,'Integrated Financial Statements'!EP71) -> 8.057194221 | EX12: ='Integrated Financial Statements'!EX14/AVERAGE('Integrated Financial Statements'!EX71,'Integrated Financial Statements'!ET71) -> 7.837091513 | FB12: ='Integrated Financial Statements'!FB14/AVERAGE('Integrated Financial Statements'!FB71,'Integrated Financial Statements'!EX71) -> 7.807027766 | FF12: ='Integrated Financial Statements'!FF14/AVERAGE('Integrated Financial Statements'!FF71,'Integrated Financial Statements'!FB71) -> 8.165487201 | FJ12: ='Integrated Financial Statements'!FJ14/AVERAGE('Integrated Financial Statements'!FJ71,'Integrated Financial Statements'!FB71) -> 30.90945129 | FN12: ='Integrated Financial Statements'!FN14/AVERAGE('Integrated Financial Statements'!FN71,'Integrated Financial Statements'!FJ71) -> 8.26151696 | FR12: ='Integrated Financial Statements'!FR14/AVERAGE('Integrated Financial Statements'!FR71,'Integrated Financial Statements'!FN71) -> 7.73941738 | FV12: ='Integrated Financial Statements'!FV14/AVERAGE('Integrated Financial Statements'!FV71,'Integrated Financial Statements'!FR71) -> 7.750877908 | FZ12: ='Integrated Financial Statements'!FZ14/AVERAGE('Integrated Financial Statements'!FZ71,'Integrated Financial Statements'!FV71) -> 8.149753322 | GD12: ='Integrated Financial Statements'!GD14/AVERAGE('Integrated Financial Statements'!GD71,'Integrated Financial Statements'!FV71) -> 31.35841644 | GH12: ='Integrated Financial Statements'!GH14/AVERAGE('Integrated Financial Statements'!GH71,'Integrated Financial Statements'!GD71) -> 8.250874379 | GL12: ='Integrated Financial Statements'!GL14/AVERAGE('Integrated Financial Statements'!GL71,'Integrated Financial Statements'!GH71) -> 7.742797979 | GP12: ='Integrated Financial Statements'!GP14/AVERAGE('Integrated Financial Statements'!GP71,'Integrated Financial Statements'!GL71) -> 7.74967181 | GT12: ='Integrated Financial Statements'!GT14/AVERAGE('Integrated Financial Statements'!GT71,'Integrated Financial Statements'!GP71) -> 8.146934587 | GX12: ='Integrated Financial Statements'!GX14/AVERAGE('Integrated Financial Statements'!GX71,'Integrated Financial Statements'!GP71) -> 31.3613555 | HB12: ='Integrated Financial Statements'!HB14/AVERAGE('Integrated Financial Statements'!HB71,'Integrated Financial Statements'!GX71) -> 8.239640376 | HF12: ='Integrated Financial Statements'!HF14/AVERAGE('Integrated Financial Statements'!HF71,'Integrated Financial Statements'!HB71) -> 7.745726728 | HJ12: ='Integrated Financial Statements'!HJ14/AVERAGE('Integrated Financial Statements'!HJ71,'Integrated Financial Statements'!HF71) -> 7.748619098 | HN12: ='Integrated Financial Statements'!HN14/AVERAGE('Integrated Financial Statements'!HN71,'Integrated Financial Statements'!HJ71) -> 8.143695485 | HR12: ='Integrated Financial Statements'!HR14/AVERAGE('Integrated Financial Statements'!HR71,'Integrated Financial Statements'!HJ71) -> 31.36537899 | HV12: ='Integrated Financial Statements'!HV14/AVERAGE('Integrated Financial Statements'!HV71,'Integrated Financial Statements'!HR71) -> 8.227909562 | HZ12: ='Integrated Financial Statements'!HZ14/AVERAGE('Integrated Financial Statements'!HZ71,'Integrated Financial Statements'!HV71) -> 7.748274865 | ID12: ='Integrated Financial Statements'!ID14/AVERAGE('Integrated Financial Statements'!ID71,'Integrated Financial Statements'!HZ71) -> 7.747723453 | IH12: ='Integrated Financial Statements'!IH14/AVERAGE('Integrated Financial Statements'!IH71,'Integrated Financial Statements'!ID71) -> 8.139923838 | IL12: ='Integrated Financial Statements'!IL14/AVERAGE('Integrated Financial Statements'!IL71,'Integrated Financial Statements'!ID71) -> 31.37052648 | IP12: ='Integrated Financial Statements'!IP14/AVERAGE('Integrated Financial Statements'!IP71,'Integrated Financial Statements'!IL71) -> 8.13547564 | IT12: ='Integrated Financial Statements'!IT14/AVERAGE('Integrated Financial Statements'!IT71,'Integrated Financial Statements'!IP71) -> 7.748544578 | IX12: ='Integrated Financial Statements'!IX14/AVERAGE('Integrated Financial Statements'!IX71,'Integrated Financial Statements'!IT71) -> 7.748341198 | JB12: ='Integrated Financial Statements'!JB14/AVERAGE('Integrated Financial Statements'!JB71,'Integrated Financial Statements'!IX71) -> 8.139802928 | JF12: ='Integrated Financial Statements'!JF14/AVERAGE('Integrated Financial Statements'!JF71,'Integrated Financial Statements'!IX71) -> 31.36770237 | JJ12: ='Integrated Financial Statements'!JJ14/AVERAGE('Integrated Financial Statements'!JJ71,'Integrated Financial Statements'!JF71) -> 8.144166518 | JN12: ='Integrated Financial Statements'!JN14/AVERAGE('Integrated Financial Statements'!JN71,'Integrated Financial Statements'!JJ71) -> 7.747753861 | JR12: ='Integrated Financial Statements'!JR14/AVERAGE('Integrated Financial Statements'!JR71,'Integrated Financial Statements'!JN71) -> 7.748962881 | JV12: ='Integrated Financial Statements'!JV14/AVERAGE('Integrated Financial Statements'!JV71,'Integrated Financial Statements'!JR71) -> 8.140683136 | JZ12: ='Integrated Financial Statements'!JZ14/AVERAGE('Integrated Financial Statements'!JZ71,'Integrated Financial Statements'!JR71) -> 31.36524922 | KD12: ='Integrated Financial Statements'!KD14/AVERAGE('Integrated Financial Statements'!KD71,'Integrated Financial Statements'!JZ71) -> 8.144616391 | KH12: ='Integrated Financial Statements'!KH14/AVERAGE('Integrated Financial Statements'!KH71,'Integrated Financial Statements'!KD71) -> 7.747005245 | KL12: ='Integrated Financial Statements'!KL14/AVERAGE('Integrated Financial Statements'!KL71,'Integrated Financial Statements'!KH71) -> 7.749564278 | KP12: ='Integrated Financial Statements'!KP14/AVERAGE('Integrated Financial Statements'!KP71,'Integrated Financial Statements'!KL71) -> 8.141521146 | KT12: ='Integrated Financial Statements'!KT14/AVERAGE('Integrated Financial Statements'!KT71,'Integrated Financial Statements'!KL71) -> 31.36286707
A13: Days of short term financing outstanding | I13: ='Integrated Financial Statements'!I72/('Integrated Financial Statements'!I14/I11) -> 31.6957942 | M13: ='Integrated Financial Statements'!M72/('Integrated Financial Statements'!M14/M11) -> 32.09701743 | Q13: ='Integrated Financial Statements'!Q72/('Integrated Financial Statements'!Q14/Q11) -> 31.85037489 | U13: ='Integrated Financial Statements'!U72/('Integrated Financial Statements'!U14/U11) -> 31.82130343 | Y13: ='Integrated Financial Statements'!Y72/('Integrated Financial Statements'!Y14/Y11) -> 33.34380912 | AC13: ='Integrated Financial Statements'!AC72/('Integrated Financial Statements'!AC14/AC11) -> 32.33291279 | AG13: ='Integrated Financial Statements'!AG72/('Integrated Financial Statements'!AG14/AG11) -> 34.44068081 | AK13: ='Integrated Financial Statements'!AK72/('Integrated Financial Statements'!AK14/AK11) -> 35.763 | AO13: ='Integrated Financial Statements'!AO72/('Integrated Financial Statements'!AO14/AO11) -> 30.76056338 | AS13: ='Integrated Financial Statements'!AS72/('Integrated Financial Statements'!AS14/AS11) -> 31.74918269 | AW13: ='Integrated Financial Statements'!AW72/('Integrated Financial Statements'!AW14/AW11) -> 33.45458225 | BA13: ='Integrated Financial Statements'!BA72/('Integrated Financial Statements'!BA14/BA11) -> 35.33126079 | BE13: ='Integrated Financial Statements'!BE72/('Integrated Financial Statements'!BE14/BE11) -> 35.35586265 | BI13: ='Integrated Financial Statements'!BI72/('Integrated Financial Statements'!BI14/BI11) -> 36.42100058 | BM13: ='Integrated Financial Statements'!BM72/('Integrated Financial Statements'!BM14/BM11) -> 36.92198729 | BQ13: ='Integrated Financial Statements'!BQ72/('Integrated Financial Statements'!BQ14/BQ11) -> 37.77669743 | BU13: ='Integrated Financial Statements'!BU72/('Integrated Financial Statements'!BU14/BU11) -> 37.70295281 | BY13: ='Integrated Financial Statements'!BY72/('Integrated Financial Statements'!BY14/BY11) -> 35.54425098 | CC13: ='Integrated Financial Statements'!CC72/('Integrated Financial Statements'!CC14/CC11) -> 35.06376518 | CG13: ='Integrated Financial Statements'!CG72/('Integrated Financial Statements'!CG14/CG11) -> 36.61838638 | CK13: ='Integrated Financial Statements'!CK72/('Integrated Financial Statements'!CK14/CK11) -> 33.76996634 | CO13: ='Integrated Financial Statements'!CO72/('Integrated Financial Statements'!CO14/CO11) -> 36.97469066 | CS13: ='Integrated Financial Statements'!CS72/('Integrated Financial Statements'!CS14/CS11) -> 35.3171014 | CW13: ='Integrated Financial Statements'!CW72/('Integrated Financial Statements'!CW14/CW11) -> 34.52822461 | DA13: ='Integrated Financial Statements'!DA72/('Integrated Financial Statements'!DA14/DA11) -> 35.82912685 | DF13: =IF('Integrated Financial Statements'!$A$8=1,Ratios!DF62,IF('Integrated Financial Statements'!$A$8=2,Ratios!DF82,IF('Integrated Financial Statements'!$A$8=3,Ratios!DF102,"Check Case"))) -> 33.8059906 | DJ13: =IF('Integrated Financial Statements'!$A$8=1,Ratios!DJ62,IF('Integrated Financial Statements'!$A$8=2,Ratios!DJ82,IF('Integrated Financial Statements'!$A$8=3,Ratios!DJ102,"Check Case"))) -> 35.3093205 | DN13: =IF('Integrated Financial Statements'!$A$8=1,Ratios!DN62,IF('Integrated Financial Statements'!$A$8=2,Ratios!DN82,IF('Integrated Financial Statements'!$A$8=3,Ratios!DN102,"Check Case"))) -> 34.76611798 | DR13: =IF('Integrated Financial Statements'!$A$8=1,Ratios!DR62,IF('Integrated Financial Statements'!$A$8=2,Ratios!DR82,IF('Integrated Financial Statements'!$A$8=3,Ratios!DR102,"Check Case"))) -> 33.71897144 | DV13: =IF('Integrated Financial Statements'!$A$8=1,Ratios!DV62,IF('Integrated Financial Statements'!$A$8=2,Ratios!DV82,IF('Integrated Financial Statements'!$A$8=3,Ratios!DV102,"Check Case"))) -> 0 | DZ13: =IF('Integrated Financial Statements'!$A$8=1,Ratios!DZ62,IF('Integrated Financial Statements'!$A$8=2,Ratios!DZ82,IF('Integrated Financial Statements'!$A$8=3,Ratios!DZ102,"Check Case"))) -> 33.8059906 | ED13: =IF('Integrated Financial Statements'!$A$8=1,Ratios!ED62,IF('Integrated Financial Statements'!$A$8=2,Ratios!ED82,IF('Integrated Financial Statements'!$A$8=3,Ratios!ED102,"Check Case"))) -> 35.3093205 | EH13: =IF('Integrated Financial Statements'!$A$8=1,Ratios!EH62,IF('Integrated Financial Statements'!$A$8=2,Ratios!EH82,IF('Integrated Financial Statements'!$A$8=3,Ratios!EH102,"Check Case"))) -> 34.76611798 | EL13: =IF('Integrated Financial Statements'!$A$8=1,Ratios!EL62,IF('Integrated Financial Statements'!$A$8=2,Ratios!EL82,IF('Integrated Financial Statements'!$A$8=3,Ratios!EL102,"Check Case"))) -> 33.71897144 | EP13: =IF('Integrated Financial Statements'!$A$8=1,Ratios!EP62,IF('Integrated Financial Statements'!$A$8=2,Ratios!EP82,IF('Integrated Financial Statements'!$A$8=3,Ratios!EP102,"Check Case"))) -> 0 | ET13: =IF('Integrated Financial Statements'!$A$8=1,Ratios!ET62,IF('Integrated Financial Statements'!$A$8=2,Ratios!ET82,IF('Integrated Financial Statements'!$A$8=3,Ratios!ET102,"Check Case"))) -> 33.8059906 | EX13: =IF('Integrated Financial Statements'!$A$8=1,Ratios!EX62,IF('Integrated Financial Statements'!$A$8=2,Ratios!EX82,IF('Integrated Financial Statements'!$A$8=3,Ratios!EX102,"Check Case"))) -> 35.3093205 | FB13: =IF('Integrated Financial Statements'!$A$8=1,Ratios!FB62,IF('Integrated Financial Statements'!$A$8=2,Ratios!FB82,IF('Integrated Financial Statements'!$A$8=3,Ratios!FB102,"Check Case"))) -> 34.76611798 | FF13: =IF('Integrated Financial Statements'!$A$8=1,Ratios!FF62,IF('Integrated Financial Statements'!$A$8=2,Ratios!FF82,IF('Integrated Financial Statements'!$A$8=3,Ratios!FF102,"Check Case"))) -> 33.71897144 | FJ13: =IF('Integrated Financial Statements'!$A$8=1,Ratios!FJ62,IF('Integrated Financial Statements'!$A$8=2,Ratios!FJ82,IF('Integrated Financial Statements'!$A$8=3,Ratios!FJ102,"Check Case"))) -> 0 | FN13: =IF('Integrated Financial Statements'!$A$8=1,Ratios!FN62,IF('Integrated Financial Statements'!$A$8=2,Ratios!FN82,IF('Integrated Financial Statements'!$A$8=3,Ratios!FN102,"Check Case"))) -> 33.8059906 | FR13: =IF('Integrated Financial Statements'!$A$8=1,Ratios!FR62,IF('Integrated Financial Statements'!$A$8=2,Ratios!FR82,IF('Integrated Financial Statements'!$A$8=3,Ratios!FR102,"Check Case"))) -> 35.3093205 | FV13: =IF('Integrated Financial Statements'!$A$8=1,Ratios!FV62,IF('Integrated Financial Statements'!$A$8=2,Ratios!FV82,IF('Integrated Financial Statements'!$A$8=3,Ratios!FV102,"Check Case"))) -> 34.76611798 | FZ13: =IF('Integrated Financial Statements'!$A$8=1,Ratios!FZ62,IF('Integrated Financial Statements'!$A$8=2,Ratios!FZ82,IF('Integrated Financial Statements'!$A$8=3,Ratios!FZ102,"Check Case"))) -> 33.71897144 | GD13: =IF('Integrated Financial Statements'!$A$8=1,Ratios!GD62,IF('Integrated Financial Statements'!$A$8=2,Ratios!GD82,IF('Integrated Financial Statements'!$A$8=3,Ratios!GD102,"Check Case"))) -> 0 | GH13: =IF('Integrated Financial Statements'!$A$8=1,Ratios!GH62,IF('Integrated Financial Statements'!$A$8=2,Ratios!GH82,IF('Integrated Financial Statements'!$A$8=3,Ratios!GH102,"Check Case"))) -> 33.8059906 | GL13: =IF('Integrated Financial Statements'!$A$8=1,Ratios!GL62,IF('Integrated Financial Statements'!$A$8=2,Ratios!GL82,IF('Integrated Financial Statements'!$A$8=3,Ratios!GL102,"Check Case"))) -> 35.3093205 | GP13: =IF('Integrated Financial Statements'!$A$8=1,Ratios!GP62,IF('Integrated Financial Statements'!$A$8=2,Ratios!GP82,IF('Integrated Financial Statements'!$A$8=3,Ratios!GP102,"Check Case"))) -> 34.76611798 | GT13: =IF('Integrated Financial Statements'!$A$8=1,Ratios!GT62,IF('Integrated Financial Statements'!$A$8=2,Ratios!GT82,IF('Integrated Financial Statements'!$A$8=3,Ratios!GT102,"Check Case"))) -> 33.71897144 | GX13: =IF('Integrated Financial Statements'!$A$8=1,Ratios!GX62,IF('Integrated Financial Statements'!$A$8=2,Ratios!GX82,IF('Integrated Financial Statements'!$A$8=3,Ratios!GX102,"Check Case"))) -> 0 | HB13: =IF('Integrated Financial Statements'!$A$8=1,Ratios!HB62,IF('Integrated Financial Statements'!$A$8=2,Ratios!HB82,IF('Integrated Financial Statements'!$A$8=3,Ratios!HB102,"Check Case"))) -> 33.8059906 | HF13: =IF('Integrated Financial Statements'!$A$8=1,Ratios!HF62,IF('Integrated Financial Statements'!$A$8=2,Ratios!HF82,IF('Integrated Financial Statements'!$A$8=3,Ratios!HF102,"Check Case"))) -> 35.3093205 | HJ13: =IF('Integrated Financial Statements'!$A$8=1,Ratios!HJ62,IF('Integrated Financial Statements'!$A$8=2,Ratios!HJ82,IF('Integrated Financial Statements'!$A$8=3,Ratios!HJ102,"Check Case"))) -> 34.76611798 | HN13: =IF('Integrated Financial Statements'!$A$8=1,Ratios!HN62,IF('Integrated Financial Statements'!$A$8=2,Ratios!HN82,IF('Integrated Financial Statements'!$A$8=3,Ratios!HN102,"Check Case"))) -> 33.71897144 | HR13: =IF('Integrated Financial Statements'!$A$8=1,Ratios!HR62,IF('Integrated Financial Statements'!$A$8=2,Ratios!HR82,IF('Integrated Financial Statements'!$A$8=3,Ratios!HR102,"Check Case"))) -> 0 | HV13: =IF('Integrated Financial Statements'!$A$8=1,Ratios!HV62,IF('Integrated Financial Statements'!$A$8=2,Ratios!HV82,IF('Integrated Financial Statements'!$A$8=3,Ratios!HV102,"Check Case"))) -> 33.8059906 | HZ13: =IF('Integrated Financial Statements'!$A$8=1,Ratios!HZ62,IF('Integrated Financial Statements'!$A$8=2,Ratios!HZ82,IF('Integrated Financial Statements'!$A$8=3,Ratios!HZ102,"Check Case"))) -> 35.3093205 | ID13: =IF('Integrated Financial Statements'!$A$8=1,Ratios!ID62,IF('Integrated Financial Statements'!$A$8=2,Ratios!ID82,IF('Integrated Financial Statements'!$A$8=3,Ratios!ID102,"Check Case"))) -> 34.76611798 | IH13: =IF('Integrated Financial Statements'!$A$8=1,Ratios!IH62,IF('Integrated Financial Statements'!$A$8=2,Ratios!IH82,IF('Integrated Financial Statements'!$A$8=3,Ratios!IH102,"Check Case"))) -> 33.71897144 | IL13: =IF('Integrated Financial Statements'!$A$8=1,Ratios!IL62,IF('Integrated Financial Statements'!$A$8=2,Ratios!IL82,IF('Integrated Financial Statements'!$A$8=3,Ratios!IL102,"Check Case"))) -> 0 | IP13: =IF('Integrated Financial Statements'!$A$8=1,Ratios!IP62,IF('Integrated Financial Statements'!$A$8=2,Ratios!IP82,IF('Integrated Financial Statements'!$A$8=3,Ratios!IP102,"Check Case"))) -> 33.8059906 | IT13: =IF('Integrated Financial Statements'!$A$8=1,Ratios!IT62,IF('Integrated Financial Statements'!$A$8=2,Ratios!IT82,IF('Integrated Financial Statements'!$A$8=3,Ratios!IT102,"Check Case"))) -> 35.3093205 | IX13: =IF('Integrated Financial Statements'!$A$8=1,Ratios!IX62,IF('Integrated Financial Statements'!$A$8=2,Ratios!IX82,IF('Integrated Financial Statements'!$A$8=3,Ratios!IX102,"Check Case"))) -> 34.76611798 | JB13: =IF('Integrated Financial Statements'!$A$8=1,Ratios!JB62,IF('Integrated Financial Statements'!$A$8=2,Ratios!JB82,IF('Integrated Financial Statements'!$A$8=3,Ratios!JB102,"Check Case"))) -> 33.71897144 | JF13: =IF('Integrated Financial Statements'!$A$8=1,Ratios!JF62,IF('Integrated Financial Statements'!$A$8=2,Ratios!JF82,IF('Integrated Financial Statements'!$A$8=3,Ratios!JF102,"Check Case"))) -> 0 | JJ13: =IF('Integrated Financial Statements'!$A$8=1,Ratios!JJ62,IF('Integrated Financial Statements'!$A$8=2,Ratios!JJ82,IF('Integrated Financial Statements'!$A$8=3,Ratios!JJ102,"Check Case"))) -> 33.8059906 | JN13: =IF('Integrated Financial Statements'!$A$8=1,Ratios!JN62,IF('Integrated Financial Statements'!$A$8=2,Ratios!JN82,IF('Integrated Financial Statements'!$A$8=3,Ratios!JN102,"Check Case"))) -> 35.3093205 | JR13: =IF('Integrated Financial Statements'!$A$8=1,Ratios!JR62,IF('Integrated Financial Statements'!$A$8=2,Ratios!JR82,IF('Integrated Financial Statements'!$A$8=3,Ratios!JR102,"Check Case"))) -> 34.76611798 | JV13: =IF('Integrated Financial Statements'!$A$8=1,Ratios!JV62,IF('Integrated Financial Statements'!$A$8=2,Ratios!JV82,IF('Integrated Financial Statements'!$A$8=3,Ratios!JV102,"Check Case"))) -> 33.71897144 | JZ13: =IF('Integrated Financial Statements'!$A$8=1,Ratios!JZ62,IF('Integrated Financial Statements'!$A$8=2,Ratios!JZ82,IF('Integrated Financial Statements'!$A$8=3,Ratios!JZ102,"Check Case"))) -> 0 | KD13: =IF('Integrated Financial Statements'!$A$8=1,Ratios!KD62,IF('Integrated Financial Statements'!$A$8=2,Ratios!KD82,IF('Integrated Financial Statements'!$A$8=3,Ratios!KD102,"Check Case"))) -> 33.8059906 | KH13: =IF('Integrated Financial Statements'!$A$8=1,Ratios!KH62,IF('Integrated Financial Statements'!$A$8=2,Ratios!KH82,IF('Integrated Financial Statements'!$A$8=3,Ratios!KH102,"Check Case"))) -> 35.3093205 | KL13: =IF('Integrated Financial Statements'!$A$8=1,Ratios!KL62,IF('Integrated Financial Statements'!$A$8=2,Ratios!KL82,IF('Integrated Financial Statements'!$A$8=3,Ratios!KL102,"Check Case"))) -> 34.76611798 | KP13: =IF('Integrated Financial Statements'!$A$8=1,Ratios!KP62,IF('Integrated Financial Statements'!$A$8=2,Ratios!KP82,IF('Integrated Financial Statements'!$A$8=3,Ratios!KP102,"Check Case"))) -> 33.71897144 | KT13: =IF('Integrated Financial Statements'!$A$8=1,Ratios!KT62,IF('Integrated Financial Statements'!$A$8=2,Ratios!KT82,IF('Integrated Financial Statements'!$A$8=3,Ratios!KT102,"Check Case"))) -> 0
